Workbook

Sheet Design Converter
A1: LM51772 DC/DC Controller Design Tool
A3: About | C3: xx | F3: = Input Box | J3: http://www.ti.com/product/lm51772 | N3: TERMS OF USE
A4: Version | B4: =Licenses!B5 -> 1.1.1
A5: Step 1: Operating Specifications
D6: Input Voltage - Min, VIN(min) | E6: 6 | F6: V
D7: Input Voltage - Nom, VIN(nom) | E7: 12 | F7: V
D8: Input Voltage - Max, VIN(max) | E8: 36 | F8: V
D9: Output Voltage, VOUT | E9: 20 | F9: V
D10: Full Load Output Current, IOUT(max) | E10: 3.3 | F10: A
D11: Switching Frequency | E11: 615 | F11: kHz
D12: Frequency Set Resistor, RT | E12: =IF('Standard Value Calculator'!O4/1000>288, "N/A",'Standard Value Calculator'!O4/1000) -> 51.1 | F12: kΩ
A14: Step 2: Filter Inductor
D15: Recommended Filter Inductance | E15: =Lopt_Limit*1000000 -> 3.299545982 | F15: µH
D16: Inductance, LF | E16: 3.3 | F16: µH
D17: Inductor DCR | E17: 5.9 | F17: mΩ
D18: Pk-to-Pk Ripple Current at VIN(min), DIL1 | E18: ='Variable Management'!B84 -> 2.083191832 | F18: Apk-pk
D19: Pk-to-Pk Ripple Current at VIN(nom), DIL2 | E19: ='Variable Management'!B85 -> 2.377277455 | F19: Apk-pk
D20: Pk-to-Pk Ripple Current at VIN(max), DIL3 | E20: ='Variable Management'!B86 -> 4.385067682 | F20: Apk-pk
D21: DIL as a % at VIN(min) | E21: ='Variable Management'!B96*100 -> 17.99120219 | F21: %
D22: DIL as a % at VIN(nom) | E22: ='Variable Management'!B97*100 -> 41.06206513 | F22: %
D23: DIL as a % at VIN(max) | E23: ='Variable Management'!B98*100 -> 132.8808389 | F23: %
A25: Step 3: OCP, Sense Resistors, Slope Comp
D26: Peak Current Limit Margin | E26: 20 | F26: %
D27: Recommended Sense Resistance | E27: =Rs_ideal*1000 -> 3.301495485 | F27: mΩ
D28: Sense Resistance, RS | E28: 3 | F28: mΩ
D29: Peak Inductor Over-Current Limit, ILPK,Limit | E29: ='Variable Management'!B143 -> 19.5 | F29: A
D30: Max Peak Inductor Current, ILPk,Max | E30: =Ipeak_inductor_max -> 12.62054328 | F30: A
D31: =IF('Variable Management'!B91>'Variable Management'!B89, "Power Loss in Rs at Full Load (Max VIN)", "Power Loss in Rs at Full Load (Min VIN)") -> Power Loss in Rs at Full Load (Min VIN) | E31: ='Variable Management'!B92 -> 0.2841818623 | F31: W
D32: Recommended SLOPE Factor | E32: ='Variable Management'!B148 -> 1
D34: VIN(min) | E34: ='Variable Management'!B135 -> 4.615026565 | F34: A
C35: IOUT(typ) at OCP Inception: | D35: VIN(nom) | E35: ='Variable Management'!B136 -> 9.254977693 | F35: A
D36: VIN(max) | E36: ='Variable Management'!B137 -> 14.47413283 | F36: A
A38: Step 4: Output Capacitor
D39: Output Voltage Ripple Spec | E39: 150 | F39: mVpk-pk
D40: Minimum Output Capacitance | E40: ='Variable Management'!B176 -> 25.20662117 | F40: µF
D41: Output Capacitance, COUT | E41: 60 | F41: µF | H41: LM51772
D42: Maximum Permitted ESR | E42: ='Variable Management'!B180 -> 26.35862033 | F42: mΩ | N42: ='CFG Setting'!H56 -> R_CFG1 | O42: ='CFG Setting'!H57 -> 0 | P42: kΩ
D43: Output Capacitor ESR | E43: 8.3 | F43: mΩ | N43: ='CFG Setting'!H85 -> R_CFG2 | O43: ='CFG Setting'!H86 -> 2.7 | P43: kΩ
D44: Resulting Output Voltage Ripple (max) | E44: =Vripple2*1000 -> 90.40655293 | F44: mVpk-pk | N44: ='CFG Setting'!H115 -> R_CFG3 | O44: ='CFG Setting'!H116 -> 0 | P44: kΩ
D45: Output Capacitor RMS Current (max) | E45: ='Variable Management'!B171 -> 5.040833264 | F45: A (rms) | N45: ='CFG Setting'!H145 -> R_CFG4 | O45: ='CFG Setting'!H146 -> 0 | P45: kΩ
A47: Step 5: Input Capacitor
D48: Input Voltage Ripple Spec | E48: 180 | F48: mVpk-pk | J48: CDC | N48: =_xlfn.SWITCH(IMONLIM_select+1,1,"",2,"Current Limiter (external)", 3,"Current Limiter via I2C") -> Current Limiter (external)
D49: Minimum Input Capacitance | E49: ='Variable Management'!B196 -> 10 | F49: µF | J49: Maximum Output Current | K49: 3.6 | L49: A | N49: =CHOOSE(IMONLIM_select+1,"","Average Current Limit","Average Current Limit") -> Average Current Limit | O49: 5.5 | P49: A
D50: Input Capacitance, CIN | E50: 60 | F50: µF | J50: Maximum Voltage at VCDC | K50: 1 | L50: V | N50: =_xlfn.SWITCH(IMONLIM_select+1,1,"",2,"", 3,"DAC ILIM_THRESHOLD") ->  | O50: 100 | P50: =_xlfn.SWITCH(IMONLIM_select+1,1,"",2,"",3,"", 4,"") -> 
D51: Maximum Permitted ESR | E51: ='Variable Management'!B201 -> 28.75265376 | F51: mΩ | J51: Recommended Current Sense, RISNS(out/in) | K51: =CDC_Threshold/K49*1000 -> 13.88888889 | L51: mΩ | N51: Recommended Current Sense, RISNS(out/in) | O51: =_xlfn.SWITCH(IMONLIM_select+1,1,0,2,ILIM_Threshold/O49, 3,0.05/O49)*1000 -> 9.090909091 | P51: mΩ
D52: Input Capacitor ESR | E52: 8.3 | F52: mΩ | J52: Used Current Sense, RISNS(out/in) | K52: 10 | L52: mΩ | N52: Used Current Sense, RISNS(out/in) | O52: 10 | P52: mΩ
D53: Resulting Input Voltage Ripple (max) | E53: =Vinripple2*1000 -> 67.66310707 | F53: mVpk-pk | J53: CDC Resistance, RCDC | K53: =(K50)/(K52/1000*K49*gm_CDC)/1000 -> 55.55555556 | L53: kΩ | N53: =_xlfn.SWITCH(IMONLIM_select+1,1,"",2,"ILIMCOMP Resistance, RILIM", 3,"Effective average Current Limit") -> ILIMCOMP Resistance, RILIM | O53: =(_xlfn.SWITCH(IMONLIM_select+1,1,"",2,V_Ilimit/(O52/1000*O49*gm_IL)/1000,3,O50*0.0005/(O52*0.001))) -> 18.18181818 | P53: =_xlfn.SWITCH(IMONLIM_select+1,1,"",2,"kΩ", 3,"A") -> kΩ
D54: Input Capacitor RMS Current (max) | E54: ='Variable Management'!B189 -> 1.639537138 | F54: A (rms) | N54: =_xlfn.SWITCH(IMONLIM_select+1,1,"",2,"ILIMCOMP Capacitor, CILIM,HF", 3,"ILIMCOMP Capacitor, CILIM") -> ILIMCOMP Capacitor, CILIM,HF | O54: =(_xlfn.SWITCH(IMONLIM_select+1,1,"",2,C_ILimit_HF_STD*1000000000000,3,C_limitcomp_STD*1000000000)) -> 27 | P54: =_xlfn.SWITCH(IMONLIM_select+1,1,"",2,"pF", 3,"nF") -> pF
A56: Step 6: Soft-start, UVLO, CFG
D57: recommended Soft-Start Time, tSS for ISCP(MIN) | E57: =E41*0.000001*E9/(E26-E10)*1000 -> 0.07185628743 | F57: ms | M57: VIN(nom) | N57: =VIN_nom&"V" -> 12V
D58: Soft-Start Time, tSS | E58: 2 | F58: ms
D59: Soft-Start Capacitance, CSS | E59: =Css_u*1000000000 -> 10 | F59: nF
D61: Required Input Voltage UVLO On | E61: 8.7 | F61: V
D62: Input Voltage UVLO Off | E62: =E61-0.375 -> 8.325 | F62: V
D63: Upper UVLO Resistor, RUV1 | E63: =Ruvlo1 -> 75 | F63: kΩ
D64: Lower UVLO Resistor, RUV2 | E64: ='Variable Management'!E221 -> 12.4 | F64: kΩ
A73: Step 7: Compensation Design
D74: Load Pole Frequency | E74: =Fp_dominant -> 875.352187 | F74: Hz
D75: COUT ESR Zero Frequency | E75: =Fesr/1000 -> 319.5882391 | F75: kHz
D76: Boost RHP Zero Frequency @ VIN(MIN) | E76: =IF(E6<E9,Frhp_Vinmin/1000,"---") -> 25.49920691 | F76: kHz
D77: Boost RHP Zero Frequency @ VIN(NOM) | E77: =IF(E7<E9,Frhp/1000,"---") -> 104.5061257 | F77: kHz
D78: Desired Crossover Frequency | E78: =MIN(Fsw*0.05,E76/4,E77/4) -> 6.374801727 | F78: kHz
D79: Desired Crossover Frequency | E79: 8 | F79: =" kHz " -> kHz
D80: Error Amp Pole Frequency | E80: =Fp1_u -> 1.325343572 | F80: Hz
D81: Upper Feedback Resistor, RFBT | E81: 100 | F81: kΩ
D82: Lower Feedback Resistor, RFBB | E82: =Rfb2_u/1000 -> 5.263157895 | F82: kΩ
A84: Compensation Components
B85: Calculated / | C85: Std Values | E85: =" Selected" -> Selected | G85: Actual P/Z Frequencies
A86: RC | B86: =Rcea1/1000 -> 2.514563425 | C86: ='Standard Value Calculator'!O27 -> 2.49 | E86: 7.15 | F86: kΩ | G86: =Fp1_u -> 1.325343572 | H86: Hz (FPEA)
A87: CC1 | B87: =Cc1ea*1000000000 -> 48.2040421 | C87: ='Standard Value Calculator'!O28 -> 47 | E87: 12 | F87: nF | G87: =Fz1_u/1000 -> 1.854952717 | H87: kHz (FZCOMP)
A88: CC2 | B88: =IF(Cc2ea*1000000000000<0, 0, Cc2ea*1000000000000) -> 783.8202687 | C88: ='Standard Value Calculator'!O29 -> 820 | E88: 220 | F88: pF | G88: =Fp2_u/1000 -> 97.91010405 | H88: kHz (FPCOMP)
A90: Efficiency / Power Loss Analyzer
A92: Step 8: Efficiency | M92: VIN(nom) | N92: =VIN_nom&"V" -> 12V
D93: Buck-Leg Power MOSFETs (Q1, Q2) | E93: SQJ422EP
E94: Hi-side | F94: Low-side
D95: On-State Resistance, RDS(on) | E95: 4 | F95: 4 | G95: mΩ
D96: Total Gate Charge, QG | E96: 22 | F96: 22 | G96: nC
D97: Gate-Drain Charge, QGD | E97: 8 | F97: 8 | G97: nC
D98: Gate-Source Charge, QGS | E98: 6.6 | F98: 6.6 | G98: nC
D99: Gate Resistance, RG | E99: 2.4 | F99: 2.4 | G99: Ω
D100: Transconductance, gFS | E100: 65 | F100: 65 | G100: S
D101: Gate-Source Threshold Voltage, VTH | E101: 2.3 | F101: 2.3 | G101: V
D102: Body Diode Forward Voltage, VBD | E102: 1.2 | F102: 1.2 | G102: V
D103: Body Diode Rev Recovery Charge, QRR | F103: 22 | G103: nC
D104: Thermal Resistance, θJA | E104: 62 | F104: 62 | G104: °C/W
D106: Boost-Leg Power MOSFETs (Q3, Q4) | E106: SQJ422EP
E107: Hi-side | F107: Low-side
D108: On-State Resistance, RDS(on) | E108: 4 | F108: 4 | G108: mΩ
D109: Total Gate Charge, QG | E109: 22 | F109: 22 | G109: nC
D110: Gate-Drain Charge, QGD | E110: 8 | F110: 8 | G110: nC
D111: Gate-Source Charge, QGS | E111: 6.6 | F111: 6.5 | G111: nC
D112: Gate Resistance, RG | E112: 2.4 | F112: 2.4 | G112: Ω
D113: Transconductance, gFS | E113: 65 | F113: 65 | G113: S
D114: Gate-Source Threshold Voltage, VTH | E114: 2.3 | F114: 2.3 | G114: V
D115: Body Diode Forward Voltage, VBD | E115: 1.2 | F115: 1.2 | G115: V
D116: Body Diode Rev Recovery Charge, QRR | E116: 22 | G116: nC
D117: Thermal Resistance, θJA | E117: 62 | F117: 62 | G117: °C/W
A119: External Schottky Diode (if applicable) | E119: Buck Leg | F119: Boost Leg
D120: Schottky Fwd Voltage, VFWDsch | E120: 0 | F120: 0 | G120: V
D121: Schottky Rev Recovery Charge, QRRsch | E121: 0 | F121: 0 | G121: nC

Sheet Licenses
A5: Version Number | B5: 1.1.1
A35: Version History
A36: Version | B36: Change List Description
A37: 1.0.0 | B37: Initial Release
A38: 1.0.1 | B38: Reworked inductor selection, updated current monitor and limiter configuration
A39: 1.1.0 | B39: updated input limit to 55V
B40: fixed error in efficency calculation - R for ISNS was not implemented right
B41: Fixed labeling in efficiency graph
B42: Updated Current Limit and Monitor configuration
B43: Added internal FB divider configuration
A44: 1.1.1 | B44: updated calculation for ILIM with DAC and ISET
B45: fixed resistor value for R(CFG) setting 3

Sheet BOM & Schematic (hidden)
B45: ** Tie MODE to VCC (or voltage > 2.4V) for No Hiccup **
A46: ="VIN = "&VIN_min&" V to "&VIN_max&" V, VOUT = "& Vout &" V, IOUT = " &Iout & " A, Fsw = " & Fsw/1000 &" kHz, Current Limit = "&ROUNDUP(Ilimit_DC,0)&" A" -> 
A47: High Efficiency Synchronous Buck-Boost Regulator BOM
A48: Count | B48: Ref Des | C48: Value | D48: Description | H48: Size | I48: Part Number | J48: MFR
A49: 2 | B49: CBOOT1, CBOOT2 | C49: 0.1 | D49: =C49 -> 0.1 | H49: 0603 | I49: Std | J49: Std
A50: 1 | B50: CC1 | C50: ='Design Converter'!E87 -> 12 | D50: 12 | H50: 0603 | I50: Std | J50: Std
A51: 1 | B51: CC2 | C51: ='Design Converter'!E88 -> 220 | D51: 220 | H51: 0603 | I51: Std | J51: Std
A52: 1 | B52: RSLOPE | C52: =Rslope/1000 -> 50.81300813 | H52: 0603 | I52: Std | J52: Std
A53: 1 | B53: CCS | C53: 100 | D53: =C53 -> 100 | H53: 0603 | I53: Std | J53: Std
A54: 1 | B54: CDITH | C54: =Cdither*1000000000 -> 0 | D54: =C54 -> 0 | H54: 0603 | I54: Std | J54: Std
A55: =ROUNDUP('Design Converter'!E50/10,0) -> 6 | B55: CIN | C55: 10 | D55: =C55 -> 10 | H55: 1210 | I55: Std | J55: Std
A56: =ROUNDUP('Design Converter'!E41/22,0) -> 3 | B56: COUT | C56: 22 | D56: =C56 -> 22 | H56: 1210 | I56: Std | J56: Std
A57: 1 | B57: CSS | C57: ='Design Converter'!E59 -> 10 | D57: =C57 -> 10 | H57: 0603 | I57: Std | J57: Std
A58: 1 | B58: CVCC | C58: 1 | D58: 1 | H58: 0603 | I58: Std | J58: Std
A59: 1 | B59: CVIN | C59: 0.1 | D59: 0.1 | H59: 0603 | I59: Std | J59: Std
A60: 3 | B60: DBOOT1, DBOOT2, DVIN | C60: See description | D60: Schottky Diode, 200mA | H60: - | I60: - | J60: Various
A61: 1 | B61: LF | C61: ='Design Converter'!E16 -> 3.3 | D61: ="Inductor, "&Lf*1000000&"µH, "&Rdcr*1000&"mΩ, >"&ROUNDUP(IL_peak_OCP*1.1,0)&"A" -> Inductor, 3.3µH, 5.9mΩ, >22A | H61: - | I61: - | J61: Various
A62: 2 | B62: Q1, Q2 | C62: See description | D62: ='Design Converter'!E95 -> 4 | H62: Std | I62: ='Design Converter'!E93 -> SQJ422EP | J62: -
A63: 2 | B63: Q3, Q4 | C63: See description | D63: ='Design Converter'!E108 -> 4 | H63: Std | I63: ='Design Converter'!E106 -> SQJ422EP | J63: -
A64: 1 | B64: RC1 | C64: ='Design Converter'!E86 -> 7.15 | D64: =C64 -> 7.15 | H64: 0603 | I64: Std | J64: Std
A65: 1 | B65: RS | C65: =Rs*1000 -> 3 | D65: 3 | H65: 2512 | I65: Std | J65: Std
A66: 1 | B66: RCS(out) | C66: ='Standard Value Calculator'!O21 -> 10 | D66: =C66 -> 10 | H66: 2512 | I66: Std | J66: Std
A67: 1 | B67: RT | C67: ='Design Converter'!E12 -> 51.1 | D67: 51.1 | H67: 0603 | I67: Std | J67: Std
A68: 1 | B68: RFB1 | C68: ='Design Converter'!E81 -> 100 | D68: 100 | H68: 0603 | I68: Std | J68: Std
A69: 1 | B69: RFB2 | C69: ='Design Converter'!E82 -> 5.263157895 | D69: 5.263157895 | H69: 0603 | I69: Std | J69: Std
A70: 1 | B70: RPGOOD | C70: 20 | D70: 20 | H70: 0603 | I70: Std | J70: Std
A71: 2 | B71: RCS, RCSG | C71: 100 | D71: 100 | H71: 0603 | I71: Std | J71: Std
A72: 1 | B72: RUV1 | C72: ='Design Converter'!E63 -> 75 | D72: 75 | H72: 0603 | I72: Std | J72: Std
A73: 1 | B73: RUV2 | C73: ='Design Converter'!E64 -> 12.4 | D73: 12.4 | H73: 0603 | I73: Std | J73: Std
A74: 1 | B74: RVIN | C74: 2.2 | D74: 2.2 | H74: 0603 | I74: Std | J74: Std
A75: 1 | B75: U1 | C75: LM5177 | D75: IC, LM5177, Buck-Boost PWM Controller | H75: TSSOP-38 | I75: LM5177HTSSOP | J75: TI
A78: NOTES:
A79: ** For information on TI NexFETTM MOSFETs, see ** | D79: http://www.ti.com/nexfet | E79: **
A80: ** Inductor saturation current should be higher than the peak inductor current at the OCP setpoint for all input voltages and operating temperatures **
A81: ** Effective input and output capacitances should be appropriately derated for applied voltage and temperature, particularly with ceramics **

Sheet EVMs (hidden)
A1: LM5175 Quickstart Design Tool
B6: LM5175EVM-HD PCB Layout | M6: LM5175EVM-HP PCB Layout | W6: LM5175EVM PCB Layout

Sheet MOSFET LOSS (hidden)

Sheet DeviceParameter (hidden)
A1: EXCEL Device Parameter
B2: Input from user = | F2: to check
B3: Output =
B4: Constant
A5: Variable Name | B5: Selected Value | C5: STD Units | D5: Device
D6: LM5177 | E6: LM51771 | F6: LM51772
A7: MaxVin | B7: =IF(Device=DeviceParameter!$D$6,DeviceParameter!D7,IF(Device=DeviceParameter!$E$6,DeviceParameter!E7,IF(Device=DeviceParameter!$F$6,DeviceParameter!F7,""))) -> 55 | C7: V | D7: 60 | F7: 55
A8: MinVin | B8: =IF(Device=DeviceParameter!$D$6,DeviceParameter!D8,IF(Device=DeviceParameter!$E$6,DeviceParameter!E8,IF(Device=DeviceParameter!$F$6,DeviceParameter!F8,""))) -> 3.3 | C8: V | D8: 2.8 | F8: 3.3
A9: MaxfSW | B9: =IF(Device=DeviceParameter!$D$6,DeviceParameter!D9,IF(Device=DeviceParameter!$E$6,DeviceParameter!E9,IF(Device=DeviceParameter!$F$6,DeviceParameter!F9,""))) -> 2200 | C9: kHz | D9: 600 | F9: 2200
A11: gm_monitor | B11: =IF(Device=DeviceParameter!$D$6,DeviceParameter!D11,IF(Device=DeviceParameter!$E$6,DeviceParameter!E11,IF(Device=DeviceParameter!$F$6,DeviceParameter!F11,""))) -> 0.001 | C11: S | D11: 0.001 | F11: 0.001
A12: gm_IL_DAC | B12: =IF(Device=DeviceParameter!$D$6,DeviceParameter!D12,IF(Device=DeviceParameter!$E$6,DeviceParameter!E12,IF(Device=DeviceParameter!$F$6,DeviceParameter!F12,""))) -> 0.0005 | C12: S | F12: 0.0005
A13: gm_IL | B13: =IF(Device=DeviceParameter!$D$6,DeviceParameter!D13,IF(Device=DeviceParameter!$E$6,DeviceParameter!E13,IF(Device=DeviceParameter!$F$6,DeviceParameter!F13,""))) -> 0.001 | C13: S | D13: 0.0002 | F13: 0.001
A14: gm_CDC | B14: 0.0005 | C14: S | F14: 0.0005 | J14: CDC Transconductance
A16: CDC_Threshold | B16: 0.05 | C16: V
A17: IMON_Threshold | B17: 0.05 | C17: V
A18: ILIM_Threshold | B18: 0.05 | C18: V
A20: V_Ilimit | B20: 1 | C20: V

Sheet Variable Management (hidden)
A1: EXCEL Variables Names/Calculations
B2: Input from user = | F2: to check
B3: Output =
B4: Constant
A5: Variable Name | B5: Value | C5: STD Units | E5: Notes | I5: Iteration
A6: Step 1: Operational Specs
A7: VIN_min | B7: ='Design Converter'!E6 -> 6 | C7: V | D7: Minimum input voltage | I7: 1
B8: ='Design Converter'!E7 -> 12 | C8: V | D8: Nominal input voltage | K8: Efficiency vs IOUT Plot | L8: 1
A9: VIN_max | B9: ='Design Converter'!E8 -> 36 | C9: V | D9: Maximum input voltage | K9: Efficiency vs VIN Plot | L9: 2
A10: VIN_edgebuckboost | B10: =B44 -> 15.97403811 | C10: V | K10: PLOT_TYPE | L10: 2 | M10: CFG | O10: ='CFG Setting'!G28 -> 13 | P10: 1 = Yes, 2 = No
K11: BODEPLOT_TYPE | L11: FALSE
A12: Vout | B12: ='Design Converter'!E9 -> 20 | C12: V | D12: Output Voltage | I12: 1
A13: Iout | B13: ='Design Converter'!E10 -> 3.3 | C13: A | D13: Maximum Output Current | I13: 1
A14: Rout | B14: =Vout/Iout -> 6.060606061 | C14: W | D14: Load resistance
A15: Pout | B15: =Vout*Iout -> 66 | C15: W | D15: Output power
A16: Efficiency | B16: 0.95 | D16: Edited by Vijay from 96% to 90% to match datasheet calculations.
A17: Pin | B17: =Pout/Efficiency -> 69.47368421 | C17: W | D17: Calculate input power assuming 90% efficiency
A18: Iin_Vinmin | B18: =Pin/VIN_min -> 11.57894737 | C18: A
A19: Iin_Vinnom | B19: =Pin/VIN_nom -> 5.789473684 | C19: A | D19: Input currents at min, nom, max Vin
A20: Iin_Vinmax | B20: =Pin/VIN_max -> 1.929824561 | C20: A
A22: Fsw | B22: ='Design Converter'!E11*1000 -> 615000 | C22: Hz | D22: Nominal Switching Frequency | I22: 1
A23: Ts | B23: =1/Fsw -> 1.62601626e-06 | C23: sec | D23: Period
A24: Vref | B24: =_xlfn.SWITCH(Internal_FB_enabled,1,1,Vout/10,2,3,Vout/20) -> 2 | C24: V | D24: Reference Voltage
A25: Vref_eff | B25: =Vref -> 2 | C25: V | D25: effective Vref with Tracking
A26: Rt | B26: =IF(Device<>"LM51772",(1/Fsw -0.00000002)*30300000000,(1/Fsw -0.000000018)*31500000000) -> 50652.5122 | C26: W | D26: Frequency Set Resistor | F26: edited based on LM5177 curve fit.
A27: Ifb | B27: 6e-08 | C27: A
A29: Device | B29: =CHOOSE(C29,L29,L30) -> LM51772 | C29: 2 | K29: Device | L29: LM5177
A30: Mode | B30: 1 | D30: 0: PSM 1: FPWM | L30: LM51772
A32: Toff_min_buck | B32: =MinToffBuck -> 2.253627554e-07 | C32: sec | D32: 200ns | E32: buck min timer
A33: Ton_min_boost | B33: =MinTonBoost -> 1.853627554e-07 | C33: sec | D33: 300ns | E33: boost min timer
A34: T_max_BB | B34: =TonBubo -> 1.298702285e-06 | C34: sec | E34: max timer before transition from BB
A36: D_min_boost | B36: =MinTonBoost*Fsw -> 0.1139980946
A37: D_max_exitBB_to_boost | B37: =TBubo*Fsw -> 0.2012980946 | C37: =MinTonBoost*Fsw -> 0.1139980946
A38: D_max_buck_BB | B38: 1 | C38: =MaxTonBuck*Fsw -> 0.8614019054
A40: D_min_boost_exitBB_to_buck | B40: =TBubo*Fsw -> 0.2012980946
A41: D_max_exitBB_to_buck | B41: =MaxTonBuck*Fsw -> 0.8614019054
A42: D_max_buck_enterBB | B42: =MaxTonBoost*Fsw -> 0.9127
A44: VIN_BB_to_boost | B44: =Vout*(1-B40) -> 15.97403811 | C44: V
A45: VIN_boost_to_BB | B45: =IF(B30=0,Vout,Vout*(1-B36)) -> 17.72003811 | C45: V
A46: VIN_buck_to_BB | B46: =IF(B30=0,Vout,Vout/B42) -> 21.91300537 | C46: V
A47: VIN_BB_to_buck | B47: =IF(B30=0,Vout,Vout/B41) -> 23.21796582 | C47: V
A51: Step 2: Filter Inductor
A52: Don1 | B52: =Vout/VIN_nom -> 1.666666667 | C52: =(Vout-VIN_nom)/Vout -> 0.4 | E52: Ideal Duty Cycle at VIN(nom) | I52: 1
A53: Doff1 | B53: =1-_Don1 -> -0.6666666667 | E53: Ideal 1- Duty Cycle at VIN(nom) | I53: 1
A55: Don_Vinmin | B55: =IF(VIN_min>Vout, Vout/VIN_min, (Vout-VIN_min)/Vout) -> 0.7 | C55: =IF(VIN_min>Vout, "BUCK", "BOOST") -> BOOST
A56: Don_Vinnom | B56: =IF(VIN_nom>Vout, Vout/VIN_nom, (Vout-VIN_nom)/Vout) -> 0.4 | C56: =IF(VIN_nom>Vout, "BUCK", "BOOST") -> BOOST
A57: Don_Vinmax | B57: =IF(VIN_max>Vout, Vout/VIN_max, (Vout-VIN_max)/Vout) -> 0.5555555556 | C57: =IF(VIN_max>Vout, "BUCK", "BOOST") -> BUCK
A58: Don_buckboost | B58: =B37 -> 0.2012980946 | C58: lower edge of BUCK-BOOST
B59: BUCK | C59: BOOST
A60: Lf_Vinmin | B60: =(VIN_min-Vout)*Don_Vinmin/(Fsw*Iout*0.3) -> -1.609591853e-05 | C60: =VIN_min/(Iin_Vinmin*0.3*Fsw)*(1-VIN_min/Vout) -> 1.966001478e-06 | D60: H | E60: Calculated inductance for 30% ripple at VIN(min)
A61: Lf_Vinnom | B61: =(VIN_nom-Vout)*Don_Vinnom/(Fsw*Iout*0.35) -> -4.504980115e-06 | C61: =VIN_nom/(Iin_Vinnom*0.35*Fsw)*(1-VIN_nom/Vout) -> 3.851757998e-06 | D61: H | E61: Calculated inductance for 35% ripple at VIN(nom) | I61: 1
A62: Lf_Vinmax | B62: =(VIN_max-Vout)*Don_Vinmax/(Fsw*Iout*0.4) -> 1.094960445e-05 | C62: =VIN_max/(Iin_Vinmax*0.4*Fsw)*(1-VIN_max/Vout) -> -6.066518847e-05 | D62: H | E62: Calculated inductance for 40% ripple at VIN(max) | K62: Joerg's Calculation | R62: LM5177
A64: L_Vinmin | B64: =MAX(IF(VIN_min>Vout,B60,C60),O64) -> 1.966001478e-06 | C64: H | D64: =IF(VIN_min>Vout, "BUCK", "BOOST") -> BOOST | E64: Calculated inductance for 30% ripple at VIN(min) | K64: Lbuck | L64: =(VIN_max-Vout)*Vout/(0.4*Iout*Fsw*VIN_max) -> 1.094960445e-05 | M64: H | N64: Lmin | O64: =MAX(10*Vout*Rs/Fsw,Rs*125/Fsw) -> 9.756097561e-07 | P64: H
A65: L_Vinnom | B65: =IF(VIN_nom>Vout, B61,C61) -> 3.851757998e-06 | C65: H | D65: =IF(VIN_nom>Vout, "BUCK", "BOOST") -> BOOST | E65: Calculated inductance for 35% ripple at VIN(nom) | K65: Lboost | L65: =(Vout-VIN_min)*VIN_min^2/(0.3*Iout*Fsw*Vout^2) -> 2.06947524e-06 | M65: H | N65: Lmax | O65: =Rs*5000/Fsw -> 2.43902439e-05 | P65: H
A66: L_Vinmax | B66: =MIN(IF(VIN_max>Vout,B62,C62),O65) -> 1.094960445e-05 | C66: H | D66: =IF(VIN_max>Vout, "BUCK", "BOOST") -> BUCK | E66: Calculated inductance for 40% ripple at VIN(max) | K66: Lmax(0.5d boost) | L66: =Rs*25*Vout/Fsw -> 2.43902439e-06 | M66: H | N66: Ltyp | O66: =Rs*625/Fsw -> 3.048780488e-06 | P66: H
K67: Iinpeakmax | L67: =Vout/VIN_min*1.4*Iout -> 15.4 | M67: A | N67: Lminheadroom | O67: =Rs*10*Vout/Fsw -> 9.756097561e-07 | P67: H
A68: Lopt | B68: =O74 -> 3.299545982e-06 | C68: H | D68: average of calculated inductances at VIN(min), VIN(max) and VIN(nom) | K68: Rsns_suggest | L68: =Buck_CS_threshold/L67 -> 0.003246753247 | M68: W | N68: LminSC | O68: =Rs*125/Fsw -> 6.097560976e-07 | P68: H
A69: Lmin | B69: =O64 -> 9.756097561e-07 | C69: H
A70: Lmax | B70: =O65 -> 2.43902439e-05 | C70: H | K70: L_avg | L70: =(MAX(MIN(AVERAGE(L64:L65),O65),O64)) -> 6.509539843e-06 | M70: H
A71: Lopt_Limit | B71: =MAX(MIN(B68,B70),B69) -> 3.299545982e-06 | C71: H | K71: L_min | L71: =(MAX(MIN(MIN(L64:L65),O65),O64)) -> 2.06947524e-06 | M71: H
A72: Lf | B72: ='Design Converter'!E16/1000000 -> 3.3e-06 | C72: H | E72: Chosen inductance | I72: 2
A73: Rdcr | B73: ='Design Converter'!E17/1000 -> 0.0059 | C73: W | E73: Chosen inductor DCR | I73: 1 | N73: Ltyp_sugguest | O73: =L68*625/Fsw -> 3.299545982e-06 | P73: H
N74: Ltyp_sugguest_limit | O74: =MAX(O64,MIN(O65,O73)) -> 3.299545982e-06 | P74: H
A75: Don2 | B75: =(Vout+Iout*(Rdcr+Rs))/(Vin+Iout*Rs) -> 1.667738283 | I75: 2
A76: Doff2 | B76: =1-_Don2 -> -0.6677382826 | I76: 2
A78: Don_Vinmin_2 | B78: =IF(VIN_min>Vout, (Vout+Iout*(Rdcr+Rs))/(VIN_min+Iout*Rs), (Vout-VIN_min+Iin_Vinmin*(Rdcr))/(Vout-Iin_Vinmin*Rs)) -> 0.7046396373 | C78: =IF(VIN_min>Vout, "BUCK", "BOOST") -> BOOST | E78: Duty cycles adjusted for DCR and shunt voltage drops | I78: 2
A79: Don_Vinnom_2 | B79: =IF(VIN_nom>Vout, (Vout+Iout*(Rdcr+Rs))/(VIN_nom+Iout*Rs), (Vout-VIN_nom+Iin_Vinnom*(Rdcr))/(Vout-Iin_Vinnom*Rs)) -> 0.4020570495 | C79: =IF(VIN_nom>Vout, "BUCK", "BOOST") -> BOOST | E79: need to include RDS(on) later | R79: LM51772
A80: Don_Vinmax_2 | B80: =IF(VIN_max>Vout, (Vout+Iout*(Rdcr+Rs))/(VIN_max+Iout*Rs), (Vout-VIN_max+Iin_Vinmax*(Rdcr))/(Vout-Iin_Vinmax*Rs)) -> 0.5562184288 | C80: =IF(VIN_max>Vout, "BUCK", "BOOST") -> BUCK
A82: Vripple1 | B82: ='Design Converter'!E39/1000 -> 0.15 | C82: V | E82: Output voltage ripple spec(pk-pk) | I82: 1
A84: Iripple_Vinmin | B84: =IF(VIN_min>Vout, (VIN_min-Vout)*Don_Vinmin_2/(Fsw*Lf),VIN_min*Don_Vinmin_2/(Lf*Fsw)) -> 2.083191832 | C84: =(VIN_min-Vout)*Don_Vinmin_2/(Fsw*Lf) -> -4.860780942 | D84: A | E84: =IF(VIN_min>Vout, "BUCK", "BOOST") -> BOOST | H84: =VIN_min*Don_Vinmin_2/(Lopt*Fsw) -> 2.083478479
A85: Iripple_Vinnom | B85: =IF(VIN_nom>Vout, (VIN_nom-Vout)*Don_Vinnom_2/(Fsw*Lf),VIN_nom*Don_Vinnom_2/(Lf*Fsw)) -> 2.377277455 | C85: =(VIN_nom-Vout)*Don_Vinnom_2/(Fsw*Lf) -> -1.584851637 | D85: A | E85: =IF(VIN_nom>Vout, "BUCK", "BOOST") -> BOOST
A86: Iripple_Vinmax | B86: =IF(VIN_max>Vout, (VIN_max-Vout)*Don_Vinmax_2/(Fsw*Lf),VIN_max*Don_Vinmax_2/(Lf*Fsw)) -> 4.385067682 | C86: =(VIN_max-Vout)*Don_Vinmax_2/(Fsw*Lf) -> 4.385067682 | D86: A | E86: =IF(VIN_max>Vout, "BUCK", "BOOST") -> BUCK
A87: Iripple_edgebuckboost | B87: =VIN_edgebuckboost*Don_buckboost/(Lf*Fsw) -> 1.58440179 | D87: A | E87: BUCK-BOOST
A89: Ishunt_rms_Vinmin | B89: =IF(VIN_min>Vout, SQRT(1-Don_Vinmin_2)*SQRT(Iout^2+(Iripple_Vinmin^2)/12), SQRT(Don_Vinmin_2)*SQRT(Iin_Vinmin^2+(Iripple_Vinmin^2)/12)) -> 9.73279443 | C89: A | E89: =SQRT(1-Don_Vinmin_2)*SQRT(Iout^2+(Iripple_Vinmin^2)/12) -> 1.82298894 | F89: =SQRT(Don_Vinmin_2)*SQRT(Iout^2+(Iripple_Vinmin^2)/12) -> 2.815732944
A90: Ishunt_rms_Vinnom | B90: =IF(VIN_nom>Vout, SQRT(1-Don_Vinnom_2)*SQRT(Iout^2+(Iripple_Vinnom^2)/12), SQRT(Don_Vinnom_2)*SQRT(Iin_Vinnom^2+(Iripple_Vinnom^2)/12)) -> 3.696687814 | C90: A | E90: =SQRT(1-Don_Vinnom_2)*SQRT(Iout^2+(Iripple_Vinnom^2)/12) -> 2.606377248 | F90: =SQRT(Don_Vinnom_2)*SQRT(Iout^2+(Iripple_Vinnom^2)/12) -> 2.137229901
A91: Ishunt_rms_Vinmax | B91: =IF(VIN_max>Vout, SQRT(1-Don_Vinmax_2)*SQRT(Iout^2+(Iripple_Vinmax^2)/12), SQRT(Don_Vinmax_2)*SQRT(Iin_Vinmax^2+(Iripple_Vinmax^2)/12)) -> 2.354548277 | C91: A | E91: =SQRT(1-Don_Vinmax_2)*SQRT(Iout^2+(Iripple_Vinmax^2)/12) -> 2.354548277 | F91: =SQRT(Don_Vinmax_2)*SQRT(Iout^2+(Iripple_Vinmax^2)/12) -> 2.63600151
A92: Max shunt power loss at full load | B92: =MAX(B89,B91)^2*Rs -> 0.2841818623 | C92: W | D92: =IF(B91>B89, "BUCK", "BOOST") -> BOOST
A94: Max inductor ripple current | B94: =MAX(B84:B86) -> 4.385067682 | C94: A
F95: Ripple I | G95: Iin
A96: % Ripple Current | B96: =IF(VIN_min>Vout, B84/Iout, B84/Iin_Vinmin) -> 0.1799120219 | C96: =IF(VIN_min>Vout, "BUCK", "BOOST") -> BOOST | F96: =B84 -> 2.083191832 | G96: =Iin_Vinmin -> 11.57894737
B97: =IF(VIN_nom>Vout, B85/Iout, B85/Iin_Vinnom) -> 0.4106206513 | C97: =IF(VIN_nom>Vout, "BUCK", "BOOST") -> BOOST | F97: =B85 -> 2.377277455 | G97: =Iin_Vinnom -> 5.789473684
B98: =IF(VIN_max>Vout, B86/Iout, B86/Iin_Vinmax) -> 1.328808389 | C98: =IF(VIN_max>Vout, "BUCK", "BOOST") -> BUCK | F98: =B86 -> 4.385067682 | G98: =Iin_Vinmax -> 1.929824561
A100: Temp | B100: 100
A101: DCR at hot | B101: =Rdcr*(1+0.0039*(B100-25)) -> 0.00762575 | C101: W
A104: Step 3: Sense Resistors, Slope Comp, Current Limit
A106: Ilimit_Margin | B106: ='Design Converter'!E26 -> 20 | C106: % | E106: Chosen OCP level - based on output current
A108: Ipeak_inductor_Vinmin | B108: =IF(VIN_min>Vout, Iout/Efficiency+Iripple_Vinmin/2, Iin_Vinmin+Iripple_Vinmin/2) -> 12.62054328 | C108: A | D108: =IF(VIN_min>Vout, "BUCK", "BOOST") -> BOOST
A109: Ipeak_inductor_Vinnom | B109: =IF(VIN_nom>Vout, Iout/Efficiency+Iripple_Vinnom/2,Iin_Vinnom+Iripple_Vinnom/2) -> 6.978112412 | C109: A | D109: =IF(VIN_nom>Vout, "BUCK", "BOOST") -> BOOST
A110: Ipeak_inductor_Vinmax | B110: =IF(VIN_max>Vout, Iout/Efficiency+Iripple_Vinmax/2,Iin_Vinmin+Iripple_Vinmax/2) -> 5.666218052 | C110: A | D110: =IF(VIN_max>Vout, "BUCK", "BOOST") -> BUCK
A111: Ipeak_inductor_buckboost | B111: =Iout/Efficiency+Iripple_edgebuckboost/2 -> 4.265885106 | C111: A | D111: edge of buck-boost
A112: Ipeak_inductor_max | B112: =MAX(B108:B110) -> 12.62054328 | C112: A | D112: Max inductor of Boost and Buck
A113: Ipeak_inductor_max_margin | B113: =Ipeak_inductor_max*(1+Ilimit_Margin/100) -> 15.14465194 | C113: A | D113: with added margin
A115: Buck CS threshold_min | B115: 0.0385 | C115: V
A116: Buck CS threshold | B116: 0.05 | C116: V | E116: Pos and neg. is identical - otherwise take lower value
A117: Buck CS threshold_max | B117: 0.0585 | C117: V | E117: Identical for Buck and Boost
A119: Boost CS Threshold_min | B119: 0.0385 | C119: V
A120: Boost CS Threshold | B120: 0.05 | C120: V | E120: Pos and neg. is identical - otherwise take lower value
A121: Boost CS Threshold_max | B121: 0.0585 | C121: V | E121: Identical for Buck and Boost
A123: Assume we'd like to achieve current limit particularly at VIN(min) and boost side of buck-boost region; accept inevitable variation over line thereafter
A124: Shunt required to get OCP at VIN(min) | B124: =IF(VIN_min>Vout,Buck_CS_threshold/B108, Boost_CS_Threshold/B108)/(1+Ilimit_Margin/100) -> 0.003301495485 | C124: W | D124: =IF(VIN_min>Vout, "BUCK", "BOOST") -> BOOST
A125: Shunt required to get OCP at VIN(nom) | B125: =IF(VIN_nom>Vout,Buck_CS_threshold/B109, Boost_CS_Threshold/B109)/(1+Ilimit_Margin/100) -> 0.005971051225 | C125: W | D125: =IF(VIN_nom>Vout, "BUCK", "BOOST") -> BOOST
A126: Shunt required to get OCP at VIN(max) | B126: =IF(VIN_max>Vout,Buck_CS_threshold/B110, Boost_CS_Threshold/B110)/(1+Ilimit_Margin/100) -> 0.007353523335 | C126: W | D126: =IF(VIN_max>Vout, "BUCK", "BOOST") -> BUCK
A127: Shunt required to get OCP at VIN(edge-bb) | B127: =IF(VIN_min<VIN_edgebuckboost,Buck_CS_threshold/B111, 10)/(1+Ilimit_Margin/100) -> 0.009767414179 | C127: W | D127: Edge of B-B
A129: Rs_ideal | B129: =MIN(B124:B126) -> 0.003301495485 | C129: W | E129: Ideal Rs for the required OCP -- based on 80mV or 160mV CL threshold
A130: Rs | B130: ='Design Converter'!E28/1000 -> 0.003 | C130: W | E130: Selected (starndard value) current limit sense resistor
A131: Rs_in_range | B131: =IF(AND(100<Rs/Lf,Rs/Lf<8000,Rs/Lf<(1*Fsw/(Vout*10))),1,0) -> 1
A132: BOOST current limit - peak | B132: =Boost_CS_Threshold_max/Rs -> 19.5 | C132: A | E132: Peak inductor current limit in BOOST
A133: BUCK current limit - peak | B133: =Buck_CS_threshold_max/Rs -> 19.5 | C133: A | E133: Peak inductor current limit in BUCK
A135: Iout_OCP_Vinmin | B135: =IF(VIN_min>Vout,Buck_CS_threshold/Rs-Iripple_Vinmin/2, (Boost_CS_Threshold/Rs-Iripple_Vinmin/2)*(1-Don_Vinmin_2)) -> 4.615026565 | C135: A | D135: =IF(VIN_min>Vout, "BUCK", "BOOST") -> BOOST | E135: Current limit setpoints (i.e. IOUT) after standard components are selected
A136: Iout_OCP_Vinnom | B136: =IF(VIN_nom>Vout,Buck_CS_threshold/Rs-Iripple_Vinnom/2, IF(VIN_nom<VIN_edgebuckboost,(Boost_CS_Threshold/Rs-Iripple_Vinnom/2)*(1-Don_Vinnom_2),(Buck_CS_threshold/Rs-Iripple_Vinnom/2)*(1-Don_Vinnom_2))) -> 9.254977693 | C136: A | D136: =IF(VIN_nom>Vout,"BUCK",IF(VIN_nom<VIN_edgebuckboost,"BOOST","BUCK-BOOST")) -> BOOST
A137: Iout_OCP_Vinmax | B137: =IF(VIN_max>Vout, Buck_CS_threshold/Rs-Iripple_Vinmax/2, (Boost_CS_Threshold/Rs-Iripple_Vinmax/2)*(1-Don_Vinmax_2)) -> 14.47413283 | C137: A | D137: =IF(VIN_max>Vout, "BUCK", "BOOST") -> BUCK
A138: Iout_edgebuckboost | B138: =(Buck_CS_threshold/Rs-Iripple_edgebuckboost/2)*(1-Don_buckboost) -> 12.67896606 | C138: A | D138: lower edge of buck-boost window | K138: RMS current in Rs | M138: Power diss in Rs
A140: ILpeak_OCP_Vinmin | B140: =IF(VIN_min>Vout, Buck_CS_threshold_max/Rs, Boost_CS_Threshold_max/Rs) -> 19.5 | C140: A | D140: =IF(VIN_min>Vout, "BUCK", "BOOST") -> BOOST | E140: Peak inductor currents in OCP | H140: =SQRT(Don_Vinmin_2)*SQRT(Iin_Vinmin^2+(Iripple_Vinmin^2)/12) -> 9.73279443 | K140: =IF(VIN_min>Vout, SQRT(1-Don_Vinmin_2)*SQRT(Iout_OCP_Vinmin^2+(Iripple_Vinmin^2)/12), SQRT(Don_Vinmin_2)*SQRT(Iin_Vinmin^2+(Iripple_Vinmin^2)/12)) -> 9.73279443 | L140: A | M140: =K140^2*Rs -> 0.2841818623 | N140: W
A141: ILpeak_OCP_Vinnom | B141: =IF(VIN_nom>Vout, Buck_CS_threshold_max/Rs, IF(VIN_nom<VIN_edgebuckboost, Boost_CS_Threshold_max/Rs, Buck_CS_threshold_max/Rs)) -> 19.5 | C141: A | D141: =IF(VIN_nom>Vout,"BUCK",IF(VIN_nom<VIN_edgebuckboost,"BOOST","BUCK-BOOST")) -> BOOST | H141: =SQRT(1-Don_Vinnom_2)*SQRT(Iout_OCP_Vinnom^2+(Iripple_Vinnom^2)/12) -> 7.1762229 | K141: =IF(VIN_nom>Vout, SQRT(1-Don_Vinnom_2)*SQRT(Iout_OCP_Vinnom^2+(Iripple_Vinnom^2)/12), SQRT(Don_Vinnom_2)*SQRT(Iin_Vinnom^2+(Iripple_Vinnom^2)/12)) -> 3.696687814 | L141: A | M141: =K141^2*Rs -> 0.04099650238 | N141: W
A142: ILpeak_OCP_Vinmax | B142: =IF(VIN_max>Vout, Buck_CS_threshold_max/Rs, Boost_CS_Threshold_max/Rs) -> 19.5 | C142: A | D142: =IF(VIN_max>Vout, "BUCK", "BOOST") -> BUCK | H142: =SQRT(1-Don_Vinmax_2)*SQRT(Iout_OCP_Vinmax^2+(Iripple_Vinmax^2)/12) -> 9.679028188 | K142: =IF(VIN_max>Vout, SQRT(1-Don_Vinmax_2)*SQRT(Iout_OCP_Vinmax^2+(Iripple_Vinmax^2)/12), SQRT(Don_Vinmax_2)*SQRT(Iin_Vinmax^2+(Iripple_Vinmax^2)/12)) -> 9.679028188 | L142: A | M142: =K142^2*Rs -> 0.28105076 | N142: W
A143: Worst case peak inductor current | B143: =MAX(B140:B142) -> 19.5 | C143: A
A145: IL_peak_OCP | B145: =MAX(B140:B142) -> 19.5 | C145: A | E145: Peak inductor current over the full input range
A147: Rslope calc LM51772 | B147: =Rs/Lf/Fsw*625 -> 0.9238728751
A148: Rslope select LM51772 | B148: =INDEX(P153:P168,MATCH(B147,P153:P168,1)+1) -> 1
A149: Rslope setting for CFG1 in LM51772 | B149: =INDEX(O153:O168,MATCH(B147,P153:P168)+1)+1 -> 8
A150: Rslope_equ_772 | B150: =625*50000000/(Fsw*B148) -> 50813.00813 | C150: W
A151: Islope_fixed | B151: =Isc_const -> 0 | C151: A | K151: BUCK | L151: BOOST | O151: LM51772 Slope table
A152: Rslope | B152: =B150 -> 50813.00813 | C152: W | K152: =B153*(1-Don_Vinmin_2)/Fsw -> 0.09924108188 | L152: =B153*Don_Vinmin_2/Fsw -> 0.2367589181 | M152: =IF(VIN_min>Vout, "BUCK", "BOOST") -> BOOST | O152: SEL_SLOPE | P152: Factor
A153: SLOPE comp dv/dt = I_slope_total/Cslope | B153: =(ABS((VIN_min-Vout))*gm_slopecomp/Cslope + Islope_fixed)/(Rslope) -> 206640 | C153: V/s | E153: at VIN_min | K153: =B154*(1-Don_Vinnom_2)/Fsw -> 0.1148050465 | L153: =B154*Don_Vinnom_2/Fsw -> 0.07719495351 | M153: =IF(VIN_nom>Vout, "BUCK", "BOOST") -> BOOST | O153: 0 | P153: =0.125 + 0.125 *O153 -> 0.125
A154: SLOPE comp dv/dt = I_slope_total/Cslope | B154: =(ABS((VIN_nom-Vout))*gm_slopecomp/Cslope + Islope_fixed)/(Rslope) -> 118080 | C154: V/s | E154: at VIN_nom | K154: =B155*(1-Don_Vinmax_2)/Fsw -> 0.1704121233 | L154: =B155*Don_Vinmax_2/Fsw -> 0.2135878767 | M154: =IF(VIN_max>Vout, "BUCK", "BOOST") -> BUCK | O154: 1 | P154: =0.125 + 0.125 *O154 -> 0.25
A155: SLOPE comp dv/dt = I_slope_total/Cslope | B155: =(ABS((VIN_max-Vout))*gm_slopecomp/Cslope + Islope_fixed)/(Rslope) -> 236160 | C155: V/s | E155: at VIN_max | O155: 2 | P155: =0.125 + 0.125 *O155 -> 0.375
O156: 3 | P156: 0.5
A157: DV_SLOPEcomp at Vinmin | B157: =IF(D157="BUCK", K152,L152) -> 0.2367589181 | C157: V | D157: =IF(VIN_min>Vout, "BUCK", "BOOST") -> BOOST | E157: at VIN_min | O157: 4 | P157: 0.625
A158: DV_SLOPEcomp at Vinnom | B158: =IF(D158="BUCK", K153,L153) -> 0.07719495351 | C158: V | D158: =IF(VIN_nom>Vout,"BUCK",IF(VIN_nom<VIN_edgebuckboost,"BOOST","BUCK-BOOST")) -> BOOST | E158: at VIN_nom | O158: 5 | P158: 0.75
A159: DV_SLOPEcomp at Vinmax | B159: =IF(D159="BUCK", K154,L154) -> 0.1704121233 | C159: V | D159: =IF(VIN_max>Vout, "BUCK", "BOOST") -> BUCK | E159: at VIN_max | O159: 6 | P159: 0.875
O160: 7 | P160: 1
O161: 8 | P161: =1 + 4 *P153 -> 1.5
O162: 9 | P162: =1 + 4 *P154 -> 2
O163: 10 | P163: 2.5
O164: 11 | P164: 3
O165: 12 | P165: 3.5
O166: 13 | P166: 4
A167: Step 4: Output Capacitor | O167: 14 | P167: 4.5
A168: Icoutrms_VINmin | B168: =IF(D168="BUCK", Iripple_Vinmin/SQRT(12), Iout*SQRT((Vout-VIN_min)/VIN_min)) -> 5.040833264 | C168: A | D168: =IF(VIN_min>Vout, "BUCK", "BOOST") -> BOOST | E168: Output Cap RMS current | O168: 15 | P168: 5
A169: Icoutrms_VINnom | B169: =IF(D169="BUCK", Iripple_Vinnom/SQRT(12), Iout*SQRT((Vout-VIN_nom)/VIN_nom)) -> 2.694438717 | C169: A | D169: =IF(VIN_nom>Vout,"BUCK",IF(VIN_nom<VIN_edgebuckboost,"BOOST","BUCK-BOOST")) -> BOOST
A170: Icoutrms_VINmax | B170: =IF(D170="BUCK", Iripple_Vinmax/SQRT(12), Iout*SQRT((Vout-VIN_max)/VIN_max)) -> 1.265860003 | C170: A | D170: =IF(VIN_max>Vout, "BUCK", "BOOST") -> BUCK
A171: Max Cout rms current | B171: =MAX(B168:B170) -> 5.040833264 | C171: A
A173: Output Ripple Spec (pk-pk) | B173: =Vripple1*1000 -> 150 | C173: mV | E173: Vout ripple spec at Vin(nom)
A175: Coutmin | B175: =IF(VIN_min>Vout, Iripple_Vinmin/(Fsw*8*Vripple1), Iout*Don_Vinmin_2/(Vripple1*Fsw)) -> 2.520662117e-05 | C175: F | E175: Minimum Output Capacitnace | H175: =Vripple2 -> 0.09040655293 | I175: 1 | K175: =Coutmin -> 2.520662117e-05
A176: Reported Coutmin | B176: =IF(Coutmin*1000000<H176, H176,Coutmin*1000000) -> 25.20662117 | C176: uF | E176: Limit Min. output Cap | H176: 0.1 | K176: =Coutmin*1000000 -> 25.20662117
A177: Cout | B177: ='Design Converter'!E41/1000000 -> 6e-05 | C177: F | E177: Chosen Output Capacitance | I177: 1
A178: Resrmax | B178: =IF(VIN_min>Vout, SQRT((Vripple1/Iripple_Vinmin)^2-(1/(Fsw*Cout*8))^2), (Vripple1-Iout*Don_Vinmin_2/(Fsw*Cout))/Iout) -> 0.02635862033 | C178: W | E178: Max ESR before ripple exceeds Vripple1 | I178: 1
A180: Reported Cout ESR max | B180: =IF(OR(CoutEsrMax>0.3, CoutEsrMax<0, (ISERROR(CoutEsrMax))), "N/A", CoutEsrMax*1000) -> 26.35862033 | C180: mΩ
A181: CoutEsr | B181: ='Design Converter'!E43/1000 -> 0.0083 | C181: W | E181: Chosen ESR | I181: 1 | K181: =ISERROR(CoutEsrMax) -> FALSE | L181: =ISERROR(B180) -> FALSE
A182: Vripple | B182: =IF(VIN_min>Vout, Iripple_Vinmax*SQRT(CoutEsr^2+(1/(8*Fsw*Cout))^2), CoutEsr*Iout+Iout*Don_Vinmin_2/(Fsw*Cout)) -> 0.09040655293 | C182: Vp-p | L182: =OR(CoutEsrMax>0.3,CoutEsrMax<0) -> FALSE
K183: =OR(TRUE, FALSE, TRUE) -> TRUE
A184: Step 5: Input Capacitor
A186: Icinrms_VINmin | B186: =IF(D186="BUCK", Iout*SQRT(Don_Vinmin_2*(1-Don_Vinmax_2)), Iripple_Vinmin/SQRT(12)) -> 0.6013656826 | C186: A | D186: =IF(VIN_min>Vout, "BUCK", "BOOST") -> BOOST | F186: =Iripple_Vinmin/SQRT(12) -> 0.6013656826 | G186: =Iout*SQRT(Don_Vinmax_2*(1-Don_Vinmax_2)) -> 1.639537138 | H186: =Iout*0.25 -> 0.825
A187: Icinrms_VINnom | B187: =IF(D187="BUCK", Iout*SQRT(Don_Vinnom_2*(1-Don_Vinnom_2)), Iripple_Vinnom/SQRT(12)) -> 0.6862608892 | C187: A | D187: =IF(VIN_nom>Vout,"BUCK",IF(VIN_nom<VIN_edgebuckboost,"BOOST","BUCK-BOOST")) -> BOOST
A188: Icinrms_VINmiax | B188: =IF(D188="BUCK", Iout*SQRT(Don_Vinmax_2*(1-Don_Vinmax_2)), Iripple_Vinmax/SQRT(12)) -> 1.639537138 | C188: A | D188: =IF(VIN_max>Vout, "BUCK", "BOOST") -> BUCK
A189: Max Cin rms current | B189: =MAX(B186:B188) -> 1.639537138 | C189: A | D189: …report this
A191: Vinripple1 | B191: ='Design Converter'!E48/1000 -> 0.18 | C191: Vp-p | D191: Input voltage ripple spec (pk-pk)
A193: Cinmin_Vinmax | B193: =IF(VIN_max>Vout, Iout*Don_Vinmax_2*(1-Don_Vinmax_2)/(Vinripple1*Fsw), Iripple_Vinmax/(Fsw*8*Vinripple1)) -> 7.358358729e-06 | C193: F | D193: Calculate cap at Vinmax and 50% duty cycle (Vin = 2*Vout) | K193: =Iripple_Vinnom/(Fsw*8*Vinripple1) -> 2.684369303e-06
A194: Cinmin_50%D | B194: =IF(VIN_max>Vout, Iout*0.5*(1-0.5)/(Vinripple1*Fsw), Iripple_Vinmax/(Fsw*8*Vinripple1)) -> 7.452574526e-06 | D194: Buck 50% typically worst case
A195: Cinmin | B195: =IF(VIN_max<2*Vout, B193,B194) -> 7.358358729e-06
A196: Reported Cinmin | B196: =IF(Cinmin*1000000<10, 10,Cinmin*1000000) -> 10 | C196: uF | D196: …report this
A197: Cin | B197: ='Design Converter'!E50/1000000 -> 6e-05 | C197: F | D197: Input capacitance
A198: CinEsrMax_Vinmax | B198: =IF(VIN_max>Vout, -(Iout*Don_Vinmax_2*(1-Don_Vinmax_2)/(Cin*Fsw)-Vinripple1)/(Iout+Iripple_Vinmax/2), SQRT((Vinripple1/Iripple_Vinmax)^2-(1/(Fsw*Cin*8))^2)) -> 0.02875265376 | C198: W
A199: CinEsrMax_50%D | B199: =IF(VIN_max>Vout, -(Iout*0.5*(1-0.5)/(Cin*Fsw)-Vinripple1)/(Iout+Iripple_Vinmax/2), SQRT((Vinripple1/Iripple_Vinmax)^2-(1/(Fsw*Cin*8))^2)) -> 0.02870119347 | C199: W | D199: Calculate ESR at Vinmax and 50% duty cycle (Vin = 2*Vout)
A200: CinEsrMax | B200: =IF(VIN_max<2*Vout, B198,B199) -> 0.02875265376 | C200: W
A201: Reported Cin ESR max | B201: =IF(OR(CinEsrMax>0.3, CinEsrMax<0), "N/A",CinEsrMax*1000) -> 28.75265376 | C201: mΩ | D201: …report this
A202: RCinEsr | B202: ='Design Converter'!E52/1000 -> 0.0083 | C202: W | D202: Input capacitance series resistance (ESR)
K203: =CinEsrMax -> 0.02875265376
A204: Vinripple2_Vinmax | B204: =IF(VIN_max>Vout, Iout*Don_Vinmax_2*(1-Don_Vinmax_2)/(Cin*Fsw)+(Iout +Iripple_Vinmax/2)*RCinEsr, Iripple_Vinmax*SQRT(RCinEsr^2+(1/(8*Fsw*Cin))^2)) -> 0.06766310707 | C204: Vp-p
A205: Vinripple2_50%D | B205: =IF(VIN_max>Vout, Iout*0.5*(1-0.5)/(Cin*Fsw)+(Iout +Iripple_Vinmax/2)*RCinEsr, Iripple_Vinmax*SQRT(RCinEsr^2+(1/(8*Fsw*Cin))^2)) -> 0.06794575446 | C205: Vp-p | D205: Calculate ripple at Vinmax and 50% duty cycle (Vin = 2*Vout)
A206: Vinripple2 | B206: =IF(VIN_max<2*Vout, B204,B205) -> 0.06766310707 | C206: Vp-p | D206: …report highest of these
B208: =Iout*Don_Vinmax_2*(1-Don_Vinmax_2)/(Cin*Fsw) -> 0.02207507619 | C208: Vp-p
A210: Step 6a: Soft Start
A211: Tss | B211: ='Design Converter'!E58/1000 -> 0.002 | C211: s | D211: Soft-start time
A212: Iss | B212: 1e-05 | C212: A | D212: Load cap current during soft start
A213: Css | B213: =Iss*Tss/Vref -> 1e-08 | C213: F
A214: Css_u | B214: ='Standard Value Calculator'!B4 -> 1e-08 | C214: F
A216: Step 6b: Other Components - UVLO, Dither, MODE
A218: VINUVLO_ON | B218: ='Design Converter'!E61 -> 8.7 | C218: V
A219: VINUVLO_OFF | B219: ='Design Converter'!E62 -> 8.325 | C219: V
A220: RUV1 | B220: =(VINuvlo_on-VINuvlo_off)/Iuvlo1 -> 75 | C220: kΩ | E220: ='Standard Value Calculator'!O16 -> 75 | F220: kΩ | G220: =IF(Ruvlo1<0,"N/A",E220) -> 75 | H220: =IF(Ruvlo1<0,"N/A",E220&"kΩ") -> 75kΩ
A221: RUV2 | B221: =Ruvlo1/(('Design Converter'!E61-Vuvlo_hys)/Vuvlo_off-1) -> 12.43261456 | C221: kΩ | E221: ='Standard Value Calculator'!O17 -> 12.4 | F221: kΩ | G221: =IF(G220="N/A","N/A",E221) -> 12.4 | H221: =IF(H220="N/A","N/A",E221&"kΩ") -> 12.4kΩ
A223: VINUVLO_ON_ACTUAL | B223: =(E220+E221)/E221*Vuvlo_on+Iuvlo1*E220 -> 9.396935484
A224: VINUVLO_OFF_ACTUAL | B224: =(E220+E221)/E221*Vuvlo_off -> 8.669516129
A226: Rising UVLO/EN Threshold | B226: 1.28 | C226: V
A227: Falling UVLO/EN Threshold | B227: 1.23 | C227: V
A228: Voltage Hysteresis | B228: =B226-B227 -> 0.05 | C228: V
A229: Rising UVLO/EN Current | B229: 0.005 | C229: mA
A230: Falling UVLO/EN Current | C230: mA
A231: UVLO/EN Current Hysteresis | C231: mA
A233: RPG | B233: 20 | C233: kΩ
A234: RSB | C234: W
A235: Rh | B235: 0 | C235: W
A236: Rmode | C236: W | D236: TBD | E236: Tie to GND or VCC for DCM/CCM, respectively. Use 93.1k or 200k for hiccup in DCM, CCM, respectively.
A243: Step 6c: Current Monitor / Current Limiter
A244: Monitor
A245: With Rcs | B245: ='CFG Setting'!J146 -> 2 | E245: Flag to show current sense is used
A246: With_CDC | B246: ='CFG Setting'!B159 -> 2 | E246: Flag to show CDC is used
A247: IMONLIM_select | B247: ='CFG Setting'!F145-1 -> 1 | E247: 0:off / 1: ILIM (ext) / 2: ILIM (DAC)
A248: Imonitor,Max
... 236 more rows

Sheet Inductor Current (hidden)
A1: VIN_min | B1: ='Design Converter'!E6 -> 6 | C1: V | D1: Minimum input voltage
B2: ='Design Converter'!E7 -> 12 | C2: V | D2: Nominal input voltage
A3: VIN_max | B3: ='Design Converter'!E8 -> 36 | C3: V | D3: Maximum input voltage | I3: Vin | J3: Iin | K3: D | L3: IL | N3: Ripple
H4: 0 | I4: =Vin -> 12 | J4: =Pin/I4 -> 5.789473684 | K4: =IF(I4>Vout, (Vout+Iout*(Rdcr+Rs))/(I4+Iout*Rs), (Vout-I4+J4*(Rdcr))/(Vout-J4*Rs)) -> 0.4020570495 | L4: =IF(I4>Vout, (I4-Vout)*K4/(Fsw*Lf),I4*K4/(Lf*Fsw)) -> 2.377277455 | M4: =(I4-Vout)*K4/(Fsw*Lf) -> -1.584851637 | N4: =IF(I4>Vout, L4/Iout, L4/J4) -> 0.4106206513 | Q4: =IF(I4>Vout, "BUCK", "BOOST") -> BOOST
H5: 1 | I5: =VIN_min+(VIN_max-VIN_min)/20*H5 -> 7.5 | J5: 9.263157895 | K5: 0.6286060632 | L5: 2.323008363 | M5: -3.871680606 | N5: 0.250779312 | Q5: BOOST
H6: 2 | I6: 9 | J6: 7.719298246 | K6: 0.5529174131 | L6: 2.451961921 | M6: -2.996842348 | N6: 0.3176405216 | Q6: BOOST
H7: 3 | I7: 10.5 | J7: 6.616541353 | K7: 0.4774257157 | L7: 2.470051744 | M7: -2.234808721 | N7: 0.3733146386 | Q7: BOOST
H8: 4 | I8: 12 | J8: 5.789473684 | K8: 0.4020570495 | L8: 2.377277455 | M8: -1.584851637 | N8: 0.4106206513 | Q8: BOOST
H9: 5 | I9: 13.5 | J9: 5.14619883 | K9: 0.3267703725 | L9: 2.173638841 | M9: -1.046566849 | N9: 0.4223775475 | Q9: BOOST
H10: 6 | I10: 15 | J10: 4.631578947 | K10: 0.2515410706 | L10: 1.859135777 | M10: -0.6197119257 | N10: 0.4014043155 | Q10: BOOST
H11: 7 | I11: 16.5 | J11: 4.210526316 | K11: 0.1763534864 | L11: 1.433768182 | M11: -0.3041326447 | N11: 0.3405199433 | Q11: BOOST
H12: 8 | I12: 18 | J12: 3.859649123 | K12: 0.1011971843 | L12: 0.897536003 | M12: -0.09972622255 | N12: 0.232543419 | Q12: BOOST
H13: 9 | I13: 19.5 | J13: 3.562753036 | K13: 0.02606494159 | L13: 0.2504392023 | M13: -0.006421518006 | N13: 0.07029373063 | Q13: BOOST
H14: 10 | I14: 21 | J14: 3.308270677 | K14: 0.9533300968 | L14: 0.469736436 | M14: 0.469736436 | N14: 0.1423443745 | Q14: BUCK
H15: 11 | I15: 22.5 | J15: 3.087719298 | K15: 0.889802709 | L15: 1.096086116 | M15: 1.096086116 | N15: 0.3321473079 | Q15: BUCK
H16: 12 | I16: 24 | J16: 2.894736842 | K16: 0.8342129705 | L16: 1.644174369 | M16: 1.644174369 | N16: 0.4982346573 | Q16: BUCK
H17: 13 | I17: 25.5 | J17: 2.724458204 | K17: 0.7851606631 | L17: 2.127806675 | M17: 2.127806675 | N17: 0.6447899015 | Q17: BUCK
H18: 14 | I18: 27 | J18: 2.573099415 | K18: 0.7415566144 | L18: 2.557721755 | M18: 2.557721755 | N18: 0.7750671984 | Q18: BUCK
H19: 15 | I19: 28.5 | J19: 2.43767313 | K19: 0.7025408718 | L19: 2.94239833 | M19: 2.94239833 | N19: 0.8916358575 | Q19: BUCK
H20: 16 | I20: 30 | J20: 2.315789474 | K20: 0.6674254163 | L20: 3.288619937 | M20: 3.288619937 | N20: 0.9965514962 | Q20: BUCK
H21: 17 | I21: 31.5 | J21: 2.205513784 | K21: 0.6356532391 | L21: 3.601878418 | M21: 3.601878418 | N21: 1.091478309 | Q21: BUCK
H22: 18 | I22: 33 | J22: 2.105263158 | K22: 0.6067685755 | L22: 3.886667397 | M22: 3.886667397 | N22: 1.177777999 | Q22: BUCK
H23: 19 | I23: 34.5 | J23: 2.013729977 | K23: 0.5803949012 | L23: 4.14669922 | M23: 4.14669922 | N23: 1.256575521 | Q23: BUCK
H24: 20 | I24: 36 | J24: 1.929824561 | K24: 0.5562184288 | L24: 4.385067682 | M24: 4.385067682 | N24: 1.328808389 | Q24: BUCK
H28: Vin | I28: =VIN_min -> 6
I29: L | J29: Iin | K29: D | L29: IL Peak,Peak | N29: Ripple Ratio | O29: IL Peak
H30: 0 | I30: =Lmin -> 9.756097561e-07 | J30: =Pin/$I$28 -> 11.57894737 | K30: =IF($I$28>Vout, (Vout+Iout*(Rdcr+Rs))/($I$28+Iout*Rs), (Vout-$I$28+J30*(Rdcr))/(Vout-J30*Rs)) -> 0.7046396373 | L30: =IF($I$28>Vout, ($I$28-Vout)*K30/(Fsw*I30),$I$28*K30/(I30*Fsw)) -> 7.046396373 | M30: =($I$28-Vout)*K30/(Fsw*I30) -> -16.44159154 | N30: =IF($I$28>Vout, L30/Iout, L30/J30) -> 0.608552414 | O30: =IF($I$80>Vout, L30/2+Iout, L30/2+J30) -> 6.823198186 | Q30: =IF(I30>Vout, "BUCK", "BOOST") -> BOOST
H31: 1 | I31: =Lmin+(Lmax-Lmin)/20*H5 -> 2.146341463e-06 | J31: 11.57894737 | K31: 0.7046396373 | L31: 3.202907442 | M31: -7.473450698 | N31: 0.2766147336 | O31: 4.901453721 | Q31: BOOST
H32: 2 | I32: 3.317073171e-06 | J32: 11.57894737 | K32: 0.7046396373 | L32: 2.072469521 | M32: -4.835762217 | N32: 0.1789860041 | O32: 4.336234761 | Q32: BOOST
H33: 3 | I33: 4.487804878e-06 | J33: 11.57894737 | K33: 0.7046396373 | L33: 1.531825298 | M33: -3.57425903 | N33: 0.132294003 | O33: 4.065912649 | Q33: BOOST
H34: 4 | I34: 5.658536585e-06 | J34: 11.57894737 | K34: 0.7046396373 | L34: 1.214895926 | M34: -2.834757161 | N34: 0.10492283 | O34: 3.907447963 | Q34: BOOST
H35: 5 | I35: 6.829268293e-06 | J35: 11.57894737 | K35: 0.7046396373 | L35: 1.006628053 | M35: -2.348798791 | N35: 0.08693605914 | O35: 3.803314027 | Q35: BOOST
H36: 6 | I36: 8e-06 | J36: 11.57894737 | K36: 0.7046396373 | L36: 0.8593166308 | M36: -2.005072139 | N36: 0.07421370902 | O36: 3.729658315 | Q36: BOOST
H37: 7 | I37: 9.170731707e-06 | J37: 11.57894737 | K37: 0.7046396373 | L37: 0.7496166354 | M37: -1.749105483 | N37: 0.06473961851 | O37: 3.674808318 | Q37: BOOST
H38: 8 | I38: 1.034146341e-05 | J38: 11.57894737 | K38: 0.7046396373 | L38: 0.6647543748 | M38: -1.551093541 | N38: 0.05741060509 | O38: 3.632377187 | Q38: BOOST
H39: 9 | I39: 1.151219512e-05 | J39: 11.57894737 | K39: 0.7046396373 | L39: 0.597152235 | M39: -1.393355215 | N39: 0.05157223847 | O39: 3.598576117 | Q39: BOOST
H40: 10 | I40: 1.268292683e-05 | J40: 11.57894737 | K40: 0.7046396373 | L40: 0.5420304902 | M40: -1.26473781 | N40: 0.04681172415 | O40: 3.571015245 | Q40: BOOST
H41: 11 | I41: 1.385365854e-05 | J41: 11.57894737 | K41: 0.7046396373 | L41: 0.4962250967 | M41: -1.157858559 | N41: 0.0428558038 | O41: 3.548112548 | Q41: BOOST
H42: 12 | I42: 1.502439024e-05 | J42: 11.57894737 | K42: 0.7046396373 | L42: 0.457558206 | M42: -1.067635814 | N42: 0.03951639052 | O42: 3.528779103 | Q42: BOOST
H43: 13 | I43: 1.619512195e-05 | J43: 11.57894737 | K43: 0.7046396373 | L43: 0.4244817092 | M43: -0.9904573215 | N43: 0.03665978398 | O43: 3.512240855 | Q43: BOOST
H44: 14 | I44: 1.736585366e-05 | J44: 11.57894737 | K44: 0.7046396373 | L44: 0.3958649648 | M44: -0.9236849178 | N44: 0.03418833787 | O44: 3.497932482 | Q44: BOOST
H45: 15 | I45: 1.853658537e-05 | J45: 11.57894737 | K45: 0.7046396373 | L45: 0.370862967 | M45: -0.865346923 | N45: 0.03202907442 | O45: 3.485431483 | Q45: BOOST
H46: 16 | I46: 1.970731707e-05 | J46: 11.57894737 | K46: 0.7046396373 | L46: 0.3488315036 | M46: -0.8139401751 | N46: 0.03012635713 | O46: 3.474415752 | Q46: BOOST
H47: 17 | I47: 2.087804878e-05 | J47: 11.57894737 | K47: 0.7046396373 | L47: 0.3292708585 | M47: -0.7682986699 | N47: 0.02843702869 | O47: 3.464635429 | Q47: BOOST
H48: 18 | I48: 2.204878049e-05 | J48: 11.57894737 | K48: 0.7046396373 | L48: 0.3117874501 | M48: -0.7275040503 | N48: 0.02692709796 | O48: 3.455893725 | Q48: BOOST
H49: 19 | I49: 2.32195122e-05 | J49: 11.57894737 | K49: 0.7046396373 | L49: 0.2960670745 | M49: -0.6908231738 | N49: 0.02556942916 | O49: 3.448033537 | Q49: BOOST
H50: 20 | I50: 2.43902439e-05 | J50: 11.57894737 | K50: 0.7046396373 | L50: 0.2818558549 | M50: -0.6576636614 | N50: 0.02434209656 | O50: 3.440927927 | Q50: BOOST
H54: Vin | I54: =VIN_nom -> 12
I55: L | J55: Iin | K55: D | L55: IL Peak,Peak | N55: Ripple Ratio | O55: IL Peak
H56: 0 | I56: =Lmin -> 9.756097561e-07 | J56: =Pin/$I$54 -> 5.789473684 | K56: =IF($I$54>Vout, (Vout+Iout*(Rdcr+Rs))/($I$54+Iout*Rs), (Vout-$I$54+J56*(Rdcr))/(Vout-J56*Rs)) -> 0.4020570495 | L56: =IF($I$54>Vout, ($I$54-Vout)*K56/(Fsw*I56),$I$54*K56/(I56*Fsw)) -> 8.041140991 | M56: =($I$54-Vout)*K56/(Fsw*I56) -> -5.360760661 | N56: =IF($I$54>Vout, L56/Iout, L56/J56) -> 1.388924353 | O56: =IF($I$80>Vout, L56/2+Iout, L56/2+J56) -> 7.320570495 | Q56: =IF(I56>Vout, "BUCK", "BOOST") -> BOOST
H57: 1 | I57: =Lmin+(Lmax-Lmin)/20*H31 -> 2.146341463e-06 | J57: 5.789473684 | K57: 0.4020570495 | L57: 3.655064087 | M57: -2.436709391 | N57: 0.6313292513 | O57: 5.127532043 | Q57: BOOST
H58: 2 | I58: 3.317073171e-06 | J58: 5.789473684 | K58: 0.4020570495 | L58: 2.365041468 | M58: -1.576694312 | N58: 0.4085071626 | O58: 4.482520734 | Q58: BOOST
H59: 3 | I59: 4.487804878e-06 | J59: 5.789473684 | K59: 0.4020570495 | L59: 1.748074128 | M59: -1.165382752 | N59: 0.3019400767 | O59: 4.174037064 | Q59: BOOST
H60: 4 | I60: 5.658536585e-06 | J60: 5.789473684 | K60: 0.4020570495 | L60: 1.386403619 | M60: -0.9242690794 | N60: 0.239469716 | O60: 3.99320181 | Q60: BOOST
H61: 5 | I61: 6.829268293e-06 | J61: 5.789473684 | K61: 0.4020570495 | L61: 1.148734427 | M61: -0.7658229515 | N61: 0.1984177647 | O61: 3.874367214 | Q61: BOOST
H62: 6 | I62: 8e-06 | J62: 5.789473684 | K62: 0.4020570495 | L62: 0.9806269501 | M62: -0.6537513001 | N62: 0.1693810187 | O62: 3.790313475 | Q62: BOOST
H63: 7 | I63: 9.170731707e-06 | J63: 5.789473684 | K63: 0.4020570495 | L63: 0.8554405309 | M63: -0.5702936873 | N63: 0.1477579099 | O63: 3.727720265 | Q63: BOOST
H64: 8 | I64: 1.034146341e-05 | J64: 5.789473684 | K64: 0.4020570495 | L64: 0.7585982067 | M64: -0.5057321378 | N64: 0.1310305993 | O64: 3.679299103 | Q64: BOOST
H65: 9 | I65: 1.151219512e-05 | J65: 5.789473684 | K65: 0.4020570495 | L65: 0.6814526263 | M65: -0.4543017509 | N65: 0.1177054536 | O65: 3.640726313 | Q65: BOOST
H66: 10 | I66: 1.268292683e-05 | J66: 5.789473684 | K66: 0.4020570495 | L66: 0.618549307 | M66: -0.4123662047 | N66: 0.1068403348 | O66: 3.609274653 | Q66: BOOST
H67: 11 | I67: 1.385365854e-05 | J67: 5.789473684 | K67: 0.4020570495 | L67: 0.5662775346 | M67: -0.3775183564 | N67: 0.09781157415 | O67: 3.583138767 | Q67: BOOST
H68: 12 | I68: 1.502439024e-05 | J68: 5.789473684 | K68: 0.4020570495 | L68: 0.5221520124 | M68: -0.3481013416 | N68: 0.09018989305 | O68: 3.561076006 | Q68: BOOST
H69: 13 | I69: 1.619512195e-05 | J69: 5.789473684 | K69: 0.4020570495 | L69: 0.4844060838 | M69: -0.3229373892 | N69: 0.08367014174 | O69: 3.542203042 | Q69: BOOST
H70: 14 | I70: 1.736585366e-05 | J70: 5.789473684 | K70: 0.4020570495 | L70: 0.4517494939 | M70: -0.3011663292 | N70: 0.07802945803 | O70: 3.525874747 | Q70: BOOST
H71: 15 | I71: 1.853658537e-05 | J71: 5.789473684 | K71: 0.4020570495 | L71: 0.4232179469 | M71: -0.2821452979 | N71: 0.07310128174 | O71: 3.511608973 | Q71: BOOST
H72: 16 | I72: 1.970731707e-05 | J72: 5.789473684 | K72: 0.4020570495 | L72: 0.3980762867 | M72: -0.2653841911 | N72: 0.06875863133 | O72: 3.499038143 | Q72: BOOST
H73: 17 | I73: 2.087804878e-05 | J73: 5.789473684 | K73: 0.4020570495 | L73: 0.3757542519 | M73: -0.2505028346 | N73: 0.06490300715 | O73: 3.487877126 | Q73: BOOST
H74: 18 | I74: 2.204878049e-05 | J74: 5.789473684 | K74: 0.4020570495 | L74: 0.3558026987 | M74: -0.2372017991 | N74: 0.06145682978 | O74: 3.477901349 | Q74: BOOST
H75: 19 | I75: 2.32195122e-05 | J75: 5.789473684 | K75: 0.4020570495 | L75: 0.3378630668 | M75: -0.2252420446 | N75: 0.05835816609 | O75: 3.468931533 | Q75: BOOST
H76: 20 | I76: 2.43902439e-05 | J76: 5.789473684 | K76: 0.4020570495 | L76: 0.3216456396 | M76: -0.2144304264 | N76: 0.05555697412 | O76: 3.46082282 | Q76: BOOST
H80: Vin | I80: =VIN_max -> 36 | S80: IL Peak,Peak | X80: IL Peak | AC80: Ripple Ratio
I81: L | J81: Iin | K81: D | L81: IL Peak,Peak | N81: Ripple Ratio | O81: IL Peak | R81: =I81 -> L | S81: =CONCATENATE("Vin = ",$I$28," V") -> Vin = 6 V | T81: =CONCATENATE("Vin = ",$I$54," V") -> Vin = 12 V | U81: =CONCATENATE("Vin = ",$I$80," V") -> Vin = 36 V | W81: =I81 -> L | X81: =CONCATENATE("Vin = ",$I$28," V") -> Vin = 6 V | Y81: =CONCATENATE("Vin = ",$I$54," V") -> Vin = 12 V | Z81: =CONCATENATE("Vin = ",$I$80," V") -> Vin = 36 V | AB81: =I81 -> L | AC81: =CONCATENATE("Vin = ",$I$28," V") -> Vin = 6 V | AD81: =CONCATENATE("Vin = ",$I$54," V") -> Vin = 12 V | AE81: =CONCATENATE("Vin = ",$I$80," V") -> Vin = 36 V
H82: 0 | I82: =Lmin -> 9.756097561e-07 | J82: =Pin/$I$80 -> 1.929824561 | K82: =IF($I$80>Vout, (Vout+Iout*(Rdcr+Rs))/($I$80+Iout*Rs), (Vout-$I$80+J82*(Rdcr))/(Vout-J82*Rs)) -> 0.5562184288 | L82: =IF($I$80>Vout, ($I$80-Vout)*K82/(Fsw*I82),$I$80*K82/(I82*Fsw)) -> 14.83249144 | M82: =($I$80-Vout)*K82/(Fsw*I82) -> 14.83249144 | N82: =IF($I$80>Vout, L82/Iout, L82/J82) -> 4.494694374 | O82: =IF($I$80>Vout, L82/2+Iout, L82/2+J82) -> 10.71624572 | Q82: =IF(I82>Vout, "BUCK", "BOOST") -> BOOST | R82: =I82*1000000 -> 0.9756097561 | S82: =L30 -> 7.046396373 | T82: =L56 -> 8.041140991 | U82: =L82 -> 14.83249144 | W82: =I82 -> 9.756097561e-07 | X82: =O30 -> 6.823198186 | Y82: =O56 -> 7.320570495 | Z82: =O82 -> 10.71624572 | AB82: =I82*1000000 -> 0.9756097561 | AC82: =N30 -> 0.608552414 | AD82: =N56 -> 1.388924353 | AE82: =N82 -> 4.494694374
H83: 1 | I83: =Lmin+(Lmax-Lmin)/20*H57 -> 2.146341463e-06 | J83: 1.929824561 | K83: 0.5562184288 | L83: 6.742041561 | M83: 6.742041561 | N83: 2.043042897 | O83: 6.671020781 | Q83: BOOST | R83: =I83*1000000 -> 2.146341463 | S83: =L31 -> 3.202907442 | T83: =L57 -> 3.655064087 | U83: =L83 -> 6.742041561 | W83: =I83 -> 2.146341463e-06 | X83: =O31 -> 4.901453721 | Y83: =O57 -> 5.127532043 | Z83: =O83 -> 6.671020781 | AB83: 2.146341463 | AC83: 0.2766147336 | AD83: 0.6313292513 | AE83: 2.043042897
H84: 2 | I84: 3.317073171e-06 | J84: 1.929824561 | K84: 0.5562184288 | L84: 4.362497481 | M84: 4.362497481 | N84: 1.321968934 | O84: 5.48124874 | Q84: BOOST | R84: =I84*1000000 -> 3.317073171 | S84: 2.072469521 | T84: 2.365041468 | U84: 4.362497481 | W84: 3.317073171e-06 | X84: 4.336234761 | Y84: 4.482520734 | Z84: 5.48124874 | AB84: 3.317073171 | AC84: 0.1789860041 | AD84: 0.4085071626 | AE84: 1.321968934
H85: 3 | I85: 4.487804878e-06 | J85: 1.929824561 | K85: 0.5562184288 | L85: 3.22445466 | M85: 3.22445466 | N85: 0.9771074727 | O85: 4.91222733 | Q85: BOOST | R85: 4.487804878 | S85: 1.531825298 | T85: 1.748074128 | U85: 3.22445466 | W85: 4.487804878e-06 | X85: 4.065912649 | Y85: 4.174037064 | Z85: 4.91222733 | AB85: 4.487804878 | AC85: 0.132294003 | AD85: 0.3019400767 | AE85: 0.9771074727
H86: 4 | I86: 5.658536585e-06 | J86: 1.929824561 | K86: 0.5562184288 | L86: 2.55732611 | M86: 2.55732611 | N86: 0.7749473059 | O86: 4.578663055 | Q86: BOOST | R86: 5.658536585 | S86: 1.214895926 | T86: 1.386403619 | U86: 2.55732611 | W86: 5.658536585e-06 | X86: 3.907447963 | Y86: 3.99320181 | Z86: 4.578663055 | AB86: 5.658536585 | AC86: 0.10492283 | AD86: 0.239469716 | AE86: 0.7749473059
H87: 5 | I87: 6.829268293e-06 | J87: 1.929824561 | K87: 0.5562184288 | L87: 2.118927348 | M87: 2.118927348 | N87: 0.6420991963 | O87: 4.359463674 | Q87: BOOST | R87: 6.829268293 | S87: 1.006628053 | T87: 1.148734427 | U87: 2.118927348 | W87: 6.829268293e-06 | X87: 3.803314027 | Y87: 3.874367214 | Z87: 4.359463674 | AB87: 6.829268293 | AC87: 0.08693605914 | AD87: 0.1984177647 | AE87: 0.6420991963
H88: 6 | I88: 8e-06 | J88: 1.929824561 | K88: 0.5562184288 | L88: 1.808840419 | M88: 1.808840419 | N88: 0.5481334603 | O88: 4.204420209 | Q88: BOOST | R88: 8 | S88: 0.8593166308 | T88: 0.9806269501 | U88: 1.808840419 | W88: 8e-06 | X88: 3.729658315 | Y88: 3.790313475 | Z88: 4.204420209 | AB88: 8 | AC88: 0.07421370902 | AD88: 0.1693810187 | AE88: 0.5481334603
H89: 7 | I89: 9.170731707e-06 | J89: 1.929824561 | K89: 0.5562184288 | L89: 1.577924621 | M89: 1.577924621 | N89: 0.478158976 | O89: 4.08896231 | Q89: BOOST | R89: 9.170731707 | S89: 0.7496166354 | T89: 0.8554405309 | U89: 1.577924621 | W89: 9.170731707e-06 | X89: 3.674808318 | Y89: 3.727720265 | Z89: 4.08896231 | AB89: 9.170731707 | AC89: 0.06473961851 | AD89: 0.1477579099 | AE89: 0.478158976
H90: 8 | I90: 1.034146341e-05 | J90: 1.929824561 | K90: 0.5562184288 | L90: 1.399291645 | M90: 1.399291645 | N90: 0.4240277712 | O90: 3.999645822 | Q90: BOOST | R90: 10.34146341 | S90: 0.6647543748 | T90: 0.7585982067 | U90: 1.399291645 | W90: 1.034146341e-05 | X90: 3.632377187 | Y90: 3.679299103 | Z90: 3.999645822 | AB90: 10.34146341 | AC90: 0.05741060509 | AD90: 0.1310305993 | AE90: 0.4240277712
H91: 9 | I91: 1.151219512e-05 | J91: 1.929824561 | K91: 0.5562184288 | L91: 1.2569908 | M91: 1.2569908 | N91: 0.3809063029 | O91: 3.9284954 | Q91: BOOST | R91: 11.51219512 | S91: 0.597152235 | T91: 0.6814526263 | U91: 1.2569908 | W91: 1.151219512e-05 | X91: 3.598576117 | Y91: 3.640726313 | Z91: 3.9284954 | AB91: 11.51219512 | AC91: 0.05157223847 | AD91: 0.1177054536 | AE91: 0.3809063029
H92: 10 | I92: 1.268292683e-05 | J92: 1.929824561 | K92: 0.5562184288 | L92: 1.14096088 | M92: 1.14096088 | N92: 0.3457457211 | O92: 3.87048044 | Q92: BOOST | R92: 12.68292683 | S92: 0.5420304902 | T92: 0.618549307 | U92: 1.14096088 | W92: 1.268292683e-05 | X92: 3.571015245 | Y92: 3.609274653 | Z92: 3.87048044 | AB92: 12.68292683 | AC92: 0.04681172415 | AD92: 0.1068403348 | AE92: 0.3457457211
H93: 11 | I93: 1.385365854e-05 | J93: 1.929824561 | K93: 0.5562184288 | L93: 1.04454165 | M93: 1.04454165 | N93: 0.3165277728 | O93: 3.822270825 | Q93: BOOST | R93: 13.85365854 | S93: 0.4962250967 | T93: 0.5662775346 | U93: 1.04454165 | W93: 1.385365854e-05 | X93: 3.548112548 | Y93: 3.583138767 | Z93: 3.822270825 | AB93: 13.85365854 | AC93: 0.0428558038 | AD93: 0.09781157415 | AE93: 0.3165277728
H94: 12 | I94: 1.502439024e-05 | J94: 1.929824561 | K94: 0.5562184288 | L94: 0.9631487945 | M94: 0.9631487945 | N94: 0.2918632711 | O94: 3.781574397 | Q94: BOOST | R94: 15.02439024 | S94: 0.457558206 | T94: 0.5221520124 | U94: 0.9631487945 | W94: 1.502439024e-05 | X94: 3.528779103 | Y94: 3.561076006 | Z94: 3.781574397 | AB94: 15.02439024 | AC94: 0.03951639052 | AD94: 0.09018989305 | AE94: 0.2918632711
H95: 13 | I95: 1.619512195e-05 | J95: 1.929824561 | K95: 0.5562184288 | L95: 0.8935235804 | M95: 0.8935235804 | N95: 0.2707647213 | O95: 3.74676179 | Q95: BOOST | R95: 16.19512195 | S95: 0.4244817092 | T95: 0.4844060838 | U95: 0.8935235804 | W95: 1.619512195e-05 | X95: 3.512240855 | Y95: 3.542203042 | Z95: 3.74676179 | AB95: 16.19512195 | AC95: 0.03665978398 | AD95: 0.08367014174 | AE95: 0.2707647213
H96: 14 | I96: 1.736585366e-05 | J96: 1.929824561 | K96: 0.5562184288 | L96: 0.8332860357 | M96: 0.8332860357 | N96: 0.2525109199 | O96: 3.716643018 | Q96: BOOST | R96: 17.36585366 | S96: 0.3958649648 | T96: 0.4517494939 | U96: 0.8332860357 | W96: 1.736585366e-05 | X96: 3.497932482 | Y96: 3.525874747 | Z96: 3.716643018 | AB96: 17.36585366 | AC96: 0.03418833787 | AD96: 0.07802945803 | AE96: 0.2525109199
H97: 15 | I97: 1.853658537e-05 | J97: 1.929824561 | K97: 0.5562184288 | L97: 0.780657444 | M97: 0.780657444 | N97: 0.2365628618 | O97: 3.690328722 | Q97: BOOST | R97: 18.53658537 | S97: 0.370862967 | T97: 0.4232179469 | U97: 0.780657444 | W97: 1.853658537e-05 | X97: 3.485431483 | Y97: 3.511608973 | Z97: 3.690328722 | AB97: 18.53658537 | AC97: 0.03202907442 | AD97: 0.07310128174 | AE97: 0.2365628618
H98: 16 | I98: 1.970731707e-05 | J98: 1.929824561 | K98: 0.5562184288 | L98: 0.7342817542 | M98: 0.7342817542 | N98: 0.2225096225 | O98: 3.667140877 | Q98: BOOST | R98: 19.70731707 | S98: 0.3488315036 | T98: 0.3980762867 | U98: 0.7342817542 | W98: 1.970731707e-05 | X98: 3.474415752 | Y98: 3.499038143 | Z98: 3.667140877 | AB98: 19.70731707 | AC98: 0.03012635713 | AD98: 0.06875863133 | AE98: 0.2225096225
H99: 17 | I99: 2.087804878e-05 | J99: 1.929824561 | K99: 0.5562184288 | L99: 0.6931070764 | M99: 0.6931070764 | N99: 0.2100324474 | O99: 3.646553538 | Q99: BOOST | R99: 20.87804878 | S99: 0.3292708585 | T99: 0.3757542519 | U99: 0.6931070764 | W99: 2.087804878e-05 | X99: 3.464635429 | Y99: 3.487877126 | Z99: 3.646553538 | AB99: 20.87804878 | AC99: 0.02843702869 | AD99: 0.06490300715 | AE99: 0.2100324474
H100: 18 | I100: 2.204878049e-05 | J100: 1.929824561 | K100: 0.5562184288 | L100: 0.6563049308 | M100: 0.6563049308 | N100: 0.198880282 | O100: 3.628152465 | Q100: BOOST | R100: 22.04878049 | S100: 0.3117874501 | T100: 0.3558026987 | U100: 0.6563049308 | W100: 2.204878049e-05 | X100: 3.455893725 | Y100: 3.477901349 | Z100: 3.628152465 | AB100: 22.04878049 | AC100: 0.02692709796 | AD100: 0.06145682978 | AE100: 0.198880282
H101: 19 | I101: 2.32195122e-05 | J101: 1.929824561 | K101: 0.5562184288 | L101: 0.6232139258 | M101: 0.6232139258 | N101: 0.1888527048 | O101: 3.611606963 | Q101: BOOST | R101: 23.2195122 | S101: 0.2960670745 | T101: 0.3378630668 | U101: 0.6232139258 | W101: 2.32195122e-05 | X101: 3.448033537 | Y101: 3.468931533 | Z101: 3.611606963 | AB101: 23.2195122 | AC101: 0.02556942916 | AD101: 0.05835816609 | AE101: 0.1888527048
H102: 20 | I102: 2.43902439e-05 | J102: 1.929824561 | K102: 0.5562184288 | L102: 0.5932996574 | M102: 0.5932996574 | N102: 0.179787775 | O102: 3.596649829 | Q102: BOOST | R102: 24.3902439 | S102: 0.2818558549 | T102: 0.3216456396 | U102: 0.5932996574 | W102: 2.43902439e-05 | X102: 3.440927927 | Y102: 3.46082282 | Z102: 3.596649829 | AB102: 24.3902439 | AC102: 0.02434209656 | AD102: 0.05555697412 | AE102: 0.179787775

Sheet Timings (hidden)
A1: DeadTime | B1: 2e-08 | D1: fsw | E1: =Fsw -> 615000
A2: GdrvDelay | B2: 2e-08 | D2: Tsw | E2: =1/E1 -> 1.62601626e-06
A3: IL | B3: 1
A4: IlPos | B4: =IF(B3>0,1,0) -> 1
A5: IlNeg | B5: =IF(B3<0,1,0) -> 0
A6: IlDir | B6: =B4-B5 -> 1
A8: Ifsw_2M | B8: 1e-06
A9: Iconst | B9: 1e-06
A10: T12_min | B10: 7.5e-08
A11: T23_min | B11: 7.5e-08
A12: I_T12_max | B12: =0.75/T12_min*Ifsw_2M/2000000*0.2 -> 1e-06
A13: I_T23_max | B13: =0.75/T23_min*Ifsw_2M/2000000*0.2 -> 1e-06
A14: Kgain_12 | B14: =1+4*0.25 -> 2
A15: Kratio_23 | B15: =1-2*0.041666 -> 0.916668
A17: I_T12(FSW) | B17: =MIN(Ifsw_2M/2000000*Fsw*Kgain_12,I_T12_max) -> 6.15e-07
A18: I_T23(FSW) | B18: =MIN(Ifsw_2M/2000000*Fsw*Kratio_23+Iconst*(1-Kratio_23),I_T23_max) -> 3.6520741e-07 | E18: D
A20: T1_to_T2(Fsw) | B20: =0.000000075/I_T12_FSW*0.000001 -> 1.219512195e-07 | E20: =T1_to_T2_Fsw*Fsw -> 0.075
A21: T2_to_T3(Fsw) | B21: =0.000000075/I_T23_FSW*0.000001 -> 2.053627554e-07 | E21: =T2_to_T3_Fsw*Fsw -> 0.1262980946
A22: T3_to_T4(Fsw) | B22: =T2_to_T3_Fsw -> 2.053627554e-07 | E22: =T3_to_T4_Fsw*Fsw -> 0.1262980946
A23: T1_to_T3(Fsw) | B23: =T1_to_T2_Fsw+T2_to_T3_Fsw -> 3.273139749e-07 | E23: =B23*Fsw -> 0.2012980946
A25: MinT1FallCtrl(Fsw) | B25: =0.2*T1_to_T2_Fsw -> 2.43902439e-08
A26: MinT1RiseCtrl(Fsw) | B26: =0.2*T1_to_T2_Fsw -> 2.43902439e-08 | G26: Vin
A28: MinTonBuck(Fsw) | B28: =T3_to_T4_Fsw-IlDir*DeadTime -> 1.853627554e-07 | E28: =MinTonBuck*Fsw -> 0.1139980946 | G28: =Vout/E28 -> 175.4415289
A29: MinToffBuck(Fsw) | B29: =T2_to_T3_Fsw+IlDir*DeadTime -> 2.253627554e-07 | E29: =(E2-MinToffBuck)*Fsw -> 0.8614019054 | G29: =Vout/E29 -> 23.21796582
A30: MaxTonBuck(Fsw) | B30: =1/Fsw-MinToffBuck -> 1.400653505e-06 | E30: =MaxTonBuck*Fsw -> 0.8614019054 | G30: =Vout/E30 -> 23.21796582
A32: MinTonBoost(Fsw) | B32: =T2_to_T3_Fsw-IlDir*DeadTime -> 1.853627554e-07 | E32: =MinTonBoost*Fsw -> 0.1139980946 | G32: =Vout*(1-E32) -> 17.72003811
A33: MinToffBoost(Fsw) | B33: =T1_to_T2_Fsw+IlDir*DeadTime -> 1.419512195e-07 | E33: =(E2-MinToffBoost)*Fsw -> 0.9127 | G33: =Vout*(1-E33) -> 1.746
A34: MaxTonBoost(Fsw) | B34: =1/Fsw-MinToffBoost -> 1.484065041e-06 | E34: =MaxTonBoost*Fsw -> 0.9127 | G34: =Vout*(1-E34) -> 1.746
A35: MaxToffBoost(Fsw) | B35: =1/Fsw-MaxTonBoost -> 1.419512195e-07 | E35: =MaxToffBoost*Fsw -> 0.0873
A36: MinTlRise(Fsw) | B36: =MAX(MAX(MinT1RiseCtrl,IlNeg*GdrvDelay)-IlDir*DeadTime,0) -> 4.390243902e-09 | E36: =MinTlRise*Fsw -> 0.0027
A37: MinTlFall(Fsw) | B37: =MAX(MinT1FallCtrl,IlPos*GdrvDelay) -> 2.43902439e-08 | E37: =MinTlFall*Fsw -> 0.015
A39: TBubo(Fsw) | B39: =T1_to_T2_Fsw+T2_to_T3_Fsw -> 3.273139749e-07 | E39: =TBubo*Fsw -> 0.2012980946 | G39: =Vout*(1-E39) -> 15.97403811
A40: TonBubo(Fsw) | B40: =1/Fsw-TBubo+0*DeadTime -> 1.298702285e-06 | E40: =TonBubo*Fsw -> 0.7987019054 | G40: =Vout*(1-E40) -> 4.025961891
A41: MaxTlRise(Fsw) | B41: =MAX(TBubo-MinTlFall-IlDir*DeadTime,0) -> 2.82923731e-07 | E41: =MaxTlRise*Fsw -> 0.1739980946
B43: =DeadTime+GdrvDelay -> 4e-08 | E43: =B43*Fsw -> 0.0246

Sheet CFG Setting (hidden)
A1: LM5177
A2: CFG
A3: Setting | B3: R_CFG [ | C3: DRSS | D3: HICCUP | E3: USLEEP | F3: IMON_LIMIT | G3: =C3 -> DRSS | H3: =D3 -> HICCUP | I3: =E3 -> USLEEP | J3: =F3 -> IMON_LIMIT
A4: 1 | B4: 0 | C4: 0 | D4: 0 | E4: 0 | F4: 0 | G4: =IF(C4=1,"Enable","Disable") -> Disable | H4: =IF(D4=1,"Enable","Disable") -> Disable | I4: =IF(E4=1,"Enable","Disable") -> Disable | J4: =IF(F4=1,"Enable","Disable") -> Disable | L4: =CONCATENATE(G$3,": ",C4) -> DRSS: 0 | M4: =CONCATENATE(H$3,": ",D4) -> HICCUP: 0 | N4: =CONCATENATE(I$3,": ",E4) -> USLEEP: 0 | O4: =CONCATENATE(J$3,": ",F4) -> IMON_LIMIT: 0 | P4: =CONCATENATE(K$3,": ",G4) -> : Disable | R4: =CONCATENATE(L4," / ",M4," / ",N4," / ",O4) -> DRSS: 0 / HICCUP: 0 / USLEEP: 0 / IMON_LIMIT: 0
A5: 2 | B5: 0.511 | C5: 1 | D5: 0 | E5: 0 | F5: 0 | G5: =IF(C5=1,"Enable","Disable") -> Enable | H5: Disable | I5: Disable | J5: Disable | L5: =CONCATENATE(G$3,": ",C5) -> DRSS: 1 | M5: HICCUP: 0 | N5: USLEEP: 0 | O5: IMON_LIMIT: 0 | P5: : Enable | R5: =CONCATENATE(L5," / ",M5," / ",N5," / ",O5) -> DRSS: 1 / HICCUP: 0 / USLEEP: 0 / IMON_LIMIT: 0
A6: 3 | B6: 1.15 | C6: 0 | D6: 1 | E6: 0 | F6: 0 | G6: Disable | H6: Enable | I6: Disable | J6: Disable | L6: DRSS: 0 | M6: HICCUP: 1 | N6: USLEEP: 0 | O6: IMON_LIMIT: 0 | P6: : Disable | R6: DRSS: 0 / HICCUP: 1 / USLEEP: 0 / IMON_LIMIT: 0
A7: 4 | B7: 1.9 | C7: 1 | D7: 1 | E7: 0 | F7: 0 | G7: Enable | H7: Enable | I7: Disable | J7: Disable | L7: DRSS: 1 | M7: HICCUP: 1 | N7: USLEEP: 0 | O7: IMON_LIMIT: 0 | P7: : Enable | R7: DRSS: 1 / HICCUP: 1 / USLEEP: 0 / IMON_LIMIT: 0
A8: 5 | B8: 2.7 | C8: 0 | D8: 0 | E8: 0 | F8: 1 | G8: Disable | H8: Disable | I8: Disable | J8: Enable | L8: DRSS: 0 | M8: HICCUP: 0 | N8: USLEEP: 0 | O8: IMON_LIMIT: 1 | P8: : Disable | R8: DRSS: 0 / HICCUP: 0 / USLEEP: 0 / IMON_LIMIT: 1
A9: 6 | B9: 3.8 | C9: 1 | D9: 0 | E9: 0 | F9: 1 | G9: Enable | H9: Disable | I9: Disable | J9: Enable | L9: DRSS: 1 | M9: HICCUP: 0 | N9: USLEEP: 0 | O9: IMON_LIMIT: 1 | P9: : Enable | R9: DRSS: 1 / HICCUP: 0 / USLEEP: 0 / IMON_LIMIT: 1
A10: 7 | B10: 5.1 | C10: 0 | D10: 1 | E10: 0 | F10: 1 | G10: Disable | H10: Enable | I10: Disable | J10: Enable | L10: DRSS: 0 | M10: HICCUP: 1 | N10: USLEEP: 0 | O10: IMON_LIMIT: 1 | P10: : Disable | R10: DRSS: 0 / HICCUP: 1 / USLEEP: 0 / IMON_LIMIT: 1
A11: 8 | B11: 6.5 | C11: 1 | D11: 1 | E11: 0 | F11: 1 | G11: Enable | H11: Enable | I11: Disable | J11: Enable | L11: DRSS: 1 | M11: HICCUP: 1 | N11: USLEEP: 0 | O11: IMON_LIMIT: 1 | P11: : Enable | R11: DRSS: 1 / HICCUP: 1 / USLEEP: 0 / IMON_LIMIT: 1
A12: 9 | B12: 8.3 | C12: 0 | D12: 0 | E12: 1 | F12: 0 | G12: Disable | H12: Disable | I12: Enable | J12: Disable | L12: DRSS: 0 | M12: HICCUP: 0 | N12: USLEEP: 1 | O12: IMON_LIMIT: 0 | P12: : Disable | R12: DRSS: 0 / HICCUP: 0 / USLEEP: 1 / IMON_LIMIT: 0
A13: 10 | B13: 10.5 | C13: 1 | D13: 0 | E13: 1 | F13: 0 | G13: Enable | H13: Disable | I13: Enable | J13: Disable | L13: DRSS: 1 | M13: HICCUP: 0 | N13: USLEEP: 1 | O13: IMON_LIMIT: 0 | P13: : Enable | R13: DRSS: 1 / HICCUP: 0 / USLEEP: 1 / IMON_LIMIT: 0
A14: 11 | B14: 13.3 | C14: 0 | D14: 1 | E14: 1 | F14: 0 | G14: Disable | H14: Enable | I14: Enable | J14: Disable | L14: DRSS: 0 | M14: HICCUP: 1 | N14: USLEEP: 1 | O14: IMON_LIMIT: 0 | P14: : Disable | R14: DRSS: 0 / HICCUP: 1 / USLEEP: 1 / IMON_LIMIT: 0
A15: 12 | B15: 16.2 | C15: 1 | D15: 1 | E15: 1 | F15: 0 | G15: Enable | H15: Enable | I15: Enable | J15: Disable | L15: DRSS: 1 | M15: HICCUP: 1 | N15: USLEEP: 1 | O15: IMON_LIMIT: 0 | P15: : Enable | R15: DRSS: 1 / HICCUP: 1 / USLEEP: 1 / IMON_LIMIT: 0
A16: 13 | B16: 20.5 | C16: 0 | D16: 0 | E16: 1 | F16: 1 | G16: Disable | H16: Disable | I16: Enable | J16: Enable | L16: DRSS: 0 | M16: HICCUP: 0 | N16: USLEEP: 1 | O16: IMON_LIMIT: 1 | P16: : Disable | R16: DRSS: 0 / HICCUP: 0 / USLEEP: 1 / IMON_LIMIT: 1
A17: 14 | B17: 24.9 | C17: 1 | D17: 0 | E17: 1 | F17: 1 | G17: Enable | H17: Disable | I17: Enable | J17: Enable | L17: DRSS: 1 | M17: HICCUP: 0 | N17: USLEEP: 1 | O17: IMON_LIMIT: 1 | P17: : Enable | R17: DRSS: 1 / HICCUP: 0 / USLEEP: 1 / IMON_LIMIT: 1
A18: 15 | B18: 30.1 | C18: 0 | D18: 1 | E18: 1 | F18: 1 | G18: Disable | H18: Enable | I18: Enable | J18: Enable | L18: DRSS: 0 | M18: HICCUP: 1 | N18: USLEEP: 1 | O18: IMON_LIMIT: 1 | P18: : Disable | R18: DRSS: 0 / HICCUP: 1 / USLEEP: 1 / IMON_LIMIT: 1
A19: 16 | B19: 36.5 | C19: 1 | D19: 1 | E19: 1 | F19: 1 | G19: Enable | H19: Enable | I19: Enable | J19: Enable | L19: DRSS: 1 | M19: HICCUP: 1 | N19: USLEEP: 1 | O19: IMON_LIMIT: 1 | P19: : Enable | R19: DRSS: 1 / HICCUP: 1 / USLEEP: 1 / IMON_LIMIT: 1
C21: 0 | D21: 1 | E21: 3 | F21: 2
C22: DRSS: off | D22: HICCUP: off | E22: uSleep: off | F22: IMON_LIMIT: off
C23: DRSS: on | D23: HICCUP: on | E23: uSleep: on | F23: IMON: on
F24: ILIMIT: positive
F25: ILIMIT: negative
B27: CFG Setting | C27: 1 | D27: 1 | E27: 2 | F27: 3 | G27: Calc Setting | H27: =CONCATENATE("R_",A2) -> R_CFG | J27: This cell give 1 for disable and 2 for enable
C28: =(C27-1)*2^C21 -> 0 | D28: =(D27-1)*2^D21 -> 0 | E28: =(E27-1)*2^E21 -> 8 | F28: =(IF(F27>2,1,0)*2^F21) -> 4 | G28: =SUM(C28:F28)+1 -> 13 | H28: =INDEX(B4:B19,G28) -> 20.5
A30: LM51772
A31: CFG1
A32: Setting | B32: R_CFG2 [ | C32: Slope Comp. | D32: I2C
A33: 1 | B33: 0 | C33: n/a | D33: ADDR LSB: 0 | L33: =CONCATENATE($C$32,": ",C33) -> Slope Comp.: n/a | M33: =CONCATENATE(D$32," ",D33) -> I2C ADDR LSB: 0 | R33: =CONCATENATE(L33," / ",M33) -> Slope Comp.: n/a / I2C ADDR LSB: 0
A34: 2 | B34: 0.511 | C34: 0.25 | D34: Disabled | L34: =CONCATENATE($C$32,": ",C34) -> Slope Comp.: 0.25 | M34: =CONCATENATE(D$32," ",D34) -> I2C Disabled | R34: =CONCATENATE(L34," / ",M34," / ",N34," / ",O34) -> Slope Comp.: 0.25 / I2C Disabled / /
A35: 3 | B35: 1.15 | C35: 0.375 | D35: Disabled | L35: Slope Comp.: 0.375 | M35: I2C Disabled | R35: Slope Comp.: 0.375 / I2C Disabled / /
A36: 4 | B36: 1.9 | C36: 0.5 | D36: Disabled | L36: Slope Comp.: 0.5 | M36: I2C Disabled | R36: Slope Comp.: 0.5 / I2C Disabled / /
A37: 5 | B37: 2.7 | C37: 0.625 | D37: Disabled | L37: Slope Comp.: 0.625 | M37: I2C Disabled | R37: Slope Comp.: 0.625 / I2C Disabled / /
A38: 6 | B38: 3.8 | C38: 0.75 | D38: Disabled | L38: Slope Comp.: 0.75 | M38: I2C Disabled | R38: Slope Comp.: 0.75 / I2C Disabled / /
A39: 7 | B39: 5.1 | C39: 0.875 | D39: Disabled | L39: Slope Comp.: 0.875 | M39: I2C Disabled | R39: Slope Comp.: 0.875 / I2C Disabled / /
A40: 8 | B40: 6.5 | C40: 1 | D40: Disabled | L40: Slope Comp.: 1 | M40: I2C Disabled | R40: Slope Comp.: 1 / I2C Disabled / /
A41: 9 | B41: 8.3 | C41: 1.5 | D41: Disabled | L41: Slope Comp.: 1.5 | M41: I2C Disabled | R41: Slope Comp.: 1.5 / I2C Disabled / /
A42: 10 | B42: 10.5 | C42: 2 | D42: Disabled | L42: Slope Comp.: 2 | M42: I2C Disabled | R42: Slope Comp.: 2 / I2C Disabled / /
A43: 11 | B43: 13.3 | C43: 2.5 | D43: Disabled | L43: Slope Comp.: 2.5 | M43: I2C Disabled | R43: Slope Comp.: 2.5 / I2C Disabled / /
A44: 12 | B44: 16.2 | C44: 3 | D44: Disabled | L44: Slope Comp.: 3 | M44: I2C Disabled | R44: Slope Comp.: 3 / I2C Disabled / /
A45: 13 | B45: 20.5 | C45: 3.5 | D45: Disabled | L45: Slope Comp.: 3.5 | M45: I2C Disabled | R45: Slope Comp.: 3.5 / I2C Disabled / /
A46: 14 | B46: 24.9 | C46: 4 | D46: Disabled | L46: Slope Comp.: 4 | M46: I2C Disabled | R46: Slope Comp.: 4 / I2C Disabled / /
A47: 15 | B47: 30.1 | C47: 4.5 | D47: Disabled | L47: Slope Comp.: 4.5 | M47: I2C Disabled | R47: Slope Comp.: 4.5 / I2C Disabled / /
A48: 16 | B48: 36.5 | C48: n/a | D48: ADDR LSB: 1 | L48: Slope Comp.: n/a | M48: I2C ADDR LSB: 1 | R48: Slope Comp.: n/a / I2C ADDR LSB: 1 / /
C51: =CONCATENATE(C32,": off") -> Slope Comp.: off | D51: =CONCATENATE(D32,": 0") -> I2C: 0
C52: =CONCATENATE(C32,": on") -> Slope Comp.: on | D52: =CONCATENATE(D32,": 1") -> I2C: 1
B56: CFG Setting | C56: 1 | D56: =IF(OR(C56=1,B56=16),1,2) -> 1 | E56: 1 | F56: 1 | G56: Calc Setting | H56: =CONCATENATE("R_",A31) -> R_CFG1 | J56: This cell give 1 for disable and 2 for enable
C57: =C56 -> 1 | D57: =(D56-1)*2^D50 -> 0 | E57: =(E56-1)*2^E50 -> 0 | F57: =(IF(F56>1,1,0)*2^F50) -> 0 | G57: =C57 -> 1 | H57: =INDEX(B33:B48,G57) -> 0
A60: CFG2
A61: Setting | B61: R_CFG2 [ | C61: EN_SYNC_OUT | D61: SYNC_IN_FALLING | E61: VDET_EN | F61: PCM_HYST_30 | G61: =C61 -> EN_SYNC_OUT | H61: =D61 -> SYNC_IN_FALLING | I61: =E61 -> VDET_EN | J61: =F61 -> PCM_HYST_30
A62: 1 | B62: 0 | C62: 0 | D62: 0 | E62: 0 | F62: 0 | G62: =IF(C62=1,"Enable","Disable") -> Disable | H62: =IF(D62=1,"Enable","Disable") -> Disable | I62: =IF(E62=1,"Enable","Disable") -> Disable | J62: =IF(F62=1,"Enable","Disable") -> Disable | L62: =CONCATENATE($C$61,": ",C62) -> EN_SYNC_OUT: 0 | M62: =CONCATENATE(D$61,": ",D62) -> SYNC_IN_FALLING: 0 | N62: =CONCATENATE(E$61,": ",E62) -> VDET_EN: 0 | O62: =CONCATENATE(F$61,": ",F62) -> PCM_HYST_30: 0 | P62: =CONCATENATE(K$3,": ",G62) -> : Disable | R62: =CONCATENATE(L62," / ",M62," / ",N62," / ",O62) -> EN_SYNC_OUT: 0 / SYNC_IN_FALLING: 0 / VDET_EN: 0 / PCM_HYST_30: 0
A63: 2 | B63: 0.511 | C63: 1 | D63: 0 | E63: 0 | F63: 0 | G63: Enable | H63: Disable | I63: Disable | J63: Disable | L63: =CONCATENATE($C$61,": ",C63) -> EN_SYNC_OUT: 1 | M63: =CONCATENATE(D$61,": ",D63) -> SYNC_IN_FALLING: 0 | N63: =CONCATENATE(E$61,": ",E63) -> VDET_EN: 0 | O63: =CONCATENATE(F$61,": ",F63) -> PCM_HYST_30: 0 | P63: : Enable | R63: =CONCATENATE(L63," / ",M63," / ",N63," / ",O63) -> EN_SYNC_OUT: 1 / SYNC_IN_FALLING: 0 / VDET_EN: 0 / PCM_HYST_30: 0
A64: 3 | B64: 1.15 | C64: 0 | D64: 1 | E64: 0 | F64: 0 | G64: Disable | H64: Enable | I64: Disable | J64: Disable | L64: EN_SYNC_OUT: 0 | M64: SYNC_IN_FALLING: 1 | N64: VDET_EN: 0 | O64: PCM_HYST_30: 0 | P64: : Disable | R64: EN_SYNC_OUT: 0 / SYNC_IN_FALLING: 1 / VDET_EN: 0 / PCM_HYST_30: 0
A65: 4 | B65: 1.9 | C65: 1 | D65: 1 | E65: 0 | F65: 0 | G65: Enable | H65: Enable | I65: Disable | J65: Disable | L65: EN_SYNC_OUT: 1 | M65: SYNC_IN_FALLING: 1 | N65: VDET_EN: 0 | O65: PCM_HYST_30: 0 | P65: : Enable | R65: EN_SYNC_OUT: 1 / SYNC_IN_FALLING: 1 / VDET_EN: 0 / PCM_HYST_30: 0
A66: 5 | B66: 2.7 | C66: 0 | D66: 0 | E66: 1 | F66: 0 | G66: Disable | H66: Disable | I66: Enable | J66: Disable | L66: EN_SYNC_OUT: 0 | M66: SYNC_IN_FALLING: 0 | N66: VDET_EN: 1 | O66: PCM_HYST_30: 0 | P66: : Disable | R66: EN_SYNC_OUT: 0 / SYNC_IN_FALLING: 0 / VDET_EN: 1 / PCM_HYST_30: 0
A67: 6 | B67: 3.8 | C67: 1 | D67: 1 | E67: 1 | F67: 0 | G67: Enable | H67: Enable | I67: Enable | J67: Disable | L67: EN_SYNC_OUT: 1 | M67: SYNC_IN_FALLING: 1 | N67: VDET_EN: 1 | O67: PCM_HYST_30: 0 | P67: : Enable | R67: EN_SYNC_OUT: 1 / SYNC_IN_FALLING: 1 / VDET_EN: 1 / PCM_HYST_30: 0
A68: 7 | B68: 5.1 | C68: 0 | D68: 1 | E68: 1 | F68: 0 | G68: Disable | H68: Enable | I68: Enable | J68: Disable | L68: EN_SYNC_OUT: 0 | M68: SYNC_IN_FALLING: 1 | N68: VDET_EN: 1 | O68: PCM_HYST_30: 0 | P68: : Disable | R68: EN_SYNC_OUT: 0 / SYNC_IN_FALLING: 1 / VDET_EN: 1 / PCM_HYST_30: 0
A69: 8 | B69: 6.5 | C69: 1 | D69: 1 | E69: 1 | F69: 0 | G69: Enable | H69: Enable | I69: Enable | J69: Disable | L69: EN_SYNC_OUT: 1 | M69: SYNC_IN_FALLING: 1 | N69: VDET_EN: 1 | O69: PCM_HYST_30: 0 | P69: : Enable | R69: EN_SYNC_OUT: 1 / SYNC_IN_FALLING: 1 / VDET_EN: 1 / PCM_HYST_30: 0
A70: 9 | B70: 8.3 | C70: 0 | D70: 0 | E70: 0 | F70: 1 | G70: Disable | H70: Disable | I70: Disable | J70: Enable | L70: EN_SYNC_OUT: 0 | M70: SYNC_IN_FALLING: 0 | N70: VDET_EN: 0 | O70: PCM_HYST_30: 1 | P70: : Disable | R70: EN_SYNC_OUT: 0 / SYNC_IN_FALLING: 0 / VDET_EN: 0 / PCM_HYST_30: 1
A71: 10 | B71: 10.5 | C71: 1 | D71: 0 | E71: 0 | F71: 1 | G71: Enable | H71: Disable | I71: Disable | J71: Enable | L71: EN_SYNC_OUT: 1 | M71: SYNC_IN_FALLING: 0 | N71: VDET_EN: 0 | O71: PCM_HYST_30: 1 | P71: : Enable | R71: EN_SYNC_OUT: 1 / SYNC_IN_FALLING: 0 / VDET_EN: 0 / PCM_HYST_30: 1
A72: 11 | B72: 13.3 | C72: 0 | D72: 1 | E72: 0 | F72: 1 | G72: Disable | H72: Enable | I72: Disable | J72: Enable | L72: EN_SYNC_OUT: 0 | M72: SYNC_IN_FALLING: 1 | N72: VDET_EN: 0 | O72: PCM_HYST_30: 1 | P72: : Disable | R72: EN_SYNC_OUT: 0 / SYNC_IN_FALLING: 1 / VDET_EN: 0 / PCM_HYST_30: 1
A73: 12 | B73: 16.2 | C73: 1 | D73: 1 | E73: 0 | F73: 1 | G73: Enable | H73: Enable | I73: Disable | J73: Enable | L73: EN_SYNC_OUT: 1 | M73: SYNC_IN_FALLING: 1 | N73: VDET_EN: 0 | O73: PCM_HYST_30: 1 | P73: : Enable | R73: EN_SYNC_OUT: 1 / SYNC_IN_FALLING: 1 / VDET_EN: 0 / PCM_HYST_30: 1
A74: 13 | B74: 20.5 | C74: 0 | D74: 0 | E74: 1 | F74: 1 | G74: Disable | H74: Disable | I74: Enable | J74: Enable | L74: EN_SYNC_OUT: 0 | M74: SYNC_IN_FALLING: 0 | N74: VDET_EN: 1 | O74: PCM_HYST_30: 1 | P74: : Disable | R74: EN_SYNC_OUT: 0 / SYNC_IN_FALLING: 0 / VDET_EN: 1 / PCM_HYST_30: 1
A75: 14 | B75: 24.9 | C75: 1 | D75: 0 | E75: 1 | F75: 1 | G75: Enable | H75: Disable | I75: Enable | J75: Enable | L75: EN_SYNC_OUT: 1 | M75: SYNC_IN_FALLING: 0 | N75: VDET_EN: 1 | O75: PCM_HYST_30: 1 | P75: : Enable | R75: EN_SYNC_OUT: 1 / SYNC_IN_FALLING: 0 / VDET_EN: 1 / PCM_HYST_30: 1
A76: 15 | B76: 30.1 | C76: 0 | D76: 1 | E76: 1 | F76: 1 | G76: Disable | H76: Enable | I76: Enable | J76: Enable | L76: EN_SYNC_OUT: 0 | M76: SYNC_IN_FALLING: 1 | N76: VDET_EN: 1 | O76: PCM_HYST_30: 1 | P76: : Disable | R76: EN_SYNC_OUT: 0 / SYNC_IN_FALLING: 1 / VDET_EN: 1 / PCM_HYST_30: 1
A77: 16 | B77: 36.5 | C77: 1 | D77: 1 | E77: 1 | F77: 1 | G77: Enable | H77: Enable | I77: Enable | J77: Enable | L77: EN_SYNC_OUT: 1 | M77: SYNC_IN_FALLING: 1 | N77: VDET_EN: 1 | O77: PCM_HYST_30: 1 | P77: : Enable | R77: EN_SYNC_OUT: 1 / SYNC_IN_FALLING: 1 / VDET_EN: 1 / PCM_HYST_30: 1
C79: 0 | D79: 1 | E79: 2 | F79: 3
C80: =CONCATENATE(C61,": off") -> EN_SYNC_OUT: off | D80: =CONCATENATE(D61,": off") -> SYNC_IN_FALLING: off | E80: =CONCATENATE(E61,": off") -> VDET_EN: off | F80: =CONCATENATE(F61,": off") -> PCM_HYST_30: off
C81: =CONCATENATE(C61,": on") -> EN_SYNC_OUT: on | D81: =CONCATENATE(D61,": on") -> SYNC_IN_FALLING: on | E81: =CONCATENATE(E61,": on") -> VDET_EN: on | F81: =CONCATENATE(F61,": on") -> PCM_HYST_30: on
B85: CFG Setting | C85: 1 | D85: 1 | E85: 2 | F85: 1 | G85: Calc Setting | H85: =CONCATENATE("R_",A60) -> R_CFG2 | J85: This cell give 1 for disable and 2 for enable
C86: =(C85-1)*2^C79 -> 0 | D86: =(D85-1)*2^D79 -> 0 | E86: =(E85-1)*2^E79 -> 4 | F86: =(F85-1)*2^F79 -> 0 | G86: =SUM(C86:F86)+1 -> 5 | H86: =INDEX(B62:B77,G86) -> 2.7
A90: CFG3
A91: Setting | B91: R_CFG3 [ | C91: EN_VCC1 | D91: INC_INDUCT_De-Rate | E91: USLEEP | F91: SCALE_DT | G91: =C91 -> EN_VCC1 | H91: =D91 -> INC_INDUCT_De-Rate | I91: =E91 -> USLEEP | J91: =F91 -> SCALE_DT
A92: 1 | B92: 0 | C92: 0 | D92: 0 | E92: 0 | F92: 0 | G92: =IF(C92=1,"Enable","Disable") -> Disable | H92: =IF(D92=1,"Enable","Disable") -> Disable | I92: =IF(E92=1,"Enable","Disable") -> Disable | J92: =IF(F92=1,"Enable","Disable") -> Disable | L92: =CONCATENATE($C$91,": ",C92) -> EN_VCC1: 0 | M92: =CONCATENATE(D$91,": ",D92) -> INC_INDUCT_De-Rate: 0 | N92: =CONCATENATE(E$91,": ",E92) -> USLEEP: 0 | O92: =CONCATENATE(F$91,": ",F92) -> SCALE_DT: 0 | P92: =CONCATENATE(K$3,": ",G92) -> : Disable | R92: =CONCATENATE(L92," / ",M92," / ",N92," / ",O92) -> EN_VCC1: 0 / INC_INDUCT_De-Rate: 0 / USLEEP: 0 / SCALE_DT: 0
A93: 2 | B93: 0.511 | C93: 1 | D93: 0 | E93: 0 | F93: 0 | G93: Enable | H93: Disable | I93: Disable | J93: Disable | L93: =CONCATENATE($C$91,": ",C93) -> EN_VCC1: 1 | M93: =CONCATENATE(D$91,": ",D93) -> INC_INDUCT_De-Rate: 0 | N93: =CONCATENATE(E$91,": ",E93) -> USLEEP: 0 | O93: =CONCATENATE(F$91,": ",F93) -> SCALE_DT: 0 | P93: : Enable | R93: =CONCATENATE(L93," / ",M93," / ",N93," / ",O93) -> EN_VCC1: 1 / INC_INDUCT_De-Rate: 0 / USLEEP: 0 / SCALE_DT: 0
A94: 3 | B94: 1.15 | C94: 0 | D94: 1 | E94: 0 | F94: 0 | G94: Disable | H94: Enable | I94: Disable | J94: Disable | L94: EN_VCC1: 0 | M94: INC_INDUCT_De-Rate: 1 | N94: USLEEP: 0 | O94: SCALE_DT: 0 | P94: : Disable | R94: EN_VCC1: 0 / INC_INDUCT_De-Rate: 1 / USLEEP: 0 / SCALE_DT: 0
A95: 4 | B95: 1.9 | C95: 1 | D95: 1 | E95: 0 | F95: 0 | G95: Enable | H95: Enable | I95: Disable | J95: Disable | L95: EN_VCC1: 1 | M95: INC_INDUCT_De-Rate: 1 | N95: USLEEP: 0 | O95: SCALE_DT: 0 | P95: : Enable | R95: EN_VCC1: 1 / INC_INDUCT_De-Rate: 1 / USLEEP: 0 / SCALE_DT: 0
A96: 5 | B96: 2.7 | C96: 0 | D96: 0 | E96: 1 | F96: 0 | G96: Disable | H96: Disable | I96: Enable | J96: Disable | L96: EN_VCC1: 0 | M96: INC_INDUCT_De-Rate: 0 | N96: USLEEP: 1 | O96: SCALE_DT: 0 | P96: : Disable | R96: EN_VCC1: 0 / INC_INDUCT_De-Rate: 0 / USLEEP: 1 / SCALE_DT: 0
A97: 6 | B97: 3.8 | C97: 1 | D97: 0 | E97: 1 | F97: 0 | G97: Enable | H97: Disable | I97: Enable | J97: Disable | L97: EN_VCC1: 1 | M97: INC_INDUCT_De-Rate: 0 | N97: USLEEP: 1 | O97: SCALE_DT: 0 | P97: : Enable | R97: EN_VCC1: 1 / INC_INDUCT_De-Rate: 0 / USLEEP: 1 / SCALE_DT: 0
A98: 7 | B98: 5.1 | C98: 0 | D98: 1 | E98: 1 | F98: 0 | G98: Disable | H98: Enable | I98: Enable | J98: Disable | L98: EN_VCC1: 0 | M98: INC_INDUCT_De-Rate: 1 | N98: USLEEP: 1 | O98: SCALE_DT: 0 | P98: : Disable | R98: EN_VCC1: 0 / INC_INDUCT_De-Rate: 1 / USLEEP: 1 / SCALE_DT: 0
A99: 8 | B99: 6.5 | C99: 1 | D99: 1 | E99: 1 | F99: 0 | G99: Enable | H99: Enable | I99: Enable | J99: Disable | L99: EN_VCC1: 1 | M99: INC_INDUCT_De-Rate: 1 | N99: USLEEP: 1 | O99: SCALE_DT: 0 | P99: : Enable | R99: EN_VCC1: 1 / INC_INDUCT_De-Rate: 1 / USLEEP: 1 / SCALE_DT: 0
A100: 9 | B100: 8.3 | C100: 0 | D100: 0 | E100: 0 | F100: 1 | G100: Disable | H100: Disable | I100: Disable | J100: Enable | L100: EN_VCC1: 0 | M100: INC_INDUCT_De-Rate: 0 | N100: USLEEP: 0 | O100: SCALE_DT: 1 | P100: : Disable | R100: EN_VCC1: 0 / INC_INDUCT_De-Rate: 0 / USLEEP: 0 / SCALE_DT: 1
A101: 10 | B101: 10.5 | C101: 1 | D101: 0 | E101: 0 | F101: 1 | G101: Enable | H101: Disable | I101: Disable | J101: Enable | L101: EN_VCC1: 1 | M101: INC_INDUCT_De-Rate: 0 | N101: USLEEP: 0 | O101: SCALE_DT: 1 | P101: : Enable | R101: EN_VCC1: 1 / INC_INDUCT_De-Rate: 0 / USLEEP: 0 / SCALE_DT: 1
A102: 11 | B102: 13.3 | C102: 0 | D102: 1 | E102: 0 | F102: 1 | G102: Disable | H102: Enable | I102: Disable | J102: Enable | L102: EN_VCC1: 0 | M102: INC_INDUCT_De-Rate: 1 | N102: USLEEP: 0 | O102: SCALE_DT: 1 | P102: : Disable | R102: EN_VCC1: 0 / INC_INDUCT_De-Rate: 1 / USLEEP: 0 / SCALE_DT: 1
A103: 12 | B103: 16.2 | C103: 1 | D103: 1 | E103: 0 | F103: 1 | G103: Enable | H103: Enable | I103: Disable | J103: Enable | L103: EN_VCC1: 1 | M103: INC_INDUCT_De-Rate: 1 | N103: USLEEP: 0 | O103: SCALE_DT: 1 | P103: : Enable | R103: EN_VCC1: 1 / INC_INDUCT_De-Rate: 1 / USLEEP: 0 / SCALE_DT: 1
A104: 13 | B104: 20.5 | C104: 0 | D104: 0 | E104: 1 | F104: 1 | G104: Disable | H104: Disable | I104: Enable | J104: Enable | L104: EN_VCC1: 0 | M104: INC_INDUCT_De-Rate: 0 | N104: USLEEP: 1 | O104: SCALE_DT: 1 | P104: : Disable | R104: EN_VCC1: 0 / INC_INDUCT_De-Rate: 0 / USLEEP: 1 / SCALE_DT: 1
A105: 14 | B105: 24.9 | C105: 1 | D105: 0 | E105: 1 | F105: 1 | G105: Enable | H105: Disable | I105: Enable | J105: Enable | L105: EN_VCC1: 1 | M105: INC_INDUCT_De-Rate: 0 | N105: USLEEP: 1 | O105: SCALE_DT: 1 | P105: : Enable | R105: EN_VCC1: 1 / INC_INDUCT_De-Rate: 0 / USLEEP: 1 / SCALE_DT: 1
A106: 15 | B106: 30.1 | C106: 0 | D106: 1 | E106: 1 | F106: 1 | G106: Disable | H106: Enable | I106: Enable | J106: Enable | L106: EN_VCC1: 0 | M106: INC_INDUCT_De-Rate: 1 | N106: USLEEP: 1 | O106: SCALE_DT: 1 | P106: : Disable | R106: EN_VCC1: 0 / INC_INDUCT_De-Rate: 1 / USLEEP: 1 / SCALE_DT: 1
A107: 16 | B107: 36.5 | C107: 1 | D107: 1 | E107: 1 | F107: 1 | G107: Enable | H107: Enable | I107: Enable | J107: Enable | L107: EN_VCC1: 1 | M107: INC_INDUCT_De-Rate: 1 | N107: USLEEP: 1 | O107: SCALE_DT: 1 | P107: : Enable | R107: EN_VCC1: 1 / INC_INDUCT_De-Rate: 1 / USLEEP: 1 / SCALE_DT: 1
C109: 0 | D109: 1 | E109: 2 | F109: 3
C110: =CONCATENATE(C91,": off") -> EN_VCC1: off | D110: =CONCATENATE(D91,": off") -> INC_INDUCT_De-Rate: off | E110: =CONCATENATE(E91,": off") -> USLEEP: off | F110: =CONCATENATE(F91,": off") -> SCALE_DT: off
C111: =CONCATENATE(C91,": on") -> EN_VCC1: on | D111: =CONCATENATE(D91,": on") -> INC_INDUCT_De-Rate: on | E111: =CONCATENATE(E91,": on") -> USLEEP: on | F111: =CONCATENATE(F91,": on") -> SCALE_DT: on
B115: CFG Setting | C115: 1 | D115: 1 | E115: 1 | F115: 1 | G115: Calc Setting | H115: =CONCATENATE("R_",A90) -> R_CFG3 | J115: This cell give 1 for disable and 2 for enable
C116: =(C115-1)*2^C109 -> 0 | D116: =(D115-1)*2^D109 -> 0 | E116: =(E115-1)*2^E109 -> 0 | F116: =(F115-1)*2^F109 -> 0 | G116: =SUM(C116:F116)+1 -> 1 | H116: =INDEX(B92:B107,G116) -> 0
A120: CFG4
A121: Setting | B121: R_CFG4 [ | C121: DRSS | D121: SCP – Hiccup Mode | E121: Negative Current Limit | F121: Current Limit | G121: Current Limit | H121: =D121 -> SCP – Hiccup Mode | I121: =E121 -> Negative Current Limit | J121: =F121 -> Current Limit
A122: 1 | B122: 0 | C122: 0 | D122: 0 | E122: 0 | F122: 0 | G122: =IF(C122=1,"Enable","Disable") -> Disable | H122: =IF(D122=1,"Enable","Disable") -> Disable | I122: =IF(E122=1,"Enable","Disable") -> Disable | J122: =IF(F122=1,"Enable","Disable") -> Disable | L122: =CONCATENATE($C$121,": ",C122) -> DRSS: 0 | M122: =CONCATENATE(D$121,": ",D122) -> SCP – Hiccup Mode: 0 | N122: =CONCATENATE(E$121,": ",E122) -> Negative Current Limit: 0 | O122: =CONCATENATE(F$121,": ",F122) -> Current Limit: 0 | P122: =CONCATENATE(K$3,": ",G122) -> : Disable | R122: =CONCATENATE(L122," / ",M122," / ",N122," / ",O122) -> DRSS: 0 / SCP – Hiccup Mode: 0 / Negative Current Limit: 0 / Current Limit: 0
A123: 2 | B123: 0.511 | C123: 1 | D123: 0 | E123: 0 | F123: 0 | G123: Enable | H123: Disable | I123: Disable | J123: Disable | L123: =CONCATENATE($C$121,": ",C123) -> DRSS: 1 | M123: =CONCATENATE(D$121,": ",D123) -> SCP – Hiccup Mode: 0 | N123: =CONCATENATE(E$121,": ",E123) -> Negative Current Limit: 0 | O123: =CONCATENATE(F$121,": ",F123) -> Current Limit: 0 | P123: : Enable | R123: =CONCATENATE(L123," / ",M123," / ",N123," / ",O123) -> DRSS: 1 / SCP – Hiccup Mode: 0 / Negative Current Limit: 0 / Current Limit: 0
A124: 3 | B124: 1.15 | C124: 0 | D124: 1 | E124: 0 | F124: 0 | G124: Disable | H124: Enable | I124: Disable | J124: Disable | L124: DRSS: 0 | M124: SCP – Hiccup Mode: 1 | N124: Negative Current Limit: 0 | O124: Current Limit: 0 | P124: : Disable | R124: DRSS: 0 / SCP – Hiccup Mode: 1 / Negative Current Limit: 0 / Current Limit: 0
A125: 4 | B125: 1.9 | C125: 1 | D125: 1 | E125: 0 | F125: 0 | G125: Enable | H125: Enable | I125: Disable | J125: Disable | L125: DRSS: 1 | M125: SCP – Hiccup Mode: 1 | N125: Negative Current Limit: 0 | O125: Current Limit: 0 | P125: : Enable | R125: DRSS: 1 / SCP – Hiccup Mode: 1 / Negative Current Limit: 0 / Current Limit: 0
A126: 5 | B126: 2.7 | C126: 0 | D126: 0 | E126: 1 | F126: 0 | G126: Disable | H126: Disable | I126: Enable | J126: Disable | L126: DRSS: 0 | M126: SCP – Hiccup Mode: 0 | N126: Negative Current Limit: 1 | O126: Current Limit: 0 | P126: : Disable | R126: DRSS: 0 / SCP – Hiccup Mode: 0 / Negative Current Limit: 1 / Current Limit: 0
A127: 6 | B127: 3.8 | C127: 1 | D127: 0 | E127: 1 | F127: 0 | G127: Enable | H127: Disable | I127: Enable | J127: Disable | L127: DRSS: 1 | M127: SCP – Hiccup Mode: 0 | N127: Negative Current Limit: 1 | O127: Current Limit: 0 | P127: : Enable | R127: DRSS: 1 / SCP – Hiccup Mode: 0 / Negative Current Limit: 1 / Current Limit: 0
A128: 7 | B128: 5.1 | C128: 0 | D128: 1 | E128: 1 | F128: 0 | G128: Disable | H128: Enable | I128: Enable | J128: Disable | L128: DRSS: 0 | M128: SCP – Hiccup Mode: 1 | N128: Negative Current Limit: 1 | O128: Current Limit: 0 | P128: : Disable | R128: DRSS: 0 / SCP – Hiccup Mode: 1 / Negative Current Limit: 1 / Current Limit: 0
A129: 8 | B129: 6.5 | C129: 1 | D129: 1 | E129: 1 | F129: 0 | G129: Enable | H129: Enable | I129: Enable | J129: Disable | L129: DRSS: 1 | M129: SCP – Hiccup Mode: 1 | N129: Negative Current Limit: 1 | O129: Current Limit: 0 | P129: : Enable | R129: DRSS: 1 / SCP – Hiccup Mode: 1 / Negative Current Limit: 1 / Current Limit: 0
A130: 9 | B130: 8.3 | C130: 0 | D130: 0 | E130: 0 | F130: 1 | G130: Disable | H130: Disable | I130: Disable | J130: Enable | L130: DRSS: 0 | M130: SCP – Hiccup Mode: 0 | N130: Negative Current Limit: 0 | O130: Current Limit: 1 | P130: : Disable | R130: DRSS: 0 / SCP – Hiccup Mode: 0 / Negative Current Limit: 0 / Current Limit: 1
A131: 10 | B131: 10.5 | C131: 1 | D131: 0 | E131: 0 | F131: 1 | G131: Enable | H131: Disable | I131: Disable | J131: Enable | L131: DRSS: 1 | M131: SCP – Hiccup Mode: 0 | N131: Negative Current Limit: 0 | O131: Current Limit: 1 | P131: : Enable | R131: DRSS: 1 / SCP – Hiccup Mode: 0 / Negative Current Limit: 0 / Current Limit: 1
A132: 11 | B132: 13.3 | C132: 0 | D132: 1 | E132: 0 | F132: 1 | G132: Disable | H132: Enable | I132: Disable | J132: Enable | L132: DRSS: 0 | M132: SCP – Hiccup Mode: 1 | N132: Negative Current Limit: 0 | O132: Current Limit: 1 | P132: : Disable | R132: DRSS: 0 / SCP – Hiccup Mode: 1 / Negative Current Limit: 0 / Current Limit: 1
A133: 12 | B133: 16.2 | C133: 1 | D133: 1 | E133: 0 | F133: 1 | G133: Enable | H133: Enable | I133: Disable | J133: Enable | L133: DRSS: 1 | M133: SCP – Hiccup Mode: 1 | N133: Negative Current Limit: 0 | O133: Current Limit: 1 | P133: : Enable | R133: DRSS: 1 / SCP – Hiccup Mode: 1 / Negative Current Limit: 0 / Current Limit: 1
A134: 13 | B134: 20.5 | C134: 0 | D134: 0 | E134: 1 | F134: 1 | G134: Disable | H134: Disable | I134: Enable | J134: Enable | L134: DRSS: 0 | M134: SCP – Hiccup Mode: 0 | N134: Negative Current Limit: 1 | O134: Current Limit: 1 | P134: : Disable | R134: DRSS: 0 / SCP – Hiccup Mode: 0 / Negative Current Limit: 1 / Current Limit: 1
A135: 14 | B135: 24.9 | C135: 1 | D135: 0 | E135: 1 | F135: 1 | G135: Enable | H135: Disable | I135: Enable | J135: Enable | L135: DRSS: 1 | M135: SCP – Hiccup Mode: 0 | N135: Negative Current Limit: 1 | O135: Current Limit: 1 | P135: : Enable | R135: DRSS: 1 / SCP – Hiccup Mode: 0 / Negative Current Limit: 1 / Current Limit: 1
A136: 15 | B136: 30.1 | C136: 0 | D136: 1 | E136: 1 | F136: 1 | G136: Disable | H136: Enable | I136: Enable | J136: Enable | L136: DRSS: 0 | M136: SCP – Hiccup Mode: 1 | N136: Negative Current Limit: 1 | O136: Current Limit: 1 | P136: : Disable | R136: DRSS: 0 / SCP – Hiccup Mode: 1 / Negative Current Limit: 1 / Current Limit: 1
A137: 16 | B137: 36.5 | C137: 1 | D137: 1 | E137: 1 | F137: 1 | G137: Enable | H137: Enable | I137: Enable | J137: Enable | L137: DRSS: 1 | M137: SCP – Hiccup Mode: 1 | N137: Negative Current Limit: 1 | O137: Current Limit: 1 | P137: : Enable | R137: DRSS: 1 / SCP – Hiccup Mode: 1 / Negative Current Limit: 1 / Current Limit: 1
C139: 0 | D139: 1 | E139: 2 | F139: 3
C140: =CONCATENATE(C121,": off") -> DRSS: off | D140: =CONCATENATE(D121,": off") -> SCP – Hiccup Mode: off | E140: =CONCATENATE(E121,": off") -> Negative Current Limit: off | F140: IMON_LIMIT: off
C141: =CONCATENATE(C121,": on") -> DRSS: on | D141: =CONCATENATE(D121,": on") -> SCP – Hiccup Mode: on | E141: =CONCATENATE(E121,": on") -> Negative Current Limit: on | F141: ILIMIT: on (external)
F142: ILIMIT: on (ILIM_DAC)
B145: CFG Setting | C145: 1 | D145: 1 | E145: 1 | F145: 2 | G145: Calc Setting | H145: =CONCATENATE("R_",A120) -> R_CFG4 | J145: This cell give 1 for disable and 2 for enable
C146: =(C145-1)*2^C139 -> 0 | D146: =(D145-1)*2^D139 -> 0 | E146: =(E145-1)*2^E139 -> 0 | F146: =(IF(F145>2,1,0)*2^F139) -> 0 | G146: =SUM(C146:F146)+1 -> 1 | H146: =INDEX(B122:B137,G146) -> 0 | J146: =F145 -> 2 | K146: Decoded IMON/Limiter
A151: CDC Gain
A152: 0.25
A153: 0.5
A154: 1
A155: 2
A159: CDC disabled | B159: 2
A160: CDC enabled
A162: Internal FB disabled | B162: 2
A163: Int. FB (SEL_DIV20 = 0)
A164: Int. FB (SEL_DIV20 = 1)

Sheet Stability Calculations (hidden)
B2: Divider Network & EA Poles/Zeros | E2: Modulator | J2: Power Stage Poles/Zeros | M2: Complex Pole Pair | P2: Total System
B3: Afb1 | C3: =Afb -> 0.1 | D3: V/V | E3: Acs | F3: =Acs -> 33.33333333 | G3: A/V | H3: gm | I3: =gm -> 0.0006 | J3: z_ESR | K3: =Fesr -> 319588.2391 | L3: Hz | M3: p3 | N3: =Fsw/2 -> 307500 | O3: Hz | P3: Adc | Q3: =Am*Afb*AEA -> 36238.96669 | R3: V/V | S3: =20*LOG(Adc) -> 91.18351612 | T3: dB
B4: EA zero, z1 | C4: =Fz1_u -> 1854.952717 | D4: Hz | E4: Am | F4: =Am -> 60.39827782 | G4: V/V | J4: p_dom | K4: =Fp_dominant -> 875.352187 | L4: Hz | M4: pterm1 | N4: =Q*PS_Pole2 -> 131355.3638 | P4: Crossover | Q4: =AM8/1000 -> 22.387 | R4: kHz | U4: IL zero, z1 | V4: =1/(2*Pi*RcIL*Cc1IL) -> 
B5: EA pole, p1 | C5: =Fp1_u -> 1.325343572 | D5: Hz | E5: Q | F5: =Q -> 0.4271719147 | J5: z_RHP | K5: =IF(VIN_nom>Vout, 10000000,Frhp) -> 104506.1257 | L5: Hz | M5: pterm2 | N5: =PS_Pole2^2+0.01 -> 9.455625e+10 | P5: Phase Margin | Q5: =AM9 -> 56.82015565 | R5: ° | U5: IL pole, p1 | V5: =1/(2*Pi*(RoEA_IL+RcIL)*Cc1IL) -> 
B6: Aea | C6: =AEA -> 6000 | D6: V/V | E6: mc | F6: =mc -> 2.0824 | P6: radconv | Q6: =180/Pi -> 57.29577951 | U6: AIL | V6: =gm_IL*RoEA_IL -> 10000 | AL6: XOVER SEARCH
B7: EA pole, p2 | C7: =Fp2_u -> 97910.10405 | D7: Hz | E7: k | F7: =k -> 1.2451564 | U7: IL pole, p2 | V7: =1/(2*Pi*RcIL*(Cc2IL+Cbw_IL)) ->  | AL7: System | AN7: Error Amp | AP7: IL Error Amp
AL8: xover | AM8: =SUM(AL12:AL613) -> 22387 | AN8: xover | AO8: =SUM(AN12:AN613) -> 398110 | AP8: xover | AQ8: =SUM(AP12:AP613) ->  | AR8: 0
AL9: phase margin | AM9: =SUM(AM13:AM613) -> 56.82015565 | AN9: phase margin | AO9: =SUM(AO13:AO613) -> -76.44981835 | AP9: phase margin | AQ9: =SUM(AQ13:AQ613) -> 
B10: Freq (Hz) | C10: Power Stage | I10: Error Amplifier | O10: ILimit Amplifier | U10: Sampling Double Pole | W10: System Response | AB10: ERROR AMP Response | AE10: ILimit AMP Response | AG10: EA*5 | AI10: PLANT Response
C11: p_dom | E11: z_ESR | G11: z_RHP | I11: p1 | K11: z1 | M11: p2 | O11: p1 | Q11: z1 | S11: p2 | U11: p3
C12: Gain(V/V) | D12: Phase(rad) | E12: Gain(V/V) | F12: Phase(rad) | G12: Gain(V/V) | H12: Phase(rad) | I12: Gain(V/V) | J12: Phase(rad) | K12: Gain(V/V) | L12: Phase(rad) | M12: Gain(V/V) | N12: Phase(rad) | O12: Gain(V/V) | P12: Phase(rad) | Q12: Gain(V/V) | R12: Phase(rad) | S12: Gain(V/V) | T12: Phase(rad) | U12: Gain(V/V) | V12: Phase(rad) | W12: Loop Gain (dB) | X12: :Loop Phase Margin (°) | Y12: Phase (°) | AB12: Gain(dB) | AC12: Phase(Deg) | AE12: ILimit Gain(dB) | AF12: ILimit Phase(Deg) | AG12: Gain(dB) | AI12: Gain(dB) | AJ12: Phase(Deg)
B13: 1 | C13: =SQRT(1+(B13/PS_Pole1)^2) -> 1.000000653 | D13: =ATAN(B13/PS_Pole1) -> 0.001142396832 | E13: =SQRT(1+(B13/PS_Zero1)^2) -> 1 | F13: =ATAN(B13/PS_Zero1) -> 3.129026283e-06 | G13: =IF(VIN_nom>Vout, 1, SQRT(1+(B13/PS_RHPZ)^2)) -> 1 | H13: =IF(VIN_nom>Vout, 0, -ATAN(B13/PS_RHPZ)) -> -9.568817074e-06 | I13: =SQRT(1+(B13/EA_Pole1)^2) -> 1.252718022 | J13: =ATAN(B13/EA_Pole1) -> 0.6463884883 | K13: =SQRT(1+(B13/EA_Zero1)^2) -> 1.000000145 | L13: =ATAN(B13/EA_Zero1) -> 0.0005390972471 | M13: =SQRT(1+(B13/EA_Pole2)^2) -> 1 | N13: =ATAN(B13/EA_Pole2) -> 1.021345049e-05 | O13: =SQRT(1+(B13/$V$5)^2) ->  | P13: =ATAN(B13/$V$5) ->  | Q13: =SQRT(1+(B13/$V$4)^2) ->  | R13: =ATAN(B13/$V$4) ->  | S13: =SQRT(1+(B13/$V$7)^2) ->  | T13: =ATAN(B13/$V$7) ->  | U13: =SQRT((1-(B13^2/pterm2))^2+(B13/pterm1)^2) -> 1 | V13: =IF((ATAN((B13/pterm1)/(1-B13^2/pterm2))>0),ATAN((B13/pterm1)/(1-B13^2/pterm2)),PI()+ATAN((B13/pterm1)/(1-B13^2/pterm2))) -> 7.612936169e-06 | W13: =20*LOG10(((E13*K13*G13)/(C13*I13*U13*M13))*Adc) -> 89.2264452 | X13: =IF(((F13+L13+H13)-(D13+J13+V13+N13))*radconv<-180,((F13+L13+H13)-(D13+J13+V13+N13))*radconv+180,((F13+L13+H13)-(D13+J13+V13+N13))*radconv) -> -37.07128918 | Y13: =IF(X13>0,X13-180,X13+180) -> 142.9287108 | AB13: =20*LOG10((K13/(I13*M13))*AEA) -> 73.60595976 | AC13: =(L13-(J13+N13))*radconv -> -37.0050295 | AE13: =20*LOG10((Q13/(O13*S13))*AIL) ->  | AF13: =(R13-(P13+T13))*radconv ->  | AI13: =20*LOG10((E13*G13/(C13*U13))*Acs*Am) -> 66.07806035 | AJ13: =(F13+H13-(D13+V13))*radconv -> -0.06625967893 | AL13: =SUM((W14<0)*(W13>0))*B13 -> 0 | AM13: =IF(AL13>0,Y11,0) -> 0 | AN13: =SUM((AB14<0)*(AB13>0))*B13 -> 0 | AO13: =IF(AN13>0,AC13,0) -> 0 | AP13: =SUM((AE14<0)*(AE13>0))*B13 ->  | AQ13: =IF(AP13>0,AE13,0) -> 
B14: 1.0965 | C14: 1.000000785 | D14: 0.001252638016 | E14: 1 | F14: 3.430977319e-06 | G14: 1 | H14: -1.049220792e-05 | I14: 1.297874918 | J14: 0.6911864179 | K14: 1.000000175 | L14: 0.0005911201199 | M14: 1 | N14: 1.119904846e-05 | U14: 1 | V14: 8.34758451e-06 | W14: 88.91885403 | X14: =IF(((F14+L14+H14)-(D14+J14+V14+N14))*radconv<-180,((F14+L14+H14)-(D14+J14+V14+N14))*radconv+180,((F14+L14+H14)-(D14+J14+V14+N14))*radconv) -> -39.64149131 | Y14: =IF(X14>0,X14-180,X14+180) -> 140.3585087 | AB14: 73.29836973 | AC14: -39.56883757 | AI14: 66.0780592 | AJ14: -0.07265373163 | AL14: 0 | AM14: 0 | AN14: 0 | AO14: =IF(AN14>0,AC14,0) -> 0 | AP14: =SUM((AE15<0)*(AE14>0))*B14 ->  | AQ14: =IF(AP14>0,AE14,0) -> 
B15: 1.2023 | C15: 1.000000943 | D15: 0.001373503444 | E15: 1 | F15: 3.7620283e-06 | G15: 1 | H15: -1.150458877e-05 | I15: 1.350163353 | J15: 0.7367573975 | K15: 1.00000021 | L15: 0.0006481565923 | M15: 1 | N15: 1.227963152e-05 | U15: 1 | V15: 9.153033156e-06 | W15: 88.57578343 | X15: =IF(((F15+L15+H15)-(D15+J15+V15+N15))*radconv<-180,((F15+L15+H15)-(D15+J15+V15+N15))*radconv+360,((F15+L15+H15)-(D15+J15+V15+N15))*radconv) -> -42.25632033 | Y15: 137.7436797 | AB15: 72.95530051 | AC15: -42.17665634 | AI15: 66.07805782 | AJ15: -0.07966399672 | AL15: 0 | AM15: 0 | AN15: 0 | AO15: 0
B16: 1.3183 | C16: 1.000001134 | D16: 0.00150602126 | E16: 1 | F16: 4.124995349e-06 | G16: 1 | H16: -1.261457155e-05 | I16: 1.410460632 | J16: 0.7827338273 | K16: 1.000000253 | L16: 0.0007106918501 | M16: 1 | N16: 1.346439178e-05 | U16: 1 | V16: 1.003613375e-05 | W16: 88.19628908 | X16: -44.8947467 | Y16: 135.1052533 | AB16: 72.57580782 | AC16: -44.80739659 | AI16: 66.07805617 | AJ16: -0.08735010703 | AL16: 0 | AM16: 0 | AN16: 0 | AO16: 0
B17: 1.4454 | C17: 1.000001363 | D17: 0.001651219598 | E17: 1 | F17: 4.522694589e-06 | G17: 1 | H17: -1.38307682e-05 | I17: 1.479653993 | J17: 0.8287011161 | K17: 1.000000304 | L17: 0.0007792110788 | M17: 1 | N17: 1.476252133e-05 | U17: 1 | V17: 1.100373794e-05 | W17: 87.7803035 | X17: -47.53304845 | Y17: 132.4669516 | AB17: 72.15982423 | AC17: -47.43727675 | AI17: 66.07805417 | AJ17: -0.09577169509 | AL17: 0 | AM17: 0 | AN17: 0 | AO17: 0
B18: 1.5849 | C18: 1.000001639 | D18: 0.001810583548 | E18: 1 | F18: 4.959193756e-06 | G18: 1 | H18: -1.516561818e-05 | I18: 1.558857071 | J18: 0.8743499939 | K18: 1.000000365 | L18: 0.0008544151018 | M18: 1 | N18: 1.618729768e-05 | U18: 1 | V18: 1.206574253e-05 | W18: 87.3273791 | X18: -50.15355245 | Y18: 129.8464475 | AB18: 71.70690223 | AC18: -50.04853755 | AI18: 66.07805178 | AJ18: -0.1050148969 | AL18: 0 | AM18: 0 | AN18: 0 | AO18: 0
B19: 1.7378 | C19: 1.000001971 | D19: 0.001985255469 | E19: 1 | F19: 5.437621875e-06 | G19: 1 | H19: -1.662869031e-05 | I19: 1.64901918 | J19: 0.9192444695 | K19: 1.000000439 | L19: 0.0009368430127 | M19: 1 | N19: 1.774893426e-05 | U19: 1 | V19: 1.322976047e-05 | W19: 86.83898867 | X19: -52.7313142 | Y19: 127.2686858 | AB19: 71.21851468 | AC19: -52.61616823 | AI19: 66.0780489 | AJ19: -0.1151459701 | AL19: 0 | AM19: 0 | AN19: 0 | AO19: 0
B20: 1.9055 | C20: 1.000002369 | D20: 0.002176834671 | E20: 1 | F20: 5.962359582e-06 | G20: 1 | H20: -1.823338093e-05 | I20: 1.751313069 | J20: 0.9630727205 | K20: 1.000000528 | L20: 0.001027249543 | M20: 1 | N20: 1.94617299e-05 | U20: 1 | V20: 1.450644987e-05 | W20: 86.31622435 | X20: -55.24851794 | Y20: 124.7514821 | AB20: 70.69575382 | AC20: -55.12226026 | AI20: 66.07804544 | AJ20: -0.1262576754 | AL20: 0 | AM20: 0 | AN20: 0 | AO20: 0
B21: 2.0893 | C21: 1.000002848 | D21: 0.002386806206 | E21: 1 | F21: 6.537474613e-06 | G21: 1 | H21: -1.999212951e-05 | I21: 1.86684346 | J21: 1.005502977 | K21: 1.000000634 | L21: 0.001126335511 | M21: 1 | N21: 2.13389621e-05 | U21: 1 | V21: 1.590570754e-05 | W21: 85.76133883 | X21: -57.68620139 | Y21: 122.3137986 | AB21: 70.14087246 | AC21: -57.54776525 | AI21: 66.07804128 | AJ21: -0.138436147 | AL21: 0 | AM21: 0 | AN21: 0 | AO21: 0
B22: 2.2909 | C22: 1.000003425 | D22: 0.002617112065 | E22: 1 | F22: 7.168286312e-06 | G22: 1 | H22: -2.192120303e-05 | I22: 1.996954198 | J22: 1.046316739 | K22: 1.000000763 | L22: 0.001235017375 | M22: 1 | N22: 2.339799372e-05 | U22: 1 | V22: 1.744047547e-05 | W22: 85.17613091 | X22: -60.03190652 | Y22: 119.9680935 | AB22: 69.55566955 | AC22: -59.8801125 | AI22: 66.07803627 | AJ22: -0.1517940213 | AL22: 0 | AM22: 0 | AN22: 0 | AO22: 0
B23: 2.5119 | C23: 1.000004117 | D23: 0.002869579973 | E23: 1 | F23: 7.85980112e-06 | G23: 1 | H23: -2.40359116e-05 | I23: 2.142917261 | J23: 1.085293007 | K23: 1.000000917 | L23: 0.001354157679 | M23: 1 | N23: 2.565516628e-05 | U23: 1 | V23: 1.912293436e-05 | W23: 84.56338026 | X23: -62.27302857 | Y23: 117.7269714 | AB23: 68.94292491 | AC23: -62.10659126 | AI23: 66.07803025 | AJ23: -0.1664373077 | AL23: 0 | AM23: 0 | AN23: 0 | AO23: 0
B24: 2.7542 | C24: 1.00000495 | D24: 0.00314638034 | E24: 1 | F24: 8.617964188e-06 | G24: 1 | H24: -2.635443598e-05 | I24: 2.306189641 | J24: 1.122294873 | K24: 1.000001102 | L24: 0.001484780691 | M24: 1 | N24: 2.812988533e-05 | U24: 1 | V24: 2.09675488e-05 | W24: 83.92558236 | X24: -64.40179154 | Y24: 115.5982085 | AB24: 68.30513424 | AC24: -64.21929965 | AI24: 66.07802302 | AJ24: -0.1824918912 | AL24: 0 | AM24: 0 | AN24: 0 | AO24: 0
B25: 3.02 | C25: 1.000005951 | D25: 0.003450026244 | E25: 1 | F25: 9.449659374e-06 | G25: 1 | H25: -2.889782756e-05 | I25: 2.488426412 | J25: 1.157248731 | K25: 1.000001325 | L25: 0.001628072406 | M25: 1 | N25: 3.084462046e-05 | U25: 1 | V25: 2.299106723e-05 | W25: 83.26497989 | X25: -66.41405726 | Y25: 113.5859427 | AB25: 67.64454047 | AC25: -66.21395373 | AI25: 66.07801432 | AJ25: -0.2001035321 | AL25: 0 | AM25: 0 | AN25: 0 | AO25: 0
B26: 3.3113 | C26: 1.000007155 | D26: 0.003782802231 | E26: 1 | F26: 1.036114473e-05 | G26: 1.000000001 | H26: -3.168522397e-05 | I26: 2.691140071 | J26: 1.190075558 | K26: 1.000001593 | L26: 0.001785110991 | M26: 1.000000001 | N26: 3.381979859e-05 | U26: 1 | V26: 2.520871554e-05 | W26: 82.58474175 | X26: -68.30536992 | Y26: 111.6946301 | AB26: 66.96431278 | AC26: -68.08596519 | AI26: 66.07800387 | AJ26: -0.2194047353 | AL26: 0 | AM26: 0 | AN26: 0 | AO26: 0
B27: 3.6308 | C27: 1.000008602 | D27: 0.004147792434 | E27: 1 | F27: 1.136086863e-05 | G27: 1.000000001 | H27: -3.474246102e-05 | I27: 2.916324441 | J27: 1.220796785 | K27: 1.000001916 | L27: 0.001957351975 | M27: 1.000000001 | N27: 3.708299602e-05 | U27: 1 | V27: 2.764104864e-05 | W27: 81.88674129 | X27: -70.07705453 | Y27: 109.9229455 | AB27: 66.26632489 | AC27: -69.83648014 | AI27: 66.0779913 | AJ27: -0.2405743828 | AL27: 0 | AM27: 0 | AN27: 0 | AO27: 0
B28: 3.9811 | C28: 1.000010342 | D28: 0.004547966648 | E28: 1 | F28: 1.245696653e-05 | G28: 1.000000001 | H28: -3.809441764e-05 | I28: 3.165906494 | J28: 1.249427822 | K28: 1.000002303 | L28: 0.002146196963 | M28: 1.000000001 | N28: 4.066076772e-05 | U28: 1 | V28: 3.030786018e-05 | W28: 81.17348461 | X28: -71.73008741 | Y28: 108.2699126 | AB28: 65.55308333 | AC28: -71.46630269 | AI28: 66.07797619 | AJ28: -0.2637847245 | AL28: 0 | AM28: 0 | AN28: 0 | AO28: 0
B29: 4.3652 | C29: 1.000012434 | D29: 0.004986751482 | E29: 1 | F29: 1.365882553e-05 | G29: 1.000000001 | H29: -4.176980027e-05 | I29: 3.442098427 | J29: 1.27602562 | K29: 1.000002769 | L29: 0.002353263187 | M29: 1.000000001 | N29: 4.458375404e-05 | U29: 1 | V29: 3.323198896e-05 | W29: 80.44696647 | X29: -73.26783947 | Y29: 106.7321605 | AB29: 64.82658335 | AC29: -72.97860496 | AI29: 66.07795802 | AJ29: -0.2892345063 | AL29: 0 | AM29: 0 | AN29: 0 | AO29: 0
B30: 4.7863 | C30: 1.000014949 | D30: 0.005467801843 | E30: 1 | F30: 1.49764585e-05 | G30: 1.000000001 | H30: -4.579922913e-05 | I30: 3.747260399 | J30: 1.300661242 | K30: 1.000003329 | L30: 0.002580275678 | M30: 1.000000001 | N30: 4.888463803e-05 | U30: 1 | V30: 3.643779638e-05 | W30: 79.70913772 | X30: -74.69449743 | Y30: 105.3055026 | AB30: 64.08877644 | AC30: -74.37736171 | AI30: 66.07793618 | AJ30: -0.3171357154 | AL30: 0 | AM30: 0 | AN30: 0 | AO30: 0
B31: 5.2481 | C31: 1.000017972 | D31: 0.005995343587 | E31: 1 | F31: 1.642144283e-05 | G31: 1.000000001 | H31: -5.021810884e-05 | I31: 4.084120845 | J31: 1.323430586 | K31: 1.000004002 | L31: 0.002829228988 | M31: 1.000000001 | N31: 5.360120946e-05 | U31: 1.000000001 | V31: 3.99534503e-05 | W31: 78.96142309 | X31: -76.01568876 | Y31: 103.9843112 | AB31: 63.34108808 | AC31: -75.6679553 | AI31: 66.07790992 | AJ31: -0.3477334546 | AL31: 0 | AM31: 0 | AN31: 0 | AO31: 0
B32: 5.7544 | C32: 1.000021607 | D32: 0.006573716494 | E32: 1 | F32: 1.800566884e-05 | G32: 1.000000002 | H32: -5.506280092e-05 | I32: 4.455488724 | J32: 1.344425661 | K32: 1.000004812 | L32: 0.003102171548 | M32: 1.000000002 | N32: 5.877227942e-05 | U32: 1.000000001 | V32: 4.380787988e-05 | W32: 78.20546325 | X32: -77.23682173 | Y32: 102.7631783 | AB32: 62.58515981 | AC32: -76.8555423 | AI32: 66.07787835 | AJ32: -0.3812794347 | AL32: 0 | AM32: 0 | AN32: 0 | AO32: 0
B33: 6.3096 | C33: 1.000025978 | D33: 0.007207945353 | E33: 1 | F33: 1.974290423e-05 | G33: 1.000000002 | H33: -6.037540814e-05 | I33: 4.864620158 | J33: 1.363754409 | K33: 1.000005785 | L33: 0.003401475202 | M33: 1.000000002 | N33: 6.444278711e-05 | U33: 1.000000001 | V33: 4.803458204e-05 | W33: 77.44236202 | X33: -78.36423918 | Y33: 101.6357608 | AB33: 61.82209654 | AC33: -77.94617408 | AI33: 66.07784039 | AJ33: -0.4180650975 | AL33: 0 | AM33: 0 | AN33: 0 | AO33: 0
B34: 6.9183 | C34: 1.000031232 | D34: 0.007903282883 | E34: 1 | F34: 2.164754253e-05 | G34: 1.000000002 | H34: -6.619994707e-05 | I34: 5.314927247 | J34: 1.381518845 | K34: 1.000006955 | L34: 0.003729619553 | M34: 1.000000002 | N34: 7.065971439e-05 | U34: 1.000000001 | V34: 5.266857628e-05 | W34: 76.67335877 | X34: -79.40395128 | Y34: 100.5960487 | AB34: 61.05313892 | AC34: -78.94555617 | AI34: 66.07779476 | AJ34: -0.4583951054 | AL34: 0 | AM34: 0 | AN34: 0 | AO34: 0
B35: 7.5858 | C35: 1.000037549 | D35: 0.008665780727 | E35: 1 | F35: 2.373616757e-05 | G35: 1.000000003 | H35: -7.258713243e-05 | I35: 5.810348157 | J35: 1.397828417 | K35: 1.000008362 | L35: 0.004089461496 | M35: 1.000000003 | N35: 7.747719256e-05 | U35: 1.000000001 | V35: 5.775021117e-05 | W35: 75.89921947 | X35: -80.36241947 | Y35: 99.63758053 | AB35: 60.27905449 | AC35: -79.85979901 | AI35: 66.07773989 | AJ35: -0.5026204593 | AL35: 0 | AM35: 0 | AN35: 0 | AO35: 0
B36: 8.3176 | C36: 1.000045143 | D36: 0.009501718063 | E36: 1 | F36: 2.602598901e-05 | G36: 1.000000003 | H36: -7.958959273e-05 | I36: 6.354978292 | J36: 1.412782641 | K36: 1.000010053 | L36: 0.004483965645 | M36: 1.000000004 | N36: 8.495139558e-05 | U36: 1.000000001 | V36: 6.332135784e-05 | W36: 75.1209299 | X36: -81.24554312 | Y36: 98.75445688 | AB36: 59.50083087 | AC36: -80.69443776 | AI36: 66.07767394 | AJ36: -0.5511053581 | AL36: 0 | AM36: 0 | AN36: 0 | AO36: 0
B37: 9.1201 | C37: 1.000054274 | D37: 0.01041840091 | E37: 1 | F37: 2.85370326e-05 | G37: 1.000000004 | H37: -8.726856838e-05 | I37: 6.953590985 | J37: 1.426485366 | K37: 1.000012087 | L37: 0.004916581664 | M37: 1.000000004 | N37: 9.314768953e-05 | U37: 1.000000002 | V37: 6.943073911e-05 | W37: 74.33896685 | X37: -82.05950218 | Y37: 97.94049782 | AB37: 58.71894712 | AC37: -81.45522862 | AI37: 66.07759463 | AJ37: -0.604273559 | AL37: 0 | AM37: 0 | AN37: 0 | AO37: 0
B38: 10 | C38: 1.000065251 | D38: 0.01142347635 | E38: 1 | F38: 3.129026282e-05 | G38: 1.000000005 | H38: -9.568817045e-05 | I38: 7.611192047 | J38: 1.439029897 | K38: 1.000014531 | L38: 0.005390920769 | M38: 1.000000005 | N38: 0.0001021345045 | U38: 1.000000002 | V38: 7.612936163e-05 | W38: 73.55402196 | X38: -82.80988315 | Y38: 97.19011685 | AB38: 57.93409757 | AC38: -82.14731455 | AI38: 66.07749929 | AJ38: -0.6625686019 | AL38: 0 | AM38: 0 | AN38: 0 | AO38: 0
B39: 10.965 | C39: 1.000078452 | D39: 0.0125257316 | E39: 1.000000001 | F39: 3.430977318e-05 | G39: 1.000000006 | H39: -0.0001049220788 | I39: 8.333542476 | J39: 1.450509478 | K39: 1.000017471 | L39: 0.005911133039 | M39: 1.000000006 | N39: 0.0001119904841 | U39: 1.000000002 | V39: 8.347584501e-05 | W39: 72.76639338 | X39: -83.50230499 | Y39: 96.49769501 | AB39: 57.14658364 | AC39: -82.77580483 | AI39: 66.07738465 | AJ39: -0.7265001565 | AL39: 0 | AM39: 0 | AN39: 0 | AO39: 0
B40: 12.023 | C40: 1.000094321 | D40: 0.01373417947 | E40: 1.000000001 | F40: 3.762028298e-05 | G40: 1.000000007 | H40: -0.0001150458872 | I40: 9.126560579 | J40: 1.461005588 | K40: 1.000021005 | L40: 0.006481476067 | M40: 1.000000008 | N40: 0.0001227963146 | U40: 1.000000003 | V40: 9.153033145e-05 | W40: 71.9767365 | X40: -84.1417195 | Y40: 95.8582805 | AB40: 56.35706457 | AC40: -83.34512852 | AI40: 66.07724683 | AJ40: -0.7965909806 | AL40: 0 | AM40: 0 | AN40: 0 | AO40: 0
B41: 13.183 | C41: 1.000113399 | D41: 0.01505908553 | E41: 1.000000001 | F41: 4.124995347e-05 | G41: 1.000000008 | H41: -0.0001261457148 | I41: 9.996995518 | J41: 1.4705987 | K41: 1.000025254 | L41: 0.007106800048 | M41: 1.000000009 | N41: 0.000134643917 | U41: 1.000000003 | V41: 0.0001003613374 | W41: 71.18536058 | X41: -84.73306026 | Y41: 95.26693974 | AB41: 55.56585433 | AC41: -83.85962377 | AI41: 66.07708115 | AJ41: -0.8734364942 | AL41: 0 | AM41: 0 | AN41: 0 | AO41: 0
B42: 14.454 | C42: 1.000136317 | D42: 0.01651071053 | E42: 1.000000001 | F42: 4.522694586e-05 | G42: 1.00000001 | H42: -0.0001383076811 | I42: 10.95160235 | J42: 1.479358123 | K42: 1.000030358 | L42: 0.007791954666 | M42: 1.000000011 | N42: 0.0001476252123 | U42: 1.000000004 | V42: 0.0001100373792 | W42: 70.39304248 | X42: -85.28062084 | Y42: 94.71937916 | AB42: 54.77373527 | AC42: -84.322989 | AI42: 66.07688212 | AJ42: -0.9576318409 | AL42: 0 | AM42: 0 | AN42: 0 | AO42: 0
B43: 15.849 | C43: 1.000163898 | D43: 0.01810387715 | E43: 1.000000001 | F43: 4.959193752e-05 | G43: 1.000000011 | H43: -0.0001516561806 | I43: 12.00014737 | J43: 1.487367267 | K43: 1.000036501 | L43: 0.008543945192 | M43: 1.000000013 | N43: 0.0001618729754 | U43: 1.000000005 | V43: 0.0001206574251 | W43: 69.59867804 | X43: -85.7896464 | Y43: 94.2103536 | AB43: 53.97961034 | AC43: -84.73960963 | AI43: 66.07664261 | AJ43: -1.050036765 | AL43: 0 | AM43: 0 | AN43: 0 | AO43: 0
B44: 17.378 | C44: 1.000197043 | D44: 0.01984997326 | E44: 1.000000001 | F44: 5.437621869e-05 | G44: 1.000000014 | H44: -0.0001662869016 | I44: 13.15014926 | J44: 1.494678079 | K44: 1.000043883 | L44: 0.009368158801 | M44: 1.000000016 | N44: 0.0001774893407 | U44: 1.000000006 | V44: 0.0001322976044 | W44: 68.80357225 | X44: -86.26347089 | Y44: 93.73652911 | AB44: 53.18479238 | AC44: -85.11215909 | AI44: 66.07635477 | AJ44: -1.151311795 | AL44: 0 | AM44: 0 | AN44: 0 | AO44: 0
B45: 19.055 | C45: 1.000236903 | D45: 0.02176494367 | E45: 1.000000002 | F45: 5.962359575e-05 | G45: 1.000000017 | H45: -0.0001823338073 | I45: 14.41213886 | J45: 1.501354577 | K45: 1.000052761 | L45: 0.01027213773 | M45: 1.000000019 | N45: 0.0001946172966 | U45: 1.000000007 | V45: 0.0001450644982 | W45: 68.00734809 | X45: -86.70626318 | Y45: 93.29373682 | AB45: 52.38891435 | AC45: -85.44388141 | AI45: 66.07600865 | AJ45: -1.262381774 | AL45: 0 | AM45: =IF(AL45>0,Y43,0) -> 0 | AN45: 0 | AO45: 0
B46: 20.893 | C46: 1.000284803 | D46: 0.02386357649 | E46: 1.000000002 | F46: 6.537474604e-05 | G46: 1.00000002 | H46: -0.0001999212925 | I46: 15.7958998 | J46: 1.507446395 | K46: 1.00006343 | L46: 0.01126288361 | M46: 1.000000023 | N46: 0.0002133896178 | U46: 1.000000008 | V46: 0.0001590570748 | W46: 67.21070615 | X46: -87.12133134 | Y46: 92.87866866 | AB46: 51.59268833 | AC46: -85.73722688 | AI46: 66.07559272 | AJ46: -1.384104465 | AL46: 0 | AM46: 0 | AN46: 0 | AO46: 0
B47: 22.909 | C47: 1.000342407 | D47: 0.02616520771 | E47: 1.000000003 | F47: 7.168286299e-05 | G47: 1.000000024 | H47: -0.0002192120268 | I47: 17.31423135 | J47: 1.513008212 | K47: 1.000076261 | L47: 0.01234955218 | M47: 1.000000027 | N47: 0.000233979933 | U47: 1.00000001 | V47: 0.0001744047539 | W47: 66.41314047 | X47: -87.51241517 | Y47: 92.48758483 | AB47: 50.79562281 | AC47: -85.99481374 | AI47: 66.07509256 | AJ47: -1.517601426 | AL47: 0 | AM47: 0 | AN47: 0 | AO47: 0
B48: 25.119 | C48: 1.000411642 | D48: 0.02868800581 | E48: 1.000000003 | F48: 7.859801104e-05 | G48: 1.000000029 | H48: -0.0002403591115 | I48: 18.97918435 | J48: 1.518082614 | K48: 1.000091683 | L48: 0.01354075743 | M48: 1.000000033 | N48: 0.0002565516572 | U48: 1.000000012 | V48: 0.0001912293426 | W48: 65.61518669 | X48: -87.88252433 | Y48: 92.11747567 | AB48: 49.99827015 | AC48: -86.21859781 | AI48: 66.07449145 | AJ48: -1.663926518 | AL48: 0 | AM48: 0 | AN48: 0 | AO48: 0
B49: 27.542 | C49: 1.000494866 | D49: 0.03145353053 | E49: 1.000000004 | F49: 8.617964167e-05 | G49: 1.000000035 | H49: -0.0002635443538 | I49: 20.80507308 | J49: 1.5227126 | K49: 1.000110223 | L49: 0.01484672686 | M49: 1.00000004 | N49: 0.0002812988459 | U49: 1.000000014 | V49: 0.0002096754866 | W49: 64.81679111 | X49: -88.23479817 | Y49: 91.76520183 | AB49: 49.20059708 | AC49: -86.41046785 | AI49: 66.07376894 | AJ49: -1.82433032 | AL49: 0 | AM49: 0 | AN49: 0 | AO49: 0
B50: 30.2 | C50: 1.000594962 | D50: 0.03448672074 | E50: 1.000000004 | F50: 9.449659346e-05 | G50: 1.000000042 | H50: -0.0002889782676 | I50: 22.80847651 | J50: 1.526938919 | K50: 1.000132522 | L50: 0.0162793002 | M50: 1.000000048 | N50: 0.000308446195 | U50: 1.000000017 | V50: 0.0002299106705 | W50: 64.01757517 | X50: -88.57235255 | Y50: 91.42764745 | AB50: 48.40225004 | AC50: -86.57209312 | AI50: 66.07290003 | AJ50: -2.000259438 | AL50: 0 | AM50: 0 | AN50: 0 | AO50: 0
B51: 33.113 | C51: 1.000715231 | D51: 0.03781017451 | E51: 1.000000005 | F51: 0.0001036114469 | G51: 1.00000005 | H51: -0.0003168522292 | I51: 25.00446937 | J51: 1.530792808 | K51: 1.000159319 | L51: 0.01784923307 | M51: 1.000000057 | N51: 0.0003381979731 | U51: 1.00000002 | V51: 0.000252087153 | W51: 63.2183366 | X51: -88.89768354 | Y51: 91.10231646 | AB51: 47.60405537 | AC51: -86.70465879 | AI51: 66.07185613 | AJ51: -2.193024749 | AL51: 0 | AM51: 0 | AN51: 0 | AO51: 0
B52: 36.308 | C52: 1.000859849 | D52: 0.04145439986 | E52: 1.000000006 | F52: 0.0001136086858 | G52: 1.00000006 | H52: -0.0003474245964 | I52: 27.41340592 | J52: 1.534309729 | K52: 1.000191543 | L52: 0.01957104562 | M52: 1.000000069 | N52: 0.0003708299433 | U52: 1.000000024 | V52: 0.0002764104833 | W52: 62.41845417 | X52: -89.21377659 | Y52: 90.78622341 | AB52: 46.80542804 | AC52: -86.80938062 | AI52: 66.07060104 | AJ52: -2.404395973 | AL52: 0 | AM52: 0 | AN52: 0 | AO52: 0
B53: 39.811 | C53: 1.00103368 | D53: 0.04544866154 | E53: 1.000000008 | F53: 0.0001245696647 | G53: 1.000000073 | H53: -0.0003809441581 | I53: 30.05488967 | J53: 1.537517728 | K53: 1.000230282 | L53: 0.02145870824 | M53: 1.000000083 | N53: 0.000406607655 | U53: 1.000000029 | V53: 0.0003030785976 | W53: 61.61823927 | X53: -89.52315105 | Y53: 90.47684895 | AB53: 46.00672151 | AC53: -86.88708025 | AI53: 66.06909267 | AJ53: -2.636070792 | AL53: 0 | AM53: 0 | AN53: 0 | AO53: 0
B54: 43.652 | C54: 1.001242633 | D54: 0.0498266524 | E54: 1.000000009 | F54: 0.0001365882545 | G54: 1.000000087 | H54: -0.0004176979786 | I54: 32.95154257 | J54: 1.540444074 | K54: 1.000276855 | L54: 0.02352833273 | M54: 1.000000099 | N54: 0.0004458375112 | U54: 1.000000035 | V54: 0.0003323198841 | W54: 60.81761851 | X54: -89.82841826 | Y54: 90.17158174 | AB54: 45.20791354 | AC54: -86.93841444 | AI54: 66.06727988 | AJ54: -2.890003817 | AL54: 0 | AM54: 0 | AN54: 0 | AO54: 0
B55: 47.863 | C55: 1.001493757 | D55: 0.05462416922 | E55: 1.000000011 | F55: 0.0001497645839 | G55: 1.000000105 | H55: -0.0004579922596 | I55: 36.12749714 | J55: 1.543113043 | K55: 1.000332837 | L55: 0.02579708995 | M55: 1.000000119 | N55: 0.0004888463418 | U55: 1.000000042 | V55: 0.0003643779566 | W55: 60.01668379 | X55: -90.13208098 | Y55: 89.86791902 | AB55: 44.40915697 | AC55: -86.96380916 | AI55: 66.06510173 | AJ55: -3.16827182 | AL55: 0 | AM55: 0 | AN55: 0 | AO55: 0
B56: 52.481 | C56: 1.001795638 | D56: 0.05988247365 | E56: 1.000000013 | F56: 0.0001642144269 | G56: 1.000000126 | H56: -0.0005021810467 | I56: 39.61065901 | J56: 1.545547914 | K56: 1.000400149 | L56: 0.02828482004 | M56: 1.000000144 | N56: 0.0005360120437 | U56: 1.000000051 | V56: 0.0003995344935 | W56: 59.21516651 | X56: -90.43675165 | Y56: 89.56324835 | AB56: 43.61025735 | AC56: -86.96348294 | AI56: 66.06248406 | AJ56: -3.473268708 | AL56: 0 | AM56: 0 | AN56: 0 | AO56: 0
B57: 57.544 | C57: 1.00215842 | D57: 0.06564366092 | E57: 1.000000016 | F57: 0.0001800566865 | G57: 1.000000152 | H57: -0.0005506279541 | I57: 43.42969004 | J57: 1.547768569 | K57: 1.000481061 | L57: 0.03101186942 | M57: 1.000000173 | N57: 0.0005877227272 | U57: 1.000000061 | V57: 0.0004380787863 | W57: 58.41323079 | X57: -90.74486842 | Y57: 89.25513158 | AB57: 42.81146635 | AC57: -86.93743146 | AI57: 66.05933935 | AJ57: -3.807436958 | AL57: 0 | AM57: 0 | AN57: 0 | AO57: 0
B58: 63.096 | C58: 1.002594448 | D58: 0.07195625474 | E58: 1.000000019 | F58: 0.0001974290398 | G58: 1.000000182 | H58: -0.0006037540088 | I58: 47.61777954 | J58: 1.549794224 | K58: 1.000578339 | L58: 0.03400177375 | M58: 1.000000208 | N58: 0.0006444277828 | U58: 1.000000073 | V58: 0.0004803458038 | W58: 57.61064866 | X58: -91.05902519 | Y58: 88.94097481 | AB58: 42.01266234 | AC58: -86.88543299 | AI58: 66.05556122 | AJ58: -4.173592199 | AL58: 0 | AM58: 0 | AN58: 0 | AO58: 0
B59: 69.183 | C59: 1.003118362 | D59: 0.07887052682 | E59: 1.000000023 | F59: 0.000216475422 | G59: 1.000000219 | H59: -0.0006619993749 | I59: 52.20962712 | J59: 1.5516416 | K59: 1.000695268 | L59: 0.03727908956 | M59: 1.00000025 | N59: 0.0007065970275 | U59: 1.000000088 | V59: 0.000526685741 | W59: 56.80749678 | X59: -91.38171734 | Y59: 88.61828266 | AB59: 41.21404793 | AC59: -86.80706552 | AI59: 66.05102375 | AJ59: -4.574651827 | AL59: 0 | AM59: 0 | AN59: 0 | AO59: 0
B60: 75.858 | C60: 1.003747952 | D60: 0.08644401144 | E60: 1.000000028 | F60: 0.0002373616713 | G60: 1.000000263 | H60: -0.0007258711981 | I60: 57.24521439 | J60: 1.553326729 | K60: 1.000835845 | L60: 0.04087206843 | M60: 1.0000003 | N60: 0.0007747717721 | U60: 1.000000106 | V60: 0.0005775020829 | W60: 56.00349498 | X60: -91.7156149 | Y60: 88.2843851 | AB60: 40.4154957 | AC60: -86.70165991 | AI60: 66.04557418 | AJ60: -5.013954986 | AL60: 0 | AM60: 0 | AN60: 0 | AO60: 0
B61: 83.176 | C61: 1.00450426 | D61: 0.09473560691 | E61: 1.000000034 | F61: 0.0002602598842 | G61: 1.000000317 | H61: -0.0007958957609 | I61: 62.76603309 | J61: 1.554863469 | K61: 1.001004806 | L61: 0.04480994111 | M61: 1.000000361 | N61: 0.0008495137534 | U61: 1.000000127 | V61: 0.0006332135405 | W61: 55.19870889 | X61: -92.0632881 | Y61: 87.9367119 | AB61: 39.6172515 | AC61: -86.56836751 | AI61: 66.0390323 | AJ61: -5.494920584 | AL61: 0 | AM61: 0 | AN61: 0 | AO61: 0
B62: 91.201 | C62: 1.005412897 | D62: 0.1038132259 | E62: 1.000000041 | F62: 0.0002853703183 | G62: 1.000000381 | H62: -0.0008726854644 | I62: 68.82036587 | J62: 1.556265233 | K62: 1.001207929 | L62: 0.04912665339 | M62: 1.000000434 | N62: 0.0009314766286 | U62: 1.000000153 | V62: 0.0006943073411 | W62: 54.3927717 | X62: -92.42754069 | Y62: 87.57245931 | AB62: 38.8191673 | AC62: -86.40604943 | AI62: 66.03117931 | AJ62: -6.02149126 | AL62: 0 | AM62: 0 | AN62: 0 | AO62: 0
B63: 100 | C63: 1.006504206 | D63: 0.1137466183 | E63: 1.000000049 | F63: 0.0003129026181 | G63: 1.000000458 | H63: -0.0009568814154 | I63: 75.45875984 | J63: 1.557543667 | K63: 1.001452075 | L63: 0.0538575956 | M63: 1.000000522 | N63: 0.001021344694 | U63: 1.000000184 | V63: 0.0007612935504 | W63: 53.58561266 | X63: -92.81110168 | Y63: 87.18889832 | AB63: 38.02143063 | AC63: -86.21338434 | AI63: 66.02175694 | AJ63: -6.597717338 | AL63: 0 | AM63: 0 | AN63: 0 | AO63: 0
B64: 109.65 | C64: 1.007814981 | D64: 0.1246147937 | E64: 1.000000059 | F64: 0.0003430977185 | G64: 1.00000055 | H64: -0.001049220407 | I64: 82.73930759 | J64: 1.558709879 | K64: 1.001745592 | L64: 0.05904331252 | M64: 1.000000627 | N64: 0.001119904378 | U64: 1.000000221 | V64: 0.0008347583632 | W64: 52.776809 | X64: -93.21691844 | Y64: 86.78308156 | AB64: 37.22393072 | AC64: -85.98873071 | AI64: 66.01045319 | AJ64: -7.228187724 | AL64: 0 | AM64: 0 | AN64: 0 | AO64: 0
B65: 120.23 | C65: 1.009388498 | D65: 0.1364963657 | E65: 1.000000071 | F65: 0.0003762028123 | G65: 1.000000662 | H65: -0.001150458369 | I65: 90.72161154 | J65: 1.559773372 | K65: 1.002098334 | L65: 0.06472513133 | M65: 1.000000754 | N65: 0.001227962535 | U65: 1.000000266 | V65: 0.0009153032 | W65: 51.96633826 | X65: -93.64778167 | Y65: 86.35221833 | AB65: 36.42701014 | AC65: -85.73031141 | AI65: 65.99690303 | AJ65: -7.917470258 | AL65: 0 | AM65: 0 | AN65: 0 | AO65: 0
B66: 131.83 | C66: 1.011276933 | D66: 0.1494788831 | E66: 1.000000085 | F66: 0.0004124995115 | G66: 1.000000796 | H66: -0.001261456486 | I66: 99.47357407 | J66: 1.560743236 | K66: 1.002522235 | L66: 0.07094990545 | M66: 1.000000906 | N66: 0.001346438364 | U66: 1.00000032 | V66: 0.001003613223 | W66: 51.15383692 | X66: -94.10666902 | Y66: 85.89333098 | AB66: 35.63074296 | AC66: -85.43601544 | AI66: 65.98066887 | AJ66: -8.670653582 | AL66: 0 | AM66: 0 | AN66: 0 | AO66: 0
B67: 144.54 | C67: 1.013540977 | D67: 0.16364549 | E67: 1.000000102 | F67: 0.0004522694281 | G67: 1.000000956 | H67: -0.001383075938 | I67: 109.0630982 | J67: 1.561627194 | K67: 1.003031256 | L67: 0.07776399109 | M67: 1.00000109 | N67: 0.001476251061 | U67: 1.000000384 | V67: 0.001100373593 | W67: 50.339419 | X67: -94.59625583 | Y67: 85.40374417 | AB67: 34.83574826 | AC67: -85.10368187 | AI67: 65.96124564 | AJ67: -9.492573962 | AL67: 0 | AM67: 0 | AN67: 0 | AO67: 0
B68: 158.49 | C68: 1.016258923 | D68: 0.1791180805 | E68: 1.000000123 | F68: 0.0004959193349 | G68: 1.00000115 | H68: -0.001516560655 | I68: 119.5882673 | J68: 1.562434205 | K68: 1.00364349 | L68: 0.08523452196 | M68: 1.00000131 | N68: 0.001618728354 | U68: 1.000000462 | V68: 0.001206573989 | W68: 49.52124231 | X68: -95.12037373 | Y68: 84.87962627 | AB68: 34.0408316 | AC68: -84.73005364 | AI68: 65.93798562 | AJ68: -10.39032009 | AL68: 0 | AM68: 0 | AN68: 0 | AO68: 0
B69: 173.78 | C69: 1.019515815 | D69: 0.1959776663 | E69: 1.000000148 | F69: 0.0005437621339 | G69: 1.000001383 | H69: -0.001662867498 | I69: 131.1245307 | J69: 1.563169915 | K69: 1.00437879 | L69: 0.0934116816 | M69: 1.000001575 | N69: 0.001774891562 | U69: 1.000000556 | V69: 0.001322975698 | W69: 48.69990328 | X69: -95.68125156 | Y69: 84.31874844 | AB69: 33.24728305 | AC69: -84.31263746 | AI69: 65.91019514 | AJ69: -11.3686141 | AL69: 0 | AM69: 0 | AN69: 0 | AO69: 0
B70: 190.55 | C70: 1.023418898 | D70: 0.2143399735 | E70: 1.000000178 | F70: 0.0005962358876 | G70: 1.000001662 | H70: -0.001823336073 | I70: 143.7775179 | J70: 1.56384108 | K70: 1.005262366 | L70: 0.1023659285 | M70: 1.000001894 | N70: 0.001946170533 | U70: 1.000000668 | V70: 0.001450644527 | W70: 47.87421004 | X70: -96.28206475 | Y70: 83.71793525 | AB70: 32.4547774 | AC70: -83.84786542 | AI70: 65.87700755 | AJ70: -12.43419933 | AL70: 0 | AM70: 0 | AN70: 0 | AO70: 0
B71: 208.93 | C71: 1.028089809 | D71: 0.2342975144 | E71: 1.000000214 | F71: 0.0006537473682 | G71: 1.000001998 | H71: -0.001999210288 | I71: 157.6453141 | J71: 1.56445293 | K71: 1.006323173 | L71: 0.1121608895 | M71: 1.000002277 | N71: 0.002133892972 | U71: 1.000000803 | V71: 0.001590570147 | W71: 47.04401564 | X71: -96.92494866 | Y71: 83.07505134 | AB71: 31.66413338 | AC71: -83.33246763 | AI71: 65.83745717 | AJ71: -13.59248103 | AL71: 0 | AM71: 0 | AN71: 0 | AO71: 0
B72: 229.09 | C72: 1.033679384 | D72: 0.2559708023 | E72: 1.000000257 | F72: 0.0007168285084 | G72: 1.000002403 | H72: -0.002192116792 | I72: 172.856185 | J72: 1.565011139 | K72: 1.007597486 | L72: 0.1228795731 | M72: 1.000002737 | N72: 0.002339795102 | U72: 1.000000966 | V72: 0.001744046747 | W72: 46.20783299 | X72: -97.61261354 | Y72: 82.38738646 | AB72: 30.87504426 | AC72: -82.76211258 | AI72: 65.79036364 | AJ72: -14.85050096 | AL72: 0 | AM72: 0 | AN72: 0 | AO72: 0
B73: 251.19 | C73: 1.040358277 | D73: 0.2794498552 | E73: 1.000000309 | F73: 0.0007859799502 | G73: 1.000002889 | H73: -0.002403586532 | I73: 189.530852 | J73: 1.565520116 | K73: 1.009127075 | L73: 0.1345971128 | M73: 1.000003291 | N73: 0.002565511 | U73: 1.000001161 | V73: 0.001912292381 | W73: 45.36516555 | X73: -98.34638747 | Y73: 81.65361253 | AB73: 30.08831529 | AC73: -82.13284187 | AI73: 65.73442517 | AJ73: -16.2135456 | AL73: 0 | AM73: 0 | AN73: 0 | AO73: 0
B74: 275.42 | C74: 1.048330933 | D74: 0.3048324432 | E74: 1.000000371 | F74: 0.0008617962055 | G74: 1.000003473 | H74: -0.002635437497 | I74: 207.8126719 | J74: 1.565984282 | K74: 1.010962793 | L74: 0.1474012821 | M74: 1.000003956 | N74: 0.002812981114 | U74: 1.000001396 | V74: 0.002096753489 | W74: 44.51479793 | X74: -99.12736048 | Y74: 80.87263952 | AB74: 29.30425357 | AC74: -81.43999074 | AI74: 65.66811926 | AJ74: -17.68736974 | AL74: 0 | AM74: 0 | AN74: 0 | AO74: 0
B75: 302 | C75: 1.057841082 | D75: 0.3322171192 | E75: 1.000000446 | F75: 0.0009449656562 | G75: 1.000004175 | H75: -0.002889774712 | I75: 227.8676372 | J75: 1.5664078 | K75: 1.013166445 | L75: 0.1613913663 | M75: 1.000004757 | N75: 0.003084452266 | U75: 1.000001678 | V75: 0.00229910489 | W75: 43.65505476 | X75: -99.95603507 | Y75: 80.04396493 | AB75: 28.52294666 | AC75: -80.6782379 | AI75: 65.589683 | AJ75: -19.27779717 | AL75: 0 | AM75: 0 | AN75: 0 | AO75: 0
B76: 331.13 | C76: 1.069157281 | D76: 0.3616449548 | E76: 1.000000537 | F76: 0.001036114102 | G76: 1.00000502 | H76: -0.003168511794 | I76: 249.8466506 | J76: 1.566793861 | K76: 1.015808191 | L76: 0.1766505741 | M76: 1.000005719 | N76: 0.003381966966 | U76: 1.000002018 | V76: 0.002520869137 | W76: 42.78542879 | X76: -100.8304578 | Y76: 79.16954216 | AB76: 27.7457389 | AC76: -79.84311569 | AI76: 65.49726479 | AJ76: -20.98734214 | AL76: 0 | AM76: 0 | AN76: 0 | AO76: 0
B77: 363.08 | C77: =SQRT(1+(B77/PS_Pole1)^2) -> 1.082609715 | D77: =ATAN(B77/PS_Pole1) -> 0.3931838536 | E77: =SQRT(1+(B77/PS_Zero1)^2) -> 1.000000645 | F77: =ATAN(B77/PS_Zero1) -> 0.001136086374 | G77: =IF(VIN_nom>Vout, 1, SQRT(1+(B77/PS_RHPZ)^2)) -> 1.000006035 | H77: =IF(VIN_nom>Vout, 0, -ATAN(B77/PS_RHPZ)) -> -0.003474232125 | I77: =SQRT(1+(B77/EA_Pole1)^2) -> 273.9534311 | J77: =ATAN(B77/EA_Pole1) -> 1.567146063 | K77: =SQRT(1+(B77/EA_Zero1)^2) -> 1.018976136 | L77: =ATAN(B77/EA_Zero1) -> 0.193291686 | M77: =SQRT(1+(B77/EA_Pole2)^2) -> 1.000006876 | N77: =ATAN(B77/EA_Pole2) -> 0.003708282605 | O77: =SQRT(1+(B77/$V$5)^2) ->  | P77: =ATAN(B77/$V$5) ->  | Q77: =SQRT(1+(B77/$V$4)^2) ->  | R77: =ATAN(B77/$V$4) ->  | S77: =SQRT(1+(B77/$V$7)^2) ->  | T77: =ATAN(B77/$V$7) ->  | U77: =SQRT((1-(B77^2/pterm2))^2+(B77/pterm1)^2) -> 1.000002426 | V77: =IF((ATAN((B77/pterm1)/(1-B77^2/pterm2))>0),ATAN((B77/pterm1)/(1-B77^2/pterm2)),PI()+ATAN((B77/pterm1)/(1-B77^2/pterm2))) -> 0.002764101679 | W77: =20*LOG10(((E77*K77*G77)/(C77*I77*U77*M77))*Adc) -> 41.90380033 | X77: -101.7486391 | Y77: 78.25136095 | AB77: =20*LOG10((K77/(I77*M77))*AEA) -> 26.97271066 | AC77: =(L77-(J77+N77))*radconv -> -78.92852643 | AE77: =20*LOG10((Q77/(O77*S77))*AIL) ->  | AF77: =(R77-(P77+T77))*radconv ->  | AI77: =20*LOG10((E77*G77/(C77*U77))*Acs*Am) -> 65.38866457 | AJ77: =(F77+H77-(D77+V77))*radconv -> -22.82011263 | AL77: =SUM((W78<0)*(W77>0))*B77 -> 0 | AM77: =IF(AL77>0,Y75,0) -> 0 | AN77: =SUM((AB78<0)*(AB77>0))*B77 -> 0 | AO77: 0
B78: 398.11 | C78: 1.098563998 | D78: 0.4268382665 | E78: 1.000000776 | F78: 0.001245696009 | G78: 1.000007256 | H78: -0.003809423338 | I78: 300.3841529 | J78: 1.56746725 | K78: 1.022771605 | L78: 0.2114129458 | M78: 1.000008266 | N78: 0.004066054366 | U78: 1.000002917 | V78: 0.003030781819 | W78: 41.0090144 | X78: -102.7057292 | Y78: =IF(X78>0,X78-180,X78+180) -> 77.29427084 | AB78: 26.20498611 | AC78: -77.92915619 | AI78: 65.2616032 | AJ78: -24.77657297 | AL78: 0 | AM78: 0 | AN78: 0 | AO78: =IF(AN78>0,AC78,0) -> 0 | AP78: =SUM((AE79<0)*(AE78>0))*B78 ->  | AQ78: =IF(AP78>0,AE78,0) -> 
B79: 436.52 | C79: 1.11744397 | D79: 0.4625904764 | E79: 1.000000933 | F79: 0.001365881704 | G79: 1.000008724 | H79: -0.004176955737 | I79: 329.3651709 | J79: 1.567760178 | K79: 1.027316252 | L79: 0.2311215904 | M79: 1.000009939 | N79: 0.004458345868 | U79: 1.000003507 | V79: 0.00332319336 | W79: 40.09949781 | X79: =IF(((F79+L79+H79)-(D79+J79+V79+N79))*radconv<-180,((F79+L79+H79)-(D79+J79+V79+N79))*radconv+360,((F79+L79+H79)-(D79+J79+V79+N79))*radconv) -> -103.6951438 | Y79: 76.3048562 | AB79: 25.44346841 | AC79: -76.83919423 | AI79: 65.1136043 | AJ79: -26.85594957 | AL79: 0 | AM79: 0 | AN79: 0 | AO79: 0
B80: 478.63 | C80: 1.139725638 | D80: 0.5003720179 | E80: 1.000001121 | F80: 0.00149764473 | G80: 1.000010488 | H80: -0.004579890894 | I80: 361.1379307 | J80: 1.568027298 | K80: 1.032752885 | L80: 0.252520171 | M80: 1.000011948 | N80: 0.004888424868 | U80: 1.000004216 | V80: 0.003643772341 | W80: 39.17393643 | X80: -104.7076697 | Y80: 75.2923303 | AB80: 24.68938746 | AC80: -75.65309242 | AI80: 64.94212388 | AJ80: -29.05457729 | AL80: 0 | AM80: 0 | AN80: 0 | AO80: 0
B81: 524.81 | C81: 1.165954571 | D81: 0.5400823306 | E81: 1.000001348 | F81: 0.001642142807 | G81: 1.000012609 | H81: -0.005021768675 | I81: 395.9816041 | J81: 1.568270954 | K81: 1.039252517 | L81: 0.2757177432 | M81: 1.000014365 | N81: 0.005360069618 | U81: 1.000005069 | V81: 0.00399533541 | W81: 38.23075745 | X81: -105.7319454 | Y81: 74.26805455 | AB81: 23.94382172 | AC81: -74.36495316 | AI81: 64.74451064 | AJ81: -31.36699229 | AL81: 0 | AM81: 0 | AN81: 0 | AO81: 0
B82: 575.44 | C82: 1.19672467 | D82: 0.5815465684 | E82: 1.000001621 | F82: 0.001800564938 | G82: 1.000015159 | H82: -0.00550622445 | I82: 434.1829081 | J82: 1.568493148 | K82: 1.04701256 | L82: 0.3008046815 | M82: 1.000017271 | N82: 0.00587716028 | U82: 1.000006094 | V82: 0.004380775306 | W82: 37.26915742 | X82: -106.7534179 | Y82: 73.24658211 | AB82: 23.20845836 | AC82: -72.96993534 | AI82: 64.51827396 | AJ82: -33.78348255 | AL82: 0 | AM82: 0 | AN82: 0 | AO82: 0
B83: 630.96 | C83: 1.232705463 | D83: 0.6245543423 | E83: 1.000001949 | F83: 0.001974287858 | G83: 1.000018226 | H83: -0.006037467463 | I83: 476.0738313 | J83: 1.568695811 | K83: 1.056267593 | L83: 0.3278719106 | M83: 1.000020764 | N83: 0.006444189515 | U83: 1.000007326 | V83: 0.004803441486 | W83: 36.28825386 | X83: -107.7555453 | Y83: 72.24445468 | AB83: 22.48483757 | AC83: -71.46319746 | AI83: 64.2609912 | AJ83: -36.29234786 | AL83: 0 | AM83: 0 | AN83: 0 | AO83: 0
B84: 691.83 | C84: 1.274615555 | D84: 0.6688257999 | E84: 1.000002343 | F84: 0.002164750872 | G84: 1.000021912 | H84: -0.006619898013 | I84: 522.0014525 | J84: 1.568880622 | K84: 1.067287173 | L84: 0.3569842134 | M84: 1.000024964 | N84: 0.007065853858 | U84: 1.000008808 | V84: 0.00526683559 | W84: 35.28804074 | X84: -108.7193172 | Y84: 71.28068282 | AB84: 21.77499975 | AC84: -69.84139303 | AI84: 63.9706159 | AJ84: -38.87792415 | AL84: 0 | AM84: 0 | AN84: 0 | AO84: 0
B85: 758.58 | C85: 1.323251735 | D85: 0.7140524924 | E85: 1.000002817 | F85: 0.0023736123 | G85: 1.000026344 | H85: -0.007258585776 | I85: 572.3656672 | J85: 1.569049191 | K85: 1.080388272 | L85: 0.3881966586 | M85: 1.000030013 | N85: 0.007747564252 | U85: 1.00001059 | V85: 0.005774992064 | W85: 34.26869301 | X85: -109.6247343 | Y85: 70.37526573 | AB85: 21.08089004 | AC85: -68.10176907 | AI85: 63.64537788 | AJ85: -41.5229652 | AL85: 0 | AM85: 0 | AN85: 0 | AO85: 0
B86: 831.76 | C86: 1.379449457 | D86: 0.7598680805 | E86: 1.000003387 | F86: 0.002602593025 | G86: 1.000031672 | H86: -0.007958791243 | I86: 627.5814616 | J86: 1.569202907 | K86: 1.095929822 | L86: 0.4215222102 | M86: 1.000036083 | N86: 0.00849493523 | U86: 1.000012731 | V86: 0.006332097487 | W86: 33.23153356 | X86: -110.4509081 | Y86: 69.54909187 | AB86: 20.40496437 | AC86: -66.24398412 | AI86: 63.28414409 | AJ86: -44.20692401 | AL86: 0 | AM86: 0 | AN86: 0 | AO86: 0
B87: 912.01 | C87: 1.444129262 | D87: 0.8059047371 | E87: 1.000004072 | F87: 0.002853695514 | G87: 1.000038078 | H87: -0.00872663533 | I87: 688.1317286 | J87: 1.569343116 | K87: 1.114330134 | L87: 0.4569550904 | M87: 1.000043382 | N87: 0.009314499595 | U87: 1.000015307 | V87: 0.006943023425 | W87: 32.17809696 | X87: -111.1780613 | Y87: 68.8219387 | AB87: 19.74949405 | AC87: -64.26882057 | AI87: 62.88617781 | AJ87: -46.90924073 | AL87: 0 | AM87: 0 | AN87: 0 | AO87: 0
B88: 1000 | C88: 1.518246244 | D88: 0.8517668932 | E88: 1.000004895 | F88: 0.003129016071 | G88: 1.00004578 | H88: -0.009568525043 | I88: 754.5219968 | J88: 1.569470984 | K88: 1.136057172 | L88: 0.4944340986 | M88: 1.000052156 | N88: 0.01021309537 | U88: 1.000018403 | V88: 0.007612869609 | W88: 31.11106476 | X88: -111.7880337 | Y88: 68.21196629 | AB88: 19.11713765 | AC88: -62.18024361 | AI88: 62.45150202 | AJ88: -49.6077901 | AL88: 0 | AM88: 0 | AN88: 0 | AO88: 0
B89: 1096.5 | C89: 1.602842363 | D89: 0.8970837857 | E89: 1.000005886 | F89: 0.003430963857 | G89: 1.000055042 | H89: -0.01049182293 | I89: 827.3332473 | J89: 1.569587624 | K89: 1.161646709 | L89: 0.5338646417 | M89: 1.000062707 | N89: 0.01119858031 | U89: 1.000022126 | V89: 0.008347496761 | W89: 30.03336402 | X89: -112.2661355 | Y89: 67.73386445 | AB89: 18.51035214 | AC89: -59.984187 | AI89: 61.98058679 | AJ89: -52.28194855 | AL89: 0 | AM89: 0 | AN89: 0 | AO89: 0
B90: 1202.3 | C90: 1.698974421 | D90: 0.9414822435 | E90: 1.000007076 | F90: 0.003762010552 | G90: 1.000066176 | H90: -0.01150408124 | I90: 907.1615512 | J90: 1.569693987 | K90: 1.19168246 | L90: 0.5750782998 | M90: 1.000075392 | N90: 0.01227901437 | U90: 1.000026601 | V90: 0.009152917479 | W90: 28.94904792 | X90: -112.6017874 | Y90: 67.39821262 | AB90: 17.93188843 | AC90: -57.69081682 | AI90: 61.47473439 | AJ90: -54.91097056 | AL90: 0 | AM90: =IF(AL90>0,Y90,0) -> 0 | AN90: 0 | AO90: 0
B91: 1318.3 | C91: 1.807789663 | D91: 0.9846416304 | E91: 1.000008508 | F91: 0.004124971953 | G91: 1.000079561 | H91: -0.0126139025 | I91: 994.6859775 | J91: 1.569790984 | K91: 1.226818273 | L91: 0.6178657972 | M91: 1.000090641 | N91: 0.01346357821 | U91: 1.000031982 | V91: 0.01003598126 | W91: 27.86214283 | X91: -112.7899109 | Y91: 67.21008915 | AB91: 17.38412256 | AC91: -55.31270184 | AI91: 60.93559518 | AJ91: -57.47720902 | AL91: 0 | AM91: 0 | AN91: 0 | AO91: 0
B92: 1445.4 | C92: 1.930422523 | D92: 1.026260266 | E92: 1.000010227 | F92: 0.004522663753 | G92: 1.000095641 | H92: -0.0138298864 | I92: 1090.585595 | J92: 1.569879388 | K92: 1.267742147 | L92: 0.6619357036 | M92: 1.00010896 | N92: 0.01476144907 | U92: 1.000038446 | V92: 0.01100353695 | W92: 26.77753126 | X92: -112.8312126 | Y92: 67.1687874 | AB92: 16.86950208 | AC92: -52.86710989 | AI92: 60.36560408 | AJ92: -59.96410271 | AL92: 0 | AM92: 0 | AN92: 0 | AO92: 0
B93: 1584.9 | C93: 2.068385831 | D93: 1.066183235 | E93: 1.000012297 | F93: 0.004959153102 | G93: 1.000114991 | H93: -0.01516445566 | I93: 1195.841281 | J93: 1.569960095 | K93: 1.315304346 | L93: 0.7070518006 | M93: 1.000131006 | N93: 0.01618588406 | U93: 1.000046225 | V93: 0.01206547756 | W93: 25.69750554 | X93: -112.7322075 | Y93: 67.26779253 | AB93: 16.38894146 | AC93: -50.36838624 | AI93: 59.76613899 | AJ93: -62.36382123 | AL93: 0 | AM93: 0 | AN93: 0 | AO93: 0
B94: 1737.8 | C94: 2.222892178 | D94: 1.104182853 | E94: 1.000014784 | F94: 0.005437568283 | G94: 1.000138247 | H94: -0.01662715788 | I94: 1311.207556 | J94: 1.570033671 | K94: 1.370282943 | L94: 0.7528016475 | M94: 1.0001575 | N94: 0.01774707083 | U94: 1.000055574 | V94: 0.01322941118 | W94: 24.62740285 | X94: -112.504901 | Y94: 67.49509895 | AB94: 15.94443326 | AC94: -47.84077808 | AI94: 59.14054449 | AJ94: -64.66412297 | AL94: 0 | AM94: 0 | AN94: 0 | AO94: 0
B95: 1905.5 | C95: 2.39554256 | D95: 1.140167868 | E95: 1.000017775 | F95: 0.00596228893 | G95: 1.000166214 | H95: -0.01823136074 | I95: 1437.74075 | J95: 1.570100791 | K95: 1.433611651 | L95: 0.7988391619 | M95: 1.000189362 | N95: 0.01945927336 | U95: 1.000066817 | V95: 0.01450598938 | W95: 23.56983011 | X95: -112.1658753 | Y95: 67.83412475 | AB95: 15.53639918 | AC95: -45.30497049 | AI95: 58.49100583 | AJ95: -66.86090476 | AL95: 0 | AM95: 0 | AN95: 0 | AO95: 0
B96: 2089.3 | C96: 2.587830269 | D96: 1.174044956 | E96: 1.000021369 | F96: 0.006537381481 | G96: 1.000199823 | H96: -0.01998946663 | I96: 1576.421741 | J96: 1.570161979 | K96: 1.506198113 | L96: 0.8447432724 | M96: 1.00022765 | N96: 0.02133572408 | U96: 1.000080329 | V96: 0.01590510054 | W96: 22.52824028 | X96: -111.735741 | Y96: 68.264259 | AB96: 15.16524157 | AC96: -42.7858772 | AI96: 57.82057362 | AJ96: -68.9498638 | AL96: 0 | AM96: 0 | AN96: 0 | AO96: 0
B97: 2290.9 | C97: 2.801661442 | D97: 1.205815843 | E97: 1.000025692 | F97: 0.007168163536 | G97: 1.000240241 | H97: -0.02191769272 | I97: 1728.533214 | J97: 1.570217802 | K97: 1.589109646 | L97: 0.8901657763 | M97: 1.000273696 | N97: 0.02339372526 | U97: 1.000096578 | V97: 0.01743967527 | W97: 21.50381957 | X97: -111.2369368 | Y97: 68.76306316 | AB97: 14.83017074 | AC97: -40.30447262 | AI97: 57.13122373 | AJ97: -70.93246421 | AL97: 0 | AM97: 0 | AN97: 0 | AO97: 0
B98: 2511.9 | C98: 3.038837677 | D98: 1.235474396 | E98: 1.000030888 | F98: 0.007859639276 | G98: 1.000288821 | H98: -0.0240312845 | I98: 1895.282403 | J98: 1.570268701 | K98: 1.683373179 | L98: 0.9347179444 | M98: 1.00032904 | N98: 0.02564953987 | U98: 1.00011611 | V98: 0.01912187955 | W98: 20.49840613 | X98: -110.693625 | Y98: 69.30637498 | AB98: 14.53029694 | AC98: -37.8839864 | AI98: 56.4256841 | AJ98: -72.80963862 | AL98: 0 | AM98: 0 | AN98: 0 | AO98: 0
B99: 2754.2 | C99: 3.301480664 | D99: 1.263068065 | E99: 1.000037134 | F99: 0.008617750848 | G99: 1.000347218 | H99: -0.02634833698 | I99: 2078.102899 | J99: 1.570315119 | K99: 1.790133218 | L99: 0.9780781078 | M99: 1.000395567 | N99: 0.02812246922 | U99: 1.000139589 | V99: 0.02096615838 | W99: 19.51239739 | X99: -110.1296095 | Y99: 69.8703905 | AB99: 14.2639559 | AC99: -35.54397999 | AI99: 55.70601639 | AJ99: -74.58562951 | AL99: 0 | AM99: 0 | AN99: 0 | AO99: 0
B100: 3020 | C100: 3.592043365 | D100: 1.28867569 | E100: 1.000044647 | F100: 0.009449378117 | G100: 1.000417455 | H100: -0.02888978755 | I100: 2278.654649 | J100: 1.570357471 | K100: 1.910660734 | L100: 1.019984505 | M100: 1.000475582 | N100: 0.03083484429 | U100: 1.00016783 | V100: 0.02298923421 | W100: 18.54521159 | X100: -109.5674723 | Y100: 70.43252775 | AB100: 14.02899653 | AC100: -33.30075457 | AI100: 54.97378996 | AJ100: -76.26671768 | AL100: 0 | AM100: 0 | AN100: 0 | AO100: 0
B101: 3311.3 | C101: 3.912764908 | D101: 1.312355211 | E101: 1.000053675 | F101: 0.01036077399 | G101: 1.000501851 | H101: -0.03167462686 | I101: 2498.446694 | J101: 1.570396078 | K101: 2.046125123 | L101: 1.060164394 | M101: 1.000571726 | N101: 0.03380691332 | U101: 1.000201766 | V101: 0.02520629938 | W101: 17.59719028 | X101: -109.0289387 | Y101: 70.97106128 | AB101: 13.82330248 | AC101: -31.17111551 | AI101: 54.23146271 | AJ101: -77.85782321 | AL101: 0 | AM101: 0 | AN101: 0 | AO101: 0
B102: 3630.8 | C102: 4.266659044 | D102: 1.334220285 | E102: 1.000064533 | F102: 0.01136037989 | G102: 1.000603337 | H102: -0.03472849265 | I102: 2739.516243 | J102: 1.570431299 | K102: 2.198007402 | L102: 1.098471814 | M102: 1.000687338 | N102: 0.03706601183 | U102: 1.000242578 | V102: 0.02763786358 | W102: 16.66658736 | X102: -108.5326311 | Y102: 71.46736893 | AB102: 13.64416233 | AC102: -29.16501261 | AI102: 53.47999993 | AJ102: -79.36761846 | AL102: 0 | AM102: 0 | AN102: 0 | AO102: 0
B103: 3981.1 | C103: 4.656638901 | D103: 1.354363379 | E103: 1.000077585 | F103: 0.01245632225 | G103: 1.000725329 | H103: -0.03807600634 | I103: 3003.82505 | J103: 1.570463418 | K103: 2.367736377 | L103: 1.134766258 | M103: 1.000826308 | N103: 0.04063838182 | U103: 1.000291639 | V103: 0.03030366164 | W103: 15.75250381 | X103: -108.0954934 | Y103: 71.90450659 | AB103: 13.48902499 | AC103: -27.29201615 | AI103: 52.72105372 | AJ103: -80.80347726 | AL103: 0 | AM103: 0 | AN103: 0 | AO103: 0
B104: 4365.2 | C104: 5.086069466 | D104: 1.372891505 | E104: 1.000093277 | F104: 0.01365797621 | G104: 1.000871978 | H104: -0.04174553354 | I104: 3293.63668 | J104: 1.570492711 | K104: 2.556925512 | L104: 1.168975603 | M104: 1.000993362 | N104: 0.04455424938 | U104: 1.000350621 | V104: 0.03322645452 | W104: 14.85342997 | X104: -107.7319292 | Y104: 72.26807078 | AB104: 13.35524877 | AC104: -25.55800615 | AI104: 51.9557561 | AJ104: -82.17392307 | AL104: 0 | AM104: 0 | AN104: 0 | AO104: 0
B105: 4786.3 | C105: 5.558547732 | D105: 1.389908378 | E105: 1.000112141 | F105: 0.01497533894 | G105: 1.001048235 | H105: -0.04576724705 | I105: 3611.3656 | J105: 1.570519423 | K105: 2.767282444 | L105: 1.201064543 | M105: 1.001194141 | N105: 0.04884575381 | U105: 1.000421521 | V105: 0.03643050133 | W105: 13.96797752 | X105: -107.4543052 | Y105: 72.54569477 | AB105: 13.24029964 | AC105: -23.96686092 | AI105: 51.18525279 | AJ105: -83.48744431 | AL105: 0 | AM105: 0 | AN105: 0 | AO105: 0
B106: 5248.1 | C106: 6.078240375 | D106: 1.40552365 | E106: 1.000134823 | F106: 0.01641996698 | G106: 1.001260135 | H106: -0.05017595833 | I106: 3959.80354 | J106: 1.570543789 | K106: 3.000763133 | L106: 1.231049329 | M106: 1.001435514 | N106: 0.05354996412 | U106: 1.000506771 | V106: 0.03994383427 | W106: 13.09436928 | X106: -107.2730487 | Y106: 72.72695126 | AB106: 13.14172675 | AC106: -22.51978666 | AI106: 50.41021743 | AJ106: -84.75326209 | AL106: 0 | AM106: 0 | AN106: 0 | AO106: 0
B107: 5370.3 | C107: 6.215981492 | D107: 1.409218542 | E107: 1.000141174 | F107: 0.0168022285 | G107: 1.001319463 | H107: -0.05134225752 | I107: 4052.006044 | J107: 1.570549535 | K107: 3.062953866 | L107: 1.238216866 | M107: 1.001503093 | N107: 0.05479438854 | U107: 1.000530641 | V107: 0.04087344785 | W107: 12.87775481 | X107: -107.2438954 | Y107: 72.75610461 | AB107: 13.11938653 | AC107: -22.18074658 | AI107: 50.21594318 | AJ107: -85.06314881 | AL107: 0 | AM107: 0 | AN107: 0 | AO107: 0
B108: 5432.85 | C108: 6.286518206 | D108: 1.411047168 | E108: 1.000144482 | F108: 0.01699789319 | G108: 1.001350358 | H108: -0.05193919229 | I108: 4099.201352 | J108: 1.570552377 | K108: 3.094846211 | L108: 1.241774128 | M108: 1.001538284 | N108: 0.05543130134 | U108: 1.000543072 | V108: 0.04134927292 | W108: 12.76901812 | X108: -107.2317609 | Y108: 72.7682391 | AB108: 13.10847034 | AC108: -22.0135857 | AI108: 50.11812268 | AJ108: -85.2181752 | AL108: 0 | AM108: 0 | AN108: 0 | AO108: 0
B109: 5495.4 | C109: 6.357075475 | D109: 1.412835208 | E109: 1.000147827 | F109: 0.01719355659 | G109: 1.001381609 | H109: -0.05253609001 | I109: 4146.39666 | J109: 1.570555154 | K109: 3.126776919 | L109: 1.245258779 | M109: 1.001573881 | N109: 0.05606816913 | U109: 1.000555647 | V109: 0.04182508952 | W109: 12.66168117 | X109: -107.2214524 | Y109: 72.77854756 | AB109: 13.09788622 | AC109: -21.85057879 | AI109: 50.02136985 | AJ109: -85.37087365 | AL109: 0 | AM109: 0 | AN109: 0 | AO109: 0
B110: 5559.4 | C110: 6.429288933 | D110: 1.414624071 | E110: 1.00015129 | F110: 0.01739375439 | G110: 1.001413954 | H110: -0.05314678591 | I110: 4194.686024 | J110: 1.57055793 | K110: 3.159486321 | L110: 1.248751265 | M110: 1.001610724 | N110: 0.05671975332 | U110: 1.000568662 | V110: 0.04231192737 | W110: 12.55326718 | X110: -107.2127477 | Y110: 72.78725229 | AB110: 13.0873861 | AC110: -21.6879662 | AI110: 49.92345598 | AJ110: -85.52478151 | AL110: 0 | AM110: 0 | AN110: 0 | AO110: 0
B111: 5623.4 | C111: 6.501522508 | D111: 1.41637319 | E111: 1.000154794 | F111: 0.01759395079 | G111: 1.001446673 | H111: -0.05375744213 | I111: 4242.975388 | J111: 1.570560643 | K111: 3.192233472 | L111: 1.252172137 | M111: 1.001647992 | N111: 0.0573712893 | U111: 1.000581828 | V111: 0.04279875614 | W111: 12.44624365 | X111: -107.2058599 | Y111: 72.79414013 | AB111: 13.0772052 | AC111: -21.52945037 | AI111: 49.82661336 | AJ111: -85.6764095 | AL111: 0 | AM111: 0 | AN111: 0 | AO111: 0
B112: 5688.9 | C112: 6.575469196 | D112: 1.418123507 | E112: 1.00015842 | F112: 0.01779883783 | G112: 1.001480545 | H112: -0.05438236905 | I112: 4292.396534 | J112: 1.570563357 | K112: 3.225786019 | L112: 1.255601229 | M112: 1.001686574 | N112: 0.05803804516 | U112: 1.000595458 | V112: 0.04329698545 | W112: 12.33811421 | X112: -107.2006439 | Y112: 72.79935607 | AB112: 13.06710234 | AC112: -21.37133566 | AI112: 49.72858678 | AJ112: -85.82930826 | AL112: 0 | AM112: 0 | AN112: 0 | AO112: 0
B113: 5754.4 | C113: 6.64943558 | D113: 1.41983489 | E113: 1.000162089 | F113: 0.01800372338 | G113: 1.001514809 | H113: -0.05500725346 | I113: 4341.81768 | J113: 1.570566009 | K113: 3.259375716 | L113: 1.258959682 | M113: 1.001725602 | N113: 0.05870474936 | U113: 1.000609246 | V113: 0.04379520504 | W113: 12.23136689 | X113: -107.1972351 | Y113: 72.80276494 | AB113: 13.05730639 | AC113: -21.21726175 | AI113: 49.6316354 | AJ113: -85.97997332 | AL113: 0 | AM113: 0 | AN113: 0 | AO113: 0
B114: 5821.4 | C114: 6.725115551 | D114: 1.421546511 | E114: 1.000165885 | F114: 0.01821329941 | G114: 1.001550261 | H114: -0.05564640371 | I114: 4392.370609 | J114: 1.570568659 | K114: 3.293771893 | L114: 1.262324138 | M114: 1.001765983 | N114: 0.05938666755 | U114: 1.000623513 | V114: 0.04430482406 | W114: 12.12356798 | X114: -107.1955693 | Y114: 72.80443066 | AB114: 13.04759025 | AC114: -21.06371554 | AI114: 49.53355263 | AJ114: -86.1318538 | AL114: 0 | AM114: 0 | AN114: 0 | AO114: 0
B115: 5888.4 | C115: 6.800814786 | D115: 1.423220033 | E115: 1.000169725 | F115: 0.01842287383 | G115: 1.001586123 | H115: -0.05628550845 | I115: 4442.923537 | J115: 1.57057125 | K115: 3.328204583 | L115: 1.265619015 | M115: 1.001806831 | N115: 0.06006853044 | U115: 1.000637945 | V115: 0.04481443266 | W115: 12.01714162 | X115: -107.1956975 | Y115: 72.80430246 | AB115: 13.03816874 | AC115: -20.91414928 | AI115: 49.43654778 | AJ115: -86.28154825 | AL115: 0 | AM115: 0 | AN115: 0 | AO115: 0
B116: 5957 | C116: 6.87834106 | D116: 1.42489535 | E116: 1.000173702 | F116: 0.01863745133 | G116: 1.001623265 | H116: -0.0569398277 | I116: 4494.683699 | J116: 1.570573842 | K116: 3.363496208 | L116: 1.268922643 | M116: 1.001849136 | N116: 0.06076661868 | U116: 1.000652892 | V116: 0.04533620011 | W116: 11.90955918 | X116: -107.1976386 | Y116: 72.8023614 | AB116: 13.0288146 | AC116: -20.76501137 | AI116: 49.33831949 | AJ116: -86.43262723 | AL116: 0 | AM116: 0 | AN116: 0 | AO116: 0
B117: 6025.6 | C117: 6.955886208 | D117: 1.426533318 | E117: 1.000177726 | F117: 0.01885202712 | G117: 1.001660835 | H117: -0.05759409814 | I117: 4546.443861 | J117: 1.570576375 | K117: 3.398823778 | L117: 1.272157629 | M117: 1.001891929 | N117: 0.06146464762 | U117: 1.000668013 | V117: 0.04585795639 | W117: 11.80334257 | X117: -107.2013625 | Y117: 72.7986375 | AB117: 13.01974374 | AC117: -20.61979955 | AI117: 49.24117373 | AJ117: -86.58156295 | AL117: 0 | AM117: 0 | AN117: 0 | AO117: 0
B118: 6095.8 | C118: 7.035258878 | D118: 1.428172102 | E118: 1.000181891 | F118: 0.0190716058 | G118: 1.001699726 | H118: -0.05826357743 | I118: 4599.411257 | J118: 1.570578908 | K118: 3.435011372 | L118: 1.275399145 | M118: 1.001936226 | N118: 0.06217889504 | U118: 1.000683665 | V118: 0.04639187021 | W118: 11.69602621 | X118: -107.2069697 | Y118: 72.79303034 | AB118: 13.01074213 | AC118: -20.47514284 | AI118: 49.14285899 | AJ118: -86.73182681 | AL118: 0 | AM118: 0 | AN118: 0 | AO118: 0
B119: 6166 | C119: 7.114650021 | D119: 1.429774318 | E119: 1.000186104 | F119: 0.01929118264 | G119: 1.001739066 | H119: -0.05893300444 | I119: 4652.378654 | J119: 1.570581383 | K119: 3.471234307 | L119: 1.278573043 | M119: 1.001981035 | N119: 0.06289307894 | U119: 1.000699498 | V119: 0.04692577206 | W119: 11.59006766 | X119: -107.2143453 | Y119: 72.78565471 | AB119: 13.00201248 | AC119: -20.33435347 | AI119: 49.04563009 | AJ119: -86.87999182 | AL119: 0 | AM119: 0 | AN119: 0 | AO119: 0
B120: 6237.8 | C120: 7.19586912 | D120: 1.431376474 | E120: 1.000190463 | F120: 0.01951576215 | G120: 1.001779767 | H120: -0.05961763435 | I120: 4706.553284 | J120: 1.570583857 | K120: 3.508318252 | L120: 1.281751449 | M120: 1.002027393 | N120: 0.06362347408 | U120: 1.00071588 | V120: 0.0474718301 | W120: 11.48306265 | X120: -107.2236689 | Y120: 72.77633108 | AB120: 12.99335319 | AC120: -20.19423451 | AI120: 48.94728437 | AJ120: -87.02943441 | AL120: 0 | AM120: 0 | AN120: 0 | AO120: 0
B121: 6309.6 | C121: 7.277106278 | D121: 1.432942864 | E121: 1.000194872 | F121: 0.01974033969 | G121: 1.001820937 | H121: -0.0603022083 | I121: 4760.727915 | J121: 1.570586275 | K121: 3.545436897 | L121: 1.284863334 | M121: 1.002074285 | N121: 0.06435380126 | U121: 1.000732451 | V121: 0.04801787532 | W121: 11.37740628 | X121: -107.2347437 | Y121: 72.76525631 | AB121: 12.98495463 | AC121: -20.05791982 | AI121: 48.85002656 | AJ121: -87.17682387 | AL121: 0 | AM121: 0 | AN121: 0 | AO121: 0
B122: 6383.05 | C122: 7.360228369 | D122: 1.434509468 | E122: 1.000199435 | F122: 0.01997007608 | G122: 1.001863539 | H122: -0.06100245555 | I122: 4816.147506 | J122: 1.570588692 | K122: 3.583443329 | L122: 1.287979994 | M122: 1.002122808 | N122: 0.06510084058 | U122: 1.000749598 | V122: 0.04857645553 | W122: 11.27068165 | X122: -107.2478353 | Y122: 72.7521647 | AB122: 12.97662129 | AC122: -19.92228907 | AI122: 48.75163526 | AJ122: -87.32554623 | AL122: 0 | AM122: 0 | AN122: 0 | AO122: 0
B123: 6456.5 | C123: 7.443368121 | D123: 1.436041078 | E123: 1.000204051 | F123: 0.02019981036 | G123: 1.001906633 | H123: -0.06170264291 | I123: 4871.567097 | J123: 1.570591054 | K123: 3.621483838 | L123: 1.291031207 | M123: 1.002171891 | N123: 0.06584780715 | U123: 1.000766945 | V123: 0.04913502202 | W123: 11.16529724 | X123: -107.2626603 | Y123: 72.73733966 | AB123: 12.96853792 | AC123: -19.79040081 | AI123: 48.65433423 | AJ123: -87.47225953 | AL123: 0 | AM123: 0 | AN123: 0 | AO123: 0
B124: 6531.7 | C124: 7.528506423 | D124: 1.43757413 | E124: 1.000208831 | F124: 0.02043501601 | G124: 1.001951261 | H124: -0.06241944998 | I124: 4928.3071 | J124: 1.570593417 | K124: 3.660464885 | L124: 1.294089386 | M124: 1.002222721 | N124: 0.06661249451 | U124: 1.000784909 | V124: 0.0497068824 | W124: 11.05875504 | X124: -107.2795847 | Y124: 72.72041531 | AB124: 12.96050977 | AC124: -19.65912884 | AI124: 48.55582017 | AJ124: -87.62045585 | AL124: 0 | AM124: 0 | AN124: 0 | AO124: 0
B125: 6606.9 | C125: 7.613662024 | D125: 1.439072893 | E125: 1.000213667 | F125: 0.02067021941 | G125: 1.001996405 | H125: -0.06313619283 | I125: 4985.047103 | J125: 1.570595727 | K125: 3.699479446 | L125: 1.297083089 | M125: 1.002274138 | N125: 0.06737710385 | U125: 1.000803082 | V125: 0.05027872806 | W125: 10.95354707 | X125: -107.2982266 | Y125: 72.7017734 | AB125: 12.95272157 | AC125: -19.53154348 | AI125: 48.45840041 | AJ125: -87.76668313 | AL125: 0 | AM125: 0 | AN125: 0 | AO125: 0
B126: 6683.85 | C126: 7.700816612 | D126: 1.440572217 | E126: 1.000218673 | F126: 0.02091089392 | G126: 1.002043132 | H126: -0.06386954796 | I126: 5043.107518 | J126: 1.570598036 | K126: 3.739435522 | L126: 1.300081767 | M126: 1.002327358 | N126: 0.06815942496 | U126: 1.000821893 | V126: 0.0508638659 | W126: 10.84723678 | X126: -107.3190305 | Y126: 72.68096954 | AB126: 12.94498975 | AC126: -19.40468793 | AI126: 48.35982193 | AJ126: -87.91434253 | AL126: 0 | AM126: 0 | AN126: 0 | AO126: 0
B127: 6760.8 | C127: 7.787988124 | D127: 1.44203798 | E127: 1.000223736 | F127: 0.02115156601 | G127: 1.002090398 | H127: -0.06460283431 | I127: 5101.167934 | J127: 1.570600293 | K127: 3.779424512 | L127: 1.303017014 | M127: 1.002381192 | N127: 0.06894166251 | U127: 1.000840921 | V127: 0.05144898798 | W127: 10.74225348 | X127: -107.3415332 | Y127: 72.65846679 | AB127: 12.93748791 | AC127: -19.28145888 | AI127: 48.26234047 | AJ127: -88.06007434 | AL127: 0 | AM127: 0 | AN127: 0 | AO127: 0
B128: 6839.55 | C128: 7.877215671 | D128: 1.443504439 | E128: 1.000228978 | F128: 0.02139786531 | G128: 1.002139327 | H128: -0.06535320152 | I128: 5160.586488 | J128: 1.57060255 | K128: 3.820381916 | L128: 1.305957275 | M128: 1.00243692 | N128: 0.06974211053 | U128: 1.000860619 | V128: 0.05204778062 | W128: 10.63615346 | X128: -107.3662714 | Y128: 72.63372856 | AB128: 12.93003834 | AC128: -19.15898595 | AI128: 48.16369002 | AJ128: -88.20728549 | AL128: 0 | AM128: 0 | AN128: 0 | AO128: 0
B129: 6918.3 | C129: 7.966459779 | D129: 1.444938045 | E129: 1.000234281 | F129: 0.02164416202 | G129: 1.002188821 | H129: -0.06610349504 | I129: 5220.005042 | J129: 1.570604756 | K129: 3.861371648 | L129: 1.308835137 | M129: 1.002493289 | N129: 0.07054246905 | U129: 1.000880546 | V129: 0.05264655637 | W129: 10.53137372 | X129: -107.3926894 | Y129: 72.60731057 | AB129: 12.92280914 | AC129: -19.04008015 | AI129: 48.06613948 | AJ129: -88.35260928 | AL129: 0 | AM129: 0 | AN129: 0 | AO129: 0
B130: 6998.9 | C130: 8.05781699 | D130: 1.446372443 | E130: 1.000239771 | F130: 0.02189624203 | G130: 1.002240061 | H130: -0.06687133733 | I130: 5280.81946 | J130: 1.570606962 | K130: 3.903356725 | L130: 1.311717993 | M130: 1.002551648 | N130: 0.0713615359 | U130: 1.000901176 | V130: 0.05325938091 | W130: 10.42546502 | X130: -107.4214176 | Y130: 72.57858238 | AB130: 12.91562836 | AC130: -18.92196015 | AI130: 47.96741157 | AJ130: -88.49945748 | AL130: 0 | AM130: 0 | AN130: 0 | AO130: 0
B131: 7079.5 | C131: 8.149190407 | D131: 1.447774677 | E131: 1.000245324 | F131: 0.02214831925 | G131: 1.002291893 | H131: -0.06763910065 | I131: 5341.633879 | J131: 1.570609118 | K131: 3.945373552 | L131: 1.314539469 | M131: 1.00261068 | N131: 0.07218050684 | U131: 1.000922045 | V131: 0.05387218734 | W131: 10.32087036 | X131: -107.451806 | Y131: 72.548194 | AB131: 12.9086587 | AC131: -18.80734857 | AI131: 47.86978656 | AJ131: -88.64445743 | AL131: 0 | AM131: 0 | AN131: 0 | AO131: 0
B132: 7161.95 | C132: 8.242677313 | D132: 1.449176926 | E132: 1.000251071 | F132: 0.02240617946 | G132: 1.002345525 | H132: -0.0684244037 | I132: 5403.844162 | J132: 1.570611273 | K132: 3.98838659 | L132: 1.317364173 | M132: 1.002671762 | N132: 0.07301817516 | U132: 1.00094364 | V132: 0.05449904049 | W132: 10.21520022 | X132: -107.4845599 | Y132: 72.51544005 | AB132: 12.90173795 | AC132: -18.69362327 | AI132: 47.77103717 | AJ132: -88.79093668 | AL132: 0 | AM132: 0 | AN132: 0 | AO132: 0
B133: 7244.4 | C133: 8.336180063 | D133: 1.450547721 | E133: 1.000256884 | F133: 0.02266403668 | G133: 1.002399775 | H133: -0.06920962223 | I133: 5466.054445 | J133: 1.570613379 | K133: 4.031430771 | L133: 1.32012858 | M133: 1.002733548 | N133: 0.07385574083 | U133: 1.000965485 | V133: 0.05512587427 | W133: 10.11083668 | X133: -107.5189521 | Y133: 72.48104794 | AB133: 12.89501917 | AC133: -18.58334409 | AI133: 47.67339242 | AJ133: -88.93560797 | AL133: 0 | AM133: 0 | AN133: 0 | AO133: 0
B134: 7328.75 | C134: 8.431853362 | D134: 1.451918642 | E134: 1.0002629 | F134: 0.02292783292 | G134: 1.002455915 | H134: -0.07001284709 | I134: 5529.698318 | J134: 1.570615485 | K134: 4.075498074 | L134: 1.322896241 | M134: 1.002797485 | N134: 0.07471250017 | U134: 1.000988092 | V134: 0.05576713268 | W134: 10.00538623 | X134: -107.5557824 | Y134: 72.44421756 | AB134: 12.88834537 | AC134: -18.47397813 | AI134: 47.57461577 | AJ134: -89.08180431 | AL134: 0 | AM134: 0 | AN134: 0 | AO134: 0
B135: 7413.1 | C135: 8.527542152 | D135: 1.453258798 | E135: 1.000268986 | F135: 0.02319162596 | G135: 1.002512702 | H135: -0.07081598148 | I135: 5593.342192 | J135: 1.570617543 | K135: 4.119595928 | L135: 1.32560467 | M135: 1.002862158 | N135: 0.07556914963 | U135: 1.00101096 | V135: 0.05640837034 | W135: 9.901235446 | X135: -107.5942287 | Y135: 72.40577132 | AB135: 12.88186474 | AC135: -18.36799687 | AI135: 47.47694561 | AJ135: -89.22623181 | AL135: 0 | AM135: 0 | AN135: 0 | AO135: 0
B136: 7499.45 | C136: 8.625515302 | D136: 1.454599928 | E136: 1.000275288 | F136: 0.02346167038 | G136: 1.002571505 | H136: -0.07163806397 | I136: 5658.495108 | J136: 1.570619601 | K136: 4.164770005 | L136: 1.328317886 | M136: 1.002929127 | N136: 0.07644599578 | U136: 1.001034641 | V136: 0.05706479047 | W136: 9.795927596 | X136: -107.635211 | Y136: 72.364789 | AB136: 12.87542169 | AC136: -18.26289857 | AI136: 47.37808082 | AJ136: -89.37231243 | AL136: 0 | AM136: 0 | AN136: 0 | AO136: 0
B137: 7585.8 | C137: 8.723503617 | D137: 1.455910931 | E137: 1.000281663 | F137: 0.02373171139 | G137: 1.002630985 | H137: -0.07246004949 | I137: 5723.648024 | J137: 1.570621613 | K137: 4.209974084 | L137: 1.330972856 | M137: 1.002996867 | N137: 0.07732272416 | U137: 1.001058596 | V137: 0.05772118834 | W137: 9.691914351 | X137: -107.6777884 | Y137: 72.32221161 | AB137: 12.86916355 | AC137: -18.16112811 | AI137: 47.28032571 | AJ137: -89.51666028 | AL137: 0 | AM137: 0 | AN137: 0 | AO137: 0
B138: 7674.15 | C138: 8.823776663 | D138: 1.457222159 | E138: 1.000288261 | F138: 0.02400800337 | G138: 1.002692544 | H138: -0.07330097195 | I138: 5790.309983 | J138: 1.570623624 | K138: 4.256255213 | L138: 1.33363093 | M138: 1.003066974 | N138: 0.07821963566 | U138: 1.001083389 | V138: 0.05839276612 | W138: 9.58679834 | X138: -107.7229538 | Y138: 72.27704619 | AB138: 12.86294332 | AC138: -18.06033615 | AI138: 47.18142993 | AJ138: -89.66261766 | AL138: 0 | AM138: 0 | AN138: 0 | AO138: 0
B139: 7762.5 | C139: 8.92406454 | D139: 1.458503919 | E139: 1.000294936 | F139: 0.0242842917 | G139: 1.002754812 | H139: -0.07414179056 | I139: 5856.971942 | J139: 1.57062559 | K139: 4.302565768 | L139: 1.336231802 | M139: 1.003137887 | N139: 0.07911642107 | U139: 1.001108468 | V139: 0.05906432007 | W139: 9.482970673 | X139: -107.7696913 | Y139: 72.23030871 | AB139: 12.85689982 | AC139: -17.96281179 | AI139: 47.08364576 | AJ139: -89.80687949 | AL139: 0 | AM139: 0 | AN139: 0 | AO139: 0
B140: 7852.9 | C140: 9.026694247 | D140: 1.459785938 | E140: 1.000301844 | F140: 0.02456698694 | G140: 1.002819258 | H140: -0.07500201012 | I140: 5925.180669 | J140: 1.570627556 | K140: 4.349980351 | L140: 1.338835684 | M140: 1.003211281 | N140: 0.08003388276 | U140: 1.001134427 | V140: 0.05975143124 | W140: 9.37803407 | X140: -107.8190917 | Y140: 72.18090833 | AB140: 12.85089082 | AC140: -17.86629965 | AI140: 46.98471815 | AJ140: -89.95279202 | AL140: 0 | AM140: 0 | AN140: 0 | AO140: 0
B141: 7943.3 | C141: =SQRT(1+(B141/PS_Pole1)^2) -> 9.129338457 | D141: =ATAN(B141/PS_Pole1) -> 1.46103913 | E141: =SQRT(1+(B141/PS_Zero1)^2) -> 1.000308833 | F141: =ATAN(B141/PS_Zero1) -> 0.02484967826 | G141: =IF(VIN_nom>Vout, 1, SQRT(1+(B141/PS_RHPZ)^2)) -> 1.002884447 | H141: =IF(VIN_nom>Vout, 0, -ATAN(B141/PS_RHPZ)) -> -0.07586211849 | I141: =SQRT(1+(B141/EA_Pole1)^2) -> 5993.389397 | J141: =ATAN(B141/EA_Pole1) -> 1.570629476 | K141: =SQRT(1+(B141/EA_Zero1)^2) -> 4.397423791 | L141: =ATAN(B141/EA_Zero1) -> 1.341383397 | M141: =SQRT(1+(B141/EA_Pole2)^2) -> 1.00328552 | N141: =ATAN(B141/EA_Pole2) -> 0.08095120945 | O141: =SQRT(1+(B141/$V$5)^2) ->  | P141: =ATAN(B141/$V$5) ->  | Q141: =SQRT(1+(B141/$V$4)^2) ->  | R141: =ATAN(B141/$V$4) ->  | S141: =SQRT(1+(B141/$V$7)^2) ->  | T141: =ATAN(B141/$V$7) ->  | U141: =SQRT((1-(B141^2/pterm2))^2+(B141/pterm1)^2) -> 1.001160685 | V141: =IF((ATAN((B141/pterm1)/(1-B141^2/pterm2))>0),ATAN((B141/pterm1)/(1-B141^2/pterm2)),PI()+ATAN((B141/pterm1)/(1-B141^2/pterm2))) -> 0.06043851689 | W141: =20*LOG10(((E141*K141*G141)/(C141*I141*U141*M141))*Adc) -> 9.274379861 | X141: -107.8700408 | Y141: 72.12995922 | AB141: =20*LOG10((K141/(I141*M141))*AEA) -> 12.84505066 | AC141: =(L141-(J141+N141))*radconv -> -17.77299547 | AE141: =20*LOG10((Q141/(O141*S141))*AIL) ->  | AF141: =(R141-(P141+T141))*radconv ->  | AI141: =20*LOG10((E141*G141/(C141*U141))*Acs*Am) -> 46.88690411 | AJ141: =(F141+H141-(D141+V141))*radconv -> -90.09704531 | AL141: =SUM((W142<0)*(W141>0))*B141 -> 0 | AM141: 0 | AN141: =SUM((AB142<0)*(AB141>0))*B141 -> 0 | AO141: 0
B142: 8035.8 | C142: 9.234381608 | D142: 1.462292594 | E142: 1.000316066 | F142: 0.02513893242 | G142: 1.002951918 | H142: -0.07674209086 | I142: 6063.18262 | J142: 1.570631397 | K142: 4.445998254 | L142: 1.343933993 | M142: 1.003362356 | N142: 0.08188970439 | U142: 1.001187864 | V142: 0.06114153687 | W142: 9.169612083 | X142: -107.9237281 | Y142: =IF(X142>0,X142-180,X142+180) -> 72.07627185 | AB142: 12.83924172 | AC142: -17.6807389 | AI142: 46.78794527 | AJ142: -90.24298925 | AL142: 0 | AM142: 0 | AN142: 0 | AO142: =IF(AN142>0,AC142,0) -> 0 | AP142: =SUM((AE143<0)*(AE142>0))*B142 ->  | AQ142: =IF(AP142>0,AE142,0) -> 
B143: 8128.3 | C143: 9.339438942 | D143: 1.46351786 | E143: 1.000323383 | F143: 0.02542818236 | G143: 1.003020165 | H143: -0.07762194415 | I143: 6132.975842 | J143: 1.570633274 | K143: 4.494601015 | L143: 1.346429444 | M143: 1.003440076 | N143: 0.08282805478 | U143: 1.001215357 | V143: 0.0618445295 | W143: 9.066121013 | X143: =IF(((F143+L143+H143)-(D143+J143+V143+N143))*radconv<-180,((F143+L143+H143)-(D143+J143+V143+N143))*radconv+360,((F143+L143+H143)-(D143+J143+V143+N143))*radconv) -> -107.9789406 | Y143: 72.02105939 | AB143: 12.83359399 | AC143: -17.59163119 | AI143: 46.69010192 | AJ143: -90.38730942 | AL143: 0 | AM143: 0 | AN143: 0 | AO143: 0
B144: 8222.95 | C144: 9.446952335 | D144: 1.464743394 | E144: 1.000330957 | F144: 0.02572415101 | G144: 1.003090802 | H144: -0.07852212344 | I144: 6204.391285 | J144: 1.570635151 | K144: 4.544361808 | L144: 1.348927626 | M144: 1.003520517 | N144: 0.08378806416 | U144: 1.001243815 | V144: 0.06256383334 | W144: 8.961513172 | X144: -108.036967 | Y144: 71.96303297 | AB144: 12.82797433 | AC144: -17.50360789 | AI144: 46.59111375 | AJ144: -90.53335914 | AL144: 0 | AM144: 0 | AN144: 0 | AO144: 0
B145: 8270.275 | C145: 9.500714263 | D145: 1.465345759 | E145: 1.000334777 | F145: 0.02587213364 | G145: 1.003126425 | H145: -0.07897216536 | I145: 6240.099007 | J145: 1.570636073 | K145: 4.569252666 | L145: 1.350156309 | M145: 1.003561085 | N145: 0.08426801091 | U145: 1.001258167 | V145: 0.06292347429 | W145: 8.909687953 | X145: -108.0665461 | Y145: 71.93345393 | AB145: 12.82522263 | AC145: -17.46076131 | AI145: 46.54204022 | AJ145: -90.60578475 | AL145: 0 | AM145: 0 | AN145: 0 | AO145: 0
B146: 8317.6 | C146: 9.554479599 | D146: 1.465941345 | E146: 1.000338619 | F146: 0.02602011515 | G146: 1.003162252 | H146: -0.07942217523 | I146: 6275.806729 | J146: 1.570636985 | K146: 4.594150347 | L146: 1.351371676 | M146: 1.003601883 | N146: 0.08474791875 | U146: 1.001272601 | V146: 0.06328310788 | W146: 8.858176578 | X146: -108.0964946 | Y146: 71.9035054 | AB146: 12.82250852 | AC146: -17.41867484 | AI146: 46.49324296 | AJ146: -90.67781976 | AL146: 0 | AM146: 0 | AN146: 0 | AO146: 0
B147: 8366.05 | C147: 9.609526504 | D147: 1.466544185 | E147: 1.000342574 | F147: 0.02617161325 | G147: 1.00319914 | H147: -0.07988284924 | I147: 6312.363287 | J147: 1.570637908 | K147: 4.619646844 | L147: 1.352602362 | M147: 1.003643891 | N147: 0.08523919433 | U147: 1.001287464 | V147: 0.06365128293 | W147: 8.805761763 | X147: -108.1275319 | Y147: 71.87246806 | AB147: 12.81976793 | AC147: -17.37636265 | AI147: 46.44356874 | AJ147: -90.75116929 | AL147: 0 | AM147: 0 | AN147: 0 | AO147: 0
B148: 8414.5 | C148: 9.664576862 | D148: 1.467140158 | E148: 1.000346553 | F148: 0.02632311016 | G148: 1.003236242 | H148: -0.08034348928 | I148: 6348.919845 | J148: 1.57063882 | K148: 4.645150261 | L148: 1.353819535 | M148: 1.003686141 | N148: 0.08573042866 | U148: 1.001302412 | V148: 0.06401945017 | W148: 8.753667747 | X148: -108.1589447 | Y148: 71.84105532 | AB148: 12.81706492 | AC148: -17.33482166 | AI148: 46.39417773 | AJ148: -90.82412302 | AL148: 0 | AM148: 0 | AN148: 0 | AO148: 0
B149: 8462.95 | C149: 9.719630614 | D149: 1.467729379 | E149: 1.000350555 | F149: 0.02647460585 | G149: 1.003273556 | H149: -0.08080409516 | I149: 6385.476403 | J149: 1.570639721 | K149: 4.670660485 | L149: 1.355023415 | M149: 1.003728633 | N149: 0.08622162152 | U149: 1.001317447 | V149: 0.06438760957 | W149: 8.701890529 | X149: -108.190727 | Y149: 71.80927301 | AB149: 12.81439864 | AC149: -17.29403939 | AI149: 46.3450668 | AJ149: -90.8966876 | AL149: 0 | AM149: 0 | AN149: 0 | AO149: 0
B150: 8511.4 | C150: 9.774687702 | D150: 1.468311963 | E150: 1.000354579 | F150: 0.02662610034 | G150: 1.003311083 | H150: -0.08126466667 | I150: 6422.032961 | J150: 1.570640613 | K150: 4.696177404 | L150: 1.356214213 | M150: 1.003771367 | N150: 0.08671277268 | U150: 1.001332568 | V150: 0.06475576106 | W150: 8.650426178 | X150: -108.2228732 | Y150: 71.77712685 | AB150: 12.81176823 | AC150: -17.25400363 | AI150: 46.29623285 | AJ150: -90.96886952 | AL150: 0 | AM150: 0 | AN150: 0 | AO150: 0
B151: 8560.95 | C151: 9.830998188 | D151: 1.468901024 | E151: 1.000358719 | F151: 0.02678103306 | G151: 1.003349683 | H151: -0.08173565918 | I151: 6459.419493 | J151: 1.570641514 | K151: 4.722280468 | L151: 1.357418735 | M151: 1.003815322 | N151: 0.08721503147 | U151: 1.001348122 | V151: 0.06513226278 | W151: 8.598112975 | X151: -108.2561197 | Y151: 71.74388034 | AB151: 12.80911435 | AC151: -17.21381857 | AI151: 46.24657353 | AJ151: -91.04230109 | AL151: 0 | AM151: 0 | AN151: 0 | AO151: 0
B152: 8610.5 | C152: 9.887312048 | D152: 1.469483375 | E152: 1.000362883 | F152: 0.02693596449 | G152: 1.003388505 | H152: -0.08220661535 | I152: 6496.806025 | J152: 1.570642405 | K152: 4.748390307 | L152: 1.358610012 | M152: 1.00385953 | N152: 0.08771724614 | U152: 1.001363765 | V152: 0.06550875615 | W152: 8.546118928 | X152: -108.289735 | Y152: 71.71026503 | AB152: 12.80649627 | AC152: -17.17438925 | AI152: 46.19719756 | AJ152: -91.11534572 | AL152: 0 | AM152: 0 | AN152: 0 | AO152: 0
B153: 8660.05 | C153: 9.943629222 | D153: 1.47005913 | E153: 1.000367071 | F153: 0.02709089463 | G153: 1.003427549 | H153: -0.08267753497 | I153: 6534.192556 | J153: 1.570643286 | K153: 4.774506811 | L153: 1.359788258 | M153: 1.003903992 | N153: 0.08821941646 | U153: 1.001379499 | V153: 0.06588524112 | W153: 8.494440066 | X153: -108.3237133 | Y153: 71.67628666 | AB153: 12.80391316 | AC153: -17.13570343 | AI153: 46.14810181 | AJ153: -91.18800991 | AL153: 0 | AM153: 0 | AN153: 0 | AO153: 0
B154: 8709.6 | C154: 9.999949656 | D154: 1.4706284 | E154: 1.000371282 | F154: 0.02724582347 | G154: 1.003466816 | H154: -0.08314841784 | I154: 6571.579088 | J154: 1.570644156 | K154: 4.800629872 | L154: 1.360953682 | M154: 1.003948706 | N154: 0.08872154217 | U154: 1.001395323 | V154: 0.06626171764 | W154: 8.443072492 | X154: -108.3580491 | Y154: 71.6419509 | AB154: 12.80136421 | AC154: -17.09774909 | AI154: 46.09928319 | AJ154: -91.26030002 | AL154: 0 | AM154: =IF(AL154>0,Y154,0) -> 0 | AN154: 0 | AO154: 0
B155: 8760.325 | C155: 10.05760896 | D155: 1.471204564 | E155: 1.000375619 | F155: 0.02740442485 | G155: 1.003507244 | H155: -0.08363042867 | I155: 6609.852182 | J155: 1.570645037 | K155: 4.82737908 | L155: 1.362133676 | M155: 1.003994743 | N155: 0.08923552853 | U155: 1.001411616 | V155: 0.0666471129 | W155: 8.390805272 | X155: -108.3935635 | Y155: 71.60643649 | AB155: 12.79878936 | AC155: -17.05964016 | AI155: 46.04959081 | AJ155: -91.33392335 | AL155: 0 | AM155: 0 | AN155: 0 | AO155: 0
B156: 8811.05 | C156: 10.11527156 | D156: 1.47177416 | E156: 1.00037998 | F156: 0.02756302485 | G156: 1.003547906 | H156: -0.08411240055 | I156: 6648.125277 | J156: 1.570645908 | K156: 4.854134935 | L156: 1.363300663 | M156: 1.004041045 | N156: 0.08974946763 | U156: 1.001428002 | V156: 0.0670324992 | W156: 8.338856242 | X156: -108.4294408 | Y156: 71.57055918 | AB156: 12.79624867 | AC156: -17.02227317 | AI156: 46.00018248 | AJ156: -91.40716765 | AL156: 0 | AM156: 0 | AN156: 0 | AO156: 0
B157: 8861.775 | C157: 10.17293741 | D157: 1.472337299 | E157: 1.000384367 | F157: 0.02772162346 | G157: 1.003588801 | H157: -0.08459433327 | I157: 6686.398371 | J157: 1.570646769 | K157: 4.880897328 | L157: 1.364454854 | M157: 1.004087612 | N157: 0.09026335919 | U157: 1.001444484 | V157: 0.0674178765 | W157: 8.287221452 | X157: -108.4656753 | Y157: 71.53432468 | AB157: 12.79374131 | AC157: -16.98563603 | AI157: 45.95105505 | AJ157: -91.48003929 | AL157: 0 | AM157: 0 | AN157: 0 | AO157: 0
B158: 8912.5 | C158: 10.23060645 | D158: 1.472894089 | E158: 1.000388779 | F158: 0.02788022067 | G158: 1.003629929 | H158: -0.0850762266 | I158: 6724.671465 | J158: 1.570647621 | K158: 4.907666153 | L158: 1.365596456 | M158: 1.004134445 | N158: 0.09077720295 | U158: 1.001461059 | V158: 0.06780324473 | W158: 8.235897024 | X158: -108.5022614 | Y158: 71.4977386 | AB158: 12.79126651 | AC158: -16.94971692 | AI158: 45.90220542 | AJ158: -91.55254449 | AL158: 0 | AM158: 0 | AN158: 0 | AO158: 0
B159: 8964.4 | C159: 10.28961458 | D159: 1.473457317 | E159: 1.00039332 | F159: 0.0280424902 | G159: 1.00367225 | H159: -0.08556924157 | I159: 6763.831122 | J159: 1.570648482 | K159: 4.935061601 | L159: 1.366751682 | M159: 1.004182637 | N159: 0.09130289971 | U159: 1.001478117 | V159: 0.06819753025 | W159: 8.183700971 | X159: -108.5400531 | Y159: 71.45994686 | AB159: 12.7887673 | AC159: -16.91369687 | AI159: 45.85250858 | AJ159: -91.62635628 | AL159: 0 | AM159: 0 | AN159: 0 | AO159: 0
B160: 9016.3 | C160: 10.34862594 | D160: 1.474014122 | E160: 1.000397886 | F160: 0.02820475825 | G160: 1.003714816 | H160: -0.08606221484 | I160: 6802.990779 | J160: 1.570649333 | K160: 4.962463562 | L160: 1.367894152 | M160: 1.004231106 | N160: 0.09182854586 | U160: 1.001495273 | V160: 0.06859180618 | W160: 8.131821839 | X160: -108.5782014 | Y160: 71.42179857 | AB160: 12.78630059 | AC160: -16.87840424 | AI160: 45.80309615 | AJ160: -91.69979719 | AL160: 0 | AM160: 0 | AN160: 0 | AO160: 0
B161: 9068.2 | C161: 10.40764048 | D161: 1.474564612 | E161: 1.000402479 | F161: 0.02836702482 | G161: 1.003757626 | H161: -0.08655514619 | I161: 6842.150436 | J161: 1.570650174 | K161: 4.98987193 | L161: 1.369024072 | M161: 1.004279852 | N161: 0.09235414112 | U161: 1.001512528 | V161: 0.06898607246 | W161: 8.080255704 | X161: -108.6167006 | Y161: 71.3832994 | AB161: 12.78386562 | AC161: -16.84382716 | AI161: 45.75396499 | AJ161: -91.77287344 | AL161: 0 | AM161: 0 | AN161: 0 | AO161: 0
B162: 9120.1 | C162: 10.46665813 | D162: 1.475108894 | E162: 1.000407098 | F162: 0.02852928989 | G162: 1.003800679 | H162: -0.08704803537 | I162: 6881.310092 | J162: 1.570651006 | K162: 5.017286598 | L162: 1.370141647 | M162: 1.004328876 | N162: 0.09287968523 | U162: 1.001529882 | V162: 0.06938032903 | W162: 8.028998711 | X162: -108.6555451 | Y162: 71.34445488 | AB162: 12.78146163 | AC162: -16.809954 | AI162: 45.70511199 | AJ162: -91.84559113 | AL162: 0 | AM162: 0 | AN162: 0 | AO162: 0
B163: 9173.2 | C163: 10.52704353 | D163: 1.475659445 | E163: 1.000411852 | F163: 0.0286953052 | G163: 1.00384498 | H163: -0.08755227695 | I163: 6921.375175 | J163: 1.570651847 | K163: 5.045341546 | L163: 1.371272489 | M163: 1.004379321 | N163: 0.09341732739 | U163: 1.00154774 | V163: 0.06978369127 | W163: 7.97687259 | X163: -108.6956395 | Y163: 71.30436046 | AB163: 12.77903336 | AC163: -16.77601429 | AI163: 45.65541413 | AJ163: -91.91962524 | AL163: 0 | AM163: 0 | AN163: 0 | AO163: 0
B164: 9226.3 | C164: 10.58743208 | D164: 1.476203715 | E164: 1.000416632 | F164: 0.02886131893 | G164: 1.003889537 | H164: -0.0880564739 | I164: 6961.440257 | J164: 1.570652678 | K164: 5.073402875 | L164: 1.372390824 | M164: 1.004430056 | N164: 0.09395491539 | U164: 1.001565701 | V164: 0.07018704323 | W164: 7.925062139 | X164: -108.7360841 | Y164: 71.26391593 | AB164: 12.77663602 | AC164: -16.74278759 | AI164: 45.60600103 | AJ164: -91.99329647 | AL164: 0 | AM164: 0 | AN164: 0 | AO164: 0
B165: 9279.4 | C165: 10.64782373 | D165: 1.476741812 | E165: 1.000421441 | F165: 0.02902733107 | G165: 1.003934348 | H165: -0.08856062596 | I165: 7001.50534 | J165: 1.5706535 | K165: 5.101470479 | L165: 1.373496855 | M165: 1.004481081 | N165: 0.09449244893 | U165: 1.001583765 | V165: 0.07059038486 | W165: 7.873563457 | X165: -108.7768731 | Y165: 71.22312687 | AB165: 12.77426885 | AC165: -16.71026223 | AI165: 45.55686952 | AJ165: -92.0666109 | AL165: 0 | AM165: 0 | AN165: 0 | AO165: 0
B166: 9332.5 | C166: 10.70821843 | D166: 1.477273839 | E166: 1.000426277 | F166: 0.0291933416 | G166: 1.003979415 | H166: -0.0890647329 | I166: 7041.570422 | J166: 1.570654313 | K166: 5.129544255 | L166: 1.37459078 | M166: 1.004532396 | N166: 0.09502992771 | U166: 1.001601933 | V166: 0.0709937161 | W166: 7.822372716 | X166: -108.8180012 | Y166: 71.18199877 | AB166: 12.77193114 | AC166: -16.67842676 | AI166: 45.50801648 | AJ166: -92.13957447 | AL166: 0 | AM166: 0 | AN166: 0 | AO166: 0
B167: 9386.85 | C167: 10.77003795 | D167: 1.47781221 | E167: 1.000431255 | F167: 0.02936325844 | G167: 1.004025807 | H167: -0.08958065975 | I167: 7082.578656 | J167: 1.570655135 | K167: 5.158285188 | L167: 1.375698124 | M167: 1.00458522 | N167: 0.09558000197 | U167: 1.001620636 | V167: 0.07140653113 | W167: 7.770291899 | X167: -108.860443 | Y167: 71.13955697 | AB167: 12.76956818 | AC167: -16.64654465 | AI167: 45.45829862 | AJ167: -92.21389838 | AL167: 0 | AM167: 0 | AN167: 0 | AO167: 0
B168: 9441.2 | C168: 10.83186056 | D168: 1.478344437 | E168: 1.000436263 | F168: 0.02953317359 | G168: 1.004072466 | H168: -0.0900965388 | I168: 7123.58689 | J168: 1.570655948 | K168: 5.187032377 | L168: 1.376793196 | M168: 1.004638348 | N168: 0.09613001822 | U168: 1.001639447 | V168: 0.07181933515 | W168: 7.718525799 | X168: -108.9032288 | Y168: 71.09677124 | AB168: 12.76723463 | AC168: -16.61536185 | AI168: 45.40886607 | AJ168: -92.28786691 | AL168: 0 | AM168: 0 | AN168: 0 | AO168: 0
B169: 9495.55 | C169: 10.8936862 | D169: 1.478870622 | E169: 1.000441299 | F169: 0.02970308702 | G169: 1.004119392 | H169: -0.09061236976 | I169: 7164.595124 | J169: 1.570656752 | K169: 5.215785717 | L169: 1.377876195 | M169: 1.00469178 | N169: 0.09667997614 | U169: 1.001658366 | V169: 0.0722321281 | W169: 7.667070536 | X169: -108.9463529 | Y169: 71.0536471 | AB169: 12.76492978 | AC169: -16.58486688 | AI169: 45.35971566 | AJ169: -92.36148602 | AL169: 0 | AM169: 0 | AN169: 0 | AO169: 0
B170: 9549.9 | C170: 10.95551482 | D170: 1.479390869 | E170: 1.000446364 | F170: 0.02987299874 | G170: 1.004166586 | H170: -0.09112815237 | I170: 7205.603358 | J170: 1.570657546 | K170: 5.244545108 | L170: 1.378947317 | M170: 1.004745515 | N170: 0.0972298754 | U170: 1.001677394 | V170: 0.07264490991 | W170: 7.615922301 | X170: -108.98981 | Y170: 71.01018997 | AB170: 12.76265294 | AC170: -16.55504849 | AI170: 45.31084427 | AJ170: -92.43476154 | AL170: 0 | AM170: 0 | AN170: 0 | AO170: 0
B171: 9605.525 | C171: 11.01879693 | D171: 1.479917274 | E171: 1.000451578 | F171: 0.03004689465 | G171: 1.004215163 | H171: -0.09165598442 | I171: 7247.573607 | J171: 1.57065835 | K171: 5.273985328 | L171: 1.38003147 | M171: 1.004800826 | N171: 0.0977926137 | U171: 1.00169698 | V171: 0.0730673636 | W171: 7.563888189 | X171: -109.0346259 | Y171: 70.96537411 | AB171: 12.76035099 | AC171: -16.52521968 | AI171: 45.2611121 | AJ171: -92.50940621 | AL171: 0 | AM171: 0 | AN171: 0 | AO171: 0
B172: 9661.15 | C172: 11.08208205 | D172: 1.480437667 | E172: 1.000456822 | F172: 0.03022078874 | G172: 1.00426402 | H172: -0.09218376526 | I172: 7289.543856 | J172: 1.570659144 | K172: 5.303431679 | L172: 1.381103585 | M172: 1.004856455 | N172: 0.09835528987 | U172: 1.00171668 | V172: 0.07348980549 | W172: 7.512167827 | X172: -109.0797794 | Y172: 70.92022059 | AB172: 12.75807698 | AC172: -16.49607651 | AI172: 45.21166575 | AJ172: -92.5837029 | AL172: 0 | AM172: 0 | AN172: 0 | AO172: 0
B173: 9716.775 | C173: 11.14537013 | D173: 1.480952151 | E173: 1.000462096 | F173: 0.03039468099 | G173: 1.004313157 | H173: -0.0927114946 | I173: 7331.514105 | J173: 1.570659929 | K173: 5.332884058 | L173: 1.382163859 | M173: 1.004912402 | N173: 0.09891790357 | U173: 1.001736493 | V173: 0.07391223551 | W173: 7.460757353 | X173: -109.1252651 | Y173: 70.87473488 | AB173: 12.75583024 | AC173: -16.46760766 | AI173: 45.16250202 | AJ173: -92.65765745 | AL173: 0 | AM173: 0 | AN173: 0 | AO173: 0
B174: 9772.4 | C174: 11.20866114 | D174: 1.481460824 | E174: 1.000467401 | F174: 0.03056857141 | G174: 1.004362573 | H174: -0.09323917216 | I174: 7373.484354 | J174: 1.570660706 | K174: 5.362342367 | L174: 1.383212485 | M174: 1.004968667 | N174: 0.09948045445 | U174: 1.00175642 | V174: 0.0743346536 | W174: 7.409652977 | X174: -109.1710777 | Y174: 70.82892233 | AB174: 12.7536101 | AC174: -16.4398021 | AI174: 45.11361779 | AJ174: -92.73127557 | AL174: 0 | AM174: 0 | AN174: 0 | AO174: 0
B175: 9829.3 | C175: 11.27340582 | D175: 1.481975247 | E175: 1.000472858 | F175: 0.03074644572 | G175: 1.004413411 | H175: -0.09377889092 | I175: 7416.416617 | J175: 1.570661491 | K175: 5.392481933 | L175: 1.384273292 | M175: 1.00502655 | N175: 0.1000558344 | U175: 1.001776921 | V175: 0.07476674167 | W175: 7.357690044 | X175: -109.218273 | Y175: 70.78172699 | AB175: 12.75136592 | AC175: -16.41203418 | AI175: 45.06389903 | AJ175: -92.80623884 | AL175: 0 | AM175: 0 | AN175: 0 | AO175: 0
B176: 9886.2 | C176: 11.33815346 | D176: 1.482483795 | E176: 1.000478347 | F176: 0.03092431809 | G176: 1.004464542 | H176: -0.0943185549 | I176: 7459.348881 | J176: 1.570662267 | K176: 5.4226275 | L176: 1.385322305 | M176: 1.005084767 | N176: 0.1006311479 | U176: 1.001797541 | V176: 0.0751988171 | W176: 7.3060396 | X176: -109.2657994 | Y176: 70.73420064 | AB176: 12.74914824 | AC176: -16.38493763 | AI176: 45.01446627 | AJ176: -92.88086173 | AL176: 0 | AM176: 0 | AN176: 0 | AO176: 0
B177: 9943.1 | C177: 11.40290399 | D177: 1.482986568 | E177: 1.000483868 | F177: 0.03110218849 | G177: 1.004515965 | H177: -0.09485816377 | I177: 7502.281144 | J177: 1.570663034 | K177: 5.452778968 | L177: 1.386359719 | M177: 1.005143316 | N177: 0.1012063945 | U177: 1.001818279 | V177: 0.07563087984 | W177: 7.254697808 | X177: -109.3136513 | Y177: 70.68634867 | AB177: 12.7469564 | AC177: -16.35850139 | AI177: 44.96531631 | AJ177: -92.95514994 | AL177: 0 | AM177: 0 | AN177: 0 | AO177: 0
B178: 10000 | C178: 11.46765737 | D178: 1.483483663 | E178: 1.000489421 | F178: 0.03128005693 | G178: 1.004567681 | H178: -0.09539771725 | I178: 7545.213408 | J178: 1.570663792 | K178: 5.48293624 | L178: 1.387385721 | M178: 1.005202197 | N178: 0.101781574 | U178: 1.001839136 | V178: 0.07606292979 | W178: 7.203660903 | X178: -109.3618236 | Y178: 70.63817637 | AB178: 12.74478978 | AC178: -16.33271459 | AI178: 44.91644603 | AJ178: -93.02910904 | AL178: 0 | AM178: 0 | AN178: 0 | AO178: 0
B179: 10058.25 | C179: 11.53394999 | D179: 1.48398677 | E179: 1.000495137 | F179: 0.03146214339 | G179: 1.004620927 | H179: -0.09595001437 | I179: 7589.164275 | J179: 1.57066456 | K179: 5.513814932 | L179: 1.388424439 | M179: 1.00526282 | N179: 0.10237033 | U179: 1.001860611 | V179: 0.07650521719 | W179: 7.151725068 | X179: -109.4114653 | Y179: 70.58853472 | AB179: 12.74259723 | AC179: -16.30697763 | AI179: 44.86670274 | AJ179: -93.10448766 | AL179: 0 | AM179: 0 | AN179: 0 | AO179: 0
B180: 10116.5 | C180: 11.60024549 | D180: 1.484484126 | E180: 1.000500888 | F180: 0.03164422777 | G180: 1.004674479 | H180: -0.09650225279 | I180: 7633.115143 | J180: 1.570665319 | K180: 5.544699506 | L180: 1.389451587 | M180: 1.005323792 | N180: 0.1029590149 | U180: 1.001882211 | V180: 0.07694749105 | W180: 7.100100992 | X180: -109.4614318 | Y180: 70.5385682 | AB180: 12.74042982 | AC180: -16.28189902 | AI180: 44.81724608 | AJ180: -93.17953278 | AL180: 0 | AM180: 0 | AN180: 0 | AO180: 0
B181: 10174.75 | C181: 11.66654382 | D181: 1.48497583 | E181: 1.000506671 | F181: 0.03182631005 | G181: 1.004728338 | H181: -0.09705443216 | I181: 7677.06601 | J181: 1.570666069 | K181: 5.575589865 | L181: 1.390467355 | M181: 1.005385111 | N181: 0.1035476281 | U181: 1.001903935 | V181: 0.07738975129 | W181: 7.048784852 | X181: -109.5117178 | Y181: 70.48828216 | AB181: 12.73828692 | AC181: -16.25746785 | AI181: 44.76807284 | AJ181: -93.25424999 | AL181: 0 | AM181: 0 | AN181: 0 | AO181: 0
B182: 10233 | C182: 11.73284495 | D182: 1.485461977 | E182: 1.000512487 | F182: 0.03200839021 | G182: 1.004782502 | H182: -0.09760655218 | I182: 7721.016877 | J182: 1.57066681 | K182: 5.606485913 | L182: 1.391471928 | M182: 1.005446779 | N182: 0.1041361694 | U182: 1.001925783 | V182: 0.07783199783 | W182: 6.997772899 | X182: -109.5623182 | Y182: 70.4376818 | AB182: 12.73616793 | AC182: -16.23367346 | AI182: 44.71917987 | AJ182: -93.32864474 | AL182: 0 | AM182: 0 | AN182: 0 | AO182: 0
B183: 10292.5 | C183: 11.80057168 | D183: 1.485952917 | E183: 1.000518463 | F183: 0.03219437549 | G183: 1.004838146 | H183: -0.09817045863 | I183: 7765.910896 | J183: 1.570667559 | K183: 5.638050743 | L183: 1.392486691 | M183: 1.00551013 | N183: 0.1047372655 | U183: 1.001948228 | V183: 0.07828372042 | W183: 6.945976487 | X183: -109.6143236 | Y183: 70.38567641 | AB183: 12.73402754 | AC183: -16.21001501 | AI183: 44.66952385 | AJ183: -93.40430858 | AL183: 0 | AM183: 0 | AN183: 0 | AO183: 0
B184: 10352 | C184: 11.86830121 | D184: 1.486438253 | E184: 1.000524473 | F184: 0.03238035853 | G184: 1.004894108 | H184: -0.09873430245 | I184: 7810.804915 | J184: 1.570668299 | K184: 5.669621315 | L184: 1.393490153 | M184: 1.005573844 | N184: 0.1053382857 | U184: 1.001970804 | V184: 0.07873542856 | W184: 6.894489761 | X184: -109.6666463 | Y184: 70.33335375 | AB184: 12.73191087 | AC184: -16.18699917 | AI184: 44.6201538 | AJ184: -93.47964708 | AL184: 0 | AM184: 0 | AN184: 0 | AO184: 0
B185: 10411.5 | C185: 11.93603352 | D185: 1.486918081 | E185: 1.000530518 | F185: 0.03256633934 | G185: 1.004950391 | H185: -0.0992980833 | I185: 7855.698934 | J185: 1.570669031 | K185: 5.701197532 | L185: 1.394482501 | M185: 1.005637922 | N185: 0.1059392295 | U185: 1.001993509 | V185: 0.07918712217 | W185: 6.843308941 | X185: -109.719281 | Y185: 70.28071904 | AB185: 12.72981732 | AC185: -16.16461528 | AI185: 44.57106653 | AJ185: -93.55466569 | AL185: 0 | AM185: 0 | AN185: 0 | AO185: 0
B186: 10471 | C186: 12.00376853 | D186: 1.487392494 | E186: 1.000536597 | F186: 0.03275231789 | G186: 1.005006992 | H186: -0.09986180082 | I186: 7900.592953 | J186: 1.570669754 | K186: 5.732779301 | L186: 1.395463917 | M186: 1.005702362 | N186: 0.1065400966 | U186: 1.002016343 | V186: 0.07963880116 | W186: 6.792430313 | X186: -109.7722226 | Y186: 70.2277774 | AB186: 12.72774632 | AC186: -16.1428529 | AI186: 44.5222589 | AJ186: -93.62936969 | AL186: 0 | AM186: 0 | AN186: 0 | AO186: 0
B187: 10532 | C187: 12.07321393 | D187: 1.48787334 | E187: 1.000542866 | F187: 0.03294298262 | G187: 1.005065352 | H187: -0.1004396636 | I187: 7946.618754 | J187: 1.570670487 | K187: 5.765162919 | L187: 1.39645891 | M187: 1.005768804 | N187: 0.1071560313 | U187: 1.002039889 | V187: 0.08010185175 | W187: 6.740578932 | X187: -109.8268123 | Y187: 70.17318773 | AB187: 12.72564592 | AC187: -16.12117644 | AI187: 44.47250792 | AJ187: -93.70563583 | AL187: 0 | AM187: 0 | AN187: 0 | AO187: 0
B188: 10593 | C188: 12.14266209 | D188: 1.488348687 | E188: 1.00054917 | F188: 0.03313364496 | G188: 1.005124048 | H188: -0.1010174591 | I188: 7992.644555 | J188: 1.570671212 | K188: 5.79755218 | L188: 1.397442787 | M188: 1.005835628 | N188: 0.1077718845 | U188: 1.00206357 | V188: 0.0805648868 | W188: 6.689037487 | X188: -109.881714 | Y188: 70.11828603 | AB188: 12.72356804 | AC188: -16.10013175 | AI188: 44.42304435 | AJ188: -93.78158223 | AL188: 0 | AM188: 0 | AN188: 0 | AO188: 0
B189: 10654 | C189: 12.21211296 | D189: 1.488818627 | E189: 1.000555512 | F189: 0.03332430489 | G189: 1.005183079 | H189: -0.1015951869 | I189: 8038.670356 | J189: 1.570671928 | K189: 5.829946991 | L189: 1.398415731 | M189: 1.005902833 | N189: 0.1083876556 | U189: 1.002087388 | V189: 0.08102790623 | W189: 6.637802192 | X189: -109.9369225 | Y189: 70.06307749 | AB189: 12.72151211 | AC189: -16.0797083 | AI189: 44.37386499 | AJ189: -93.85721421 | AL189: 0 | AM189: 0 | AN189: 0 | AO189: 0
B190: 10715 | C190: 12.2815665 | D190: 1.489283251 | E190: 1.000561889 | F190: 0.03351496239 | G190: 1.005242446 | H190: -0.1021728467 | I190: 8084.696157 | J190: 1.570672636 | K190: 5.862347259 | L190: 1.399377921 | M190: 1.005970419 | N190: 0.1090033442 | U190: 1.002111343 | V190: 0.08149090994 | W190: 6.586869334 | X190: -109.9924328 | Y190: 70.00756719 | AB190: 12.71947756 | AC190: -16.0598958 | AI190: 44.32496668 | AJ190: -93.93253701 | AL190: 0 | AM190: 0 | AN190: 0 | AO190: 0
B191: 10777.5 | C191: 12.35273062 | D191: 1.489753882 | E191: 1.000568462 | F191: 0.03371030567 | G191: 1.00530362 | H191: -0.1027646402 | I191: 8131.85374 | J191: 1.570673354 | K191: 5.895549822 | L191: 1.400352802 | M191: 1.006040063 | N191: 0.1096340866 | U191: 1.002136028 | V191: 0.08196528259 | W191: 6.534993898 | X191: -110.0496159 | Y191: 69.95038411 | AB191: 12.7174146 | AC191: -16.04021923 | AI191: 44.27515421 | AJ191: -94.00939666 | AL191: 0 | AM191: 0 | AN191: 0 | AO191: 0
B192: 10840 | C192: 12.42389746 | D192: 1.490219122 | E192: 1.000575072 | F192: 0.03390564637 | G192: 1.005365147 | H192: -0.1033563616 | I192: 8179.011323 | J192: 1.570674063 | K192: 5.928757926 | L192: 1.401316762 | M192: 1.006110106 | N192: 0.1102647415 | U192: 1.002160856 | V192: 0.08243963856 | W192: 6.483428275 | X192: -110.1071053 | Y192: 69.89289471 | AB192: 12.71537295 | AC192: -16.02116286 | AI192: 44.22563023 | AJ192: -94.08594244 | AL192: 0 | AM192: 0 | AN192: 0 | AO192: 0
B193: 10902.5 | C193: 12.49506695 | D193: 1.490679061 | E193: 1.00058172 | F193: 0.03410098448 | G193: 1.005427025 | H193: -0.1039480103 | I193: 8226.168906 | J193: 1.570674764 | K193: 5.961971477 | L193: 1.402269983 | M193: 1.00618055 | N193: 0.1108953083 | U193: 1.002185827 | V193: 0.08291397775 | W193: 6.432168684 | X193: -110.1648959 | Y193: 69.83510412 | AB193: 12.71335207 | AC193: -16.00271629 | AI193: 44.17639152 | AJ193: -94.16217959 | AL193: 0 | AM193: 0 | AN193: 0 | AO193: 0
B194: 10965 | C194: 12.56623905 | D194: 1.491133791 | E194: 1.000588407 | F194: 0.03429631999 | G194: 1.005489255 | H194: -0.1045395859 | I194: 8273.32649 | J194: 1.570675456 | K194: 5.995190385 | L194: 1.403212642 | M194: 1.006251394 | N194: 0.1115257865 | U194: 1.002210941 | V194: 0.08338830005 | W194: 6.381211414 | X194: -110.2229826 | Y194: 69.77701738 | AB194: 12.71135143 | AC194: -15.98486938 | AI194: 44.12743489 | AJ194: -94.23811324 | AL194: 0 | AM194: 0 | AN194: 0 | AO194: 0
B195: 11028.75 | C195: 12.63883725 | D195: 1.491592339 | E195: 1.000595267 | F195: 0.03449555951 | G195: 1.005553093 | H195: -0.1051429175 | I195: 8321.427224 | J195: 1.570676155 | K195: 6.029079099 | L195: 1.404163451 | M195: 1.006324067 | N195: 0.1121687827 | U195: 1.002236705 | V195: 0.08387209132 | W195: 6.329542671 | X195: -110.2825311 | Y195: 69.71746891 | AB195: 12.70933107 | AC195: -15.96727301 | AI195: 44.07778651 | AJ195: -94.31525808 | AL195: 0 | AM195: 0 | AN195: 0 | AO195: 0
B196: 11092.5 | C196: 12.71143807 | D196: 1.492045649 | E196: 1.000602166 | F196: 0.03469479629 | G196: 1.005617296 | H196: -0.1057461722 | I196: 8369.527959 | J196: 1.570676846 | K196: 6.062973202 | L196: 1.405103631 | M196: 1.006397156 | N196: 0.1128116857 | U196: 1.002262619 | V196: 0.08435586483 | W196: 6.278180877 | X196: -110.3423774 | Y196: 69.65762256 | AB196: 12.70733067 | AC196: -15.95027989 | AI196: 44.02842511 | AJ196: -94.39209754 | AL196: 0 | AM196: 0 | AN196: 0 | AO196: 0
B197: 11156.25 | C197: 12.78404147 | D197: 1.492493811 | E197: 1.000609106 | F197: 0.03489403032 | G197: 1.005681865 | H197: -0.1063493497 | I197: 8417.628694 | J197: 1.570677528 | K197: 6.096872605 | L197: 1.406033356 | M197: 1.006470661 | N197: 0.113454495 | U197: 1.00228868 | V197: 0.08483962048 | W197: 6.227122304 | X197: -110.4025167 | Y197: 69.59748334 | AB197: 12.70534973 | AC197: -15.93387994 | AI197: 43.97934748 | AJ197: -94.46863672 | AL197: 0 | AM197: 0 | AN197: 0 | AO197: 0
B198: 11220 | C198: 12.85664741 | D198: 1.49293691 | E198: 1.000616085 | F198: 0.03509326158 | G198: 1.0057468 | H198: -0.1069524495 | I198: 8465.729428 | J198: 1.570678203 | K198: 6.13077722 | L198: 1.406952799 | M198: 1.006544581 | N198: 0.1140972102 | U198: 1.002314891 | V198: 0.08532335816 | W198: 6.176363293 | X198: -110.4629438 | Y198: 69.53705616 | AB198: 12.70338772 | AC198: -15.91806329 | AI198: 43.93055047 | AJ198: -94.54488055 | AL198: 0 | AM198: 0 | AN198: 0 | AO198: 0
B199: 11285.5 | C199: 12.93124906 | D199: 1.493386991 | E199: 1.000623297 | F199: 0.03529795902 | G199: 1.005813899 | H199: -0.1075720236 | I199: 8515.150575 | J199: 1.570678889 | K199: 6.165617888 | L199: 1.407886948 | M199: 1.006620964 | N199: 0.11475747 | U199: 1.002341977 | V199: 0.08582035611 | W199: 6.124519133 | X199: -110.5253247 | Y199: 69.47467532 | AB199: 12.70139107 | AC199: -15.90240984 | AI199: 43.88070297 | AJ199: -94.62291484 | AL199: 0 | AM199: 0 | AN199: 0 | AO199: 0
B200: 11351 | C200: 13.00585329 | D200: 1.493831908 | E200: 1.00063055 | F200: 0.03550265351 | G200: 1.005881384 | H200: -0.1081915149 | I200: 8564.571722 | J200: 1.570679567 | K200: 6.200463875 | L200: 1.408810599 | M200: 1.006697786 | N200: 0.1154176293 | U200: 1.002369219 | V200: 0.08631733488 | W200: 6.072983589 | X200: -110.5879993 | Y200: 69.41200067 | AB200: 12.69941336 | AC200: -15.88735173 | AI200: 43.83114514 | AJ200: -94.70064761 | AL200: 0 | AM200: 0 | AN200: 0 | AO200: 0
B201: 11416.5 | C201: 13.08046007 | D201: 1.49427175 | E201: 1.000637846 | F201: 0.03570734502 | G201: 1.005949254 | H201: -0.1088109228 | I201: 8613.992869 | J201: 1.570680237 | K201: 6.235315093 | L201: 1.409723925 | M201: 1.006775046 | N201: 0.1160776875 | U201: 1.002396619 | V201: 0.08681429436 | W201: 6.021752907 | X201: -110.6509628 | Y201: 69.3490372 | AB201: 12.6974541 | AC201: -15.87287892 | AI201: 43.78187372 | AJ201: -94.77808387 | AL201: 0 | AM201: 0 | AN201: 0 | AO201: 0
... 435 more rows

Sheet Schematic Management (hidden)
A2: =CHOOSE(With_CDC,CHOOSE(With_RCS, "SCH772_NO_RCS_NO_CDC", "SCH772_RCS_LIM_NO_CDC","SCH772_RCS_LIM_DAC_NO_CDC"),CHOOSE(With_RCS, "SCH772_NO_RCS","SCH772_RCS_LIM","SCH772_RCS_LIM_DAC")) -> SCH772_RCS_LIM
B6: "SCH772_NO_RCS_NO_CDC" | D6: "SCH772_RCS_LIM_NO_CDC" | F6: "SCH772_RCS_LIM_DAC_NO_CDC"
B17: "SCH772_NO_RCS" | D17: "SCH772_RCS_LIM" | F17: "SCH772_RCS_LIM_DAC"

Sheet Efficiency Plot Management (hidden)
A2: =IF(PLOT_TYPE=1, "EFF_IOUT", "EFF_VIN") -> EFF_VIN
A9: =IF(BODEPLOT_TYPE=FALSE, "BodePlot", "BodePlot_ILim") -> BodePlot

Sheet Efficiency vs VIN Calculations (hidden)
A1: BUCK-BOOST CONTROLLER POWER TOOL
H2: =BH9 -> 0.8904864956 | I2: Low VIN
H3: =BH109 -> 0.9448384436 | I3: Nom VIN
H4: =BH209 -> 0.9468345857 | I4: High VIN
A6: Enter the values of your design and MOSFET datasheet specifications below. Note that thermal resistance (θJA) will change when components are placed on the PCB | BY6: 80 | BZ6: 100 | CA6: 120 | CB6: 140 | CC6: 160 | CD6: 180 | CE6: 20 | CF6: 30 | CG6: 40 | CH6: 50
G7: Operating Point Condtions | U7: Filter Inductor | Y7: Cout | AB7: Cin | AE7: High-side BUCK "Control" MOSFET Losses | AJ7: Low-side BUCK "Sync" MOSFET Losses | AN7: Low-side BOOST "Control" MOSFET Losses | AS7: High-side BOOST "Sync" MOSFET Losses | AW7: Pass FET | AX7: External Diode | AY7: Diode/FET | AZ7: Sense Rs | BA7: Output Rs | BB7: Controller IC Losses | BF7: RESULTS | BL7: Consolidated Buck/Boost Efficiency & Losses
A8: Input Parameters | G8: Step | H8: Vin | I8: Mode | J8: Mode Digit | K8: Iout | L8: Iin | M8: Avg IL | N8: Duty Cycle BUCK Leg | O8: Duty Cycle BOOST Leg | P8: BOE/BUD BUBO ratio | Q8: T BOE | R8: T BOD/BUE | S8: T BUD | T8: Ripple Current pk-pk | U8: Irms Lf | V8: DCR Loss | W8: Core Loss | X8: Total Inductor Loss | Y8: Irms Cout | Z8: Cout ESR Loss | AA8: Total Cout Loss | AB8: Irms Cin | AC8: Cin ESR Loss | AD8: Total Cin Loss | AE8: Irms BuCtrl | AF8: RDS(on) Loss BuCtrl | AG8: Transition Loss BuCtrl | AH8: Dead Time Loss BuCtrl | AI8: Total Control Bu MOSFET Loss | AJ8: Irms BuSync | AK8: RDS(on) Loss BuSync | AL8: Deadtime Loss BuSync | AM8: Total Sync Bu MOSFET Loss | AN8: Irms BoCtlr | AO8: RDS(on) Loss BoCtlr | AP8: Transition Loss BoCtlr | AQ8: Dead Time Loss BoCtlr | AR8: Total Control Bo MOSFET Loss | AS8: Irms BoSync | AT8: RDS(on) Loss BoSync | AU8: Deadtime Loss BoSync | AV8: Total Sync Bo MOSFET Loss | AW8: Q1/Q3 RDS(on) Loss @ D = 100% | AX8: Deadtime Loss ext D | AY8: Reverse Recovery Loss MOSFET D | AZ8: Isense Shunt Loss | BA8: Iout Shunt Loss | BB8: IQ Loss | BC8: Switching Current Loss | BD8: Switching Current Diss | BE8: Total IC Loss | BF8: Total Loss | BG8: Pout | BH8: EFF, h | BI8: Control FET Temp Rise | BJ8: Sync FET Temp Rise | BK8: Column1 | BL8: h | BM8: Inductor Cu & Core Loss | BN8: Total MOSFET Loss | BO8: Total Sync MOSFET Loss | BP8: Shunt Loss | BW8: Qg | BY8: θJA=80 | BZ8: θJA=100 | CA8: θJA=120 | CB8: θJA=140 | CC8: θJA=160 | CD8: θJA=180 | CE8: θJA=20 | CF8: θJA=30 | CG8: θJA=40 | CH8: θJA=50
A9: Design | B9: Input Value | C9: Units | D9: Description | G9: 0 | H9: =VIN_min+(VIN_max-VIN_min)*(Table1[[#This Row],[Step]]/200) -> 6 | I9: =IF(Table1[[#This Row],[Vin]]>VIN_BB_to_buck, "BUCK", IF(Table1[[#This Row],[Vin]]<=VIN_boost_to_BB,"BOOST","BUCK-BST")) -> BOOST | J9: =IF(Table1[[#This Row],[Mode]]="BOOST",2, IF(Table1[[#This Row],[Mode]]="BUCK", 1,3)) -> 2 | K9: =Iout -> 3.3 | L9: =Vout*Table1[[#This Row],[Iout]]/(Table1[[#This Row],[Vin]]*Efficiency) -> 11.57894737 | M9: =Iout/(1-Table1[[#This Row],[Duty Cycle BOOST Leg]]) -> 11.26124035 | N9: =CHOOSE(Table1[[#This Row],[Mode Digit]],(Vout+(Rdson2+Rs+Rdcr)*Table1[[#This Row],[Iout]])/(Table1[[#This Row],[Vin]]+(Rs+Rdson2-Rdson1)*Table1[[#This Row],[Iout]]),1,IF(Table1[[#This Row],[Vin]]<Vout,D_max_buck_BB,Vout/Table1[[#This Row],[Vin]]*(1-D_min_boost_exitBB_to_buck))) -> 1 | O9: =CHOOSE(Table1[[#This Row],[Mode Digit]],0,(Vout+(Rdson3+Rdcr)*Table1[[#This Row],[Iin]]-Table1[[#This Row],[Vin]])/(Vout+(Rdson3-Rdson4-Rs)*Table1[[#This Row],[Iin]]),IF(Table1[[#This Row],[Vin]]>Vout, (Vout-Table1[[#This Row],[Vin]]*D_max_exitBB_to_buck)/Vout, (Vout-Table1[[#This Row],[Vin]]*D_max_buck_BB)/Vout)) -> 0.7069594559 | P9: =CHOOSE(Table1[[#This Row],[Mode Digit]],0,0,1-((Table1[[#This Row],[Vin]]-Vout)+((VIN_BB_to_buck-VIN_BB_to_boost)/2))/((VIN_BB_to_buck-VIN_BB_to_boost))) -> 0 | Q9: =CHOOSE(Table1[[#This Row],[Mode Digit]],0,Table1[[#This Row],[Duty Cycle BOOST Leg]]/Fsw,(1/Fsw-Table1[[#This Row],[T BOD/BUE]])*Table1[[#This Row],[BOE/BUD BUBO ratio]]) -> 1.149527571e-06 | R9: =CHOOSE(Table1[[#This Row],[Mode Digit]],Table1[[#This Row],[Duty Cycle BUCK Leg]]/Fsw,(1-Table1[[#This Row],[Duty Cycle BOOST Leg]])/Fsw,TonBubo) -> 4.764886896e-07 | S9: =CHOOSE(Table1[[#This Row],[Mode Digit]],(1-Table1[[#This Row],[Duty Cycle BUCK Leg]])/Fsw,0,(1/Fsw-Table1[[#This Row],[T BOD/BUE]]-Table1[[#This Row],[T BOE]])) -> 0 | T9: =MAX(0, CHOOSE(Table1[[#This Row],[Mode Digit]], (Table1[[#This Row],[Vin]]-(Rdson1+Rdcr)*Table1[[#This Row],[Iout]]-Vout)*Table1[[#This Row],[Duty Cycle BUCK Leg]]/(Fsw*Lf), (Table1[[#This Row],[Vin]]-(Rdson4+Rdcr+Rs)*Table1[[#This Row],[Iin]])*Table1[[#This Row],[Duty Cycle BOOST Leg]]/(Fsw*Lf), IF(Table1[[#This Row],[Vin]]<Vout, (Table1[[#This Row],[Vin]]-(Rdson1+Rdson3+Rdcr+Rs)*Table1[[#This Row],[Iin]])*Table1[[#This Row],[T BOE]]/(Lf),(Vout-(Rdson2+Rdson4+Rdcr+Rs)*Table1[[#This Row],[Iout]])*Table1[[#This Row],[T BUD]]/(Lf)))) -> 2.03801888 | U9: =CHOOSE(Table1[[#This Row],[Mode Digit]], SQRT(Table1[[#This Row],[Iout]]^2+(Table1[[#This Row],[Ripple Current pk-pk]]^2)/12), SQRT(Table1[[#This Row],[Iin]]^2+(Table1[[#This Row],[Ripple Current pk-pk]]^2)/12), SQRT(Table1[[#This Row],[Avg IL]]^2+(Table1[[#This Row],[Ripple Current pk-pk]]^2)/12)) -> 11.59388412 | V9: =(Table1[[#This Row],[Irms Lf]]^2*Rdcr*(1+Ltc*Ta-Ltc*25))/(1-Table1[[#This Row],[Irms Lf]]^2*Rdcr*Ltc*ThetaCa) -> 0.8467921144 | W9: =ABS(7.759*10^-3*Fsw^0.9458*(0.00787*Table1[[#This Row],[Ripple Current pk-pk]])^2.304) -> 0.1696935439 | X9: =Table1[[#This Row],[DCR Loss]]+Table1[[#This Row],[Core Loss]] -> 1.016485658 | Y9: =IF(Table1[[#This Row],[Vin]]>Vout, Table1[[#This Row],[Ripple Current pk-pk]]/SQRT(12), SQRT(Table1[[#This Row],[Duty Cycle BOOST Leg]]/(1-Table1[[#This Row],[Duty Cycle BOOST Leg]]))*SQRT(Table1[[#This Row],[Iout]]^2+(Table1[[#This Row],[Ripple Current pk-pk]]^2)/12)) -> 5.206450127 | Z9: =RCoutEsr*Table1[[#This Row],[Irms Cout]]^2 -> 0.2249891203 | AA9: =Table1[[#This Row],[Cout ESR Loss]] -> 0.2249891203 | AB9: =IF(Table1[[#This Row],[Vin]]>Vout, SQRT(Table1[[#This Row],[Duty Cycle BUCK Leg]]*(1-Table1[[#This Row],[Duty Cycle BUCK Leg]]))*SQRT(Table1[[#This Row],[Iout]]^2+(Table1[[#This Row],[Ripple Current pk-pk]]^2)/12), Table1[[#This Row],[Ripple Current pk-pk]]/SQRT(12)) -> 0.5883253746 | AC9: =RCinEsr*Table1[[#This Row],[Irms Cin]]^2 -> 0.002872851995 | AD9: =Table1[[#This Row],[Cin ESR Loss]] -> 0.002872851995 | AE9: =Table1[[#This Row],[Irms Lf]] -> 11.59388412 | AF9: =Rdson1*Table1[[#This Row],[Irms BuCtrl]]^2 -> 0.5376725956 | AG9: =CHOOSE(Table1[[#This Row],[Mode Digit]], (Table1[[#This Row],[Vin]]*Table1[[#This Row],[Iout]]/2)*(Fsw)*(Tr_buck+Tf_buck), 0, (Table1[[#This Row],[Vin]]*Table1[[#This Row],[Avg IL]]/2)*(Fsw/1)*(Tr_buck+Tf_buck)) -> 0 | AH9: =IF(Table1[[#This Row],[Vin]]>Vout, IF(Table1[[#This Row],[Iout]]>Table1[[#This Row],[Ripple Current pk-pk]]/2,0,ABS(Table1[[#This Row],[Iout]]-Table1[[#This Row],[Ripple Current pk-pk]]/2)*Vsd_Q1*Deadtime*Fsw),0) -> 0 | AI9: =(Table1[[#This Row],[Dead Time Loss BuCtrl]]+Table1[[#This Row],[Transition Loss BuCtrl]]+Table1[[#This Row],[RDS(on) Loss BuCtrl]]*(1+RdsonTopTc*Ta-RdsonTopTc*25))/(1-Table1[[#This Row],[RDS(on) Loss BuCtrl]]*RdsonTopTc*ThetaJA_Q1) -> 0.6203982358 | AJ9: =Table1[[#This Row],[Irms Lf]] -> 11.59388412 | AK9: =Rdson2*Table1[[#This Row],[Irms BuSync]]^2 -> 0.5376725956 | AL9: =CHOOSE(Table1[[#This Row],[Mode Digit]], IF(Table1[[#This Row],[Iout]]<Table1[[#This Row],[Ripple Current pk-pk]]/2,Deadtime*Fsw*IF(VfdSky_Q2>0,0,Vsd_Q2)*(Table1[[#This Row],[Iout]]+Table1[[#This Row],[Ripple Current pk-pk]]/2),2*Deadtime*Fsw*IF(VfdSky_Q2>0,0,Vsd_Q2)*Table1[[#This Row],[Iout]]),0, IF(Table1[[#This Row],[Iout]]<Table1[[#This Row],[Ripple Current pk-pk]]/2,Deadtime*Fsw*IF(VfdSky_Q2>0,0,Vsd_Q2)*(Table1[[#This Row],[Iout]]+Table1[[#This Row],[Ripple Current pk-pk]]/2),2*Deadtime*Fsw*IF(VfdSky_Q2>0,0,Vsd_Q2)*Table1[[#This Row],[Iout]])) -> 0 | AM9: =(Table1[[#This Row],[Deadtime Loss BuSync]]+Table1[[#This Row],[RDS(on) Loss BuSync]]*(1+RdsonBotTc*Ta-RdsonBotTc*25))/(1-Table1[[#This Row],[RDS(on) Loss BuSync]]*RdsonBotTc*ThetaJA_Q2) -> 0.6203982358 | AN9: =Table1[[#This Row],[Irms Lf]] -> 11.59388412 | AO9: =Rdson4*Table1[[#This Row],[Irms BoCtlr]]^2 -> 0.5376725956 | AP9: =CHOOSE(Table1[[#This Row],[Mode Digit]], 0, (Vout*Table1[[#This Row],[Iin]]/2)*(Fsw)*(Tr_boost+Tf_boost), (Vout*Iout/2)*(Fsw/1)*(Tr_boost+Tf_boost)) -> 1.751420282 | AQ9: =IF(Table1[[#This Row],[Vin]]>Vout, 0, IF(Table1[[#This Row],[Iin]]>Table1[[#This Row],[Ripple Current pk-pk]]/2,0,ABS(Table1[[#This Row],[Iin]]-Table1[[#This Row],[Ripple Current pk-pk]]/2)*Vsd_Q4*Deadtime*Fsw)) -> 0 | AR9: =(Table1[[#This Row],[Dead Time Loss BoCtlr]]+Table1[[#This Row],[Transition Loss BoCtlr]]+Table1[[#This Row],[RDS(on) Loss BoCtlr]]*(1+RdsonTopTc*Ta-RdsonTopTc*25))/(1-Table1[[#This Row],[RDS(on) Loss BoCtlr]]*RdsonTopTc*ThetaJA_Q4) -> 2.641289875 | AS9: =Table1[[#This Row],[Irms Lf]] -> 11.59388412 | AT9: =Rdson3*Table1[[#This Row],[Irms BoSync]]^2 -> 0.5376725956 | AU9: =CHOOSE(Table1[[#This Row],[Mode Digit]], 0, IF(Table1[[#This Row],[Iin]]<Table1[[#This Row],[Ripple Current pk-pk]]/2,Deadtime*Fsw*IF(VfdSky_Q3>0,0,Vsd_Q3)*(Table1[[#This Row],[Iin]]+Table1[[#This Row],[Ripple Current pk-pk]]/2), 2*Deadtime*Fsw*IF(VfdSky_Q3>0,0,Vsd_Q3)*Table1[[#This Row],[Iin]]), IF(Table1[[#This Row],[Iin]]<Table1[[#This Row],[Ripple Current pk-pk]]/2,Deadtime*Fsw*IF(VfdSky_Q3>0,0,Vsd_Q3)*(Table1[[#This Row],[Iin]]+Table1[[#This Row],[Ripple Current pk-pk]]/2), 2*Deadtime*Fsw*IF(VfdSky_Q3>0,0,Vsd_Q3)*Table1[[#This Row],[Iin]])) -> 0.8545263158 | AV9: =(Table1[[#This Row],[Deadtime Loss BoSync]]+Table1[[#This Row],[RDS(on) Loss BoSync]]*(1+RdsonBotTc*Ta-RdsonBotTc*25))/(1-Table1[[#This Row],[RDS(on) Loss BoSync]]*RdsonBotTc*ThetaJA_Q3) -> 1.606400913 | AW9: =CHOOSE(Table1[[#This Row],[Mode Digit]], Rdson3*Table1[[#This Row],[Irms Lf]]^2, Rdson1*Table1[[#This Row],[Irms Lf]]^2, 0) -> 0.5376725956 | AX9: =CHOOSE(Table1[[#This Row],[Mode Digit]], 2*Deadtime*Fsw*IF(VfdSky_Q2>0,VfdSky_Q2,0)*Table1[[#This Row],[Iout]], 2*Deadtime*Fsw*IF(VfdSky_Q3>0,VfdSky_Q3,0)*Table1[[#This Row],[Iin]], 2*Deadtime*Fsw*IF(VfdSky_Q2>0,VfdSky_Q2,0)*Table1[[#This Row],[Iout]]+2*Deadtime*Fsw*IF(VfdSky_Q3>0,VfdSky_Q3,0)*Table1[[#This Row],[Iin]]) -> 0 | AY9: =CHOOSE(Table1[[#This Row],[Mode Digit]], IF(QrrSky_Q2>0,QrrSky_Q2,Qrr_Q2)*Fsw*(Table1[[#This Row],[Vin]]-Table1[[#This Row],[Iout]]*Rdson1), IF(QrrSky_Q3>0,QrrSky_Q3,Qrr_Q3)*Fsw*Vout, IF(QrrSky_Q2>0,QrrSky_Q2,Qrr_Q2)*Fsw*(Table1[[#This Row],[Vin]]-Table1[[#This Row],[Iout]]*Rdson1)+IF(QrrSky_Q3>0,QrrSky_Q3,Qrr_Q3)*Fsw*Vout) -> 0.2706 | AZ9: =CHOOSE(Table1[[#This Row],[Mode Digit]], Rs*Table1[[#This Row],[Irms BuSync]]^2, Rs*Table1[[#This Row],[Irms BoCtlr]]^2, Rs*(Table1[[#This Row],[Irms BuSync]]^2+Table1[[#This Row],[Irms BoCtlr]]^2)) -> 0.4032544467 | BA9: =Rshunt/1000*Iout^2 -> 0.1089 | BB9: =IF(Vout>8, Iq*Vout, Iq*Table1[[#This Row],[Vin]]) -> 0.06 | BC9: =CHOOSE(Table1[[#This Row],[Mode Digit]], (Qg_Q1+Qg_Q2)*Fsw, (Qg_Q3+Qg_Q4)*Fsw, (Qg_Q1+Qg_Q2+Qg_Q3+Qg_Q4)*Fsw)*IF(Vout>8, Vout, Table1[[#This Row],[Vin]]) -> 0.5412 | BD9: =(Vin-Vdd)*Fsw*(Qg_Q1+Qg_Q2)+(RdsonDRT+RdsonDRT2)*Fsw*Qg_Q1*Vdd/(RdsonDRT+2*Rgate1+RdsonDRT2)+(RdsonDRB+RdsonDRB2)*Fsw*Qg_Q2*Vdd/(RdsonDRB+2*Rgate2+RdsonDRB2) -> 0.1912734247 | BE9: =Table1[[#This Row],[IQ Loss]]+Table1[[#This Row],[Switching Current Loss]] -> 0.6012 | BF9: =SUM(Table1[[#This Row],[Total Inductor Loss]],Table1[[#This Row],[Total Cout Loss]],Table1[[#This Row],[Total Cin Loss]],Table1[[#This Row],[Total Control Bu MOSFET Loss]],Table1[[#This Row],[Total Sync Bu MOSFET Loss]],Table1[[#This Row],[Total Control Bo MOSFET Loss]],Table1[[#This Row],[Total Sync Bo MOSFET Loss]], Table1[[#This Row],[Deadtime Loss ext D]],Table1[[#This Row],[Reverse Recovery Loss MOSFET D]],Table1[[#This Row],[Total IC Loss]],Table1[[#This Row],[Isense Shunt Loss]],Table1[[#This Row],[Iout Shunt Loss]]) -> 8.116789337 | BG9: =Vout*Table1[[#This Row],[Iout]] -> 66 | BH9: =Table1[[#This Row],[Pout]]/(Table1[[#This Row],[Pout]]+Table1[[#This Row],[Total Loss]]) -> 0.8904864956 | BI9: =IF(Table1[[#This Row],[Vin]]>Vout,ThetaJA_Q1*(Table1[[#This Row],[Total Control Bu MOSFET Loss]]+Table1[[#This Row],[Reverse Recovery Loss MOSFET D]]),ThetaJA_Q4*(Table1[[#This Row],[Total Control Bo MOSFET Loss]]+Table1[[#This Row],[Reverse Recovery Loss MOSFET D]])) -> 180.5371723 | BJ9: =IF(Table1[[#This Row],[Vin]]>Vout, Table1[[#This Row],[Total Sync Bu MOSFET Loss]]*ThetaJA_Q2, ThetaJA_Q3*Table1[[#This Row],[Total Sync Bo MOSFET Loss]]) -> 99.59685661 | BL9: =Table1[[#This Row],[EFF, h]]*100 -> 89.04864956 | BM9: =Table1[[#This Row],[Total Inductor Loss]] -> 1.016485658 | BN9: =Table1[[#This Row],[Total Control Bu MOSFET Loss]]+Table1[[#This Row],[Total Sync Bu MOSFET Loss]]+Table1[[#This Row],[Total Control Bo MOSFET Loss]]+Table1[[#This Row],[Total Sync Bo MOSFET Loss]]+Table1[[#This Row],[Reverse Recovery Loss MOSFET D]] -> 5.75908726 | BO9: =Table1[[#This Row],[Total Sync Bu MOSFET Loss]]+Table1[[#This Row],[Reverse Recovery Loss MOSFET D]]*0.33 -> 0.7096962358 | BP9: =Table1[[#This Row],[Isense Shunt Loss]] -> 0.4032544467 | BT9: 250kHz / 5-1.2V /25A | BU9: 70 | BV9: 70 | BW9: 70 | BX9: =250000*(5-Vdd)*BW9/1000000000+((250000*BW9/1000000000*Vdd)*2.5/(2*4)) -> -0.002734375 | BY9: =BY$6*$BX9 -> -0.21875 | BZ9: -0.2734375 | CA9: -0.328125 | CB9: -0.3828125 | CC9: -0.4375 | CD9: -0.4921875 | CE9: -0.0546875 | CF9: -0.08203125 | CG9: -0.109375 | CH9: -0.13671875
G10: 1 | H10: =VIN_min+(VIN_max-VIN_min)*(Table1[[#This Row],[Step]]/200) -> 6.15 | I10: =IF(Table1[[#This Row],[Vin]]>VIN_BB_to_buck, "BUCK", IF(Table1[[#This Row],[Vin]]<=VIN_boost_to_BB,"BOOST","BUCK-BST")) -> BOOST | J10: =IF(Table1[[#This Row],[Mode]]="BOOST",2, IF(Table1[[#This Row],[Mode]]="BUCK", 1,3)) -> 2 | K10: 3.3 | L10: =Vout*Table1[[#This Row],[Iout]]/(Table1[[#This Row],[Vin]]*Efficiency) -> 11.29653402 | M10: =Iout/(1-Table1[[#This Row],[Duty Cycle BOOST Leg]]) -> 10.9735426 | N10: =CHOOSE(Table1[[#This Row],[Mode Digit]],(Vout+(Rdson2+Rs+Rdcr)*Table1[[#This Row],[Iout]])/(Table1[[#This Row],[Vin]]+(Rs+Rdson2-Rdson1)*Table1[[#This Row],[Iout]]),1,IF(Table1[[#This Row],[Vin]]<Vout,D_max_buck_BB,Vout/Table1[[#This Row],[Vin]]*(1-D_min_boost_exitBB_to_buck))) -> 1 | O10: =CHOOSE(Table1[[#This Row],[Mode Digit]],0,(Vout+(Rdson3+Rdcr)*Table1[[#This Row],[Iin]]-Table1[[#This Row],[Vin]])/(Vout+(Rdson3-Rdson4-Rs)*Table1[[#This Row],[Iin]]),IF(Table1[[#This Row],[Vin]]>Vout, (Vout-Table1[[#This Row],[Vin]]*D_max_exitBB_to_buck)/Vout, (Vout-Table1[[#This Row],[Vin]]*D_max_buck_BB)/Vout)) -> 0.6992766948 | P10: =CHOOSE(Table1[[#This Row],[Mode Digit]],0,0,1-((Table1[[#This Row],[Vin]]-Vout)+((VIN_BB_to_buck-VIN_BB_to_boost)/2))/((VIN_BB_to_buck-VIN_BB_to_boost))) -> 0 | Q10: =CHOOSE(Table1[[#This Row],[Mode Digit]],0,Table1[[#This Row],[Duty Cycle BOOST Leg]]/Fsw,(1/Fsw-Table1[[#This Row],[T BOD/BUE]])*Table1[[#This Row],[BOE/BUD BUBO ratio]]) -> 1.137035276e-06 | R10: =CHOOSE(Table1[[#This Row],[Mode Digit]],Table1[[#This Row],[Duty Cycle BUCK Leg]]/Fsw,(1-Table1[[#This Row],[Duty Cycle BOOST Leg]])/Fsw,TonBubo) -> 4.889809841e-07 | S10: =CHOOSE(Table1[[#This Row],[Mode Digit]],(1-Table1[[#This Row],[Duty Cycle BUCK Leg]])/Fsw,0,(1/Fsw-Table1[[#This Row],[T BOD/BUE]]-Table1[[#This Row],[T BOE]])) -> 0 | T10: =MAX(0, CHOOSE(Table1[[#This Row],[Mode Digit]], (Table1[[#This Row],[Vin]]-(Rdson1+Rdcr)*Table1[[#This Row],[Iout]]-Vout)*Table1[[#This Row],[Duty Cycle BUCK Leg]]/(Fsw*Lf), (Table1[[#This Row],[Vin]]-(Rdson4+Rdcr+Rs)*Table1[[#This Row],[Iin]])*Table1[[#This Row],[Duty Cycle BOOST Leg]]/(Fsw*Lf), IF(Table1[[#This Row],[Vin]]<Vout, (Table1[[#This Row],[Vin]]-(Rdson1+Rdson3+Rdcr+Rs)*Table1[[#This Row],[Iin]])*Table1[[#This Row],[T BOE]]/(Lf),(Vout-(Rdson2+Rdson4+Rdcr+Rs)*Table1[[#This Row],[Iout]])*Table1[[#This Row],[T BUD]]/(Lf)))) -> 2.068809744 | U10: =CHOOSE(Table1[[#This Row],[Mode Digit]], SQRT(Table1[[#This Row],[Iout]]^2+(Table1[[#This Row],[Ripple Current pk-pk]]^2)/12), SQRT(Table1[[#This Row],[Iin]]^2+(Table1[[#This Row],[Ripple Current pk-pk]]^2)/12), SQRT(Table1[[#This Row],[Avg IL]]^2+(Table1[[#This Row],[Ripple Current pk-pk]]^2)/12)) -> 11.31230946 | V10: =(Table1[[#This Row],[Irms Lf]]^2*Rdcr*(1+Ltc*Ta-Ltc*25))/(1-Table1[[#This Row],[Irms Lf]]^2*Rdcr*Ltc*ThetaCa) -> 0.8035484123 | W10: =ABS(7.759*10^-3*Fsw^0.9458*(0.00787*Table1[[#This Row],[Ripple Current pk-pk]])^2.304) -> 0.1756587443 | X10: =Table1[[#This Row],[DCR Loss]]+Table1[[#This Row],[Core Loss]] -> 0.9792071566 | Y10: =IF(Table1[[#This Row],[Vin]]>Vout, Table1[[#This Row],[Ripple Current pk-pk]]/SQRT(12), SQRT(Table1[[#This Row],[Duty Cycle BOOST Leg]]/(1-Table1[[#This Row],[Duty Cycle BOOST Leg]]))*SQRT(Table1[[#This Row],[Iout]]^2+(Table1[[#This Row],[Ripple Current pk-pk]]^2)/12)) -> 5.113907329 | Z10: =RCoutEsr*Table1[[#This Row],[Irms Cout]]^2 -> 0.2170619998 | AA10: =Table1[[#This Row],[Cout ESR Loss]] -> 0.2170619998 | AB10: =IF(Table1[[#This Row],[Vin]]>Vout, SQRT(Table1[[#This Row],[Duty Cycle BUCK Leg]]*(1-Table1[[#This Row],[Duty Cycle BUCK Leg]]))*SQRT(Table1[[#This Row],[Iout]]^2+(Table1[[#This Row],[Ripple Current pk-pk]]^2)/12), Table1[[#This Row],[Ripple Current pk-pk]]/SQRT(12)) -> 0.5972139312 | AC10: =RCinEsr*Table1[[#This Row],[Irms Cin]]^2 -> 0.002960315181 | AD10: =Table1[[#This Row],[Cin ESR Loss]] -> 0.002960315181 | AE10: =Table1[[#This Row],[Irms Lf]] -> 11.31230946 | AF10: =Rdson1*Table1[[#This Row],[Irms BuCtrl]]^2 -> 0.5118733812 | AG10: =CHOOSE(Table1[[#This Row],[Mode Digit]], (Table1[[#This Row],[Vin]]*Table1[[#This Row],[Iout]]/2)*(Fsw)*(Tr_buck+Tf_buck), 0, (Table1[[#This Row],[Vin]]*Table1[[#This Row],[Avg IL]]/2)*(Fsw/1)*(Tr_buck+Tf_buck)) -> 0 | AH10: =IF(Table1[[#This Row],[Vin]]>Vout, IF(Table1[[#This Row],[Iout]]>Table1[[#This Row],[Ripple Current pk-pk]]/2,0,ABS(Table1[[#This Row],[Iout]]-Table1[[#This Row],[Ripple Current pk-pk]]/2)*Vsd_Q1*Deadtime*Fsw),0) -> 0 | AI10: =(Table1[[#This Row],[Dead Time Loss BuCtrl]]+Table1[[#This Row],[Transition Loss BuCtrl]]+Table1[[#This Row],[RDS(on) Loss BuCtrl]]*(1+RdsonTopTc*Ta-RdsonTopTc*25))/(1-Table1[[#This Row],[RDS(on) Loss BuCtrl]]*RdsonTopTc*ThetaJA_Q1) -> 0.5863011446 | AJ10: =Table1[[#This Row],[Irms Lf]] -> 11.31230946 | AK10: =Rdson2*Table1[[#This Row],[Irms BuSync]]^2 -> 0.5118733812 | AL10: =CHOOSE(Table1[[#This Row],[Mode Digit]], IF(Table1[[#This Row],[Iout]]<Table1[[#This Row],[Ripple Current pk-pk]]/2,Deadtime*Fsw*IF(VfdSky_Q2>0,0,Vsd_Q2)*(Table1[[#This Row],[Iout]]+Table1[[#This Row],[Ripple Current pk-pk]]/2),2*Deadtime*Fsw*IF(VfdSky_Q2>0,0,Vsd_Q2)*Table1[[#This Row],[Iout]]),0, IF(Table1[[#This Row],[Iout]]<Table1[[#This Row],[Ripple Current pk-pk]]/2,Deadtime*Fsw*IF(VfdSky_Q2>0,0,Vsd_Q2)*(Table1[[#This Row],[Iout]]+Table1[[#This Row],[Ripple Current pk-pk]]/2),2*Deadtime*Fsw*IF(VfdSky_Q2>0,0,Vsd_Q2)*Table1[[#This Row],[Iout]])) -> 0 | AM10: =(Table1[[#This Row],[Deadtime Loss BuSync]]+Table1[[#This Row],[RDS(on) Loss BuSync]]*(1+RdsonBotTc*Ta-RdsonBotTc*25))/(1-Table1[[#This Row],[RDS(on) Loss BuSync]]*RdsonBotTc*ThetaJA_Q2) -> 0.5863011446 | AN10: =Table1[[#This Row],[Irms Lf]] -> 11.31230946 | AO10: =Rdson4*Table1[[#This Row],[Irms BoCtlr]]^2 -> 0.5118733812 | AP10: =CHOOSE(Table1[[#This Row],[Mode Digit]], 0, (Vout*Table1[[#This Row],[Iin]]/2)*(Fsw)*(Tr_boost+Tf_boost), (Vout*Iout/2)*(Fsw/1)*(Tr_boost+Tf_boost)) -> 1.708702714 | AQ10: =IF(Table1[[#This Row],[Vin]]>Vout, 0, IF(Table1[[#This Row],[Iin]]>Table1[[#This Row],[Ripple Current pk-pk]]/2,0,ABS(Table1[[#This Row],[Iin]]-Table1[[#This Row],[Ripple Current pk-pk]]/2)*Vsd_Q4*Deadtime*Fsw)) -> 0 | AR10: =(Table1[[#This Row],[Dead Time Loss BoCtlr]]+Table1[[#This Row],[Transition Loss BoCtlr]]+Table1[[#This Row],[RDS(on) Loss BoCtlr]]*(1+RdsonTopTc*Ta-RdsonTopTc*25))/(1-Table1[[#This Row],[RDS(on) Loss BoCtlr]]*RdsonTopTc*ThetaJA_Q4) -> 2.54345382 | AS10: =Table1[[#This Row],[Irms Lf]] -> 11.31230946 | AT10: =Rdson3*Table1[[#This Row],[Irms BoSync]]^2 -> 0.5118733812 | AU10: =CHOOSE(Table1[[#This Row],[Mode Digit]], 0, IF(Table1[[#This Row],[Iin]]<Table1[[#This Row],[Ripple Current pk-pk]]/2,Deadtime*Fsw*IF(VfdSky_Q3>0,0,Vsd_Q3)*(Table1[[#This Row],[Iin]]+Table1[[#This Row],[Ripple Current pk-pk]]/2), 2*Deadtime*Fsw*IF(VfdSky_Q3>0,0,Vsd_Q3)*Table1[[#This Row],[Iin]]), IF(Table1[[#This Row],[Iin]]<Table1[[#This Row],[Ripple Current pk-pk]]/2,Deadtime*Fsw*IF(VfdSky_Q3>0,0,Vsd_Q3)*(Table1[[#This Row],[Iin]]+Table1[[#This Row],[Ripple Current pk-pk]]/2), 2*Deadtime*Fsw*IF(VfdSky_Q3>0,0,Vsd_Q3)*Table1[[#This Row],[Iin]])) -> 0.8336842105 | AV10: =(Table1[[#This Row],[Deadtime Loss BoSync]]+Table1[[#This Row],[RDS(on) Loss BoSync]]*(1+RdsonBotTc*Ta-RdsonBotTc*25))/(1-Table1[[#This Row],[RDS(on) Loss BoSync]]*RdsonBotTc*ThetaJA_Q3) -> 1.541205277 | AW10: =CHOOSE(Table1[[#This Row],[Mode Digit]], Rdson3*Table1[[#This Row],[Irms Lf]]^2, Rdson1*Table1[[#This Row],[Irms Lf]]^2, 0) -> 0.5118733812 | AX10: =CHOOSE(Table1[[#This Row],[Mode Digit]], 2*Deadtime*Fsw*IF(VfdSky_Q2>0,VfdSky_Q2,0)*Table1[[#This Row],[Iout]], 2*Deadtime*Fsw*IF(VfdSky_Q3>0,VfdSky_Q3,0)*Table1[[#This Row],[Iin]], 2*Deadtime*Fsw*IF(VfdSky_Q2>0,VfdSky_Q2,0)*Table1[[#This Row],[Iout]]+2*Deadtime*Fsw*IF(VfdSky_Q3>0,VfdSky_Q3,0)*Table1[[#This Row],[Iin]]) -> 0 | AY10: =CHOOSE(Table1[[#This Row],[Mode Digit]], IF(QrrSky_Q2>0,QrrSky_Q2,Qrr_Q2)*Fsw*(Table1[[#This Row],[Vin]]-Table1[[#This Row],[Iout]]*Rdson1), IF(QrrSky_Q3>0,QrrSky_Q3,Qrr_Q3)*Fsw*Vout, IF(QrrSky_Q2>0,QrrSky_Q2,Qrr_Q2)*Fsw*(Table1[[#This Row],[Vin]]-Table1[[#This Row],[Iout]]*Rdson1)+IF(QrrSky_Q3>0,QrrSky_Q3,Qrr_Q3)*Fsw*Vout) -> 0.2706 | AZ10: =CHOOSE(Table1[[#This Row],[Mode Digit]], Rs*Table1[[#This Row],[Irms BuSync]]^2, Rs*Table1[[#This Row],[Irms BoCtlr]]^2, Rs*(Table1[[#This Row],[Irms BuSync]]^2+Table1[[#This Row],[Irms BoCtlr]]^2)) -> 0.3839050359 | BA10: 0.1089 | BB10: =IF(Vout>8, Iq*Vout, Iq*Table1[[#This Row],[Vin]]) -> 0.06 | BC10: =CHOOSE(Table1[[#This Row],[Mode Digit]], (Qg_Q1+Qg_Q2)*Fsw, (Qg_Q3+Qg_Q4)*Fsw, (Qg_Q1+Qg_Q2+Qg_Q3+Qg_Q4)*Fsw)*IF(Vout>8, Vout, Table1[[#This Row],[Vin]]) -> 0.5412 | BD10: 0.1912734247 | BE10: =Table1[[#This Row],[IQ Loss]]+Table1[[#This Row],[Switching Current Loss]] -> 0.6012 | BF10: =SUM(Table1[[#This Row],[Total Inductor Loss]],Table1[[#This Row],[Total Cout Loss]],Table1[[#This Row],[Total Cin Loss]],Table1[[#This Row],[Total Control Bu MOSFET Loss]],Table1[[#This Row],[Total Sync Bu MOSFET Loss]],Table1[[#This Row],[Total Control Bo MOSFET Loss]],Table1[[#This Row],[Total Sync Bo MOSFET Loss]], Table1[[#This Row],[Deadtime Loss ext D]],Table1[[#This Row],[Reverse Recovery Loss MOSFET D]],Table1[[#This Row],[Total IC Loss]],Table1[[#This Row],[Isense Shunt Loss]],Table1[[#This Row],[Iout Shunt Loss]]) -> 7.821095893 | BG10: =Vout*Table1[[#This Row],[Iout]] -> 66 | BH10: =Table1[[#This Row],[Pout]]/(Table1[[#This Row],[Pout]]+Table1[[#This Row],[Total Loss]]) -> 0.894053376 | BI10: =IF(Table1[[#This Row],[Vin]]>Vout,ThetaJA_Q1*(Table1[[#This Row],[Total Control Bu MOSFET Loss]]+Table1[[#This Row],[Reverse Recovery Loss MOSFET D]]),ThetaJA_Q4*(Table1[[#This Row],[Total Control Bo MOSFET Loss]]+Table1[[#This Row],[Reverse Recovery Loss MOSFET D]])) -> 174.4713368 | BJ10: =IF(Table1[[#This Row],[Vin]]>Vout, Table1[[#This Row],[Total Sync Bu MOSFET Loss]]*ThetaJA_Q2, ThetaJA_Q3*Table1[[#This Row],[Total Sync Bo MOSFET Loss]]) -> 95.55472716 | BL10: =Table1[[#This Row],[EFF, h]]*100 -> 89.4053376 | BM10: =Table1[[#This Row],[Total Inductor Loss]] -> 0.9792071566 | BN10: =Table1[[#This Row],[Total Control Bu MOSFET Loss]]+Table1[[#This Row],[Total Sync Bu MOSFET Loss]]+Table1[[#This Row],[Total Control Bo MOSFET Loss]]+Table1[[#This Row],[Total Sync Bo MOSFET Loss]]+Table1[[#This Row],[Reverse Recovery Loss MOSFET D]] -> 5.527861386 | BO10: =Table1[[#This Row],[Total Sync Bu MOSFET Loss]]+Table1[[#This Row],[Reverse Recovery Loss MOSFET D]]*0.33 -> 0.6755991446 | BP10: =Table1[[#This Row],[Isense Shunt Loss]] -> 0.3839050359
A11: Vin | B11: =Vin -> 12 | C11: V | D11: Vin | G11: 2 | H11: =VIN_min+(VIN_max-VIN_min)*(Table1[[#This Row],[Step]]/200) -> 6.3 | I11: =IF(Table1[[#This Row],[Vin]]>VIN_BB_to_buck, "BUCK", IF(Table1[[#This Row],[Vin]]<=VIN_boost_to_BB,"BOOST","BUCK-BST")) -> BOOST | J11: =IF(Table1[[#This Row],[Mode]]="BOOST",2, IF(Table1[[#This Row],[Mode]]="BUCK", 1,3)) -> 2 | K11: 3.3 | L11: =Vout*Table1[[#This Row],[Iout]]/(Table1[[#This Row],[Vin]]*Efficiency) -> 11.02756892 | M11: =Iout/(1-Table1[[#This Row],[Duty Cycle BOOST Leg]]) -> 10.70048109 | N11: =CHOOSE(Table1[[#This Row],[Mode Digit]],(Vout+(Rdson2+Rs+Rdcr)*Table1[[#This Row],[Iout]])/(Table1[[#This Row],[Vin]]+(Rs+Rdson2-Rdson1)*Table1[[#This Row],[Iout]]),1,IF(Table1[[#This Row],[Vin]]<Vout,D_max_buck_BB,Vout/Table1[[#This Row],[Vin]]*(1-D_min_boost_exitBB_to_buck))) -> 1 | O11: =CHOOSE(Table1[[#This Row],[Mode Digit]],0,(Vout+(Rdson3+Rdcr)*Table1[[#This Row],[Iin]]-Table1[[#This Row],[Vin]])/(Vout+(Rdson3-Rdson4-Rs)*Table1[[#This Row],[Iin]]),IF(Table1[[#This Row],[Vin]]>Vout, (Vout-Table1[[#This Row],[Vin]]*D_max_exitBB_to_buck)/Vout, (Vout-Table1[[#This Row],[Vin]]*D_max_buck_BB)/Vout)) -> 0.691602651 | P11: =CHOOSE(Table1[[#This Row],[Mode Digit]],0,0,1-((Table1[[#This Row],[Vin]]-Vout)+((VIN_BB_to_buck-VIN_BB_to_boost)/2))/((VIN_BB_to_buck-VIN_BB_to_boost))) -> 0 | Q11: =CHOOSE(Table1[[#This Row],[Mode Digit]],0,Table1[[#This Row],[Duty Cycle BOOST Leg]]/Fsw,(1/Fsw-Table1[[#This Row],[T BOD/BUE]])*Table1[[#This Row],[BOE/BUD BUBO ratio]]) -> 1.124557156e-06 | R11: =CHOOSE(Table1[[#This Row],[Mode Digit]],Table1[[#This Row],[Duty Cycle BUCK Leg]]/Fsw,(1-Table1[[#This Row],[Duty Cycle BOOST Leg]])/Fsw,TonBubo) -> 5.014591041e-07 | S11: =CHOOSE(Table1[[#This Row],[Mode Digit]],(1-Table1[[#This Row],[Duty Cycle BUCK Leg]])/Fsw,0,(1/Fsw-Table1[[#This Row],[T BOD/BUE]]-Table1[[#This Row],[T BOE]])) -> 0 | T11: =MAX(0, CHOOSE(Table1[[#This Row],[Mode Digit]], (Table1[[#This Row],[Vin]]-(Rdson1+Rdcr)*Table1[[#This Row],[Iout]]-Vout)*Table1[[#This Row],[Duty Cycle BUCK Leg]]/(Fsw*Lf), (Table1[[#This Row],[Vin]]-(Rdson4+Rdcr+Rs)*Table1[[#This Row],[Iin]])*Table1[[#This Row],[Duty Cycle BOOST Leg]]/(Fsw*Lf), IF(Table1[[#This Row],[Vin]]<Vout, (Table1[[#This Row],[Vin]]-(Rdson1+Rdson3+Rdcr+Rs)*Table1[[#This Row],[Iin]])*Table1[[#This Row],[T BOE]]/(Lf),(Vout-(Rdson2+Rdson4+Rdcr+Rs)*Table1[[#This Row],[Iout]])*Table1[[#This Row],[T BUD]]/(Lf)))) -> 2.098404693 | U11: =CHOOSE(Table1[[#This Row],[Mode Digit]], SQRT(Table1[[#This Row],[Iout]]^2+(Table1[[#This Row],[Ripple Current pk-pk]]^2)/12), SQRT(Table1[[#This Row],[Iin]]^2+(Table1[[#This Row],[Ripple Current pk-pk]]^2)/12), SQRT(Table1[[#This Row],[Avg IL]]^2+(Table1[[#This Row],[Ripple Current pk-pk]]^2)/12)) -> 11.04419387 | V11: =(Table1[[#This Row],[Irms Lf]]^2*Rdcr*(1+Ltc*Ta-Ltc*25))/(1-Table1[[#This Row],[Irms Lf]]^2*Rdcr*Ltc*ThetaCa) -> 0.7636103323 | W11: =ABS(7.759*10^-3*Fsw^0.9458*(0.00787*Table1[[#This Row],[Ripple Current pk-pk]])^2.304) -> 0.1815024322 | X11: =Table1[[#This Row],[DCR Loss]]+Table1[[#This Row],[Core Loss]] -> 0.9451127645 | Y11: =IF(Table1[[#This Row],[Vin]]>Vout, Table1[[#This Row],[Ripple Current pk-pk]]/SQRT(12), SQRT(Table1[[#This Row],[Duty Cycle BOOST Leg]]/(1-Table1[[#This Row],[Duty Cycle BOOST Leg]]))*SQRT(Table1[[#This Row],[Iout]]^2+(Table1[[#This Row],[Ripple Current pk-pk]]^2)/12)) -> 5.024388559 | Z11: =RCoutEsr*Table1[[#This Row],[Irms Cout]]^2 -> 0.2095291872 | AA11: =Table1[[#This Row],[Cout ESR Loss]] -> 0.2095291872 | AB11: =IF(Table1[[#This Row],[Vin]]>Vout, SQRT(Table1[[#This Row],[Duty Cycle BUCK Leg]]*(1-Table1[[#This Row],[Duty Cycle BUCK Leg]]))*SQRT(Table1[[#This Row],[Iout]]^2+(Table1[[#This Row],[Ripple Current pk-pk]]^2)/12), Table1[[#This Row],[Ripple Current pk-pk]]/SQRT(12)) -> 0.6057572572 | AC11: =RCinEsr*Table1[[#This Row],[Irms Cin]]^2 -> 0.003045617393 | AD11: =Table1[[#This Row],[Cin ESR Loss]] -> 0.003045617393 | AE11: =Table1[[#This Row],[Irms Lf]] -> 11.04419387 | AF11: =Rdson1*Table1[[#This Row],[Irms BuCtrl]]^2 -> 0.4878968728 | AG11: =CHOOSE(Table1[[#This Row],[Mode Digit]], (Table1[[#This Row],[Vin]]*Table1[[#This Row],[Iout]]/2)*(Fsw)*(Tr_buck+Tf_buck), 0, (Table1[[#This Row],[Vin]]*Table1[[#This Row],[Avg IL]]/2)*(Fsw/1)*(Tr_buck+Tf_buck)) -> 0 | AH11: =IF(Table1[[#This Row],[Vin]]>Vout, IF(Table1[[#This Row],[Iout]]>Table1[[#This Row],[Ripple Current pk-pk]]/2,0,ABS(Table1[[#This Row],[Iout]]-Table1[[#This Row],[Ripple Current pk-pk]]/2)*Vsd_Q1*Deadtime*Fsw),0) -> 0 | AI11: =(Table1[[#This Row],[Dead Time Loss BuCtrl]]+Table1[[#This Row],[Transition Loss BuCtrl]]+Table1[[#This Row],[RDS(on) Loss BuCtrl]]*(1+RdsonTopTc*Ta-RdsonTopTc*25))/(1-Table1[[#This Row],[RDS(on) Loss BuCtrl]]*RdsonTopTc*ThetaJA_Q1) -> 0.5550580185 | AJ11: =Table1[[#This Row],[Irms Lf]] -> 11.04419387 | AK11: =Rdson2*Table1[[#This Row],[Irms BuSync]]^2 -> 0.4878968728 | AL11: =CHOOSE(Table1[[#This Row],[Mode Digit]], IF(Table1[[#This Row],[Iout]]<Table1[[#This Row],[Ripple Current pk-pk]]/2,Deadtime*Fsw*IF(VfdSky_Q2>0,0,Vsd_Q2)*(Table1[[#This Row],[Iout]]+Table1[[#This Row],[Ripple Current pk-pk]]/2),2*Deadtime*Fsw*IF(VfdSky_Q2>0,0,Vsd_Q2)*Table1[[#This Row],[Iout]]),0, IF(Table1[[#This Row],[Iout]]<Table1[[#This Row],[Ripple Current pk-pk]]/2,Deadtime*Fsw*IF(VfdSky_Q2>0,0,Vsd_Q2)*(Table1[[#This Row],[Iout]]+Table1[[#This Row],[Ripple Current pk-pk]]/2),2*Deadtime*Fsw*IF(VfdSky_Q2>0,0,Vsd_Q2)*Table1[[#This Row],[Iout]])) -> 0 | AM11: =(Table1[[#This Row],[Deadtime Loss BuSync]]+Table1[[#This Row],[RDS(on) Loss BuSync]]*(1+RdsonBotTc*Ta-RdsonBotTc*25))/(1-Table1[[#This Row],[RDS(on) Loss BuSync]]*RdsonBotTc*ThetaJA_Q2) -> 0.5550580185 | AN11: =Table1[[#This Row],[Irms Lf]] -> 11.04419387 | AO11: =Rdson4*Table1[[#This Row],[Irms BoCtlr]]^2 -> 0.4878968728 | AP11: =CHOOSE(Table1[[#This Row],[Mode Digit]], 0, (Vout*Table1[[#This Row],[Iin]]/2)*(Fsw)*(Tr_boost+Tf_boost), (Vout*Iout/2)*(Fsw/1)*(Tr_boost+Tf_boost)) -> 1.668019316 | AQ11: =IF(Table1[[#This Row],[Vin]]>Vout, 0, IF(Table1[[#This Row],[Iin]]>Table1[[#This Row],[Ripple Current pk-pk]]/2,0,ABS(Table1[[#This Row],[Iin]]-Table1[[#This Row],[Ripple Current pk-pk]]/2)*Vsd_Q4*Deadtime*Fsw)) -> 0 | AR11: =(Table1[[#This Row],[Dead Time Loss BoCtlr]]+Table1[[#This Row],[Transition Loss BoCtlr]]+Table1[[#This Row],[RDS(on) Loss BoCtlr]]*(1+RdsonTopTc*Ta-RdsonTopTc*25))/(1-Table1[[#This Row],[RDS(on) Loss BoCtlr]]*RdsonTopTc*ThetaJA_Q4) -> 2.452687514 | AS11: =Table1[[#This Row],[Irms Lf]] -> 11.04419387 | AT11: =Rdson3*Table1[[#This Row],[Irms BoSync]]^2 -> 0.4878968728 | AU11: =CHOOSE(Table1[[#This Row],[Mode Digit]], 0, IF(Table1[[#This Row],[Iin]]<Table1[[#This Row],[Ripple Current pk-pk]]/2,Deadtime*Fsw*IF(VfdSky_Q3>0,0,Vsd_Q3)*(Table1[[#This Row],[Iin]]+Table1[[#This Row],[Ripple Current pk-pk]]/2), 2*Deadtime*Fsw*IF(VfdSky_Q3>0,0,Vsd_Q3)*Table1[[#This Row],[Iin]]), IF(Table1[[#This Row],[Iin]]<Table1[[#This Row],[Ripple Current pk-pk]]/2,Deadtime*Fsw*IF(VfdSky_Q3>0,0,Vsd_Q3)*(Table1[[#This Row],[Iin]]+Table1[[#This Row],[Ripple Current pk-pk]]/2), 2*Deadtime*Fsw*IF(VfdSky_Q3>0,0,Vsd_Q3)*Table1[[#This Row],[Iin]])) -> 0.8138345865 | AV11: =(Table1[[#This Row],[Deadtime Loss BoSync]]+Table1[[#This Row],[RDS(on) Loss BoSync]]*(1+RdsonBotTc*Ta-RdsonBotTc*25))/(1-Table1[[#This Row],[RDS(on) Loss BoSync]]*RdsonBotTc*ThetaJA_Q3) -> 1.480920507 | AW11: =CHOOSE(Table1[[#This Row],[Mode Digit]], Rdson3*Table1[[#This Row],[Irms Lf]]^2, Rdson1*Table1[[#This Row],[Irms Lf]]^2, 0) -> 0.4878968728 | AX11: =CHOOSE(Table1[[#This Row],[Mode Digit]], 2*Deadtime*Fsw*IF(VfdSky_Q2>0,VfdSky_Q2,0)*Table1[[#This Row],[Iout]], 2*Deadtime*Fsw*IF(VfdSky_Q3>0,VfdSky_Q3,0)*Table1[[#This Row],[Iin]], 2*Deadtime*Fsw*IF(VfdSky_Q2>0,VfdSky_Q2,0)*Table1[[#This Row],[Iout]]+2*Deadtime*Fsw*IF(VfdSky_Q3>0,VfdSky_Q3,0)*Table1[[#This Row],[Iin]]) -> 0 | AY11: =CHOOSE(Table1[[#This Row],[Mode Digit]], IF(QrrSky_Q2>0,QrrSky_Q2,Qrr_Q2)*Fsw*(Table1[[#This Row],[Vin]]-Table1[[#This Row],[Iout]]*Rdson1), IF(QrrSky_Q3>0,QrrSky_Q3,Qrr_Q3)*Fsw*Vout, IF(QrrSky_Q2>0,QrrSky_Q2,Qrr_Q2)*Fsw*(Table1[[#This Row],[Vin]]-Table1[[#This Row],[Iout]]*Rdson1)+IF(QrrSky_Q3>0,QrrSky_Q3,Qrr_Q3)*Fsw*Vout) -> 0.2706 | AZ11: =CHOOSE(Table1[[#This Row],[Mode Digit]], Rs*Table1[[#This Row],[Irms BuSync]]^2, Rs*Table1[[#This Row],[Irms BoCtlr]]^2, Rs*(Table1[[#This Row],[Irms BuSync]]^2+Table1[[#This Row],[Irms BoCtlr]]^2)) -> 0.3659226546 | BA11: 0.1089 | BB11: =IF(Vout>8, Iq*Vout, Iq*Table1[[#This Row],[Vin]]) -> 0.06 | BC11: =CHOOSE(Table1[[#This Row],[Mode Digit]], (Qg_Q1+Qg_Q2)*Fsw, (Qg_Q3+Qg_Q4)*Fsw, (Qg_Q1+Qg_Q2+Qg_Q3+Qg_Q4)*Fsw)*IF(Vout>8, Vout, Table1[[#This Row],[Vin]]) -> 0.5412 | BD11: 0.1912734247 | BE11: =Table1[[#This Row],[IQ Loss]]+Table1[[#This Row],[Switching Current Loss]] -> 0.6012 | BF11: =SUM(Table1[[#This Row],[Total Inductor Loss]],Table1[[#This Row],[Total Cout Loss]],Table1[[#This Row],[Total Cin Loss]],Table1[[#This Row],[Total Control Bu MOSFET Loss]],Table1[[#This Row],[Total Sync Bu MOSFET Loss]],Table1[[#This Row],[Total Control Bo MOSFET Loss]],Table1[[#This Row],[Total Sync Bo MOSFET Loss]], Table1[[#This Row],[Deadtime Loss ext D]],Table1[[#This Row],[Reverse Recovery Loss MOSFET D]],Table1[[#This Row],[Total IC Loss]],Table1[[#This Row],[Isense Shunt Loss]],Table1[[#This Row],[Iout Shunt Loss]]) -> 7.548034282 | BG11: =Vout*Table1[[#This Row],[Iout]] -> 66 | BH11: =Table1[[#This Row],[Pout]]/(Table1[[#This Row],[Pout]]+Table1[[#This Row],[Total Loss]]) -> 0.8973727258 | BI11: =IF(Table1[[#This Row],[Vin]]>Vout,ThetaJA_Q1*(Table1[[#This Row],[Total Control Bu MOSFET Loss]]+Table1[[#This Row],[Reverse Recovery Loss MOSFET D]]),ThetaJA_Q4*(Table1[[#This Row],[Total Control Bo MOSFET Loss]]+Table1[[#This Row],[Reverse Recovery Loss MOSFET D]])) -> 168.8438259 | BJ11: =IF(Table1[[#This Row],[Vin]]>Vout, Table1[[#This Row],[Total Sync Bu MOSFET Loss]]*ThetaJA_Q2, ThetaJA_Q3*Table1[[#This Row],[Total Sync Bo MOSFET Loss]]) -> 91.81707146 | BL11: =Table1[[#This Row],[EFF, h]]*100 -> 89.73727258 | BM11: =Table1[[#This Row],[Total Inductor Loss]] -> 0.9451127645 | BN11: =Table1[[#This Row],[Total Control Bu MOSFET Loss]]+Table1[[#This Row],[Total Sync Bu MOSFET Loss]]+Table1[[#This Row],[Total Control Bo MOSFET Loss]]+Table1[[#This Row],[Total Sync Bo MOSFET Loss]]+Table1[[#This Row],[Reverse Recovery Loss MOSFET D]] -> 5.314324058 | BO11: =Table1[[#This Row],[Total Sync Bu MOSFET Loss]]+Table1[[#This Row],[Reverse Recovery Loss MOSFET D]]*0.33 -> 0.6443560185 | BP11: =Table1[[#This Row],[Isense Shunt Loss]] -> 0.3659226546 | BT11: 250kHz / 12-5V / 30A | BU11: 90 | BV11: 90 | BW11: 90 | BX11: =250000*(12-Vdd)*BW11/1000000000+((250000*BW9/1000000000*Vdd)*2.5/(2*4)) -> 0.142265625 | BY11: 11.38125 | BZ11: 14.2265625 | CA11: 17.071875 | CB11: 19.9171875 | CC11: 22.7625 | CD11: 25.6078125 | CE11: 2.8453125 | CF11: 4.26796875 | CG11: 5.690625 | CH11: 7.11328125
A12: Vout | B12: =Vout -> 20 | C12: V | D12: Vout | G12: 3 | H12: =VIN_min+(VIN_max-VIN_min)*(Table1[[#This Row],[Step]]/200) -> 6.45 | I12: =IF(Table1[[#This Row],[Vin]]>VIN_BB_to_buck, "BUCK", IF(Table1[[#This Row],[Vin]]<=VIN_boost_to_BB,"BOOST","BUCK-BST")) -> BOOST | J12: =IF(Table1[[#This Row],[Mode]]="BOOST",2, IF(Table1[[#This Row],[Mode]]="BUCK", 1,3)) -> 2 | K12: 3.3 | L12: =Vout*Table1[[#This Row],[Iout]]/(Table1[[#This Row],[Vin]]*Efficiency) -> 10.77111383 | M12: =Iout/(1-Table1[[#This Row],[Duty Cycle BOOST Leg]]) -> 10.44094699 | N12: =CHOOSE(Table1[[#This Row],[Mode Digit]],(Vout+(Rdson2+Rs+Rdcr)*Table1[[#This Row],[Iout]])/(Table1[[#This Row],[Vin]]+(Rs+Rdson2-Rdson1)*Table1[[#This Row],[Iout]]),1,IF(Table1[[#This Row],[Vin]]<Vout,D_max_buck_BB,Vout/Table1[[#This Row],[Vin]]*(1-D_min_boost_exitBB_to_buck))) -> 1 | O12: =CHOOSE(Table1[[#This Row],[Mode Digit]],0,(Vout+(Rdson3+Rdcr)*Table1[[#This Row],[Iin]]-Table1[[#This Row],[Vin]])/(Vout+(Rdson3-Rdson4-Rs)*Table1[[#This Row],[Iin]]),IF(Table1[[#This Row],[Vin]]>Vout, (Vout-Table1[[#This Row],[Vin]]*D_max_exitBB_to_buck)/Vout, (Vout-Table1[[#This Row],[Vin]]*D_max_buck_BB)/Vout)) -> 0.6839367154 | P12: =CHOOSE(Table1[[#This Row],[Mode Digit]],0,0,1-((Table1[[#This Row],[Vin]]-Vout)+((VIN_BB_to_buck-VIN_BB_to_boost)/2))/((VIN_BB_to_buck-VIN_BB_to_boost))) -> 0 | Q12: =CHOOSE(Table1[[#This Row],[Mode Digit]],0,Table1[[#This Row],[Duty Cycle BOOST Leg]]/Fsw,(1/Fsw-Table1[[#This Row],[T BOD/BUE]])*Table1[[#This Row],[BOE/BUD BUBO ratio]]) -> 1.11209222e-06 | R12: =CHOOSE(Table1[[#This Row],[Mode Digit]],Table1[[#This Row],[Duty Cycle BUCK Leg]]/Fsw,(1-Table1[[#This Row],[Duty Cycle BOOST Leg]])/Fsw,TonBubo) -> 5.1392404e-07 | S12: =CHOOSE(Table1[[#This Row],[Mode Digit]],(1-Table1[[#This Row],[Duty Cycle BUCK Leg]])/Fsw,0,(1/Fsw-Table1[[#This Row],[T BOD/BUE]]-Table1[[#This Row],[T BOE]])) -> 0 | T12: =MAX(0, CHOOSE(Table1[[#This Row],[Mode Digit]], (Table1[[#This Row],[Vin]]-(Rdson1+Rdcr)*Table1[[#This Row],[Iout]]-Vout)*Table1[[#This Row],[Duty Cycle BUCK Leg]]/(Fsw*Lf), (Table1[[#This Row],[Vin]]-(Rdson4+Rdcr+Rs)*Table1[[#This Row],[Iin]])*Table1[[#This Row],[Duty Cycle BOOST Leg]]/(Fsw*Lf), IF(Table1[[#This Row],[Vin]]<Vout, (Table1[[#This Row],[Vin]]-(Rdson1+Rdson3+Rdcr+Rs)*Table1[[#This Row],[Iin]])*Table1[[#This Row],[T BOE]]/(Lf),(Vout-(Rdson2+Rdson4+Rdcr+Rs)*Table1[[#This Row],[Iout]])*Table1[[#This Row],[T BUD]]/(Lf)))) -> 2.126809858 | U12: =CHOOSE(Table1[[#This Row],[Mode Digit]], SQRT(Table1[[#This Row],[Iout]]^2+(Table1[[#This Row],[Ripple Current pk-pk]]^2)/12), SQRT(Table1[[#This Row],[Iin]]^2+(Table1[[#This Row],[Ripple Current pk-pk]]^2)/12), SQRT(Table1[[#This Row],[Avg IL]]^2+(Table1[[#This Row],[Ripple Current pk-pk]]^2)/12)) -> 10.78859752 | V12: =(Table1[[#This Row],[Irms Lf]]^2*Rdcr*(1+Ltc*Ta-Ltc*25))/(1-Table1[[#This Row],[Irms Lf]]^2*Rdcr*Ltc*ThetaCa) -> 0.7266439197 | W12: =ABS(7.759*10^-3*Fsw^0.9458*(0.00787*Table1[[#This Row],[Ripple Current pk-pk]])^2.304) -> 0.1872131985 | X12: =Table1[[#This Row],[DCR Loss]]+Table1[[#This Row],[Core Loss]] -> 0.9138571183 | Y12: =IF(Table1[[#This Row],[Vin]]>Vout, Table1[[#This Row],[Ripple Current pk-pk]]/SQRT(12), SQRT(Table1[[#This Row],[Duty Cycle BOOST Leg]]/(1-Table1[[#This Row],[Duty Cycle BOOST Leg]]))*SQRT(Table1[[#This Row],[Iout]]^2+(Table1[[#This Row],[Ripple Current pk-pk]]^2)/12)) -> 4.937691927 | Z12: =RCoutEsr*Table1[[#This Row],[Irms Cout]]^2 -> 0.202360653 | AA12: =Table1[[#This Row],[Cout ESR Loss]] -> 0.202360653 | AB12: =IF(Table1[[#This Row],[Vin]]>Vout, SQRT(Table1[[#This Row],[Duty Cycle BUCK Leg]]*(1-Table1[[#This Row],[Duty Cycle BUCK Leg]]))*SQRT(Table1[[#This Row],[Iout]]^2+(Table1[[#This Row],[Ripple Current pk-pk]]^2)/12), Table1[[#This Row],[Ripple Current pk-pk]]/SQRT(12)) -> 0.6139571221 | AC12: =RCinEsr*Table1[[#This Row],[Irms Cin]]^2 -> 0.003128629787 | AD12: =Table1[[#This Row],[Cin ESR Loss]] -> 0.003128629787 | AE12: =Table1[[#This Row],[Irms Lf]] -> 10.78859752 | AF12: =Rdson1*Table1[[#This Row],[Irms BuCtrl]]^2 -> 0.465575346 | AG12: =CHOOSE(Table1[[#This Row],[Mode Digit]], (Table1[[#This Row],[Vin]]*Table1[[#This Row],[Iout]]/2)*(Fsw)*(Tr_buck+Tf_buck), 0, (Table1[[#This Row],[Vin]]*Table1[[#This Row],[Avg IL]]/2)*(Fsw/1)*(Tr_buck+Tf_buck)) -> 0 | AH12: =IF(Table1[[#This Row],[Vin]]>Vout, IF(Table1[[#This Row],[Iout]]>Table1[[#This Row],[Ripple Current pk-pk]]/2,0,ABS(Table1[[#This Row],[Iout]]-Table1[[#This Row],[Ripple Current pk-pk]]/2)*Vsd_Q1*Deadtime*Fsw),0) -> 0 | AI12: =(Table1[[#This Row],[Dead Time Loss BuCtrl]]+Table1[[#This Row],[Transition Loss BuCtrl]]+Table1[[#This Row],[RDS(on) Loss BuCtrl]]*(1+RdsonTopTc*Ta-RdsonTopTc*25))/(1-Table1[[#This Row],[RDS(on) Loss BuCtrl]]*RdsonTopTc*ThetaJA_Q1) -> 0.5263490172 | AJ12: =Table1[[#This Row],[Irms Lf]] -> 10.78859752 | AK12: =Rdson2*Table1[[#This Row],[Irms BuSync]]^2 -> 0.465575346 | AL12: =CHOOSE(Table1[[#This Row],[Mode Digit]], IF(Table1[[#This Row],[Iout]]<Table1[[#This Row],[Ripple Current pk-pk]]/2,Deadtime*Fsw*IF(VfdSky_Q2>0,0,Vsd_Q2)*(Table1[[#This Row],[Iout]]+Table1[[#This Row],[Ripple Current pk-pk]]/2),2*Deadtime*Fsw*IF(VfdSky_Q2>0,0,Vsd_Q2)*Table1[[#This Row],[Iout]]),0, IF(Table1[[#This Row],[Iout]]<Table1[[#This Row],[Ripple Current pk-pk]]/2,Deadtime*Fsw*IF(VfdSky_Q2>0,0,Vsd_Q2)*(Table1[[#This Row],[Iout]]+Table1[[#This Row],[Ripple Current pk-pk]]/2),2*Deadtime*Fsw*IF(VfdSky_Q2>0,0,Vsd_Q2)*Table1[[#This Row],[Iout]])) -> 0 | AM12: =(Table1[[#This Row],[Deadtime Loss BuSync]]+Table1[[#This Row],[RDS(on) Loss BuSync]]*(1+RdsonBotTc*Ta-RdsonBotTc*25))/(1-Table1[[#This Row],[RDS(on) Loss BuSync]]*RdsonBotTc*ThetaJA_Q2) -> 0.5263490172 | AN12: =Table1[[#This Row],[Irms Lf]] -> 10.78859752 | AO12: =Rdson4*Table1[[#This Row],[Irms BoCtlr]]^2 -> 0.465575346 | AP12: =CHOOSE(Table1[[#This Row],[Mode Digit]], 0, (Vout*Table1[[#This Row],[Iin]]/2)*(Fsw)*(Tr_boost+Tf_boost), (Vout*Iout/2)*(Fsw/1)*(Tr_boost+Tf_boost)) -> 1.629228169 | AQ12: =IF(Table1[[#This Row],[Vin]]>Vout, 0, IF(Table1[[#This Row],[Iin]]>Table1[[#This Row],[Ripple Current pk-pk]]/2,0,ABS(Table1[[#This Row],[Iin]]-Table1[[#This Row],[Ripple Current pk-pk]]/2)*Vsd_Q4*Deadtime*Fsw)) -> 0 | AR12: =(Table1[[#This Row],[Dead Time Loss BoCtlr]]+Table1[[#This Row],[Transition Loss BoCtlr]]+Table1[[#This Row],[RDS(on) Loss BoCtlr]]*(1+RdsonTopTc*Ta-RdsonTopTc*25))/(1-Table1[[#This Row],[RDS(on) Loss BoCtlr]]*RdsonTopTc*ThetaJA_Q4) -> 2.368247763 | AS12: =Table1[[#This Row],[Irms Lf]] -> 10.78859752 | AT12: =Rdson3*Table1[[#This Row],[Irms BoSync]]^2 -> 0.465575346 | AU12: =CHOOSE(Table1[[#This Row],[Mode Digit]], 0, IF(Table1[[#This Row],[Iin]]<Table1[[#This Row],[Ripple Current pk-pk]]/2,Deadtime*Fsw*IF(VfdSky_Q3>0,0,Vsd_Q3)*(Table1[[#This Row],[Iin]]+Table1[[#This Row],[Ripple Current pk-pk]]/2), 2*Deadtime*Fsw*IF(VfdSky_Q3>0,0,Vsd_Q3)*Table1[[#This Row],[Iin]]), IF(Table1[[#This Row],[Iin]]<Table1[[#This Row],[Ripple Current pk-pk]]/2,Deadtime*Fsw*IF(VfdSky_Q3>0,0,Vsd_Q3)*(Table1[[#This Row],[Iin]]+Table1[[#This Row],[Ripple Current pk-pk]]/2), 2*Deadtime*Fsw*IF(VfdSky_Q3>0,0,Vsd_Q3)*Table1[[#This Row],[Iin]])) -> 0.7949082007 | AV12: =(Table1[[#This Row],[Deadtime Loss BoSync]]+Table1[[#This Row],[RDS(on) Loss BoSync]]*(1+RdsonBotTc*Ta-RdsonBotTc*25))/(1-Table1[[#This Row],[RDS(on) Loss BoSync]]*RdsonBotTc*ThetaJA_Q3) -> 1.425020207 | AW12: =CHOOSE(Table1[[#This Row],[Mode Digit]], Rdson3*Table1[[#This Row],[Irms Lf]]^2, Rdson1*Table1[[#This Row],[Irms Lf]]^2, 0) -> 0.465575346 | AX12: =CHOOSE(Table1[[#This Row],[Mode Digit]], 2*Deadtime*Fsw*IF(VfdSky_Q2>0,VfdSky_Q2,0)*Table1[[#This Row],[Iout]], 2*Deadtime*Fsw*IF(VfdSky_Q3>0,VfdSky_Q3,0)*Table1[[#This Row],[Iin]], 2*Deadtime*Fsw*IF(VfdSky_Q2>0,VfdSky_Q2,0)*Table1[[#This Row],[Iout]]+2*Deadtime*Fsw*IF(VfdSky_Q3>0,VfdSky_Q3,0)*Table1[[#This Row],[Iin]]) -> 0 | AY12: =CHOOSE(Table1[[#This Row],[Mode Digit]], IF(QrrSky_Q2>0,QrrSky_Q2,Qrr_Q2)*Fsw*(Table1[[#This Row],[Vin]]-Table1[[#This Row],[Iout]]*Rdson1), IF(QrrSky_Q3>0,QrrSky_Q3,Qrr_Q3)*Fsw*Vout, IF(QrrSky_Q2>0,QrrSky_Q2,Qrr_Q2)*Fsw*(Table1[[#This Row],[Vin]]-Table1[[#This Row],[Iout]]*Rdson1)+IF(QrrSky_Q3>0,QrrSky_Q3,Qrr_Q3)*Fsw*Vout) -> 0.2706 | AZ12: =CHOOSE(Table1[[#This Row],[Mode Digit]], Rs*Table1[[#This Row],[Irms BuSync]]^2, Rs*Table1[[#This Row],[Irms BoCtlr]]^2, Rs*(Table1[[#This Row],[Irms BuSync]]^2+Table1[[#This Row],[Irms BoCtlr]]^2)) -> 0.3491815095 | BA12: 0.1089 | BB12: =IF(Vout>8, Iq*Vout, Iq*Table1[[#This Row],[Vin]]) -> 0.06 | BC12: =CHOOSE(Table1[[#This Row],[Mode Digit]], (Qg_Q1+Qg_Q2)*Fsw, (Qg_Q3+Qg_Q4)*Fsw, (Qg_Q1+Qg_Q2+Qg_Q3+Qg_Q4)*Fsw)*IF(Vout>8, Vout, Table1[[#This Row],[Vin]]) -> 0.5412 | BD12: 0.1912734247 | BE12: =Table1[[#This Row],[IQ Loss]]+Table1[[#This Row],[Switching Current Loss]] -> 0.6012 | BF12: =SUM(Table1[[#This Row],[Total Inductor Loss]],Table1[[#This Row],[Total Cout Loss]],Table1[[#This Row],[Total Cin Loss]],Table1[[#This Row],[Total Control Bu MOSFET Loss]],Table1[[#This Row],[Total Sync Bu MOSFET Loss]],Table1[[#This Row],[Total Control Bo MOSFET Loss]],Table1[[#This Row],[Total Sync Bo MOSFET Loss]], Table1[[#This Row],[Deadtime Loss ext D]],Table1[[#This Row],[Reverse Recovery Loss MOSFET D]],Table1[[#This Row],[Total IC Loss]],Table1[[#This Row],[Isense Shunt Loss]],Table1[[#This Row],[Iout Shunt Loss]]) -> 7.295193915 | BG12: =Vout*Table1[[#This Row],[Iout]] -> 66 | BH12: =Table1[[#This Row],[Pout]]/(Table1[[#This Row],[Pout]]+Table1[[#This Row],[Total Loss]]) -> 0.9004683182 | BI12: =IF(Table1[[#This Row],[Vin]]>Vout,ThetaJA_Q1*(Table1[[#This Row],[Total Control Bu MOSFET Loss]]+Table1[[#This Row],[Reverse Recovery Loss MOSFET D]]),ThetaJA_Q4*(Table1[[#This Row],[Total Control Bo MOSFET Loss]]+Table1[[#This Row],[Reverse Recovery Loss MOSFET D]])) -> 163.6085613 | BJ12: =IF(Table1[[#This Row],[Vin]]>Vout, Table1[[#This Row],[Total Sync Bu MOSFET Loss]]*ThetaJA_Q2, ThetaJA_Q3*Table1[[#This Row],[Total Sync Bo MOSFET Loss]]) -> 88.35125285 | BL12: =Table1[[#This Row],[EFF, h]]*100 -> 90.04683182 | BM12: =Table1[[#This Row],[Total Inductor Loss]] -> 0.9138571183 | BN12: =Table1[[#This Row],[Total Control Bu MOSFET Loss]]+Table1[[#This Row],[Total Sync Bu MOSFET Loss]]+Table1[[#This Row],[Total Control Bo MOSFET Loss]]+Table1[[#This Row],[Total Sync Bo MOSFET Loss]]+Table1[[#This Row],[Reverse Recovery Loss MOSFET D]] -> 5.116566005 | BO12: =Table1[[#This Row],[Total Sync Bu MOSFET Loss]]+Table1[[#This Row],[Reverse Recovery Loss MOSFET D]]*0.33 -> 0.6156470172 | BP12: =Table1[[#This Row],[Isense Shunt Loss]] -> 0.3491815095 | BT12: 250kHz / 18-1.2V / 20A | BU12: 60 | BV12: 60 | BW12: 60 | BX12: =250000*(18-Vdd)*BW12/1000000000+((250000*BW9/1000000000*Vdd)*2.5/(2*4)) -> 0.198515625 | BY12: 15.88125 | BZ12: 19.8515625 | CA12: 23.821875 | CB12: 27.7921875 | CC12: 31.7625 | CD12: 35.7328125 | CE12: 3.9703125 | CF12: 5.95546875 | CG12: 7.940625 | CH12: 9.92578125
A13: Fsw | B13: =Fsw/1000 -> 615 | C13: kHz | D13: Switching Frequency | G13: 4 | H13: =VIN_min+(VIN_max-VIN_min)*(Table1[[#This Row],[Step]]/200) -> 6.6 | I13: =IF(Table1[[#This Row],[Vin]]>VIN_BB_to_buck, "BUCK", IF(Table1[[#This Row],[Vin]]<=VIN_boost_to_BB,"BOOST","BUCK-BST")) -> BOOST | J13: =IF(Table1[[#This Row],[Mode]]="BOOST",2, IF(Table1[[#This Row],[Mode]]="BUCK", 1,3)) -> 2 | K13: 3.3 | L13: =Vout*Table1[[#This Row],[Iout]]/(Table1[[#This Row],[Vin]]*Efficiency) -> 10.52631579 | M13: =Iout/(1-Table1[[#This Row],[Duty Cycle BOOST Leg]]) -> 10.19394235 | N13: =CHOOSE(Table1[[#This Row],[Mode Digit]],(Vout+(Rdson2+Rs+Rdcr)*Table1[[#This Row],[Iout]])/(Table1[[#This Row],[Vin]]+(Rs+Rdson2-Rdson1)*Table1[[#This Row],[Iout]]),1,IF(Table1[[#This Row],[Vin]]<Vout,D_max_buck_BB,Vout/Table1[[#This Row],[Vin]]*(1-D_min_boost_exitBB_to_buck))) -> 1 | O13: =CHOOSE(Table1[[#This Row],[Mode Digit]],0,(Vout+(Rdson3+Rdcr)*Table1[[#This Row],[Iin]]-Table1[[#This Row],[Vin]])/(Vout+(Rdson3-Rdson4-Rs)*Table1[[#This Row],[Iin]]),IF(Table1[[#This Row],[Vin]]>Vout, (Vout-Table1[[#This Row],[Vin]]*D_max_exitBB_to_buck)/Vout, (Vout-Table1[[#This Row],[Vin]]*D_max_buck_BB)/Vout)) -> 0.6762783342 | P13: =CHOOSE(Table1[[#This Row],[Mode Digit]],0,0,1-((Table1[[#This Row],[Vin]]-Vout)+((VIN_BB_to_buck-VIN_BB_to_boost)/2))/((VIN_BB_to_buck-VIN_BB_to_boost))) -> 0 | Q13: =CHOOSE(Table1[[#This Row],[Mode Digit]],0,Table1[[#This Row],[Duty Cycle BOOST Leg]]/Fsw,(1/Fsw-Table1[[#This Row],[T BOD/BUE]])*Table1[[#This Row],[BOE/BUD BUBO ratio]]) -> 1.099639568e-06 | R13: =CHOOSE(Table1[[#This Row],[Mode Digit]],Table1[[#This Row],[Duty Cycle BUCK Leg]]/Fsw,(1-Table1[[#This Row],[Duty Cycle BOOST Leg]])/Fsw,TonBubo) -> 5.263766923e-07 | S13: =CHOOSE(Table1[[#This Row],[Mode Digit]],(1-Table1[[#This Row],[Duty Cycle BUCK Leg]])/Fsw,0,(1/Fsw-Table1[[#This Row],[T BOD/BUE]]-Table1[[#This Row],[T BOE]])) -> 0 | T13: =MAX(0, CHOOSE(Table1[[#This Row],[Mode Digit]], (Table1[[#This Row],[Vin]]-(Rdson1+Rdcr)*Table1[[#This Row],[Iout]]-Vout)*Table1[[#This Row],[Duty Cycle BUCK Leg]]/(Fsw*Lf), (Table1[[#This Row],[Vin]]-(Rdson4+Rdcr+Rs)*Table1[[#This Row],[Iin]])*Table1[[#This Row],[Duty Cycle BOOST Leg]]/(Fsw*Lf), IF(Table1[[#This Row],[Vin]]<Vout, (Table1[[#This Row],[Vin]]-(Rdson1+Rdson3+Rdcr+Rs)*Table1[[#This Row],[Iin]])*Table1[[#This Row],[T BOE]]/(Lf),(Vout-(Rdson2+Rdson4+Rdcr+Rs)*Table1[[#This Row],[Iout]])*Table1[[#This Row],[T BUD]]/(Lf)))) -> 2.154030809 | U13: =CHOOSE(Table1[[#This Row],[Mode Digit]], SQRT(Table1[[#This Row],[Iout]]^2+(Table1[[#This Row],[Ripple Current pk-pk]]^2)/12), SQRT(Table1[[#This Row],[Iin]]^2+(Table1[[#This Row],[Ripple Current pk-pk]]^2)/12), SQRT(Table1[[#This Row],[Avg IL]]^2+(Table1[[#This Row],[Ripple Current pk-pk]]^2)/12)) -> 10.54466586 | V13: =(Table1[[#This Row],[Irms Lf]]^2*Rdcr*(1+Ltc*Ta-Ltc*25))/(1-Table1[[#This Row],[Irms Lf]]^2*Rdcr*Ltc*ThetaCa) -> 0.6923569182 | W13: =ABS(7.759*10^-3*Fsw^0.9458*(0.00787*Table1[[#This Row],[Ripple Current pk-pk]])^2.304) -> 0.1927800204 | X13: =Table1[[#This Row],[DCR Loss]]+Table1[[#This Row],[Core Loss]] -> 0.8851369387 | Y13: =IF(Table1[[#This Row],[Vin]]>Vout, Table1[[#This Row],[Ripple Current pk-pk]]/SQRT(12), SQRT(Table1[[#This Row],[Duty Cycle BOOST Leg]]/(1-Table1[[#This Row],[Duty Cycle BOOST Leg]]))*SQRT(Table1[[#This Row],[Iout]]^2+(Table1[[#This Row],[Ripple Current pk-pk]]^2)/12)) -> 4.853633536 | Z13: =RCoutEsr*Table1[[#This Row],[Irms Cout]]^2 -> 0.1955293955 | AA13: =Table1[[#This Row],[Cout ESR Loss]] -> 0.1955293955 | AB13: =IF(Table1[[#This Row],[Vin]]>Vout, SQRT(Table1[[#This Row],[Duty Cycle BUCK Leg]]*(1-Table1[[#This Row],[Duty Cycle BUCK Leg]]))*SQRT(Table1[[#This Row],[Iout]]^2+(Table1[[#This Row],[Ripple Current pk-pk]]^2)/12), Table1[[#This Row],[Ripple Current pk-pk]]/SQRT(12)) -> 0.6218151337 | AC13: =RCinEsr*Table1[[#This Row],[Irms Cin]]^2 -> 0.003209228702 | AD13: =Table1[[#This Row],[Cin ESR Loss]] -> 0.003209228702 | AE13: =Table1[[#This Row],[Irms Lf]] -> 10.54466586 | AF13: =Rdson1*Table1[[#This Row],[Irms BuCtrl]]^2 -> 0.4447599126 | AG13: =CHOOSE(Table1[[#This Row],[Mode Digit]], (Table1[[#This Row],[Vin]]*Table1[[#This Row],[Iout]]/2)*(Fsw)*(Tr_buck+Tf_buck), 0, (Table1[[#This Row],[Vin]]*Table1[[#This Row],[Avg IL]]/2)*(Fsw/1)*(Tr_buck+Tf_buck)) -> 0 | AH13: =IF(Table1[[#This Row],[Vin]]>Vout, IF(Table1[[#This Row],[Iout]]>Table1[[#This Row],[Ripple Current pk-pk]]/2,0,ABS(Table1[[#This Row],[Iout]]-Table1[[#This Row],[Ripple Current pk-pk]]/2)*Vsd_Q1*Deadtime*Fsw),0) -> 0 | AI13: =(Table1[[#This Row],[Dead Time Loss BuCtrl]]+Table1[[#This Row],[Transition Loss BuCtrl]]+Table1[[#This Row],[RDS(on) Loss BuCtrl]]*(1+RdsonTopTc*Ta-RdsonTopTc*25))/(1-Table1[[#This Row],[RDS(on) Loss BuCtrl]]*RdsonTopTc*ThetaJA_Q1) -> 0.4998990016 | AJ13: =Table1[[#This Row],[Irms Lf]] -> 10.54466586 | AK13: =Rdson2*Table1[[#This Row],[Irms BuSync]]^2 -> 0.4447599126 | AL13: =CHOOSE(Table1[[#This Row],[Mode Digit]], IF(Table1[[#This Row],[Iout]]<Table1[[#This Row],[Ripple Current pk-pk]]/2,Deadtime*Fsw*IF(VfdSky_Q2>0,0,Vsd_Q2)*(Table1[[#This Row],[Iout]]+Table1[[#This Row],[Ripple Current pk-pk]]/2),2*Deadtime*Fsw*IF(VfdSky_Q2>0,0,Vsd_Q2)*Table1[[#This Row],[Iout]]),0, IF(Table1[[#This Row],[Iout]]<Table1[[#This Row],[Ripple Current pk-pk]]/2,Deadtime*Fsw*IF(VfdSky_Q2>0,0,Vsd_Q2)*(Table1[[#This Row],[Iout]]+Table1[[#This Row],[Ripple Current pk-pk]]/2),2*Deadtime*Fsw*IF(VfdSky_Q2>0,0,Vsd_Q2)*Table1[[#This Row],[Iout]])) -> 0 | AM13: =(Table1[[#This Row],[Deadtime Loss BuSync]]+Table1[[#This Row],[RDS(on) Loss BuSync]]*(1+RdsonBotTc*Ta-RdsonBotTc*25))/(1-Table1[[#This Row],[RDS(on) Loss BuSync]]*RdsonBotTc*ThetaJA_Q2) -> 0.4998990016 | AN13: =Table1[[#This Row],[Irms Lf]] -> 10.54466586 | AO13: =Rdson4*Table1[[#This Row],[Irms BoCtlr]]^2 -> 0.4447599126 | AP13: =CHOOSE(Table1[[#This Row],[Mode Digit]], 0, (Vout*Table1[[#This Row],[Iin]]/2)*(Fsw)*(Tr_boost+Tf_boost), (Vout*Iout/2)*(Fsw/1)*(Tr_boost+Tf_boost)) -> 1.592200257 | AQ13: =IF(Table1[[#This Row],[Vin]]>Vout, 0, IF(Table1[[#This Row],[Iin]]>Table1[[#This Row],[Ripple Current pk-pk]]/2,0,ABS(Table1[[#This Row],[Iin]]-Table1[[#This Row],[Ripple Current pk-pk]]/2)*Vsd_Q4*Deadtime*Fsw)) -> 0 | AR13: =(Table1[[#This Row],[Dead Time Loss BoCtlr]]+Table1[[#This Row],[Transition Loss BoCtlr]]+Table1[[#This Row],[RDS(on) Loss BoCtlr]]*(1+RdsonTopTc*Ta-RdsonTopTc*25))/(1-Table1[[#This Row],[RDS(on) Loss BoCtlr]]*RdsonTopTc*ThetaJA_Q4) -> 2.289492209 | AS13: =Table1[[#This Row],[Irms Lf]] -> 10.54466586 | AT13: =Rdson3*Table1[[#This Row],[Irms BoSync]]^2 -> 0.4447599126 | AU13: =CHOOSE(Table1[[#This Row],[Mode Digit]], 0, IF(Table1[[#This Row],[Iin]]<Table1[[#This Row],[Ripple Current pk-pk]]/2,Deadtime*Fsw*IF(VfdSky_Q3>0,0,Vsd_Q3)*(Table1[[#This Row],[Iin]]+Table1[[#This Row],[Ripple Current pk-pk]]/2), 2*Deadtime*Fsw*IF(VfdSky_Q3>0,0,Vsd_Q3)*Table1[[#This Row],[Iin]]), IF(Table1[[#This Row],[Iin]]<Table1[[#This Row],[Ripple Current pk-pk]]/2,Deadtime*Fsw*IF(VfdSky_Q3>0,0,Vsd_Q3)*(Table1[[#This Row],[Iin]]+Table1[[#This Row],[Ripple Current pk-pk]]/2), 2*Deadtime*Fsw*IF(VfdSky_Q3>0,0,Vsd_Q3)*Table1[[#This Row],[Iin]])) -> 0.7768421053 | AV13: =(Table1[[#This Row],[Deadtime Loss BoSync]]+Table1[[#This Row],[RDS(on) Loss BoSync]]*(1+RdsonBotTc*Ta-RdsonBotTc*25))/(1-Table1[[#This Row],[RDS(on) Loss BoSync]]*RdsonBotTc*ThetaJA_Q3) -> 1.37305007 | AW13: =CHOOSE(Table1[[#This Row],[Mode Digit]], Rdson3*Table1[[#This Row],[Irms Lf]]^2, Rdson1*Table1[[#This Row],[Irms Lf]]^2, 0) -> 0.4447599126 | AX13: =CHOOSE(Table1[[#This Row],[Mode Digit]], 2*Deadtime*Fsw*IF(VfdSky_Q2>0,VfdSky_Q2,0)*Table1[[#This Row],[Iout]], 2*Deadtime*Fsw*IF(VfdSky_Q3>0,VfdSky_Q3,0)*Table1[[#This Row],[Iin]], 2*Deadtime*Fsw*IF(VfdSky_Q2>0,VfdSky_Q2,0)*Table1[[#This Row],[Iout]]+2*Deadtime*Fsw*IF(VfdSky_Q3>0,VfdSky_Q3,0)*Table1[[#This Row],[Iin]]) -> 0 | AY13: =CHOOSE(Table1[[#This Row],[Mode Digit]], IF(QrrSky_Q2>0,QrrSky_Q2,Qrr_Q2)*Fsw*(Table1[[#This Row],[Vin]]-Table1[[#This Row],[Iout]]*Rdson1), IF(QrrSky_Q3>0,QrrSky_Q3,Qrr_Q3)*Fsw*Vout, IF(QrrSky_Q2>0,QrrSky_Q2,Qrr_Q2)*Fsw*(Table1[[#This Row],[Vin]]-Table1[[#This Row],[Iout]]*Rdson1)+IF(QrrSky_Q3>0,QrrSky_Q3,Qrr_Q3)*Fsw*Vout) -> 0.2706 | AZ13: =CHOOSE(Table1[[#This Row],[Mode Digit]], Rs*Table1[[#This Row],[Irms BuSync]]^2, Rs*Table1[[#This Row],[Irms BoCtlr]]^2, Rs*(Table1[[#This Row],[Irms BuSync]]^2+Table1[[#This Row],[Irms BoCtlr]]^2)) -> 0.3335699345 | BA13: 0.1089 | BB13: =IF(Vout>8, Iq*Vout, Iq*Table1[[#This Row],[Vin]]) -> 0.06 | BC13: =CHOOSE(Table1[[#This Row],[Mode Digit]], (Qg_Q1+Qg_Q2)*Fsw, (Qg_Q3+Qg_Q4)*Fsw, (Qg_Q1+Qg_Q2+Qg_Q3+Qg_Q4)*Fsw)*IF(Vout>8, Vout, Table1[[#This Row],[Vin]]) -> 0.5412 | BD13: 0.1912734247 | BE13: =Table1[[#This Row],[IQ Loss]]+Table1[[#This Row],[Switching Current Loss]] -> 0.6012 | BF13: =SUM(Table1[[#This Row],[Total Inductor Loss]],Table1[[#This Row],[Total Cout Loss]],Table1[[#This Row],[Total Cin Loss]],Table1[[#This Row],[Total Control Bu MOSFET Loss]],Table1[[#This Row],[Total Sync Bu MOSFET Loss]],Table1[[#This Row],[Total Control Bo MOSFET Loss]],Table1[[#This Row],[Total Sync Bo MOSFET Loss]], Table1[[#This Row],[Deadtime Loss ext D]],Table1[[#This Row],[Reverse Recovery Loss MOSFET D]],Table1[[#This Row],[Total IC Loss]],Table1[[#This Row],[Isense Shunt Loss]],Table1[[#This Row],[Iout Shunt Loss]]) -> 7.06048578 | BG13: =Vout*Table1[[#This Row],[Iout]] -> 66 | BH13: =Table1[[#This Row],[Pout]]/(Table1[[#This Row],[Pout]]+Table1[[#This Row],[Total Loss]]) -> 0.903361089 | BI13: =IF(Table1[[#This Row],[Vin]]>Vout,ThetaJA_Q1*(Table1[[#This Row],[Total Control Bu MOSFET Loss]]+Table1[[#This Row],[Reverse Recovery Loss MOSFET D]]),ThetaJA_Q4*(Table1[[#This Row],[Total Control Bo MOSFET Loss]]+Table1[[#This Row],[Reverse Recovery Loss MOSFET D]])) -> 158.725717 | BJ13: =IF(Table1[[#This Row],[Vin]]>Vout, Table1[[#This Row],[Total Sync Bu MOSFET Loss]]*ThetaJA_Q2, ThetaJA_Q3*Table1[[#This Row],[Total Sync Bo MOSFET Loss]]) -> 85.12910434 | BL13: =Table1[[#This Row],[EFF, h]]*100 -> 90.3361089 | BM13: =Table1[[#This Row],[Total Inductor Loss]] -> 0.8851369387 | BN13: =Table1[[#This Row],[Total Control Bu MOSFET Loss]]+Table1[[#This Row],[Total Sync Bu MOSFET Loss]]+Table1[[#This Row],[Total Control Bo MOSFET Loss]]+Table1[[#This Row],[Total Sync Bo MOSFET Loss]]+Table1[[#This Row],[Reverse Recovery Loss MOSFET D]] -> 4.932940282 | BO13: =Table1[[#This Row],[Total Sync Bu MOSFET Loss]]+Table1[[#This Row],[Reverse Recovery Loss MOSFET D]]*0.33 -> 0.5891970016 | BP13: =Table1[[#This Row],[Isense Shunt Loss]] -> 0.3335699345 | BT13: 500kHz / 5-1.2V / 15A | BU13: 30 | BV13: 30 | BW13: 30 | BX13: =500000*(5-Vdd)*BW13/1000000000+((500000*BW9/1000000000*Vdd)*2.5/(2*4)) -> 0.04453125 | BY13: 3.5625 | BZ13: 4.453125 | CA13: 5.34375 | CB13: 6.234375 | CC13: 7.125 | CD13: 8.015625 | CE13: 0.890625 | CF13: 1.3359375 | CG13: 1.78125 | CH13: 2.2265625
A14: Iout | B14: =Iout -> 3.3 | C14: A | D14: Max Output Current | G14: 5 | H14: =VIN_min+(VIN_max-VIN_min)*(Table1[[#This Row],[Step]]/200) -> 6.75 | I14: =IF(Table1[[#This Row],[Vin]]>VIN_BB_to_buck, "BUCK", IF(Table1[[#This Row],[Vin]]<=VIN_boost_to_BB,"BOOST","BUCK-BST")) -> BOOST | J14: =IF(Table1[[#This Row],[Mode]]="BOOST",2, IF(Table1[[#This Row],[Mode]]="BUCK", 1,3)) -> 2 | K14: 3.3 | L14: =Vout*Table1[[#This Row],[Iout]]/(Table1[[#This Row],[Vin]]*Efficiency) -> 10.29239766 | M14: =Iout/(1-Table1[[#This Row],[Duty Cycle BOOST Leg]]) -> 9.958566422 | N14: =CHOOSE(Table1[[#This Row],[Mode Digit]],(Vout+(Rdson2+Rs+Rdcr)*Table1[[#This Row],[Iout]])/(Table1[[#This Row],[Vin]]+(Rs+Rdson2-Rdson1)*Table1[[#This Row],[Iout]]),1,IF(Table1[[#This Row],[Vin]]<Vout,D_max_buck_BB,Vout/Table1[[#This Row],[Vin]]*(1-D_min_boost_exitBB_to_buck))) -> 1 | O14: =CHOOSE(Table1[[#This Row],[Mode Digit]],0,(Vout+(Rdson3+Rdcr)*Table1[[#This Row],[Iin]]-Table1[[#This Row],[Vin]])/(Vout+(Rdson3-Rdson4-Rs)*Table1[[#This Row],[Iin]]),IF(Table1[[#This Row],[Vin]]>Vout, (Vout-Table1[[#This Row],[Vin]]*D_max_exitBB_to_buck)/Vout, (Vout-Table1[[#This Row],[Vin]]*D_max_buck_BB)/Vout)) -> 0.6686270031 | P14: =CHOOSE(Table1[[#This Row],[Mode Digit]],0,0,1-((Table1[[#This Row],[Vin]]-Vout)+((VIN_BB_to_buck-VIN_BB_to_boost)/2))/((VIN_BB_to_buck-VIN_BB_to_boost))) -> 0 | Q14: =CHOOSE(Table1[[#This Row],[Mode Digit]],0,Table1[[#This Row],[Duty Cycle BOOST Leg]]/Fsw,(1/Fsw-Table1[[#This Row],[T BOD/BUE]])*Table1[[#This Row],[BOE/BUD BUBO ratio]]) -> 1.087198379e-06 | R14: =CHOOSE(Table1[[#This Row],[Mode Digit]],Table1[[#This Row],[Duty Cycle BUCK Leg]]/Fsw,(1-Table1[[#This Row],[Duty Cycle BOOST Leg]])/Fsw,TonBubo) -> 5.388178812e-07 | S14: =CHOOSE(Table1[[#This Row],[Mode Digit]],(1-Table1[[#This Row],[Duty Cycle BUCK Leg]])/Fsw,0,(1/Fsw-Table1[[#This Row],[T BOD/BUE]]-Table1[[#This Row],[T BOE]])) -> 0 | T14: =MAX(0, CHOOSE(Table1[[#This Row],[Mode Digit]], (Table1[[#This Row],[Vin]]-(Rdson1+Rdcr)*Table1[[#This Row],[Iout]]-Vout)*Table1[[#This Row],[Duty Cycle BUCK Leg]]/(Fsw*Lf), (Table1[[#This Row],[Vin]]-(Rdson4+Rdcr+Rs)*Table1[[#This Row],[Iin]])*Table1[[#This Row],[Duty Cycle BOOST Leg]]/(Fsw*Lf), IF(Table1[[#This Row],[Vin]]<Vout, (Table1[[#This Row],[Vin]]-(Rdson1+Rdson3+Rdcr+Rs)*Table1[[#This Row],[Iin]])*Table1[[#This Row],[T BOE]]/(Lf),(Vout-(Rdson2+Rdson4+Rdcr+Rs)*Table1[[#This Row],[Iout]])*Table1[[#This Row],[T BUD]]/(Lf)))) -> 2.180072616 | U14: =CHOOSE(Table1[[#This Row],[Mode Digit]], SQRT(Table1[[#This Row],[Iout]]^2+(Table1[[#This Row],[Ripple Current pk-pk]]^2)/12), SQRT(Table1[[#This Row],[Iin]]^2+(Table1[[#This Row],[Ripple Current pk-pk]]^2)/12), SQRT(Table1[[#This Row],[Avg IL]]^2+(Table1[[#This Row],[Ripple Current pk-pk]]^2)/12)) -> 10.31162011 | V14: =(Table1[[#This Row],[Irms Lf]]^2*Rdcr*(1+Ltc*Ta-Ltc*25))/(1-Table1[[#This Row],[Irms Lf]]^2*Rdcr*Ltc*ThetaCa) -> 0.6604925959 | W14: =ABS(7.759*10^-3*Fsw^0.9458*(0.00787*Table1[[#This Row],[Ripple Current pk-pk]])^2.304) -> 0.1981922695 | X14: =Table1[[#This Row],[DCR Loss]]+Table1[[#This Row],[Core Loss]] -> 0.8586848654 | Y14: =IF(Table1[[#This Row],[Vin]]>Vout, Table1[[#This Row],[Ripple Current pk-pk]]/SQRT(12), SQRT(Table1[[#This Row],[Duty Cycle BOOST Leg]]/(1-Table1[[#This Row],[Duty Cycle BOOST Leg]]))*SQRT(Table1[[#This Row],[Iout]]^2+(Table1[[#This Row],[Ripple Current pk-pk]]^2)/12)) -> 4.772045437 | Z14: =RCoutEsr*Table1[[#This Row],[Irms Cout]]^2 -> 0.1890110665 | AA14: =Table1[[#This Row],[Cout ESR Loss]] -> 0.1890110665 | AB14: =IF(Table1[[#This Row],[Vin]]>Vout, SQRT(Table1[[#This Row],[Duty Cycle BUCK Leg]]*(1-Table1[[#This Row],[Duty Cycle BUCK Leg]]))*SQRT(Table1[[#This Row],[Iout]]^2+(Table1[[#This Row],[Ripple Current pk-pk]]^2)/12), Table1[[#This Row],[Ripple Current pk-pk]]/SQRT(12)) -> 0.6293327557 | AC14: =RCinEsr*Table1[[#This Row],[Irms Cin]]^2 -> 0.003287295655 | AD14: =Table1[[#This Row],[Cin ESR Loss]] -> 0.003287295655 | AE14: =Table1[[#This Row],[Irms Lf]] -> 10.31162011 | AF14: =Rdson1*Table1[[#This Row],[Irms BuCtrl]]^2 -> 0.4253180373 | AG14: =CHOOSE(Table1[[#This Row],[Mode Digit]], (Table1[[#This Row],[Vin]]*Table1[[#This Row],[Iout]]/2)*(Fsw)*(Tr_buck+Tf_buck), 0, (Table1[[#This Row],[Vin]]*Table1[[#This Row],[Avg IL]]/2)*(Fsw/1)*(Tr_buck+Tf_buck)) -> 0 | AH14: =IF(Table1[[#This Row],[Vin]]>Vout, IF(Table1[[#This Row],[Iout]]>Table1[[#This Row],[Ripple Current pk-pk]]/2,0,ABS(Table1[[#This Row],[Iout]]-Table1[[#This Row],[Ripple Current pk-pk]]/2)*Vsd_Q1*Deadtime*Fsw),0) -> 0 | AI14: =(Table1[[#This Row],[Dead Time Loss BuCtrl]]+Table1[[#This Row],[Transition Loss BuCtrl]]+Table1[[#This Row],[RDS(on) Loss BuCtrl]]*(1+RdsonTopTc*Ta-RdsonTopTc*25))/(1-Table1[[#This Row],[RDS(on) Loss BuCtrl]]*RdsonTopTc*ThetaJA_Q1) -> 0.4754700863 | AJ14: =Table1[[#This Row],[Irms Lf]] -> 10.31162011 | AK14: =Rdson2*Table1[[#This Row],[Irms BuSync]]^2 -> 0.4253180373 | AL14: =CHOOSE(Table1[[#This Row],[Mode Digit]], IF(Table1[[#This Row],[Iout]]<Table1[[#This Row],[Ripple Current pk-pk]]/2,Deadtime*Fsw*IF(VfdSky_Q2>0,0,Vsd_Q2)*(Table1[[#This Row],[Iout]]+Table1[[#This Row],[Ripple Current pk-pk]]/2),2*Deadtime*Fsw*IF(VfdSky_Q2>0,0,Vsd_Q2)*Table1[[#This Row],[Iout]]),0, IF(Table1[[#This Row],[Iout]]<Table1[[#This Row],[Ripple Current pk-pk]]/2,Deadtime*Fsw*IF(VfdSky_Q2>0,0,Vsd_Q2)*(Table1[[#This Row],[Iout]]+Table1[[#This Row],[Ripple Current pk-pk]]/2),2*Deadtime*Fsw*IF(VfdSky_Q2>0,0,Vsd_Q2)*Table1[[#This Row],[Iout]])) -> 0 | AM14: =(Table1[[#This Row],[Deadtime Loss BuSync]]+Table1[[#This Row],[RDS(on) Loss BuSync]]*(1+RdsonBotTc*Ta-RdsonBotTc*25))/(1-Table1[[#This Row],[RDS(on) Loss BuSync]]*RdsonBotTc*ThetaJA_Q2) -> 0.4754700863 | AN14: =Table1[[#This Row],[Irms Lf]] -> 10.31162011 | AO14: =Rdson4*Table1[[#This Row],[Irms BoCtlr]]^2 -> 0.4253180373 | AP14: =CHOOSE(Table1[[#This Row],[Mode Digit]], 0, (Vout*Table1[[#This Row],[Iin]]/2)*(Fsw)*(Tr_boost+Tf_boost), (Vout*Iout/2)*(Fsw/1)*(Tr_boost+Tf_boost)) -> 1.556818029 | AQ14: =IF(Table1[[#This Row],[Vin]]>Vout, 0, IF(Table1[[#This Row],[Iin]]>Table1[[#This Row],[Ripple Current pk-pk]]/2,0,ABS(Table1[[#This Row],[Iin]]-Table1[[#This Row],[Ripple Current pk-pk]]/2)*Vsd_Q4*Deadtime*Fsw)) -> 0 | AR14: =(Table1[[#This Row],[Dead Time Loss BoCtlr]]+Table1[[#This Row],[Transition Loss BoCtlr]]+Table1[[#This Row],[RDS(on) Loss BoCtlr]]*(1+RdsonTopTc*Ta-RdsonTopTc*25))/(1-Table1[[#This Row],[RDS(on) Loss BoCtlr]]*RdsonTopTc*ThetaJA_Q4) -> 2.215862775 | AS14: =Table1[[#This Row],[Irms Lf]] -> 10.31162011 | AT14: =Rdson3*Table1[[#This Row],[Irms BoSync]]^2 -> 0.4253180373 | AU14: =CHOOSE(Table1[[#This Row],[Mode Digit]], 0, IF(Table1[[#This Row],[Iin]]<Table1[[#This Row],[Ripple Current pk-pk]]/2,Deadtime*Fsw*IF(VfdSky_Q3>0,0,Vsd_Q3)*(Table1[[#This Row],[Iin]]+Table1[[#This Row],[Ripple Current pk-pk]]/2), 2*Deadtime*Fsw*IF(VfdSky_Q3>0,0,Vsd_Q3)*Table1[[#This Row],[Iin]]), IF(Table1[[#This Row],[Iin]]<Table1[[#This Row],[Ripple Current pk-pk]]/2,Deadtime*Fsw*IF(VfdSky_Q3>0,0,Vsd_Q3)*(Table1[[#This Row],[Iin]]+Table1[[#This Row],[Ripple Current pk-pk]]/2), 2*Deadtime*Fsw*IF(VfdSky_Q3>0,0,Vsd_Q3)*Table1[[#This Row],[Iin]])) -> 0.7595789474 | AV14: =(Table1[[#This Row],[Deadtime Loss BoSync]]+Table1[[#This Row],[RDS(on) Loss BoSync]]*(1+RdsonBotTc*Ta-RdsonBotTc*25))/(1-Table1[[#This Row],[RDS(on) Loss BoSync]]*RdsonBotTc*ThetaJA_Q3) -> 1.324615986 | AW14: =CHOOSE(Table1[[#This Row],[Mode Digit]], Rdson3*Table1[[#This Row],[Irms Lf]]^2, Rdson1*Table1[[#This Row],[Irms Lf]]^2, 0) -> 0.4253180373 | AX14: =CHOOSE(Table1[[#This Row],[Mode Digit]], 2*Deadtime*Fsw*IF(VfdSky_Q2>0,VfdSky_Q2,0)*Table1[[#This Row],[Iout]], 2*Deadtime*Fsw*IF(VfdSky_Q3>0,VfdSky_Q3,0)*Table1[[#This Row],[Iin]], 2*Deadtime*Fsw*IF(VfdSky_Q2>0,VfdSky_Q2,0)*Table1[[#This Row],[Iout]]+2*Deadtime*Fsw*IF(VfdSky_Q3>0,VfdSky_Q3,0)*Table1[[#This Row],[Iin]]) -> 0 | AY14: =CHOOSE(Table1[[#This Row],[Mode Digit]], IF(QrrSky_Q2>0,QrrSky_Q2,Qrr_Q2)*Fsw*(Table1[[#This Row],[Vin]]-Table1[[#This Row],[Iout]]*Rdson1), IF(QrrSky_Q3>0,QrrSky_Q3,Qrr_Q3)*Fsw*Vout, IF(QrrSky_Q2>0,QrrSky_Q2,Qrr_Q2)*Fsw*(Table1[[#This Row],[Vin]]-Table1[[#This Row],[Iout]]*Rdson1)+IF(QrrSky_Q3>0,QrrSky_Q3,Qrr_Q3)*Fsw*Vout) -> 0.2706 | AZ14: =CHOOSE(Table1[[#This Row],[Mode Digit]], Rs*Table1[[#This Row],[Irms BuSync]]^2, Rs*Table1[[#This Row],[Irms BoCtlr]]^2, Rs*(Table1[[#This Row],[Irms BuSync]]^2+Table1[[#This Row],[Irms BoCtlr]]^2)) -> 0.318988528 | BA14: 0.1089 | BB14: =IF(Vout>8, Iq*Vout, Iq*Table1[[#This Row],[Vin]]) -> 0.06 | BC14: =CHOOSE(Table1[[#This Row],[Mode Digit]], (Qg_Q1+Qg_Q2)*Fsw, (Qg_Q3+Qg_Q4)*Fsw, (Qg_Q1+Qg_Q2+Qg_Q3+Qg_Q4)*Fsw)*IF(Vout>8, Vout, Table1[[#This Row],[Vin]]) -> 0.5412 | BD14: 0.1912734247 | BE14: =Table1[[#This Row],[IQ Loss]]+Table1[[#This Row],[Switching Current Loss]] -> 0.6012 | BF14: =SUM(Table1[[#This Row],[Total Inductor Loss]],Table1[[#This Row],[Total Cout Loss]],Table1[[#This Row],[Total Cin Loss]],Table1[[#This Row],[Total Control Bu MOSFET Loss]],Table1[[#This Row],[Total Sync Bu MOSFET Loss]],Table1[[#This Row],[Total Control Bo MOSFET Loss]],Table1[[#This Row],[Total Sync Bo MOSFET Loss]], Table1[[#This Row],[Deadtime Loss ext D]],Table1[[#This Row],[Reverse Recovery Loss MOSFET D]],Table1[[#This Row],[Total IC Loss]],Table1[[#This Row],[Isense Shunt Loss]],Table1[[#This Row],[Iout Shunt Loss]]) -> 6.842090689 | BG14: =Vout*Table1[[#This Row],[Iout]] -> 66 | BH14: =Table1[[#This Row],[Pout]]/(Table1[[#This Row],[Pout]]+Table1[[#This Row],[Total Loss]]) -> 0.9060695454 | BI14: =IF(Table1[[#This Row],[Vin]]>Vout,ThetaJA_Q1*(Table1[[#This Row],[Total Control Bu MOSFET Loss]]+Table1[[#This Row],[Reverse Recovery Loss MOSFET D]]),ThetaJA_Q4*(Table1[[#This Row],[Total Control Bo MOSFET Loss]]+Table1[[#This Row],[Reverse Recovery Loss MOSFET D]])) -> 154.160692 | BJ14: =IF(Table1[[#This Row],[Vin]]>Vout, Table1[[#This Row],[Total Sync Bu MOSFET Loss]]*ThetaJA_Q2, ThetaJA_Q3*Table1[[#This Row],[Total Sync Bo MOSFET Loss]]) -> 82.12619116 | BL14: =Table1[[#This Row],[EFF, h]]*100 -> 90.60695454 | BM14: =Table1[[#This Row],[Total Inductor Loss]] -> 0.8586848654 | BN14: =Table1[[#This Row],[Total Control Bu MOSFET Loss]]+Table1[[#This Row],[Total Sync Bu MOSFET Loss]]+Table1[[#This Row],[Total Control Bo MOSFET Loss]]+Table1[[#This Row],[Total Sync Bo MOSFET Loss]]+Table1[[#This Row],[Reverse Recovery Loss MOSFET D]] -> 4.762018934 | BO14: =Table1[[#This Row],[Total Sync Bu MOSFET Loss]]+Table1[[#This Row],[Reverse Recovery Loss MOSFET D]]*0.33 -> 0.5647680863 | BP14: =Table1[[#This Row],[Isense Shunt Loss]] -> 0.318988528 | BT14: 500kHz / 12-5V / 15A | BU14: 45 | BV14: 45 | BW14: 45 | BX14: =500000*(12-Vdd)*BW14/1000000000+((500000*BW9/1000000000*Vdd)*2.5/(2*4)) -> 0.18328125 | BY14: 14.6625 | BZ14: 18.328125 | CA14: 21.99375 | CB14: 25.659375 | CC14: 29.325 | CD14: 32.990625 | CE14: 3.665625 | CF14: 5.4984375 | CG14: 7.33125 | CH14: 9.1640625
A15: Ta | B15: =Ta -> 25 | C15: °C | D15: Ambient Temperature | G15: 6 | H15: =VIN_min+(VIN_max-VIN_min)*(Table1[[#This Row],[Step]]/200) -> 6.9 | I15: =IF(Table1[[#This Row],[Vin]]>VIN_BB_to_buck, "BUCK", IF(Table1[[#This Row],[Vin]]<=VIN_boost_to_BB,"BOOST","BUCK-BST")) -> BOOST | J15: =IF(Table1[[#This Row],[Mode]]="BOOST",2, IF(Table1[[#This Row],[Mode]]="BUCK", 1,3)) -> 2 | K15: 3.3 | L15: =Vout*Table1[[#This Row],[Iout]]/(Table1[[#This Row],[Vin]]*Efficiency) -> 10.06864989 | M15: =Iout/(1-Table1[[#This Row],[Duty Cycle BOOST Leg]]) -> 9.734003934 | N15: =CHOOSE(Table1[[#This Row],[Mode Digit]],(Vout+(Rdson2+Rs+Rdcr)*Table1[[#This Row],[Iout]])/(Table1[[#This Row],[Vin]]+(Rs+Rdson2-Rdson1)*Table1[[#This Row],[Iout]]),1,IF(Table1[[#This Row],[Vin]]<Vout,D_max_buck_BB,Vout/Table1[[#This Row],[Vin]]*(1-D_min_boost_exitBB_to_buck))) -> 1 | O15: =CHOOSE(Table1[[#This Row],[Mode Digit]],0,(Vout+(Rdson3+Rdcr)*Table1[[#This Row],[Iin]]-Table1[[#This Row],[Vin]])/(Vout+(Rdson3-Rdson4-Rs)*Table1[[#This Row],[Iin]]),IF(Table1[[#This Row],[Vin]]>Vout, (Vout-Table1[[#This Row],[Vin]]*D_max_exitBB_to_buck)/Vout, (Vout-Table1[[#This Row],[Vin]]*D_max_buck_BB)/Vout)) -> 0.6609822615 | P15: =CHOOSE(Table1[[#This Row],[Mode Digit]],0,0,1-((Table1[[#This Row],[Vin]]-Vout)+((VIN_BB_to_buck-VIN_BB_to_boost)/2))/((VIN_BB_to_buck-VIN_BB_to_boost))) -> 0 | Q15: =CHOOSE(Table1[[#This Row],[Mode Digit]],0,Table1[[#This Row],[Duty Cycle BOOST Leg]]/Fsw,(1/Fsw-Table1[[#This Row],[T BOD/BUE]])*Table1[[#This Row],[BOE/BUD BUBO ratio]]) -> 1.074767905e-06 | R15: =CHOOSE(Table1[[#This Row],[Mode Digit]],Table1[[#This Row],[Duty Cycle BUCK Leg]]/Fsw,(1-Table1[[#This Row],[Duty Cycle BOOST Leg]])/Fsw,TonBubo) -> 5.512483552e-07 | S15: =CHOOSE(Table1[[#This Row],[Mode Digit]],(1-Table1[[#This Row],[Duty Cycle BUCK Leg]])/Fsw,0,(1/Fsw-Table1[[#This Row],[T BOD/BUE]]-Table1[[#This Row],[T BOE]])) -> 0 | T15: =MAX(0, CHOOSE(Table1[[#This Row],[Mode Digit]], (Table1[[#This Row],[Vin]]-(Rdson1+Rdcr)*Table1[[#This Row],[Iout]]-Vout)*Table1[[#This Row],[Duty Cycle BUCK Leg]]/(Fsw*Lf), (Table1[[#This Row],[Vin]]-(Rdson4+Rdcr+Rs)*Table1[[#This Row],[Iin]])*Table1[[#This Row],[Duty Cycle BOOST Leg]]/(Fsw*Lf), IF(Table1[[#This Row],[Vin]]<Vout, (Table1[[#This Row],[Vin]]-(Rdson1+Rdson3+Rdcr+Rs)*Table1[[#This Row],[Iin]])*Table1[[#This Row],[T BOE]]/(Lf),(Vout-(Rdson2+Rdson4+Rdcr+Rs)*Table1[[#This Row],[Iout]])*Table1[[#This Row],[T BUD]]/(Lf)))) -> 2.204939905 | U15: =CHOOSE(Table1[[#This Row],[Mode Digit]], SQRT(Table1[[#This Row],[Iout]]^2+(Table1[[#This Row],[Ripple Current pk-pk]]^2)/12), SQRT(Table1[[#This Row],[Iin]]^2+(Table1[[#This Row],[Ripple Current pk-pk]]^2)/12), SQRT(Table1[[#This Row],[Avg IL]]^2+(Table1[[#This Row],[Ripple Current pk-pk]]^2)/12)) -> 10.08874904 | V15: =(Table1[[#This Row],[Irms Lf]]^2*Rdcr*(1+Ltc*Ta-Ltc*25))/(1-Table1[[#This Row],[Irms Lf]]^2*Rdcr*Ltc*ThetaCa) -> 0.630824624 | W15: =ABS(7.759*10^-3*Fsw^0.9458*(0.00787*Table1[[#This Row],[Ripple Current pk-pk]])^2.304) -> 0.2034397198 | X15: =Table1[[#This Row],[DCR Loss]]+Table1[[#This Row],[Core Loss]] -> 0.8342643437 | Y15: =IF(Table1[[#This Row],[Vin]]>Vout, Table1[[#This Row],[Ripple Current pk-pk]]/SQRT(12), SQRT(Table1[[#This Row],[Duty Cycle BOOST Leg]]/(1-Table1[[#This Row],[Duty Cycle BOOST Leg]]))*SQRT(Table1[[#This Row],[Iout]]^2+(Table1[[#This Row],[Ripple Current pk-pk]]^2)/12)) -> 4.69277388 | Z15: =RCoutEsr*Table1[[#This Row],[Irms Cout]]^2 -> 0.1827836515 | AA15: =Table1[[#This Row],[Cout ESR Loss]] -> 0.1827836515 | AB15: =IF(Table1[[#This Row],[Vin]]>Vout, SQRT(Table1[[#This Row],[Duty Cycle BUCK Leg]]*(1-Table1[[#This Row],[Duty Cycle BUCK Leg]]))*SQRT(Table1[[#This Row],[Iout]]^2+(Table1[[#This Row],[Ripple Current pk-pk]]^2)/12), Table1[[#This Row],[Ripple Current pk-pk]]/SQRT(12)) -> 0.6365113239 | AC15: =RCinEsr*Table1[[#This Row],[Irms Cin]]^2 -> 0.003362717324 | AD15: =Table1[[#This Row],[Cin ESR Loss]] -> 0.003362717324 | AE15: =Table1[[#This Row],[Irms Lf]] -> 10.08874904 | AF15: =Rdson1*Table1[[#This Row],[Irms BuCtrl]]^2 -> 0.4071314287 | AG15: =CHOOSE(Table1[[#This Row],[Mode Digit]], (Table1[[#This Row],[Vin]]*Table1[[#This Row],[Iout]]/2)*(Fsw)*(Tr_buck+Tf_buck), 0, (Table1[[#This Row],[Vin]]*Table1[[#This Row],[Avg IL]]/2)*(Fsw/1)*(Tr_buck+Tf_buck)) -> 0 | AH15: =IF(Table1[[#This Row],[Vin]]>Vout, IF(Table1[[#This Row],[Iout]]>Table1[[#This Row],[Ripple Current pk-pk]]/2,0,ABS(Table1[[#This Row],[Iout]]-Table1[[#This Row],[Ripple Current pk-pk]]/2)*Vsd_Q1*Deadtime*Fsw),0) -> 0 | AI15: =(Table1[[#This Row],[Dead Time Loss BuCtrl]]+Table1[[#This Row],[Transition Loss BuCtrl]]+Table1[[#This Row],[RDS(on) Loss BuCtrl]]*(1+RdsonTopTc*Ta-RdsonTopTc*25))/(1-Table1[[#This Row],[RDS(on) Loss BuCtrl]]*RdsonTopTc*ThetaJA_Q1) -> 0.4528556246 | AJ15: =Table1[[#This Row],[Irms Lf]] -> 10.08874904 | AK15: =Rdson2*Table1[[#This Row],[Irms BuSync]]^2 -> 0.4071314287 | AL15: =CHOOSE(Table1[[#This Row],[Mode Digit]], IF(Table1[[#This Row],[Iout]]<Table1[[#This Row],[Ripple Current pk-pk]]/2,Deadtime*Fsw*IF(VfdSky_Q2>0,0,Vsd_Q2)*(Table1[[#This Row],[Iout]]+Table1[[#This Row],[Ripple Current pk-pk]]/2),2*Deadtime*Fsw*IF(VfdSky_Q2>0,0,Vsd_Q2)*Table1[[#This Row],[Iout]]),0, IF(Table1[[#This Row],[Iout]]<Table1[[#This Row],[Ripple Current pk-pk]]/2,Deadtime*Fsw*IF(VfdSky_Q2>0,0,Vsd_Q2)*(Table1[[#This Row],[Iout]]+Table1[[#This Row],[Ripple Current pk-pk]]/2),2*Deadtime*Fsw*IF(VfdSky_Q2>0,0,Vsd_Q2)*Table1[[#This Row],[Iout]])) -> 0 | AM15: =(Table1[[#This Row],[Deadtime Loss BuSync]]+Table1[[#This Row],[RDS(on) Loss BuSync]]*(1+RdsonBotTc*Ta-RdsonBotTc*25))/(1-Table1[[#This Row],[RDS(on) Loss BuSync]]*RdsonBotTc*ThetaJA_Q2) -> 0.4528556246 | AN15: =Table1[[#This Row],[Irms Lf]] -> 10.08874904 | AO15: =Rdson4*Table1[[#This Row],[Irms BoCtlr]]^2 -> 0.4071314287 | AP15: =CHOOSE(Table1[[#This Row],[Mode Digit]], 0, (Vout*Table1[[#This Row],[Iin]]/2)*(Fsw)*(Tr_boost+Tf_boost), (Vout*Iout/2)*(Fsw/1)*(Tr_boost+Tf_boost)) -> 1.522974158 | AQ15: =IF(Table1[[#This Row],[Vin]]>Vout, 0, IF(Table1[[#This Row],[Iin]]>Table1[[#This Row],[Ripple Current pk-pk]]/2,0,ABS(Table1[[#This Row],[Iin]]-Table1[[#This Row],[Ripple Current pk-pk]]/2)*Vsd_Q4*Deadtime*Fsw)) -> 0 | AR15: =(Table1[[#This Row],[Dead Time Loss BoCtlr]]+Table1[[#This Row],[Transition Loss BoCtlr]]+Table1[[#This Row],[RDS(on) Loss BoCtlr]]*(1+RdsonTopTc*Ta-RdsonTopTc*25))/(1-Table1[[#This Row],[RDS(on) Loss BoCtlr]]*RdsonTopTc*ThetaJA_Q4) -> 2.146872262 | AS15: =Table1[[#This Row],[Irms Lf]] -> 10.08874904 | AT15: =Rdson3*Table1[[#This Row],[Irms BoSync]]^2 -> 0.4071314287 | AU15: =CHOOSE(Table1[[#This Row],[Mode Digit]], 0, IF(Table1[[#This Row],[Iin]]<Table1[[#This Row],[Ripple Current pk-pk]]/2,Deadtime*Fsw*IF(VfdSky_Q3>0,0,Vsd_Q3)*(Table1[[#This Row],[Iin]]+Table1[[#This Row],[Ripple Current pk-pk]]/2), 2*Deadtime*Fsw*IF(VfdSky_Q3>0,0,Vsd_Q3)*Table1[[#This Row],[Iin]]), IF(Table1[[#This Row],[Iin]]<Table1[[#This Row],[Ripple Current pk-pk]]/2,Deadtime*Fsw*IF(VfdSky_Q3>0,0,Vsd_Q3)*(Table1[[#This Row],[Iin]]+Table1[[#This Row],[Ripple Current pk-pk]]/2), 2*Deadtime*Fsw*IF(VfdSky_Q3>0,0,Vsd_Q3)*Table1[[#This Row],[Iin]])) -> 0.7430663616 | AV15: =(Table1[[#This Row],[Deadtime Loss BoSync]]+Table1[[#This Row],[RDS(on) Loss BoSync]]*(1+RdsonBotTc*Ta-RdsonBotTc*25))/(1-Table1[[#This Row],[RDS(on) Loss BoSync]]*RdsonBotTc*ThetaJA_Q3) -> 1.279374428 | AW15: =CHOOSE(Table1[[#This Row],[Mode Digit]], Rdson3*Table1[[#This Row],[Irms Lf]]^2, Rdson1*Table1[[#This Row],[Irms Lf]]^2, 0) -> 0.4071314287 | AX15: =CHOOSE(Table1[[#This Row],[Mode Digit]], 2*Deadtime*Fsw*IF(VfdSky_Q2>0,VfdSky_Q2,0)*Table1[[#This Row],[Iout]], 2*Deadtime*Fsw*IF(VfdSky_Q3>0,VfdSky_Q3,0)*Table1[[#This Row],[Iin]], 2*Deadtime*Fsw*IF(VfdSky_Q2>0,VfdSky_Q2,0)*Table1[[#This Row],[Iout]]+2*Deadtime*Fsw*IF(VfdSky_Q3>0,VfdSky_Q3,0)*Table1[[#This Row],[Iin]]) -> 0 | AY15: =CHOOSE(Table1[[#This Row],[Mode Digit]], IF(QrrSky_Q2>0,QrrSky_Q2,Qrr_Q2)*Fsw*(Table1[[#This Row],[Vin]]-Table1[[#This Row],[Iout]]*Rdson1), IF(QrrSky_Q3>0,QrrSky_Q3,Qrr_Q3)*Fsw*Vout, IF(QrrSky_Q2>0,QrrSky_Q2,Qrr_Q2)*Fsw*(Table1[[#This Row],[Vin]]-Table1[[#This Row],[Iout]]*Rdson1)+IF(QrrSky_Q3>0,QrrSky_Q3,Qrr_Q3)*Fsw*Vout) -> 0.2706 | AZ15: =CHOOSE(Table1[[#This Row],[Mode Digit]], Rs*Table1[[#This Row],[Irms BuSync]]^2, Rs*Table1[[#This Row],[Irms BoCtlr]]^2, Rs*(Table1[[#This Row],[Irms BuSync]]^2+Table1[[#This Row],[Irms BoCtlr]]^2)) -> 0.3053485716 | BA15: 0.1089 | BB15: =IF(Vout>8, Iq*Vout, Iq*Table1[[#This Row],[Vin]]) -> 0.06 | BC15: =CHOOSE(Table1[[#This Row],[Mode Digit]], (Qg_Q1+Qg_Q2)*Fsw, (Qg_Q3+Qg_Q4)*Fsw, (Qg_Q1+Qg_Q2+Qg_Q3+Qg_Q4)*Fsw)*IF(Vout>8, Vout, Table1[[#This Row],[Vin]]) -> 0.5412 | BD15: 0.1912734247 | BE15: =Table1[[#This Row],[IQ Loss]]+Table1[[#This Row],[Switching Current Loss]] -> 0.6012 | BF15: =SUM(Table1[[#This Row],[Total Inductor Loss]],Table1[[#This Row],[Total Cout Loss]],Table1[[#This Row],[Total Cin Loss]],Table1[[#This Row],[Total Control Bu MOSFET Loss]],Table1[[#This Row],[Total Sync Bu MOSFET Loss]],Table1[[#This Row],[Total Control Bo MOSFET Loss]],Table1[[#This Row],[Total Sync Bo MOSFET Loss]], Table1[[#This Row],[Deadtime Loss ext D]],Table1[[#This Row],[Reverse Recovery Loss MOSFET D]],Table1[[#This Row],[Total IC Loss]],Table1[[#This Row],[Isense Shunt Loss]],Table1[[#This Row],[Iout Shunt Loss]]) -> 6.638417223 | BG15: =Vout*Table1[[#This Row],[Iout]] -> 66 | BH15: =Table1[[#This Row],[Pout]]/(Table1[[#This Row],[Pout]]+Table1[[#This Row],[Total Loss]]) -> 0.9086101064 | BI15: =IF(Table1[[#This Row],[Vin]]>Vout,ThetaJA_Q1*(Table1[[#This Row],[Total Control Bu MOSFET Loss]]+Table1[[#This Row],[Reverse Recovery Loss MOSFET D]]),ThetaJA_Q4*(Table1[[#This Row],[Total Control Bo MOSFET Loss]]+Table1[[#This Row],[Reverse Recovery Loss MOSFET D]])) -> 149.8832802 | BJ15: =IF(Table1[[#This Row],[Vin]]>Vout, Table1[[#This Row],[Total Sync Bu MOSFET Loss]]*ThetaJA_Q2, ThetaJA_Q3*Table1[[#This Row],[Total Sync Bo MOSFET Loss]]) -> 79.32121453 | BL15: =Table1[[#This Row],[EFF, h]]*100 -> 90.86101064 | BM15: =Table1[[#This Row],[Total Inductor Loss]] -> 0.8342643437 | BN15: =Table1[[#This Row],[Total Control Bu MOSFET Loss]]+Table1[[#This Row],[Total Sync Bu MOSFET Loss]]+Table1[[#This Row],[Total Control Bo MOSFET Loss]]+Table1[[#This Row],[Total Sync Bo MOSFET Loss]]+Table1[[#This Row],[Reverse Recovery Loss MOSFET D]] -> 4.602557939 | BO15: =Table1[[#This Row],[Total Sync Bu MOSFET Loss]]+Table1[[#This Row],[Reverse Recovery Loss MOSFET D]]*0.33 -> 0.5421536246 | BP15: =Table1[[#This Row],[Isense Shunt Loss]] -> 0.3053485716 | BT15: 1Mhz / 5-1.2V / 10A | BU15: 20 | BV15: 20 | BW15: 20 | BX15: =1000000*(5-Vdd)*BW15/1000000000+((1000000*BW9/1000000000*Vdd)*2.5/(2*4)) -> 0.1140625 | BY15: 9.125 | BZ15: 11.40625 | CA15: 13.6875 | CB15: 15.96875 | CC15: 18.25 | CD15: 20.53125 | CE15: 2.28125 | CF15: 3.421875 | CG15: 4.5625 | CH15: 5.703125
A16: Vcc | B16: =Vdd -> 7.5 | C16: V | D16: Subregulated VCC Voltage | G16: 7 | H16: =VIN_min+(VIN_max-VIN_min)*(Table1[[#This Row],[Step]]/200) -> 7.05 | I16: =IF(Table1[[#This Row],[Vin]]>VIN_BB_to_buck, "BUCK", IF(Table1[[#This Row],[Vin]]<=VIN_boost_to_BB,"BOOST","BUCK-BST")) -> BOOST | J16: =IF(Table1[[#This Row],[Mode]]="BOOST",2, IF(Table1[[#This Row],[Mode]]="BUCK", 1,3)) -> 2 | K16: 3.3 | L16: =Vout*Table1[[#This Row],[Iout]]/(Table1[[#This Row],[Vin]]*Efficiency) -> 9.854423292 | M16: =Iout/(1-Table1[[#This Row],[Duty Cycle BOOST Leg]]) -> 9.519515119 | N16: =CHOOSE(Table1[[#This Row],[Mode Digit]],(Vout+(Rdson2+Rs+Rdcr)*Table1[[#This Row],[Iout]])/(Table1[[#This Row],[Vin]]+(Rs+Rdson2-Rdson1)*Table1[[#This Row],[Iout]]),1,IF(Table1[[#This Row],[Vin]]<Vout,D_max_buck_BB,Vout/Table1[[#This Row],[Vin]]*(1-D_min_boost_exitBB_to_buck))) -> 1 | O16: =CHOOSE(Table1[[#This Row],[Mode Digit]],0,(Vout+(Rdson3+Rdcr)*Table1[[#This Row],[Iin]]-Table1[[#This Row],[Vin]])/(Vout+(Rdson3-Rdson4-Rs)*Table1[[#This Row],[Iin]]),IF(Table1[[#This Row],[Vin]]>Vout, (Vout-Table1[[#This Row],[Vin]]*D_max_exitBB_to_buck)/Vout, (Vout-Table1[[#This Row],[Vin]]*D_max_buck_BB)/Vout)) -> 0.6533436883 | P16: =CHOOSE(Table1[[#This Row],[Mode Digit]],0,0,1-((Table1[[#This Row],[Vin]]-Vout)+((VIN_BB_to_buck-VIN_BB_to_boost)/2))/((VIN_BB_to_buck-VIN_BB_to_boost))) -> 0 | Q16: =CHOOSE(Table1[[#This Row],[Mode Digit]],0,Table1[[#This Row],[Duty Cycle BOOST Leg]]/Fsw,(1/Fsw-Table1[[#This Row],[T BOD/BUE]])*Table1[[#This Row],[BOE/BUD BUBO ratio]]) -> 1.062347461e-06 | R16: =CHOOSE(Table1[[#This Row],[Mode Digit]],Table1[[#This Row],[Duty Cycle BUCK Leg]]/Fsw,(1-Table1[[#This Row],[Duty Cycle BOOST Leg]])/Fsw,TonBubo) -> 5.636687995e-07 | S16: =CHOOSE(Table1[[#This Row],[Mode Digit]],(1-Table1[[#This Row],[Duty Cycle BUCK Leg]])/Fsw,0,(1/Fsw-Table1[[#This Row],[T BOD/BUE]]-Table1[[#This Row],[T BOE]])) -> 0 | T16: =MAX(0, CHOOSE(Table1[[#This Row],[Mode Digit]], (Table1[[#This Row],[Vin]]-(Rdson1+Rdcr)*Table1[[#This Row],[Iout]]-Vout)*Table1[[#This Row],[Duty Cycle BUCK Leg]]/(Fsw*Lf), (Table1[[#This Row],[Vin]]-(Rdson4+Rdcr+Rs)*Table1[[#This Row],[Iin]])*Table1[[#This Row],[Duty Cycle BOOST Leg]]/(Fsw*Lf), IF(Table1[[#This Row],[Vin]]<Vout, (Table1[[#This Row],[Vin]]-(Rdson1+Rdson3+Rdcr+Rs)*Table1[[#This Row],[Iin]])*Table1[[#This Row],[T BOE]]/(Lf),(Vout-(Rdson2+Rdson4+Rdcr+Rs)*Table1[[#This Row],[Iout]])*Table1[[#This Row],[T BUD]]/(Lf)))) -> 2.228636909 | U16: =CHOOSE(Table1[[#This Row],[Mode Digit]], SQRT(Table1[[#This Row],[Iout]]^2+(Table1[[#This Row],[Ripple Current pk-pk]]^2)/12), SQRT(Table1[[#This Row],[Iin]]^2+(Table1[[#This Row],[Ripple Current pk-pk]]^2)/12), SQRT(Table1[[#This Row],[Avg IL]]^2+(Table1[[#This Row],[Ripple Current pk-pk]]^2)/12)) -> 9.875401779 | V16: =(Table1[[#This Row],[Irms Lf]]^2*Rdcr*(1+Ltc*Ta-Ltc*25))/(1-Table1[[#This Row],[Irms Lf]]^2*Rdcr*Ltc*ThetaCa) -> 0.6031528052 | W16: =ABS(7.759*10^-3*Fsw^0.9458*(0.00787*Table1[[#This Row],[Ripple Current pk-pk]])^2.304) -> 0.208512555 | X16: =Table1[[#This Row],[DCR Loss]]+Table1[[#This Row],[Core Loss]] -> 0.8116653602 | Y16: =IF(Table1[[#This Row],[Vin]]>Vout, Table1[[#This Row],[Ripple Current pk-pk]]/SQRT(12), SQRT(Table1[[#This Row],[Duty Cycle BOOST Leg]]/(1-Table1[[#This Row],[Duty Cycle BOOST Leg]]))*SQRT(Table1[[#This Row],[Iout]]^2+(Table1[[#This Row],[Ripple Current pk-pk]]^2)/12)) -> 4.615677783 | Z16: =RCoutEsr*Table1[[#This Row],[Irms Cout]]^2 -> 0.1768271956 | AA16: =Table1[[#This Row],[Cout ESR Loss]] -> 0.1768271956 | AB16: =IF(Table1[[#This Row],[Vin]]>Vout, SQRT(Table1[[#This Row],[Duty Cycle BUCK Leg]]*(1-Table1[[#This Row],[Duty Cycle BUCK Leg]]))*SQRT(Table1[[#This Row],[Iout]]^2+(Table1[[#This Row],[Ripple Current pk-pk]]^2)/12), Table1[[#This Row],[Ripple Current pk-pk]]/SQRT(12)) -> 0.6433520597 | AC16: =RCinEsr*Table1[[#This Row],[Irms Cin]]^2 -> 0.003435385543 | AD16: =Table1[[#This Row],[Cin ESR Loss]] -> 0.003435385543 | AE16: =Table1[[#This Row],[Irms Lf]] -> 9.875401779 | AF16: =Rdson1*Table1[[#This Row],[Irms BuCtrl]]^2 -> 0.3900942412 | AG16: =CHOOSE(Table1[[#This Row],[Mode Digit]], (Table1[[#This Row],[Vin]]*Table1[[#This Row],[Iout]]/2)*(Fsw)*(Tr_buck+Tf_buck), 0, (Table1[[#This Row],[Vin]]*Table1[[#This Row],[Avg IL]]/2)*(Fsw/1)*(Tr_buck+Tf_buck)) -> 0 | AH16: =IF(Table1[[#This Row],[Vin]]>Vout, IF(Table1[[#This Row],[Iout]]>Table1[[#This Row],[Ripple Current pk-pk]]/2,0,ABS(Table1[[#This Row],[Iout]]-Table1[[#This Row],[Ripple Current pk-pk]]/2)*Vsd_Q1*Deadtime*Fsw),0) -> 0 | AI16: =(Table1[[#This Row],[Dead Time Loss BuCtrl]]+Table1[[#This Row],[Transition Loss BuCtrl]]+Table1[[#This Row],[RDS(on) Loss BuCtrl]]*(1+RdsonTopTc*Ta-RdsonTopTc*25))/(1-Table1[[#This Row],[RDS(on) Loss BuCtrl]]*RdsonTopTc*ThetaJA_Q1) -> 0.4318753154 | AJ16: =Table1[[#This Row],[Irms Lf]] -> 9.875401779 | AK16: =Rdson2*Table1[[#This Row],[Irms BuSync]]^2 -> 0.3900942412 | AL16: =CHOOSE(Table1[[#This Row],[Mode Digit]], IF(Table1[[#This Row],[Iout]]<Table1[[#This Row],[Ripple Current pk-pk]]/2,Deadtime*Fsw*IF(VfdSky_Q2>0,0,Vsd_Q2)*(Table1[[#This Row],[Iout]]+Table1[[#This Row],[Ripple Current pk-pk]]/2),2*Deadtime*Fsw*IF(VfdSky_Q2>0,0,Vsd_Q2)*Table1[[#This Row],[Iout]]),0, IF(Table1[[#This Row],[Iout]]<Table1[[#This Row],[Ripple Current pk-pk]]/2,Deadtime*Fsw*IF(VfdSky_Q2>0,0,Vsd_Q2)*(Table1[[#This Row],[Iout]]+Table1[[#This Row],[Ripple Current pk-pk]]/2),2*Deadtime*Fsw*IF(VfdSky_Q2>0,0,Vsd_Q2)*Table1[[#This Row],[Iout]])) -> 0 | AM16: =(Table1[[#This Row],[Deadtime Loss BuSync]]+Table1[[#This Row],[RDS(on) Loss BuSync]]*(1+RdsonBotTc*Ta-RdsonBotTc*25))/(1-Table1[[#This Row],[RDS(on) Loss BuSync]]*RdsonBotTc*ThetaJA_Q2) -> 0.4318753154 | AN16: =Table1[[#This Row],[Irms Lf]] -> 9.875401779 | AO16: =Rdson4*Table1[[#This Row],[Irms BoCtlr]]^2 -> 0.3900942412 | AP16: =CHOOSE(Table1[[#This Row],[Mode Digit]], 0, (Vout*Table1[[#This Row],[Iin]]/2)*(Fsw)*(Tr_boost+Tf_boost), (Vout*Iout/2)*(Fsw/1)*(Tr_boost+Tf_boost)) -> 1.490570453 | AQ16: =IF(Table1[[#This Row],[Vin]]>Vout, 0, IF(Table1[[#This Row],[Iin]]>Table1[[#This Row],[Ripple Current pk-pk]]/2,0,ABS(Table1[[#This Row],[Iin]]-Table1[[#This Row],[Ripple Current pk-pk]]/2)*Vsd_Q4*Deadtime*Fsw)) -> 0 | AR16: =(Table1[[#This Row],[Dead Time Loss BoCtlr]]+Table1[[#This Row],[Transition Loss BoCtlr]]+Table1[[#This Row],[RDS(on) Loss BoCtlr]]*(1+RdsonTopTc*Ta-RdsonTopTc*25))/(1-Table1[[#This Row],[RDS(on) Loss BoCtlr]]*RdsonTopTc*ThetaJA_Q4) -> 2.082093433 | AS16: =Table1[[#This Row],[Irms Lf]] -> 9.875401779 | AT16: =Rdson3*Table1[[#This Row],[Irms BoSync]]^2 -> 0.3900942412 | AU16: =CHOOSE(Table1[[#This Row],[Mode Digit]], 0, IF(Table1[[#This Row],[Iin]]<Table1[[#This Row],[Ripple Current pk-pk]]/2,Deadtime*Fsw*IF(VfdSky_Q3>0,0,Vsd_Q3)*(Table1[[#This Row],[Iin]]+Table1[[#This Row],[Ripple Current pk-pk]]/2), 2*Deadtime*Fsw*IF(VfdSky_Q3>0,0,Vsd_Q3)*Table1[[#This Row],[Iin]]), IF(Table1[[#This Row],[Iin]]<Table1[[#This Row],[Ripple Current pk-pk]]/2,Deadtime*Fsw*IF(VfdSky_Q3>0,0,Vsd_Q3)*(Table1[[#This Row],[Iin]]+Table1[[#This Row],[Ripple Current pk-pk]]/2), 2*Deadtime*Fsw*IF(VfdSky_Q3>0,0,Vsd_Q3)*Table1[[#This Row],[Iin]])) -> 0.727256439 | AV16: =(Table1[[#This Row],[Deadtime Loss BoSync]]+Table1[[#This Row],[RDS(on) Loss BoSync]]*(1+RdsonBotTc*Ta-RdsonBotTc*25))/(1-Table1[[#This Row],[RDS(on) Loss BoSync]]*RdsonBotTc*ThetaJA_Q3) -> 1.237024612 | AW16: =CHOOSE(Table1[[#This Row],[Mode Digit]], Rdson3*Table1[[#This Row],[Irms Lf]]^2, Rdson1*Table1[[#This Row],[Irms Lf]]^2, 0) -> 0.3900942412 | AX16: =CHOOSE(Table1[[#This Row],[Mode Digit]], 2*Deadtime*Fsw*IF(VfdSky_Q2>0,VfdSky_Q2,0)*Table1[[#This Row],[Iout]], 2*Deadtime*Fsw*IF(VfdSky_Q3>0,VfdSky_Q3,0)*Table1[[#This Row],[Iin]], 2*Deadtime*Fsw*IF(VfdSky_Q2>0,VfdSky_Q2,0)*Table1[[#This Row],[Iout]]+2*Deadtime*Fsw*IF(VfdSky_Q3>0,VfdSky_Q3,0)*Table1[[#This Row],[Iin]]) -> 0 | AY16: =CHOOSE(Table1[[#This Row],[Mode Digit]], IF(QrrSky_Q2>0,QrrSky_Q2,Qrr_Q2)*Fsw*(Table1[[#This Row],[Vin]]-Table1[[#This Row],[Iout]]*Rdson1), IF(QrrSky_Q3>0,QrrSky_Q3,Qrr_Q3)*Fsw*Vout, IF(QrrSky_Q2>0,QrrSky_Q2,Qrr_Q2)*Fsw*(Table1[[#This Row],[Vin]]-Table1[[#This Row],[Iout]]*Rdson1)+IF(QrrSky_Q3>0,QrrSky_Q3,Qrr_Q3)*Fsw*Vout) -> 0.2706 | AZ16: =CHOOSE(Table1[[#This Row],[Mode Digit]], Rs*Table1[[#This Row],[Irms BuSync]]^2, Rs*Table1[[#This Row],[Irms BoCtlr]]^2, Rs*(Table1[[#This Row],[Irms BuSync]]^2+Table1[[#This Row],[Irms BoCtlr]]^2)) -> 0.2925706809 | BA16: 0.1089 | BB16: =IF(Vout>8, Iq*Vout, Iq*Table1[[#This Row],[Vin]]) -> 0.06 | BC16: =CHOOSE(Table1[[#This Row],[Mode Digit]], (Qg_Q1+Qg_Q2)*Fsw, (Qg_Q3+Qg_Q4)*Fsw, (Qg_Q1+Qg_Q2+Qg_Q3+Qg_Q4)*Fsw)*IF(Vout>8, Vout, Table1[[#This Row],[Vin]]) -> 0.5412 | BD16: 0.1912734247 | BE16: =Table1[[#This Row],[IQ Loss]]+Table1[[#This Row],[Switching Current Loss]] -> 0.6012 | BF16: =SUM(Table1[[#This Row],[Total Inductor Loss]],Table1[[#This Row],[Total Cout Loss]],Table1[[#This Row],[Total Cin Loss]],Table1[[#This Row],[Total Control Bu MOSFET Loss]],Table1[[#This Row],[Total Sync Bu MOSFET Loss]],Table1[[#This Row],[Total Control Bo MOSFET Loss]],Table1[[#This Row],[Total Sync Bo MOSFET Loss]], Table1[[#This Row],[Deadtime Loss ext D]],Table1[[#This Row],[Reverse Recovery Loss MOSFET D]],Table1[[#This Row],[Total IC Loss]],Table1[[#This Row],[Isense Shunt Loss]],Table1[[#This Row],[Iout Shunt Loss]]) -> 6.448067298 | BG16: =Vout*Table1[[#This Row],[Iout]] -> 66 | BH16: =Table1[[#This Row],[Pout]]/(Table1[[#This Row],[Pout]]+Table1[[#This Row],[Total Loss]]) -> 0.910997387 | BI16: =IF(Table1[[#This Row],[Vin]]>Vout,ThetaJA_Q1*(Table1[[#This Row],[Total Control Bu MOSFET Loss]]+Table1[[#This Row],[Reverse Recovery Loss MOSFET D]]),ThetaJA_Q4*(Table1[[#This Row],[Total Control Bo MOSFET Loss]]+Table1[[#This Row],[Reverse Recovery Loss MOSFET D]])) -> 145.8669929 | BJ16: =IF(Table1[[#This Row],[Vin]]>Vout, Table1[[#This Row],[Total Sync Bu MOSFET Loss]]*ThetaJA_Q2, ThetaJA_Q3*Table1[[#This Row],[Total Sync Bo MOSFET Loss]]) -> 76.69552595 | BL16: =Table1[[#This Row],[EFF, h]]*100 -> 91.0997387 | BM16: =Table1[[#This Row],[Total Inductor Loss]] -> 0.8116653602 | BN16: =Table1[[#This Row],[Total Control Bu MOSFET Loss]]+Table1[[#This Row],[Total Sync Bu MOSFET Loss]]+Table1[[#This Row],[Total Control Bo MOSFET Loss]]+Table1[[#This Row],[Total Sync Bo MOSFET Loss]]+Table1[[#This Row],[Reverse Recovery Loss MOSFET D]] -> 4.453468676 | BO16: =Table1[[#This Row],[Total Sync Bu MOSFET Loss]]+Table1[[#This Row],[Reverse Recovery Loss MOSFET D]]*0.33 -> 0.5211733154 | BP16: =Table1[[#This Row],[Isense Shunt Loss]] -> 0.2925706809 | BT16: 1Mhz / 12-1.2V/ 10A | BU16: 25 | BV16: 25 | BW16: 25 | BX16: =1000000*(12-Vdd)*BW16/1000000000+((1000000*BW9/1000000000*Vdd)*2.5/(2*4)) -> 0.2765625 | BY16: 22.125 | BZ16: 27.65625 | CA16: 33.1875 | CB16: 38.71875 | CC16: 44.25 | CD16: 49.78125 | CE16: 5.53125 | CF16: 8.296875 | CG16: 11.0625 | CH16: 13.828125
A17: Components | B17: Input Value | C17: Units | D17: Description | G17: 8 | H17: =VIN_min+(VIN_max-VIN_min)*(Table1[[#This Row],[Step]]/200) -> 7.2 | I17: =IF(Table1[[#This Row],[Vin]]>VIN_BB_to_buck, "BUCK", IF(Table1[[#This Row],[Vin]]<=VIN_boost_to_BB,"BOOST","BUCK-BST")) -> BOOST | J17: =IF(Table1[[#This Row],[Mode]]="BOOST",2, IF(Table1[[#This Row],[Mode]]="BUCK", 1,3)) -> 2 | K17: 3.3 | L17: =Vout*Table1[[#This Row],[Iout]]/(Table1[[#This Row],[Vin]]*Efficiency) -> 9.649122807 | M17: =Iout/(1-Table1[[#This Row],[Duty Cycle BOOST Leg]]) -> 9.314427047 | N17: =CHOOSE(Table1[[#This Row],[Mode Digit]],(Vout+(Rdson2+Rs+Rdcr)*Table1[[#This Row],[Iout]])/(Table1[[#This Row],[Vin]]+(Rs+Rdson2-Rdson1)*Table1[[#This Row],[Iout]]),1,IF(Table1[[#This Row],[Vin]]<Vout,D_max_buck_BB,Vout/Table1[[#This Row],[Vin]]*(1-D_min_boost_exitBB_to_buck))) -> 1 | O17: =CHOOSE(Table1[[#This Row],[Mode Digit]],0,(Vout+(Rdson3+Rdcr)*Table1[[#This Row],[Iin]]-Table1[[#This Row],[Vin]])/(Vout+(Rdson3-Rdson4-Rs)*Table1[[#This Row],[Iin]]),IF(Table1[[#This Row],[Vin]]>Vout, (Vout-Table1[[#This Row],[Vin]]*D_max_exitBB_to_buck)/Vout, (Vout-Table1[[#This Row],[Vin]]*D_max_buck_BB)/Vout)) -> 0.6457108974 | P17: =CHOOSE(Table1[[#This Row],[Mode Digit]],0,0,1-((Table1[[#This Row],[Vin]]-Vout)+((VIN_BB_to_buck-VIN_BB_to_boost)/2))/((VIN_BB_to_buck-VIN_BB_to_boost))) -> 0 | Q17: =CHOOSE(Table1[[#This Row],[Mode Digit]],0,Table1[[#This Row],[Duty Cycle BOOST Leg]]/Fsw,(1/Fsw-Table1[[#This Row],[T BOD/BUE]])*Table1[[#This Row],[BOE/BUD BUBO ratio]]) -> 1.049936418e-06 | R17: =CHOOSE(Table1[[#This Row],[Mode Digit]],Table1[[#This Row],[Duty Cycle BUCK Leg]]/Fsw,(1-Table1[[#This Row],[Duty Cycle BOOST Leg]])/Fsw,TonBubo) -> 5.760798417e-07 | S17: =CHOOSE(Table1[[#This Row],[Mode Digit]],(1-Table1[[#This Row],[Duty Cycle BUCK Leg]])/Fsw,0,(1/Fsw-Table1[[#This Row],[T BOD/BUE]]-Table1[[#This Row],[T BOE]])) -> 0 | T17: =MAX(0, CHOOSE(Table1[[#This Row],[Mode Digit]], (Table1[[#This Row],[Vin]]-(Rdson1+Rdcr)*Table1[[#This Row],[Iout]]-Vout)*Table1[[#This Row],[Duty Cycle BUCK Leg]]/(Fsw*Lf), (Table1[[#This Row],[Vin]]-(Rdson4+Rdcr+Rs)*Table1[[#This Row],[Iin]])*Table1[[#This Row],[Duty Cycle BOOST Leg]]/(Fsw*Lf), IF(Table1[[#This Row],[Vin]]<Vout, (Table1[[#This Row],[Vin]]-(Rdson1+Rdson3+Rdcr+Rs)*Table1[[#This Row],[Iin]])*Table1[[#This Row],[T BOE]]/(Lf),(Vout-(Rdson2+Rdson4+Rdcr+Rs)*Table1[[#This Row],[Iout]])*Table1[[#This Row],[T BUD]]/(Lf)))) -> 2.251167503 | U17: =CHOOSE(Table1[[#This Row],[Mode Digit]], SQRT(Table1[[#This Row],[Iout]]^2+(Table1[[#This Row],[Ripple Current pk-pk]]^2)/12), SQRT(Table1[[#This Row],[Iin]]^2+(Table1[[#This Row],[Ripple Current pk-pk]]^2)/12), SQRT(Table1[[#This Row],[Avg IL]]^2+(Table1[[#This Row],[Ripple Current pk-pk]]^2)/12)) -> 9.670981536 | V17: =(Table1[[#This Row],[Irms Lf]]^2*Rdcr*(1+Ltc*Ta-Ltc*25))/(1-Table1[[#This Row],[Irms Lf]]^2*Rdcr*Ltc*ThetaCa) -> 0.5772994941 | W17: =ABS(7.759*10^-3*Fsw^0.9458*(0.00787*Table1[[#This Row],[Ripple Current pk-pk]])^2.304) -> 0.2134013761 | X17: =Table1[[#This Row],[DCR Loss]]+Table1[[#This Row],[Core Loss]] -> 0.7907008702 | Y17: =IF(Table1[[#This Row],[Vin]]>Vout, Table1[[#This Row],[Ripple Current pk-pk]]/SQRT(12), SQRT(Table1[[#This Row],[Duty Cycle BOOST Leg]]/(1-Table1[[#This Row],[Duty Cycle BOOST Leg]]))*SQRT(Table1[[#This Row],[Iout]]^2+(Table1[[#This Row],[Ripple Current pk-pk]]^2)/12)) -> 4.540627404 | Z17: =RCoutEsr*Table1[[#This Row],[Irms Cout]]^2 -> 0.1711235669 | AA17: =Table1[[#This Row],[Cout ESR Loss]] -> 0.1711235669 | AB17: =IF(Table1[[#This Row],[Vin]]>Vout, SQRT(Table1[[#This Row],[Duty Cycle BUCK Leg]]*(1-Table1[[#This Row],[Duty Cycle BUCK Leg]]))*SQRT(Table1[[#This Row],[Iout]]^2+(Table1[[#This Row],[Ripple Current pk-pk]]^2)/12), Table1[[#This Row],[Ripple Current pk-pk]]/SQRT(12)) -> 0.6498560818 | AC17: =RCinEsr*Table1[[#This Row],[Irms Cin]]^2 -> 0.003505197295 | AD17: =Table1[[#This Row],[Cin ESR Loss]] -> 0.003505197295 | AE17: =Table1[[#This Row],[Irms Lf]] -> 9.670981536 | AF17: =Rdson1*Table1[[#This Row],[Irms BuCtrl]]^2 -> 0.3741115355 | AG17: =CHOOSE(Table1[[#This Row],[Mode Digit]], (Table1[[#This Row],[Vin]]*Table1[[#This Row],[Iout]]/2)*(Fsw)*(Tr_buck+Tf_buck), 0, (Table1[[#This Row],[Vin]]*Table1[[#This Row],[Avg IL]]/2)*(Fsw/1)*(Tr_buck+Tf_buck)) -> 0 | AH17: =IF(Table1[[#This Row],[Vin]]>Vout, IF(Table1[[#This Row],[Iout]]>Table1[[#This Row],[Ripple Current pk-pk]]/2,0,ABS(Table1[[#This Row],[Iout]]-Table1[[#This Row],[Ripple Current pk-pk]]/2)*Vsd_Q1*Deadtime*Fsw),0) -> 0 | AI17: =(Table1[[#This Row],[Dead Time Loss BuCtrl]]+Table1[[#This Row],[Transition Loss BuCtrl]]+Table1[[#This Row],[RDS(on) Loss BuCtrl]]*(1+RdsonTopTc*Ta-RdsonTopTc*25))/(1-Table1[[#This Row],[RDS(on) Loss BuCtrl]]*RdsonTopTc*ThetaJA_Q1) -> 0.4123711951 | AJ17: =Table1[[#This Row],[Irms Lf]] -> 9.670981536 | AK17: =Rdson2*Table1[[#This Row],[Irms BuSync]]^2 -> 0.3741115355 | AL17: =CHOOSE(Table1[[#This Row],[Mode Digit]], IF(Table1[[#This Row],[Iout]]<Table1[[#This Row],[Ripple Current pk-pk]]/2,Deadtime*Fsw*IF(VfdSky_Q2>0,0,Vsd_Q2)*(Table1[[#This Row],[Iout]]+Table1[[#This Row],[Ripple Current pk-pk]]/2),2*Deadtime*Fsw*IF(VfdSky_Q2>0,0,Vsd_Q2)*Table1[[#This Row],[Iout]]),0, IF(Table1[[#This Row],[Iout]]<Table1[[#This Row],[Ripple Current pk-pk]]/2,Deadtime*Fsw*IF(VfdSky_Q2>0,0,Vsd_Q2)*(Table1[[#This Row],[Iout]]+Table1[[#This Row],[Ripple Current pk-pk]]/2),2*Deadtime*Fsw*IF(VfdSky_Q2>0,0,Vsd_Q2)*Table1[[#This Row],[Iout]])) -> 0 | AM17: =(Table1[[#This Row],[Deadtime Loss BuSync]]+Table1[[#This Row],[RDS(on) Loss BuSync]]*(1+RdsonBotTc*Ta-RdsonBotTc*25))/(1-Table1[[#This Row],[RDS(on) Loss BuSync]]*RdsonBotTc*ThetaJA_Q2) -> 0.4123711951 | AN17: =Table1[[#This Row],[Irms Lf]] -> 9.670981536 | AO17: =Rdson4*Table1[[#This Row],[Irms BoCtlr]]^2 -> 0.3741115355 | AP17: =CHOOSE(Table1[[#This Row],[Mode Digit]], 0, (Vout*Table1[[#This Row],[Iin]]/2)*(Fsw)*(Tr_boost+Tf_boost), (Vout*Iout/2)*(Fsw/1)*(Tr_boost+Tf_boost)) -> 1.459516902 | AQ17: =IF(Table1[[#This Row],[Vin]]>Vout, 0, IF(Table1[[#This Row],[Iin]]>Table1[[#This Row],[Ripple Current pk-pk]]/2,0,ABS(Table1[[#This Row],[Iin]]-Table1[[#This Row],[Ripple Current pk-pk]]/2)*Vsd_Q4*Deadtime*Fsw)) -> 0 | AR17: =(Table1[[#This Row],[Dead Time Loss BoCtlr]]+Table1[[#This Row],[Transition Loss BoCtlr]]+Table1[[#This Row],[RDS(on) Loss BoCtlr]]*(1+RdsonTopTc*Ta-RdsonTopTc*25))/(1-Table1[[#This Row],[RDS(on) Loss BoCtlr]]*RdsonTopTc*ThetaJA_Q4) -> 2.021150054 | AS17: =Table1[[#This Row],[Irms Lf]] -> 9.670981536 | AT17: =Rdson3*Table1[[#This Row],[Irms BoSync]]^2 -> 0.3741115355 | AU17: =CHOOSE(Table1[[#This Row],[Mode Digit]], 0, IF(Table1[[#This Row],[Iin]]<Table1[[#This Row],[Ripple Current pk-pk]]/2,Deadtime*Fsw*IF(VfdSky_Q3>0,0,Vsd_Q3)*(Table1[[#This Row],[Iin]]+Table1[[#This Row],[Ripple Current pk-pk]]/2), 2*Deadtime*Fsw*IF(VfdSky_Q3>0,0,Vsd_Q3)*Table1[[#This Row],[Iin]]), IF(Table1[[#This Row],[Iin]]<Table1[[#This Row],[Ripple Current pk-pk]]/2,Deadtime*Fsw*IF(VfdSky_Q3>0,0,Vsd_Q3)*(Table1[[#This Row],[Iin]]+Table1[[#This Row],[Ripple Current pk-pk]]/2), 2*Deadtime*Fsw*IF(VfdSky_Q3>0,0,Vsd_Q3)*Table1[[#This Row],[Iin]])) -> 0.7121052632 | AV17: =(Table1[[#This Row],[Deadtime Loss BoSync]]+Table1[[#This Row],[RDS(on) Loss BoSync]]*(1+RdsonBotTc*Ta-RdsonBotTc*25))/(1-Table1[[#This Row],[RDS(on) Loss BoSync]]*RdsonBotTc*ThetaJA_Q3) -> 1.197302079 | AW17: =CHOOSE(Table1[[#This Row],[Mode Digit]], Rdson3*Table1[[#This Row],[Irms Lf]]^2, Rdson1*Table1[[#This Row],[Irms Lf]]^2, 0) -> 0.3741115355 | AX17: =CHOOSE(Table1[[#This Row],[Mode Digit]], 2*Deadtime*Fsw*IF(VfdSky_Q2>0,VfdSky_Q2,0)*Table1[[#This Row],[Iout]], 2*Deadtime*Fsw*IF(VfdSky_Q3>0,VfdSky_Q3,0)*Table1[[#This Row],[Iin]], 2*Deadtime*Fsw*IF(VfdSky_Q2>0,VfdSky_Q2,0)*Table1[[#This Row],[Iout]]+2*Deadtime*Fsw*IF(VfdSky_Q3>0,VfdSky_Q3,0)*Table1[[#This Row],[Iin]]) -> 0 | AY17: =CHOOSE(Table1[[#This Row],[Mode Digit]], IF(QrrSky_Q2>0,QrrSky_Q2,Qrr_Q2)*Fsw*(Table1[[#This Row],[Vin]]-Table1[[#This Row],[Iout]]*Rdson1), IF(QrrSky_Q3>0,QrrSky_Q3,Qrr_Q3)*Fsw*Vout, IF(QrrSky_Q2>0,QrrSky_Q2,Qrr_Q2)*Fsw*(Table1[[#This Row],[Vin]]-Table1[[#This Row],[Iout]]*Rdson1)+IF(QrrSky_Q3>0,QrrSky_Q3,Qrr_Q3)*Fsw*Vout) -> 0.2706 | AZ17: =CHOOSE(Table1[[#This Row],[Mode Digit]], Rs*Table1[[#This Row],[Irms BuSync]]^2, Rs*Table1[[#This Row],[Irms BoCtlr]]^2, Rs*(Table1[[#This Row],[Irms BuSync]]^2+Table1[[#This Row],[Irms BoCtlr]]^2)) -> 0.2805836516 | BA17: 0.1089 | BB17: =IF(Vout>8, Iq*Vout, Iq*Table1[[#This Row],[Vin]]) -> 0.06 | BC17: =CHOOSE(Table1[[#This Row],[Mode Digit]], (Qg_Q1+Qg_Q2)*Fsw, (Qg_Q3+Qg_Q4)*Fsw, (Qg_Q1+Qg_Q2+Qg_Q3+Qg_Q4)*Fsw)*IF(Vout>8, Vout, Table1[[#This Row],[Vin]]) -> 0.5412 | BD17: 0.1912734247 | BE17: =Table1[[#This Row],[IQ Loss]]+Table1[[#This Row],[Switching Current Loss]] -> 0.6012 | BF17: =SUM(Table1[[#This Row],[Total Inductor Loss]],Table1[[#This Row],[Total Cout Loss]],Table1[[#This Row],[Total Cin Loss]],Table1[[#This Row],[Total Control Bu MOSFET Loss]],Table1[[#This Row],[Total Sync Bu MOSFET Loss]],Table1[[#This Row],[Total Control Bo MOSFET Loss]],Table1[[#This Row],[Total Sync Bo MOSFET Loss]], Table1[[#This Row],[Deadtime Loss ext D]],Table1[[#This Row],[Reverse Recovery Loss MOSFET D]],Table1[[#This Row],[Total IC Loss]],Table1[[#This Row],[Isense Shunt Loss]],Table1[[#This Row],[Iout Shunt Loss]]) -> 6.269807809 | BG17: =Vout*Table1[[#This Row],[Iout]] -> 66 | BH17: =Table1[[#This Row],[Pout]]/(Table1[[#This Row],[Pout]]+Table1[[#This Row],[Total Loss]]) -> 0.9132444378 | BI17: =IF(Table1[[#This Row],[Vin]]>Vout,ThetaJA_Q1*(Table1[[#This Row],[Total Control Bu MOSFET Loss]]+Table1[[#This Row],[Reverse Recovery Loss MOSFET D]]),ThetaJA_Q4*(Table1[[#This Row],[Total Control Bo MOSFET Loss]]+Table1[[#This Row],[Reverse Recovery Loss MOSFET D]])) -> 142.0885033 | BJ17: =IF(Table1[[#This Row],[Vin]]>Vout, Table1[[#This Row],[Total Sync Bu MOSFET Loss]]*ThetaJA_Q2, ThetaJA_Q3*Table1[[#This Row],[Total Sync Bo MOSFET Loss]]) -> 74.23272893 | BL17: =Table1[[#This Row],[EFF, h]]*100 -> 91.32444378 | BM17: =Table1[[#This Row],[Total Inductor Loss]] -> 0.7907008702 | BN17: =Table1[[#This Row],[Total Control Bu MOSFET Loss]]+Table1[[#This Row],[Total Sync Bu MOSFET Loss]]+Table1[[#This Row],[Total Control Bo MOSFET Loss]]+Table1[[#This Row],[Total Sync Bo MOSFET Loss]]+Table1[[#This Row],[Reverse Recovery Loss MOSFET D]] -> 4.313794523 | BO17: =Table1[[#This Row],[Total Sync Bu MOSFET Loss]]+Table1[[#This Row],[Reverse Recovery Loss MOSFET D]]*0.33 -> 0.5016691951 | BP17: =Table1[[#This Row],[Isense Shunt Loss]] -> 0.2805836516 | BT17: 500kHz / 18-1.2V / 20A | BU17: 50 | BV17: 50 | BW17: 50 | BX17: =500000*(18-Vdd)*BW17/1000000000+((500000*BW15/1000000000*Vdd)*2.5/(2*4)) -> 0.2859375 | BY17: 22.875 | BZ17: 28.59375 | CA17: 34.3125 | CB17: 40.03125 | CC17: 45.75 | CD17: 51.46875 | CE17: 5.71875 | CF17: 8.578125 | CG17: 11.4375 | CH17: 14.296875
